Workbook

Sheet Übersicht
D1: Kreisrundenwettkampf | J1: Saison | K1: 2023/2024 | P1: Schüler
C3: Wettkampftag: | D3: 16.09. | E3: 07.10. | F3: 04.11. | G3: 02.12. | J3: Hinrunde | L3: 13.01. | M3: 03.02. | N3: 17.02. | O3: 09.03. | P3: 06.04. | R3: Rückrunde | T3: Serie komplett
A4: Pos. | B4: Verein / Gruppe | D4: Lorup | E4: Börgermoor | F4: Lahn | G4: Spahnharrenstätte | J4: Schnitt | K4: Gesamt | L4: Esterwegen | M4: Lähden | N4: Breddenberg | O4: Neubörger | P4: Sögel | R4: Schnitt | S4: Gesamt | T4: Schnitt | U4: Gesamt | V4: Differenz
A6: 1 | B6: ='Übersicht Gruppen'!B2 -> Lähden | D6: ='Übersicht Gruppen'!C2 -> 565.0 | E6: ='Übersicht Gruppen'!D2 -> 545.3 | F6: ='Übersicht Gruppen'!E2 -> 564.7 | G6: ='Übersicht Gruppen'!F2 -> 539.2 | H6: ='Übersicht Gruppen'!G2 -> 0.0 | I6: ='Übersicht Gruppen'!H2 -> 0.0 | J6: ='Übersicht Gruppen'!I2 -> 553.55 | K6: =SUM(D6:I6) -> 2,214.2 | L6: ='Übersicht Gruppen'!K2 -> 563.6 | M6: ='Übersicht Gruppen'!L2 -> 551.9 | N6: ='Übersicht Gruppen'!M2 -> 560.7 | O6: ='Übersicht Gruppen'!N2 -> 562.0 | P6: ='Übersicht Gruppen'!O2 -> 559.6 | Q6: ='Übersicht Gruppen'!P2 -> 0.0 | R6: ='Übersicht Gruppen'!Q2 -> 559.56 | S6: =SUM(L6:Q6) -> 2,797.8 | T6: ='Übersicht Gruppen'!S2 -> 556.89 | U6: =SUM(S6+K6) -> 5,012.0
A7: 2 | B7: ='Übersicht Gruppen'!B3 -> Esterwegen | D7: ='Übersicht Gruppen'!C3 -> 519.5 | E7: ='Übersicht Gruppen'!D3 -> 478.6 | F7: ='Übersicht Gruppen'!E3 -> 515.0 | G7: ='Übersicht Gruppen'!F3 -> 492.8 | H7: ='Übersicht Gruppen'!G3 -> 0.0 | I7: ='Übersicht Gruppen'!H3 -> 0.0 | J7: ='Übersicht Gruppen'!I3 -> 501.48 | K7: 2,005.9 | L7: ='Übersicht Gruppen'!K3 -> 522.2 | M7: ='Übersicht Gruppen'!L3 -> 522.9 | N7: ='Übersicht Gruppen'!M3 -> 490.7 | O7: ='Übersicht Gruppen'!N3 -> 508.3 | P7: ='Übersicht Gruppen'!O3 -> 508.0 | Q7: ='Übersicht Gruppen'!P3 -> 0.0 | R7: ='Übersicht Gruppen'!Q3 -> 510.42 | S7: 2,552.1 | T7: ='Übersicht Gruppen'!S3 -> 506.44 | U7: =SUM(S7+K7) -> 4,558.0 | V7: =(U6-U7)*-1 -> -454.0
A8: 3 | B8: ='Übersicht Gruppen'!B4 -> Lorup | D8: ='Übersicht Gruppen'!C4 -> 394.9 | E8: ='Übersicht Gruppen'!D4 -> 404.5 | F8: ='Übersicht Gruppen'!E4 -> 436.5 | G8: ='Übersicht Gruppen'!F4 -> 443.2 | H8: ='Übersicht Gruppen'!G4 -> 0.0 | I8: ='Übersicht Gruppen'!H4 -> 0.0 | J8: ='Übersicht Gruppen'!I4 -> 419.78 | K8: 1,679.1 | L8: ='Übersicht Gruppen'!K4 -> 425.4 | M8: ='Übersicht Gruppen'!L4 -> 444.2 | N8: ='Übersicht Gruppen'!M4 -> 507.7 | O8: ='Übersicht Gruppen'!N4 -> 458.0 | P8: ='Übersicht Gruppen'!O4 -> 500.4 | Q8: ='Übersicht Gruppen'!P4 -> 0.0 | R8: ='Übersicht Gruppen'!Q4 -> 467.14 | S8: 2,335.7 | T8: ='Übersicht Gruppen'!S4 -> 446.09 | U8: 4,014.8 | V8: =(U7-U8)*-1 -> -543.2
A9: 4 | B9: ='Übersicht Gruppen'!B5 -> Spahnharenstätte | D9: ='Übersicht Gruppen'!C5 -> 318.6 | E9: ='Übersicht Gruppen'!D5 -> 349.1 | F9: ='Übersicht Gruppen'!E5 -> 263.5 | G9: ='Übersicht Gruppen'!F5 -> 344.4 | H9: ='Übersicht Gruppen'!G5 -> 0.0 | I9: ='Übersicht Gruppen'!H5 -> 0.0 | J9: ='Übersicht Gruppen'!I5 -> 318.90 | K9: 1,275.6 | L9: ='Übersicht Gruppen'!K5 -> 225.8 | M9: ='Übersicht Gruppen'!L5 -> 361.5 | N9: ='Übersicht Gruppen'!M5 -> 372.1 | O9: ='Übersicht Gruppen'!N5 -> 248.5 | P9: ='Übersicht Gruppen'!O5 -> 294.7 | Q9: ='Übersicht Gruppen'!P5 -> 0.0 | R9: ='Übersicht Gruppen'!Q5 -> 300.52 | S9: 1,502.6 | T9: ='Übersicht Gruppen'!S5 -> 308.69 | U9: 2,778.2 | V9: -1,236.6
A10: 5 | B10: ='Übersicht Gruppen'!B6 -> Börgermoor | D10: ='Übersicht Gruppen'!C6 -> 183.4 | E10: ='Übersicht Gruppen'!D6 -> 201.1 | F10: ='Übersicht Gruppen'!E6 -> 227.3 | G10: ='Übersicht Gruppen'!F6 -> 134.2 | H10: ='Übersicht Gruppen'!G6 -> 0.0 | I10: ='Übersicht Gruppen'!H6 -> 0.0 | J10: ='Übersicht Gruppen'!I6 -> 186.50 | K10: 746.0 | L10: ='Übersicht Gruppen'!K6 -> 0.0 | M10: ='Übersicht Gruppen'!L6 -> 145.7 | N10: ='Übersicht Gruppen'!M6 -> 175.5 | O10: ='Übersicht Gruppen'!N6 -> 137.2 | P10: ='Übersicht Gruppen'!O6 -> 160.3 | Q10: ='Übersicht Gruppen'!P6 -> 0.0 | R10: ='Übersicht Gruppen'!Q6 -> 154.68 | S10: 618.7 | T10: ='Übersicht Gruppen'!S6 -> 170.59 | U10: 1,364.7 | V10: -1,413.5
A11: 6 | B11: ='Übersicht Gruppen'!B7 -> Sögel | D11: ='Übersicht Gruppen'!C7 -> 0.0 | E11: ='Übersicht Gruppen'!D7 -> 0.0 | F11: ='Übersicht Gruppen'!E7 -> 0.0 | G11: ='Übersicht Gruppen'!F7 -> 0.0 | H11: ='Übersicht Gruppen'!G7 -> 0.0 | I11: ='Übersicht Gruppen'!H7 -> 0.0 | J11: ='Übersicht Gruppen'!I7 -> 0.00 | K11: 0.0 | L11: ='Übersicht Gruppen'!K7 -> 0.0 | M11: ='Übersicht Gruppen'!L7 -> 0.0 | N11: ='Übersicht Gruppen'!M7 -> 0.0 | O11: ='Übersicht Gruppen'!N7 -> 0.0 | P11: ='Übersicht Gruppen'!O7 -> 0.0 | Q11: ='Übersicht Gruppen'!P7 -> 0.0 | R11: ='Übersicht Gruppen'!Q7 -> 0.00 | S11: 0.0 | T11: ='Übersicht Gruppen'!S7 -> 0.00 | U11: 0.0 | V11: -1,364.7
A12: 7 | B12: ='Übersicht Gruppen'!B8 -> Verein VII | D12: ='Übersicht Gruppen'!C8 -> 0.0 | E12: ='Übersicht Gruppen'!D8 -> 0.0 | F12: ='Übersicht Gruppen'!E8 -> 0.0 | G12: ='Übersicht Gruppen'!F8 -> 0.0 | H12: ='Übersicht Gruppen'!G8 -> 0.0 | I12: ='Übersicht Gruppen'!H8 -> 0.0 | J12: ='Übersicht Gruppen'!I8 -> 0.00 | K12: 0.0 | L12: ='Übersicht Gruppen'!K8 -> 0.0 | M12: ='Übersicht Gruppen'!L8 -> 0.0 | N12: ='Übersicht Gruppen'!M8 -> 0.0 | O12: ='Übersicht Gruppen'!N8 -> 0.0 | P12: ='Übersicht Gruppen'!O8 -> 0.0 | Q12: ='Übersicht Gruppen'!P8 -> 0.0 | R12: ='Übersicht Gruppen'!Q8 -> 0.00 | S12: 0.0 | T12: ='Übersicht Gruppen'!S8 -> 0.00 | U12: 0.0 | V12: 0.0
A13: 8 | B13: ='Übersicht Gruppen'!B9 -> Verein VIII | D13: ='Übersicht Gruppen'!C9 -> 0.0 | E13: ='Übersicht Gruppen'!D9 -> 0.0 | F13: ='Übersicht Gruppen'!E9 -> 0.0 | G13: ='Übersicht Gruppen'!F9 -> 0.0 | H13: ='Übersicht Gruppen'!G9 -> 0.0 | I13: ='Übersicht Gruppen'!H9 -> 0.0 | J13: ='Übersicht Gruppen'!I9 -> 0.00 | K13: 0.0 | L13: ='Übersicht Gruppen'!K9 -> 0.0 | M13: ='Übersicht Gruppen'!L9 -> 0.0 | N13: ='Übersicht Gruppen'!M9 -> 0.0 | O13: ='Übersicht Gruppen'!N9 -> 0.0 | P13: ='Übersicht Gruppen'!O9 -> 0.0 | Q13: ='Übersicht Gruppen'!P9 -> 0.0 | R13: ='Übersicht Gruppen'!Q9 -> 0.00 | S13: 0.0 | T13: ='Übersicht Gruppen'!S9 -> 0.00 | U13: 0.0 | V13: 0.0
A14: 9 | B14: ='Übersicht Gruppen'!B10 -> Verein IX | D14: ='Übersicht Gruppen'!C10 -> 0.0 | E14: ='Übersicht Gruppen'!D10 -> 0.0 | F14: ='Übersicht Gruppen'!E10 -> 0.0 | G14: ='Übersicht Gruppen'!F10 -> 0.0 | H14: ='Übersicht Gruppen'!G10 -> 0.0 | I14: ='Übersicht Gruppen'!H10 -> 0.0 | J14: ='Übersicht Gruppen'!I10 -> 0.00 | K14: 0.0 | L14: ='Übersicht Gruppen'!K10 -> 0.0 | M14: ='Übersicht Gruppen'!L10 -> 0.0 | N14: ='Übersicht Gruppen'!M10 -> 0.0 | O14: ='Übersicht Gruppen'!N10 -> 0.0 | P14: ='Übersicht Gruppen'!O10 -> 0.0 | Q14: ='Übersicht Gruppen'!P10 -> 0.0 | R14: ='Übersicht Gruppen'!Q10 -> 0.00 | S14: 0.0 | T14: ='Übersicht Gruppen'!S10 -> 0.00 | U14: 0.0 | V14: 0.0
A15: 10 | B15: ='Übersicht Gruppen'!B11 -> Verein X | D15: ='Übersicht Gruppen'!C11 -> 0.0 | E15: ='Übersicht Gruppen'!D11 -> 0.0 | F15: ='Übersicht Gruppen'!E11 -> 0.0 | G15: ='Übersicht Gruppen'!F11 -> 0.0 | H15: ='Übersicht Gruppen'!G11 -> 0.0 | I15: ='Übersicht Gruppen'!H11 -> 0.0 | J15: ='Übersicht Gruppen'!I11 -> 0.00 | K15: 0.0 | L15: ='Übersicht Gruppen'!K11 -> 0.0 | M15: ='Übersicht Gruppen'!L11 -> 0.0 | N15: ='Übersicht Gruppen'!M11 -> 0.0 | O15: ='Übersicht Gruppen'!N11 -> 0.0 | P15: ='Übersicht Gruppen'!O11 -> 0.0 | Q15: ='Übersicht Gruppen'!P11 -> 0.0 | R15: ='Übersicht Gruppen'!Q11 -> 0.00 | S15: 0.0 | T15: ='Übersicht Gruppen'!S11 -> 0.00 | U15: 0.0 | V15: 0.0
A16: 11 | B16: ='Übersicht Gruppen'!B12 -> Verein XI | D16: ='Übersicht Gruppen'!C12 -> 0.0 | E16: ='Übersicht Gruppen'!D12 -> 0.0 | F16: ='Übersicht Gruppen'!E12 -> 0.0 | G16: ='Übersicht Gruppen'!F12 -> 0.0 | H16: ='Übersicht Gruppen'!G12 -> 0.0 | I16: ='Übersicht Gruppen'!H12 -> 0.0 | J16: ='Übersicht Gruppen'!I12 -> 0.00 | K16: 0.0 | L16: ='Übersicht Gruppen'!K12 -> 0.0 | M16: ='Übersicht Gruppen'!L12 -> 0.0 | N16: ='Übersicht Gruppen'!M12 -> 0.0 | O16: ='Übersicht Gruppen'!N12 -> 0.0 | P16: ='Übersicht Gruppen'!O12 -> 0.0 | Q16: ='Übersicht Gruppen'!P12 -> 0.0 | R16: ='Übersicht Gruppen'!Q12 -> 0.00 | S16: 0.0 | T16: ='Übersicht Gruppen'!S12 -> 0.00 | U16: 0.0 | V16: 0.0
A17: 12 | B17: ='Übersicht Gruppen'!B13 -> Verein XII | D17: ='Übersicht Gruppen'!C13 -> 0.0 | E17: ='Übersicht Gruppen'!D13 -> 0.0 | F17: ='Übersicht Gruppen'!E13 -> 0.0 | G17: ='Übersicht Gruppen'!F13 -> 0.0 | H17: ='Übersicht Gruppen'!G13 -> 0.0 | I17: ='Übersicht Gruppen'!H13 -> 0.0 | J17: ='Übersicht Gruppen'!I13 -> 0.00 | K17: 0.0 | L17: ='Übersicht Gruppen'!K13 -> 0.0 | M17: ='Übersicht Gruppen'!L13 -> 0.0 | N17: ='Übersicht Gruppen'!M13 -> 0.0 | O17: ='Übersicht Gruppen'!N13 -> 0.0 | P17: ='Übersicht Gruppen'!O13 -> 0.0 | Q17: ='Übersicht Gruppen'!P13 -> 0.0 | R17: ='Übersicht Gruppen'!Q13 -> 0.00 | S17: 0.0 | T17: ='Übersicht Gruppen'!S13 -> 0.00 | U17: 0.0 | V17: 0.0
C19: Schnitt: | D19: =AVERAGE(D6:D11) -> 330.2 | E19: =AVERAGE(E6:E11) -> 329.8 | F19: 334.5 | G19: 325.6 | H19: 0.0 | I19: 0.0 | J19: 330.03 | K19: =SUM(K6:K11)/6 -> 1,320.1 | L19: 289.5 | M19: 337.7 | N19: 351.1 | O19: 319.0 | P19: 337.2 | Q19: 0.0 | R19: 332.05 | S19: 1634.5 | T19: 331.45 | U19: 2,954.6
J21: Hinrunde | R21: Rückrunde | T21: Serie komplett | V21: Differenz
A22: Pos. | B22: Vorname Name | C22: Verein / Gruppe | J22: Schnitt | K22: Gesamt | R22: Schnitt | S22: Gesamt | T22: Schnitt | U22: Gesamt
A23: 1 | B23: ='Übersicht Schützen'!A2 -> Buschen Johann | C23: ='Übersicht Schützen'!B2 -> Lähden | D23: ='Übersicht Schützen'!C2 -> 188.7 | E23: ='Übersicht Schützen'!D2 -> 190.9 | F23: ='Übersicht Schützen'!E2 -> 194.9 | G23: ='Übersicht Schützen'!F2 -> 184.9 | H23: ='Übersicht Schützen'!G2 -> 0.0 | I23: ='Übersicht Schützen'!H2 -> 0.0 | J23: ='Übersicht Schützen'!I2 -> 189.85 | K23: =SUM(D23:I23) -> 759.4 | L23: ='Übersicht Schützen'!L2 -> 195.9 | M23: ='Übersicht Schützen'!M2 -> 179.6 | N23: ='Übersicht Schützen'!N2 -> 189.5 | O23: ='Übersicht Schützen'!O2 -> 184.5 | P23: ='Übersicht Schützen'!P2 -> 192.1 | Q23: ='Übersicht Schützen'!Q2 -> 0.0 | R23: ='Übersicht Schützen'!R2 -> 188.32 | S23: =SUM(L23:Q23) -> 941.6 | T23: ='Übersicht Schützen'!U2 -> 189.00 | U23: =SUM(K23+S23) -> 1,701.0
A24: 2 | B24: ='Übersicht Schützen'!A3 -> Suhle Annalena | C24: ='Übersicht Schützen'!B3 -> Esterwegen | D24: ='Übersicht Schützen'!C3 -> 177.9 | E24: ='Übersicht Schützen'!D3 -> 175.9 | F24: ='Übersicht Schützen'!E3 -> 184.4 | G24: ='Übersicht Schützen'!F3 -> 179.3 | H24: ='Übersicht Schützen'!G3 -> 0.0 | I24: ='Übersicht Schützen'!H3 -> 0.0 | J24: ='Übersicht Schützen'!I3 -> 179.38 | K24: =SUM(D24:I24) -> 717.5 | L24: ='Übersicht Schützen'!L3 -> 185.3 | M24: ='Übersicht Schützen'!M3 -> 190.5 | N24: ='Übersicht Schützen'!N3 -> 186.4 | O24: ='Übersicht Schützen'!O3 -> 188.9 | P24: ='Übersicht Schützen'!P3 -> 196.1 | Q24: ='Übersicht Schützen'!Q3 -> 0.0 | R24: ='Übersicht Schützen'!R3 -> 189.44 | S24: =SUM(L24:Q24) -> 947.2 | T24: ='Übersicht Schützen'!U3 -> 184.97 | U24: =SUM(K24+S24) -> 1,664.7 | V24: =(U23-U24)*-1 -> -36.3
A25: 3 | B25: ='Übersicht Schützen'!A4 -> Hellweg Thea | C25: ='Übersicht Schützen'!B4 -> Lähden | D25: ='Übersicht Schützen'!C4 -> 191.8 | E25: ='Übersicht Schützen'!D4 -> 174.2 | F25: ='Übersicht Schützen'!E4 -> 181.9 | G25: ='Übersicht Schützen'!F4 -> 182.2 | H25: ='Übersicht Schützen'!G4 -> 0.0 | I25: ='Übersicht Schützen'!H4 -> 0.0 | J25: ='Übersicht Schützen'!I4 -> 182.53 | K25: =SUM(D25:I25) -> 730.1 | L25: ='Übersicht Schützen'!L4 -> 183.8 | M25: ='Übersicht Schützen'!M4 -> 180.4 | N25: ='Übersicht Schützen'!N4 -> 175.1 | O25: ='Übersicht Schützen'!O4 -> 188.4 | P25: ='Übersicht Schützen'!P4 -> 181.7 | Q25: ='Übersicht Schützen'!Q4 -> 0.0 | R25: ='Übersicht Schützen'!R4 -> 181.88 | S25: 909.4 | T25: ='Übersicht Schützen'!U4 -> 182.17 | U25: 1,639.5 | V25: =(U24-U25)*-1 -> -25.2
A26: 4 | B26: ='Übersicht Schützen'!A5 -> Bruns Henrik | C26: ='Übersicht Schützen'!B5 -> Lähden | D26: ='Übersicht Schützen'!C5 -> 184.5 | E26: ='Übersicht Schützen'!D5 -> 180.2 | F26: ='Übersicht Schützen'!E5 -> 187.9 | G26: ='Übersicht Schützen'!F5 -> 172.1 | H26: ='Übersicht Schützen'!G5 -> 0.0 | I26: ='Übersicht Schützen'!H5 -> 0.0 | J26: ='Übersicht Schützen'!I5 -> 181.18 | K26: 724.7 | L26: ='Übersicht Schützen'!L5 -> 183.9 | M26: ='Übersicht Schützen'!M5 -> 179.1 | N26: ='Übersicht Schützen'!N5 -> 184.7 | O26: ='Übersicht Schützen'!O5 -> 180.7 | P26: ='Übersicht Schützen'!P5 -> 178.9 | Q26: ='Übersicht Schützen'!Q5 -> 0.0 | R26: ='Übersicht Schützen'!R5 -> 181.46 | S26: 907.3 | T26: ='Übersicht Schützen'!U5 -> 181.33 | U26: 1,632.0 | V26: -7.5
A27: 5 | B27: ='Übersicht Schützen'!A6 -> Gäken Lena | C27: ='Übersicht Schützen'!B6 -> Esterwegen | D27: ='Übersicht Schützen'!C6 -> 186.7 | E27: ='Übersicht Schützen'!D6 -> 170.4 | F27: ='Übersicht Schützen'!E6 -> 175.5 | G27: ='Übersicht Schützen'!F6 -> 179.5 | H27: ='Übersicht Schützen'!G6 -> 0.0 | I27: ='Übersicht Schützen'!H6 -> 0.0 | J27: ='Übersicht Schützen'!I6 -> 178.03 | K27: 712.1 | L27: ='Übersicht Schützen'!L6 -> 170.4 | M27: ='Übersicht Schützen'!M6 -> 184.7 | N27: ='Übersicht Schützen'!N6 -> 185.5 | O27: ='Übersicht Schützen'!O6 -> 179.6 | P27: ='Übersicht Schützen'!P6 -> 188.0 | Q27: ='Übersicht Schützen'!Q6 -> 0.0 | R27: ='Übersicht Schützen'!R6 -> 181.64 | S27: 908.2 | T27: ='Übersicht Schützen'!U6 -> 180.03 | U27: 1,620.3 | V27: -11.7
A28: 6 | B28: ='Übersicht Schützen'!A7 -> Wotte Lia | C28: ='Übersicht Schützen'!B7 -> Lorup | D28: ='Übersicht Schützen'!C7 -> 148.9 | E28: ='Übersicht Schützen'!D7 -> 166.8 | F28: ='Übersicht Schützen'!E7 -> 165.9 | G28: ='Übersicht Schützen'!F7 -> 170.3 | H28: ='Übersicht Schützen'!G7 -> 0.0 | I28: ='Übersicht Schützen'!H7 -> 0.0 | J28: ='Übersicht Schützen'!I7 -> 162.98 | K28: 651.9 | L28: ='Übersicht Schützen'!L7 -> 166.3 | M28: ='Übersicht Schützen'!M7 -> 168.8 | N28: ='Übersicht Schützen'!N7 -> 178.6 | O28: ='Übersicht Schützen'!O7 -> 166.4 | P28: ='Übersicht Schützen'!P7 -> 182.2 | Q28: ='Übersicht Schützen'!Q7 -> 0.0 | R28: ='Übersicht Schützen'!R7 -> 172.46 | S28: 862.3 | T28: ='Übersicht Schützen'!U7 -> 168.24 | U28: 1,514.2 | V28: -106.1
A29: 7 | B29: ='Übersicht Schützen'!A8 -> Preut Jannis | C29: ='Übersicht Schützen'!B8 -> Lähden | D29: ='Übersicht Schützen'!C8 -> 173.7 | E29: ='Übersicht Schützen'!D8 -> 0.0 | F29: ='Übersicht Schützen'!E8 -> 173.0 | G29: ='Übersicht Schützen'!F8 -> 164.2 | H29: ='Übersicht Schützen'!G8 -> 0.0 | I29: ='Übersicht Schützen'!H8 -> 0.0 | J29: ='Übersicht Schützen'!I8 -> 170.30 | K29: 510.9 | L29: ='Übersicht Schützen'!L8 -> 173.3 | M29: ='Übersicht Schützen'!M8 -> 166.4 | N29: ='Übersicht Schützen'!N8 -> 150.1 | O29: ='Übersicht Schützen'!O8 -> 149.6 | P29: ='Übersicht Schützen'!P8 -> 159.3 | Q29: ='Übersicht Schützen'!Q8 -> 0.0 | R29: ='Übersicht Schützen'!R8 -> 159.74 | S29: 798.7 | T29: ='Übersicht Schützen'!U8 -> 163.70 | U29: 1,309.6 | V29: -204.6
A30: 8 | B30: ='Übersicht Schützen'!A9 -> Runde Marcel | C30: ='Übersicht Schützen'!B9 -> Spahnharenstätte | D30: ='Übersicht Schützen'!C9 -> 126.7 | E30: ='Übersicht Schützen'!D9 -> 150.7 | F30: ='Übersicht Schützen'!E9 -> 144.5 | G30: ='Übersicht Schützen'!F9 -> 140.6 | H30: ='Übersicht Schützen'!G9 -> 0.0 | I30: ='Übersicht Schützen'!H9 -> 0.0 | J30: ='Übersicht Schützen'!I9 -> 140.63 | K30: 562.5 | L30: ='Übersicht Schützen'!L9 -> 155.8 | M30: ='Übersicht Schützen'!M9 -> 151.2 | N30: ='Übersicht Schützen'!N9 -> 137.0 | O30: ='Übersicht Schützen'!O9 -> 147.0 | P30: ='Übersicht Schützen'!P9 -> 154.0 | Q30: ='Übersicht Schützen'!Q9 -> 0.0 | R30: ='Übersicht Schützen'!R9 -> 149.00 | S30: 745.0 | T30: ='Übersicht Schützen'!U9 -> 145.28 | U30: 1,307.5 | V30: -2.1
A31: 9 | B31: ='Übersicht Schützen'!A10 -> Wotte Hannes | C31: ='Übersicht Schützen'!B10 -> Lorup | D31: ='Übersicht Schützen'!C10 -> 135.3 | E31: ='Übersicht Schützen'!D10 -> 125.8 | F31: ='Übersicht Schützen'!E10 -> 139.7 | G31: ='Übersicht Schützen'!F10 -> 144.1 | H31: ='Übersicht Schützen'!G10 -> 0.0 | I31: ='Übersicht Schützen'!H10 -> 0.0 | J31: ='Übersicht Schützen'!I10 -> 136.23 | K31: 544.9 | L31: ='Übersicht Schützen'!L10 -> 131.3 | M31: ='Übersicht Schützen'!M10 -> 135.9 | N31: ='Übersicht Schützen'!N10 -> 139.8 | O31: ='Übersicht Schützen'!O10 -> 149.6 | P31: ='Übersicht Schützen'!P10 -> 140.3 | Q31: ='Übersicht Schützen'!Q10 -> 0.0 | R31: ='Übersicht Schützen'!R10 -> 139.38 | S31: 696.9 | T31: ='Übersicht Schützen'!U10 -> 137.98 | U31: 1,241.8 | V31: -65.7
A32: 10 | B32: ='Übersicht Schützen'!A11 -> Helmer Maike | C32: ='Übersicht Schützen'!B11 -> Lorup | D32: ='Übersicht Schützen'!C11 -> 91.9 | E32: ='Übersicht Schützen'!D11 -> 101.8 | F32: ='Übersicht Schützen'!E11 -> 130.9 | G32: ='Übersicht Schützen'!F11 -> 118.8 | H32: ='Übersicht Schützen'!G11 -> 0.0 | I32: ='Übersicht Schützen'!H11 -> 0.0 | J32: ='Übersicht Schützen'!I11 -> 110.85 | K32: 443.4 | L32: ='Übersicht Schützen'!L11 -> 127.8 | M32: ='Übersicht Schützen'!M11 -> 139.5 | N32: ='Übersicht Schützen'!N11 -> 180.9 | O32: ='Übersicht Schützen'!O11 -> 155.1 | P32: ='Übersicht Schützen'!P11 -> 170.0 | Q32: ='Übersicht Schützen'!Q11 -> 0.0 | R32: ='Übersicht Schützen'!R11 -> 154.66 | S32: 773.3 | T32: ='Übersicht Schützen'!U11 -> 135.19 | U32: 1,216.7 | V32: -25.1
A33: 11 | B33: ='Übersicht Schützen'!A12 -> Kohnen Saskia | C33: ='Übersicht Schützen'!B12 -> Börgermoor | D33: ='Übersicht Schützen'!C12 -> 134.9 | E33: ='Übersicht Schützen'!D12 -> 139.4 | F33: ='Übersicht Schützen'!E12 -> 135.8 | G33: ='Übersicht Schützen'!F12 -> 134.2 | H33: ='Übersicht Schützen'!G12 -> 0.0 | I33: ='Übersicht Schützen'!H12 -> 0.0 | J33: ='Übersicht Schützen'!I12 -> 136.08 | K33: 544.3 | L33: ='Übersicht Schützen'!L12 -> 0.0 | M33: ='Übersicht Schützen'!M12 -> 145.7 | N33: ='Übersicht Schützen'!N12 -> 175.5 | O33: ='Übersicht Schützen'!O12 -> 137.2 | P33: ='Übersicht Schützen'!P12 -> 160.3 | Q33: ='Übersicht Schützen'!Q12 -> 0.0 | R33: ='Übersicht Schützen'!R12 -> 154.68 | S33: 618.7 | T33: ='Übersicht Schützen'!U12 -> 145.38 | U33: 1,163.0 | V33: -53.7
A34: 12 | B34: ='Übersicht Schützen'!A13 -> Jansen Daniel | C34: ='Übersicht Schützen'!B13 -> Esterwegen | D34: ='Übersicht Schützen'!C13 -> 154.9 | E34: ='Übersicht Schützen'!D13 -> 132.3 | F34: ='Übersicht Schützen'!E13 -> 155.1 | G34: ='Übersicht Schützen'!F13 -> 134.0 | H34: ='Übersicht Schützen'!G13 -> 0.0 | I34: ='Übersicht Schützen'!H13 -> 0.0 | J34: ='Übersicht Schützen'!I13 -> 144.08 | K34: 576.3 | L34: ='Übersicht Schützen'!L13 -> 166.5 | M34: ='Übersicht Schützen'!M13 -> 126.8 | N34: ='Übersicht Schützen'!N13 -> 0.0 | O34: ='Übersicht Schützen'!O13 -> 139.8 | P34: ='Übersicht Schützen'!P13 -> 123.9 | Q34: ='Übersicht Schützen'!Q13 -> 0.0 | R34: ='Übersicht Schützen'!R13 -> 139.25 | S34: 557.0 | T34: ='Übersicht Schützen'!U13 -> 141.66 | U34: 1,133.3 | V34: -29.7
A35: 13 | B35: ='Übersicht Schützen'!A14 -> Fleschenberg Jana | C35: ='Übersicht Schützen'!B14 -> Lähden | D35: ='Übersicht Schützen'!C14 -> 0.0 | E35: ='Übersicht Schützen'!D14 -> 0.0 | F35: ='Übersicht Schützen'!E14 -> 178.6 | G35: ='Übersicht Schützen'!F14 -> 0.0 | H35: ='Übersicht Schützen'!G14 -> 0.0 | I35: ='Übersicht Schützen'!H14 -> 0.0 | J35: ='Übersicht Schützen'!I14 -> 178.60 | K35: 178.6 | L35: ='Übersicht Schützen'!L14 -> 179.2 | M35: ='Übersicht Schützen'!M14 -> 191.9 | N35: ='Übersicht Schützen'!N14 -> 186.5 | O35: ='Übersicht Schützen'!O14 -> 189.1 | P35: ='Übersicht Schützen'!P14 -> 185.8 | Q35: ='Übersicht Schützen'!Q14 -> 0.0 | R35: ='Übersicht Schützen'!R14 -> 186.50 | S35: 932.5 | T35: ='Übersicht Schützen'!U14 -> 185.18 | U35: 1,111.1 | V35: -22.2
A36: 14 | B36: ='Übersicht Schützen'!A15 -> Gretenabeln Elias | C36: ='Übersicht Schützen'!B15 -> Lorup | D36: ='Übersicht Schützen'!C15 -> 110.7 | E36: ='Übersicht Schützen'!D15 -> 111.9 | F36: ='Übersicht Schützen'!E15 -> 82.6 | G36: ='Übersicht Schützen'!F15 -> 128.8 | H36: ='Übersicht Schützen'!G15 -> 0.0 | I36: ='Übersicht Schützen'!H15 -> 0.0 | J36: ='Übersicht Schützen'!I15 -> 108.50 | K36: 434.0 | L36: ='Übersicht Schützen'!L15 -> 105.2 | M36: ='Übersicht Schützen'!M15 -> 117.5 | N36: ='Übersicht Schützen'!N15 -> 148.2 | O36: ='Übersicht Schützen'!O15 -> 142.0 | P36: ='Übersicht Schützen'!P15 -> 148.2 | Q36: ='Übersicht Schützen'!Q15 -> 0.0 | R36: ='Übersicht Schützen'!R15 -> 132.22 | S36: 661.1 | T36: ='Übersicht Schützen'!U15 -> 121.68 | U36: 1,095.1 | V36: -16.0
A37: 15 | B37: ='Übersicht Schützen'!A16 -> Többen Jannes | C37: ='Übersicht Schützen'!B16 -> Lorup | D37: ='Übersicht Schützen'!C16 -> 108.5 | E37: ='Übersicht Schützen'!D16 -> 91.0 | F37: ='Übersicht Schützen'!E16 -> 76.0 | G37: ='Übersicht Schützen'!F16 -> 105.4 | H37: ='Übersicht Schützen'!G16 -> 0.0 | I37: ='Übersicht Schützen'!H16 -> 0.0 | J37: ='Übersicht Schützen'!I16 -> 95.23 | K37: 380.9 | L37: ='Übersicht Schützen'!L16 -> 109.5 | M37: ='Übersicht Schützen'!M16 -> 125.6 | N37: ='Übersicht Schützen'!N16 -> 115.3 | O37: ='Übersicht Schützen'!O16 -> 131.9 | P37: ='Übersicht Schützen'!P16 -> 128.3 | Q37: ='Übersicht Schützen'!Q16 -> 0.0 | R37: ='Übersicht Schützen'!R16 -> 122.12 | S37: 610.6 | T37: ='Übersicht Schützen'!U16 -> 110.17 | U37: 991.5 | V37: -103.6
A38: 16 | B38: ='Übersicht Schützen'!A17 -> von Seggern Moritz | C38: ='Übersicht Schützen'!B17 -> Lähden | D38: ='Übersicht Schützen'!C17 -> 0.0 | E38: ='Übersicht Schützen'!D17 -> 0.0 | F38: ='Übersicht Schützen'!E17 -> 0.0 | G38: ='Übersicht Schützen'!F17 -> 142.7 | H38: ='Übersicht Schützen'!G17 -> 0.0 | I38: ='Übersicht Schützen'!H17 -> 0.0 | J38: ='Übersicht Schützen'!I17 -> 142.70 | K38: 142.7 | L38: ='Übersicht Schützen'!L17 -> 133.0 | M38: ='Übersicht Schützen'!M17 -> 152.4 | N38: ='Übersicht Schützen'!N17 -> 166.8 | O38: ='Übersicht Schützen'!O17 -> 162.8 | P38: ='Übersicht Schützen'!P17 -> 154.1 | Q38: ='Übersicht Schützen'!Q17 -> 0.0 | R38: ='Übersicht Schützen'!R17 -> 153.82 | S38: 769.1 | T38: ='Übersicht Schützen'!U17 -> 151.97 | U38: 911.8 | V38: -79.7
A39: 17 | B39: ='Übersicht Schützen'!A18 -> Jansen Lars | C39: ='Übersicht Schützen'!B18 -> Spahnharenstätte | D39: ='Übersicht Schützen'!C18 -> 124.4 | E39: ='Übersicht Schützen'!D18 -> 144.2 | F39: ='Übersicht Schützen'!E18 -> 119.0 | G39: ='Übersicht Schützen'!F18 -> 125.3 | H39: ='Übersicht Schützen'!G18 -> 0.0 | I39: ='Übersicht Schützen'!H18 -> 0.0 | J39: ='Übersicht Schützen'!I18 -> 128.23 | K39: 512.9 | L39: ='Übersicht Schützen'!L18 -> 0.0 | M39: ='Übersicht Schützen'!M18 -> 121.9 | N39: ='Übersicht Schützen'!N18 -> 125.3 | O39: ='Übersicht Schützen'!O18 -> 0.0 | P39: ='Übersicht Schützen'!P18 -> 140.7 | Q39: ='Übersicht Schützen'!Q18 -> 0.0 | R39: ='Übersicht Schützen'!R18 -> 129.30 | S39: 387.9 | T39: ='Übersicht Schützen'!U18 -> 128.69 | U39: 900.8 | V39: -11.0
A40: 18 | B40: ='Übersicht Schützen'!A19 -> Engbers Hannes | C40: ='Übersicht Schützen'!B19 -> Spahnharenstätte | D40: ='Übersicht Schützen'!C19 -> 67.5 | E40: ='Übersicht Schützen'!D19 -> 54.2 | F40: ='Übersicht Schützen'!E19 -> 0.0 | G40: ='Übersicht Schützen'!F19 -> 78.5 | H40: ='Übersicht Schützen'!G19 -> 0.0 | I40: ='Übersicht Schützen'!H19 -> 0.0 | J40: ='Übersicht Schützen'!I19 -> 66.73 | K40: 200.2 | L40: ='Übersicht Schützen'!L19 -> 70.0 | M40: ='Übersicht Schützen'!M19 -> 88.4 | N40: ='Übersicht Schützen'!N19 -> 109.8 | O40: ='Übersicht Schützen'!O19 -> 101.5 | P40: ='Übersicht Schützen'!P19 -> 0.0 | Q40: ='Übersicht Schützen'!Q19 -> 0.0 | R40: ='Übersicht Schützen'!R19 -> 92.43 | S40: 369.7 | T40: ='Übersicht Schützen'!U19 -> 81.41 | U40: 569.9 | V40: -330.9
A41: 19 | B41: ='Übersicht Schützen'!A20 -> Helmer, Nils | C41: ='Übersicht Schützen'!B20 -> Lorup | D41: ='Übersicht Schützen'!C20 -> 0.0 | E41: ='Übersicht Schützen'!D20 -> 0.0 | F41: ='Übersicht Schützen'!E20 -> 0.0 | G41: ='Übersicht Schützen'!F20 -> 0.0 | H41: ='Übersicht Schützen'!G20 -> 0.0 | I41: ='Übersicht Schützen'!H20 -> 0.0 | J41: ='Übersicht Schützen'!I20 -> 0.00 | K41: 0.0 | L41: ='Übersicht Schützen'!L20 -> 0.0 | M41: ='Übersicht Schützen'!M20 -> 126.2 | N41: ='Übersicht Schützen'!N20 -> 71.8 | O41: ='Übersicht Schützen'!O20 -> 100.1 | P41: ='Übersicht Schützen'!P20 -> 142.0 | Q41: ='Übersicht Schützen'!Q20 -> 0.0 | R41: ='Übersicht Schützen'!R20 -> 110.03 | S41: 440.1 | T41: ='Übersicht Schützen'!U20 -> 110.03 | U41: 440.1 | V41: -129.8
A42: 20 | B42: ='Übersicht Schützen'!A21 -> Pieper Jonas | C42: ='Übersicht Schützen'!B21 -> Esterwegen | D42: ='Übersicht Schützen'!C21 -> 0.0 | E42: ='Übersicht Schützen'!D21 -> 0.0 | F42: ='Übersicht Schützen'!E21 -> 0.0 | G42: ='Übersicht Schützen'!F21 -> 0.0 | H42: ='Übersicht Schützen'!G21 -> 0.0 | I42: ='Übersicht Schützen'!H21 -> 0.0 | J42: ='Übersicht Schützen'!I21 -> 0.00 | K42: 0.0 | L42: ='Übersicht Schützen'!L21 -> 0.0 | M42: ='Übersicht Schützen'!M21 -> 147.7 | N42: ='Übersicht Schützen'!N21 -> 118.8 | O42: ='Übersicht Schützen'!O21 -> 117.2 | P42: ='Übersicht Schützen'!P21 -> 0.0 | Q42: ='Übersicht Schützen'!Q21 -> 0.0 | R42: ='Übersicht Schützen'!R21 -> 127.90 | S42: 383.7 | T42: ='Übersicht Schützen'!U21 -> 127.90 | U42: 383.7 | V42: -56.4
A43: 21 | B43: ='Übersicht Schützen'!A22 -> Lüken Arne | C43: ='Übersicht Schützen'!B22 -> Lorup | D43: ='Übersicht Schützen'!C22 -> 108.9 | E43: ='Übersicht Schützen'!D22 -> 107.8 | F43: ='Übersicht Schützen'!E22 -> 114.4 | G43: ='Übersicht Schützen'!F22 -> 0.0 | H43: ='Übersicht Schützen'!G22 -> 0.0 | I43: ='Übersicht Schützen'!H22 -> 0.0 | J43: ='Übersicht Schützen'!I22 -> 110.37 | K43: 331.1 | L43: ='Übersicht Schützen'!L22 -> 0.0 | M43: ='Übersicht Schützen'!M22 -> 0.0 | N43: ='Übersicht Schützen'!N22 -> 0.0 | O43: ='Übersicht Schützen'!O22 -> 0.0 | P43: ='Übersicht Schützen'!P22 -> 0.0 | Q43: ='Übersicht Schützen'!Q22 -> 0.0 | R43: ='Übersicht Schützen'!R22 -> 0.00 | S43: 0.0 | T43: ='Übersicht Schützen'!U22 -> 110.37 | U43: 331.1 | V43: -52.6
A44: 22 | B44: ='Übersicht Schützen'!A23 -> Niemann Paul | C44: ='Übersicht Schützen'!B23 -> Börgermoor | D44: ='Übersicht Schützen'!C23 -> 48.5 | E44: ='Übersicht Schützen'!D23 -> 61.7 | F44: ='Übersicht Schützen'!E23 -> 91.5 | G44: ='Übersicht Schützen'!F23 -> 0.0 | H44: ='Übersicht Schützen'!G23 -> 0.0 | I44: ='Übersicht Schützen'!H23 -> 0.0 | J44: ='Übersicht Schützen'!I23 -> 67.23 | K44: 201.7 | L44: ='Übersicht Schützen'!L23 -> 0.0 | M44: ='Übersicht Schützen'!M23 -> 0.0 | N44: ='Übersicht Schützen'!N23 -> 0.0 | O44: ='Übersicht Schützen'!O23 -> 0.0 | P44: ='Übersicht Schützen'!P23 -> 0.0 | Q44: ='Übersicht Schützen'!Q23 -> 0.0 | R44: ='Übersicht Schützen'!R23 -> 0.00 | S44: 0.0 | T44: ='Übersicht Schützen'!U23 -> 67.23 | U44: 201.7 | V44: -129.4
A45: 23 | B45: ='Übersicht Schützen'!A24 -> Schütze 7 | C45: ='Übersicht Schützen'!B24 -> Sögel | D45: ='Übersicht Schützen'!C24 -> 0.0 | E45: ='Übersicht Schützen'!D24 -> 0.0 | F45: ='Übersicht Schützen'!E24 -> 0.0 | G45: ='Übersicht Schützen'!F24 -> 0.0 | H45: ='Übersicht Schützen'!G24 -> 0.0 | I45: ='Übersicht Schützen'!H24 -> 0.0 | J45: ='Übersicht Schützen'!I24 -> 0.00 | K45: 0.0 | L45: ='Übersicht Schützen'!L24 -> 0.0 | M45: ='Übersicht Schützen'!M24 -> 0.0 | N45: ='Übersicht Schützen'!N24 -> 0.0 | O45: ='Übersicht Schützen'!O24 -> 0.0 | P45: ='Übersicht Schützen'!P24 -> 0.0 | Q45: ='Übersicht Schützen'!Q24 -> 0.0 | R45: ='Übersicht Schützen'!R24 -> 0.00 | S45: 0.0 | T45: ='Übersicht Schützen'!U24 -> 0.00 | U45: 0.0 | V45: -201.7
A46: 24 | B46: ='Übersicht Schützen'!A25 -> Schütze 8 | C46: ='Übersicht Schützen'!B25 -> Sögel | D46: ='Übersicht Schützen'!C25 -> 0.0 | E46: ='Übersicht Schützen'!D25 -> 0.0 | F46: ='Übersicht Schützen'!E25 -> 0.0 | G46: ='Übersicht Schützen'!F25 -> 0.0 | H46: ='Übersicht Schützen'!G25 -> 0.0 | I46: ='Übersicht Schützen'!H25 -> 0.0 | J46: ='Übersicht Schützen'!I25 -> 0.00 | K46: 0.0 | L46: ='Übersicht Schützen'!L25 -> 0.0 | M46: ='Übersicht Schützen'!M25 -> 0.0 | N46: ='Übersicht Schützen'!N25 -> 0.0 | O46: ='Übersicht Schützen'!O25 -> 0.0 | P46: ='Übersicht Schützen'!P25 -> 0.0 | Q46: ='Übersicht Schützen'!Q25 -> 0.0 | R46: ='Übersicht Schützen'!R25 -> 0.00 | S46: 0.0 | T46: ='Übersicht Schützen'!U25 -> 0.00 | U46: 0.0 | V46: 0.0
A47: 25 | B47: ='Übersicht Schützen'!A26 -> Schütze 9 | C47: ='Übersicht Schützen'!B26 -> Sögel | D47: ='Übersicht Schützen'!C26 -> 0.0 | E47: ='Übersicht Schützen'!D26 -> 0.0 | F47: ='Übersicht Schützen'!E26 -> 0.0 | G47: ='Übersicht Schützen'!F26 -> 0.0 | H47: ='Übersicht Schützen'!G26 -> 0.0 | I47: ='Übersicht Schützen'!H26 -> 0.0 | J47: ='Übersicht Schützen'!I26 -> 0.00 | K47: 0.0 | L47: ='Übersicht Schützen'!L26 -> 0.0 | M47: ='Übersicht Schützen'!M26 -> 0.0 | N47: ='Übersicht Schützen'!N26 -> 0.0 | O47: ='Übersicht Schützen'!O26 -> 0.0 | P47: ='Übersicht Schützen'!P26 -> 0.0 | Q47: ='Übersicht Schützen'!Q26 -> 0.0 | R47: ='Übersicht Schützen'!R26 -> 0.00 | S47: 0.0 | T47: ='Übersicht Schützen'!U26 -> 0.00 | U47: 0.0 | V47: 0.0
A48: 26 | B48: ='Übersicht Schützen'!A27 -> Schütze 10 | C48: ='Übersicht Schützen'!B27 -> Sögel | D48: ='Übersicht Schützen'!C27 -> 0.0 | E48: ='Übersicht Schützen'!D27 -> 0.0 | F48: ='Übersicht Schützen'!E27 -> 0.0 | G48: ='Übersicht Schützen'!F27 -> 0.0 | H48: ='Übersicht Schützen'!G27 -> 0.0 | I48: ='Übersicht Schützen'!H27 -> 0.0 | J48: ='Übersicht Schützen'!I27 -> 0.00 | K48: 0.0 | L48: ='Übersicht Schützen'!L27 -> 0.0 | M48: ='Übersicht Schützen'!M27 -> 0.0 | N48: ='Übersicht Schützen'!N27 -> 0.0 | O48: ='Übersicht Schützen'!O27 -> 0.0 | P48: ='Übersicht Schützen'!P27 -> 0.0 | Q48: ='Übersicht Schützen'!Q27 -> 0.0 | R48: ='Übersicht Schützen'!R27 -> 0.00 | S48: 0.0 | T48: ='Übersicht Schützen'!U27 -> 0.00 | U48: 0.0 | V48: 0.0
A49: 27 | B49: ='Übersicht Schützen'!A28 -> Schütze 14 | C49: ='Übersicht Schützen'!B28 -> Spahnharenstätte | D49: ='Übersicht Schützen'!C28 -> 0.0 | E49: ='Übersicht Schützen'!D28 -> 0.0 | F49: ='Übersicht Schützen'!E28 -> 0.0 | G49: ='Übersicht Schützen'!F28 -> 0.0 | H49: ='Übersicht Schützen'!G28 -> 0.0 | I49: ='Übersicht Schützen'!H28 -> 0.0 | J49: ='Übersicht Schützen'!I28 -> 0.00 | K49: 0.0 | L49: ='Übersicht Schützen'!L28 -> 0.0 | M49: ='Übersicht Schützen'!M28 -> 0.0 | N49: ='Übersicht Schützen'!N28 -> 0.0 | O49: ='Übersicht Schützen'!O28 -> 0.0 | P49: ='Übersicht Schützen'!P28 -> 0.0 | Q49: ='Übersicht Schützen'!Q28 -> 0.0 | R49: ='Übersicht Schützen'!R28 -> 0.00 | S49: 0.0 | T49: ='Übersicht Schützen'!U28 -> 0.00 | U49: 0.0 | V49: 0.0
A50: 28 | B50: ='Übersicht Schützen'!A29 -> Schütze 15 | C50: ='Übersicht Schützen'!B29 -> Spahnharenstätte | D50: ='Übersicht Schützen'!C29 -> 0.0 | E50: ='Übersicht Schützen'!D29 -> 0.0 | F50: ='Übersicht Schützen'!E29 -> 0.0 | G50: ='Übersicht Schützen'!F29 -> 0.0 | H50: ='Übersicht Schützen'!G29 -> 0.0 | I50: ='Übersicht Schützen'!H29 -> 0.0 | J50: ='Übersicht Schützen'!I29 -> 0.00 | K50: 0.0 | L50: ='Übersicht Schützen'!L29 -> 0.0 | M50: ='Übersicht Schützen'!M29 -> 0.0 | N50: ='Übersicht Schützen'!N29 -> 0.0 | O50: ='Übersicht Schützen'!O29 -> 0.0 | P50: ='Übersicht Schützen'!P29 -> 0.0 | Q50: ='Übersicht Schützen'!Q29 -> 0.0 | R50: ='Übersicht Schützen'!R29 -> 0.00 | S50: 0.0 | T50: ='Übersicht Schützen'!U29 -> 0.00 | U50: 0.0 | V50: 0.0
A51: 29 | B51: ='Übersicht Schützen'!A30 -> Schütze 20 | C51: ='Übersicht Schützen'!B30 -> Esterwegen | D51: ='Übersicht Schützen'!C30 -> 0.0 | E51: ='Übersicht Schützen'!D30 -> 0.0 | F51: ='Übersicht Schützen'!E30 -> 0.0 | G51: ='Übersicht Schützen'!F30 -> 0.0 | H51: ='Übersicht Schützen'!G30 -> 0.0 | I51: ='Übersicht Schützen'!H30 -> 0.0 | J51: ='Übersicht Schützen'!I30 -> 0.00 | K51: 0.0 | L51: ='Übersicht Schützen'!L30 -> 0.0 | M51: ='Übersicht Schützen'!M30 -> 0.0 | N51: ='Übersicht Schützen'!N30 -> 0.0 | O51: ='Übersicht Schützen'!O30 -> 0.0 | P51: ='Übersicht Schützen'!P30 -> 0.0 | Q51: ='Übersicht Schützen'!Q30 -> 0.0 | R51: ='Übersicht Schützen'!R30 -> 0.00 | S51: 0.0 | T51: ='Übersicht Schützen'!U30 -> 0.00 | U51: 0.0 | V51: 0.0
A52: 30 | B52: ='Übersicht Schützen'!A31 -> Schütze 29 | C52: ='Übersicht Schützen'!B31 -> Börgermoor | D52: ='Übersicht Schützen'!C31 -> 0.0 | E52: ='Übersicht Schützen'!D31 -> 0.0 | F52: ='Übersicht Schützen'!E31 -> 0.0 | G52: ='Übersicht Schützen'!F31 -> 0.0 | H52: ='Übersicht Schützen'!G31 -> 0.0 | I52: ='Übersicht Schützen'!H31 -> 0.0 | J52: ='Übersicht Schützen'!I31 -> 0.00 | K52: 0.0 | L52: ='Übersicht Schützen'!L31 -> 0.0 | M52: ='Übersicht Schützen'!M31 -> 0.0 | N52: ='Übersicht Schützen'!N31 -> 0.0 | O52: ='Übersicht Schützen'!O31 -> 0.0 | P52: ='Übersicht Schützen'!P31 -> 0.0 | Q52: ='Übersicht Schützen'!Q31 -> 0.0 | R52: ='Übersicht Schützen'!R31 -> 0.00 | S52: 0.0 | T52: ='Übersicht Schützen'!U31 -> 0.00 | U52: 0.0 | V52: 0.0
A53: 31 | B53: ='Übersicht Schützen'!A32 -> Schütze 30 | C53: ='Übersicht Schützen'!B32 -> Börgermoor | D53: ='Übersicht Schützen'!C32 -> 0.0 | E53: ='Übersicht Schützen'!D32 -> 0.0 | F53: ='Übersicht Schützen'!E32 -> 0.0 | G53: ='Übersicht Schützen'!F32 -> 0.0 | H53: ='Übersicht Schützen'!G32 -> 0.0 | I53: ='Übersicht Schützen'!H32 -> 0.0 | J53: ='Übersicht Schützen'!I32 -> 0.00 | K53: 0.0 | L53: ='Übersicht Schützen'!L32 -> 0.0 | M53: ='Übersicht Schützen'!M32 -> 0.0 | N53: ='Übersicht Schützen'!N32 -> 0.0 | O53: ='Übersicht Schützen'!O32 -> 0.0 | P53: ='Übersicht Schützen'!P32 -> 0.0 | Q53: ='Übersicht Schützen'!Q32 -> 0.0 | R53: ='Übersicht Schützen'!R32 -> 0.00 | S53: 0.0 | T53: ='Übersicht Schützen'!U32 -> 0.00 | U53: 0.0 | V53: =(U52-U53)*-1 -> 0.0
A54: 32 | B54: ='Übersicht Schützen'!A33 -> Stümpler Jan Luka | C54: ='Übersicht Schützen'!B33 -> Lähden | D54: ='Übersicht Schützen'!C33 -> 0.0 | E54: ='Übersicht Schützen'!D33 -> 0.0 | F54: ='Übersicht Schützen'!E33 -> 0.0 | G54: ='Übersicht Schützen'!F33 -> 0.0 | H54: ='Übersicht Schützen'!G33 -> 0.0 | I54: ='Übersicht Schützen'!H33 -> 0.0 | J54: ='Übersicht Schützen'!I33 -> 0.00 | K54: 0.0 | L54: ='Übersicht Schützen'!L33 -> 0.0 | M54: ='Übersicht Schützen'!M33 -> 0.0 | N54: ='Übersicht Schützen'!N33 -> 0.0 | O54: ='Übersicht Schützen'!O33 -> 0.0 | P54: ='Übersicht Schützen'!P33 -> 0.0 | Q54: ='Übersicht Schützen'!Q33 -> 0.0 | R54: ='Übersicht Schützen'!R33 -> 0.00 | S54: 0.0 | T54: ='Übersicht Schützen'!U33 -> 0.00 | U54: 0.0 | V54: 0.0
A55: 33 | B55: ='Übersicht Schützen'!A34 -> Schütze 33 | C55: ='Übersicht Schützen'!B34 -> Verein VII | D55: ='Übersicht Schützen'!C34 -> 0.0 | E55: ='Übersicht Schützen'!D34 -> 0.0 | F55: ='Übersicht Schützen'!E34 -> 0.0 | G55: ='Übersicht Schützen'!F34 -> 0.0 | H55: ='Übersicht Schützen'!G34 -> 0.0 | I55: ='Übersicht Schützen'!H34 -> 0.0 | J55: ='Übersicht Schützen'!I34 -> 0.00 | K55: 0.0 | L55: ='Übersicht Schützen'!L34 -> 0.0 | M55: ='Übersicht Schützen'!M34 -> 0.0 | N55: ='Übersicht Schützen'!N34 -> 0.0 | O55: ='Übersicht Schützen'!O34 -> 0.0 | P55: ='Übersicht Schützen'!P34 -> 0.0 | Q55: ='Übersicht Schützen'!Q34 -> 0.0 | R55: ='Übersicht Schützen'!R34 -> 0.00 | S55: 0.0 | T55: ='Übersicht Schützen'!U34 -> 0.00 | U55: 0.0 | V55: 0.0
A56: 34 | B56: ='Übersicht Schützen'!A35 -> Schütze 34 | C56: ='Übersicht Schützen'!B35 -> Verein VII | D56: ='Übersicht Schützen'!C35 -> 0.0 | E56: ='Übersicht Schützen'!D35 -> 0.0 | F56: ='Übersicht Schützen'!E35 -> 0.0 | G56: ='Übersicht Schützen'!F35 -> 0.0 | H56: ='Übersicht Schützen'!G35 -> 0.0 | I56: ='Übersicht Schützen'!H35 -> 0.0 | J56: ='Übersicht Schützen'!I35 -> 0.00 | K56: 0.0 | L56: ='Übersicht Schützen'!L35 -> 0.0 | M56: ='Übersicht Schützen'!M35 -> 0.0 | N56: ='Übersicht Schützen'!N35 -> 0.0 | O56: ='Übersicht Schützen'!O35 -> 0.0 | P56: ='Übersicht Schützen'!P35 -> 0.0 | Q56: ='Übersicht Schützen'!Q35 -> 0.0 | R56: ='Übersicht Schützen'!R35 -> 0.00 | S56: 0.0 | T56: ='Übersicht Schützen'!U35 -> 0.00 | U56: 0.0 | V56: 0.0
A57: 35 | B57: ='Übersicht Schützen'!A36 -> Schütze 35 | C57: ='Übersicht Schützen'!B36 -> Verein VII | D57: ='Übersicht Schützen'!C36 -> 0.0 | E57: ='Übersicht Schützen'!D36 -> 0.0 | F57: ='Übersicht Schützen'!E36 -> 0.0 | G57: ='Übersicht Schützen'!F36 -> 0.0 | H57: ='Übersicht Schützen'!G36 -> 0.0 | I57: ='Übersicht Schützen'!H36 -> 0.0 | J57: ='Übersicht Schützen'!I36 -> 0.00 | K57: 0.0 | L57: ='Übersicht Schützen'!L36 -> 0.0 | M57: ='Übersicht Schützen'!M36 -> 0.0 | N57: ='Übersicht Schützen'!N36 -> 0.0 | O57: ='Übersicht Schützen'!O36 -> 0.0 | P57: ='Übersicht Schützen'!P36 -> 0.0 | Q57: ='Übersicht Schützen'!Q36 -> 0.0 | R57: ='Übersicht Schützen'!R36 -> 0.00 | S57: 0.0 | T57: ='Übersicht Schützen'!U36 -> 0.00 | U57: 0.0 | V57: =(U56-U57)*-1 -> 0.0
A58: 36 | B58: ='Übersicht Schützen'!A37 -> Schütze 36 | C58: ='Übersicht Schützen'!B37 -> Verein VII | D58: ='Übersicht Schützen'!C37 -> 0.0 | E58: ='Übersicht Schützen'!D37 -> 0.0 | F58: ='Übersicht Schützen'!E37 -> 0.0 | G58: ='Übersicht Schützen'!F37 -> 0.0 | H58: ='Übersicht Schützen'!G37 -> 0.0 | I58: ='Übersicht Schützen'!H37 -> 0.0 | J58: ='Übersicht Schützen'!I37 -> 0.00 | K58: 0.0 | L58: ='Übersicht Schützen'!L37 -> 0.0 | M58: ='Übersicht Schützen'!M37 -> 0.0 | N58: ='Übersicht Schützen'!N37 -> 0.0 | O58: ='Übersicht Schützen'!O37 -> 0.0 | P58: ='Übersicht Schützen'!P37 -> 0.0 | Q58: ='Übersicht Schützen'!Q37 -> 0.0 | R58: ='Übersicht Schützen'!R37 -> 0.00 | S58: 0.0 | T58: ='Übersicht Schützen'!U37 -> 0.00 | U58: 0.0 | V58: 0.0
A59: 37 | B59: ='Übersicht Schützen'!A38 -> Schütze 37 | C59: ='Übersicht Schützen'!B38 -> Verein VII | D59: ='Übersicht Schützen'!C38 -> 0.0 | E59: ='Übersicht Schützen'!D38 -> 0.0 | F59: ='Übersicht Schützen'!E38 -> 0.0 | G59: ='Übersicht Schützen'!F38 -> 0.0 | H59: ='Übersicht Schützen'!G38 -> 0.0 | I59: ='Übersicht Schützen'!H38 -> 0.0 | J59: ='Übersicht Schützen'!I38 -> 0.00 | K59: =SUM(D59:I59) -> 0.0 | L59: ='Übersicht Schützen'!L38 -> 0.0 | M59: ='Übersicht Schützen'!M38 -> 0.0 | N59: ='Übersicht Schützen'!N38 -> 0.0 | O59: ='Übersicht Schützen'!O38 -> 0.0 | P59: ='Übersicht Schützen'!P38 -> 0.0 | Q59: ='Übersicht Schützen'!Q38 -> 0.0 | R59: ='Übersicht Schützen'!R38 -> 0.00 | S59: =SUM(L59:Q59) -> 0.0 | T59: ='Übersicht Schützen'!U38 -> 0.00 | U59: =SUM(K59+S59) -> 0.0 | V59: =(U58-U59)*-1 -> 0.0
A60: 38 | B60: ='Übersicht Schützen'!A39 -> Schütze 38 | C60: ='Übersicht Schützen'!B39 -> Verein VIII | D60: ='Übersicht Schützen'!C39 -> 0.0 | E60: ='Übersicht Schützen'!D39 -> 0.0 | F60: ='Übersicht Schützen'!E39 -> 0.0 | G60: ='Übersicht Schützen'!F39 -> 0.0 | H60: ='Übersicht Schützen'!G39 -> 0.0 | I60: ='Übersicht Schützen'!H39 -> 0.0 | J60: ='Übersicht Schützen'!I39 -> 0.00 | K60: 0.0 | L60: ='Übersicht Schützen'!L39 -> 0.0 | M60: ='Übersicht Schützen'!M39 -> 0.0 | N60: ='Übersicht Schützen'!N39 -> 0.0 | O60: ='Übersicht Schützen'!O39 -> 0.0 | P60: ='Übersicht Schützen'!P39 -> 0.0 | Q60: ='Übersicht Schützen'!Q39 -> 0.0 | R60: ='Übersicht Schützen'!R39 -> 0.00 | S60: 0.0 | T60: ='Übersicht Schützen'!U39 -> 0.00 | U60: 0.0 | V60: 0.0
A61: 39 | B61: ='Übersicht Schützen'!A40 -> Schütze 39 | C61: ='Übersicht Schützen'!B40 -> Verein VIII | D61: ='Übersicht Schützen'!C40 -> 0.0 | E61: ='Übersicht Schützen'!D40 -> 0.0 | F61: ='Übersicht Schützen'!E40 -> 0.0 | G61: ='Übersicht Schützen'!F40 -> 0.0 | H61: ='Übersicht Schützen'!G40 -> 0.0 | I61: ='Übersicht Schützen'!H40 -> 0.0 | J61: ='Übersicht Schützen'!I40 -> 0.00 | K61: 0.0 | L61: ='Übersicht Schützen'!L40 -> 0.0 | M61: ='Übersicht Schützen'!M40 -> 0.0 | N61: ='Übersicht Schützen'!N40 -> 0.0 | O61: ='Übersicht Schützen'!O40 -> 0.0 | P61: ='Übersicht Schützen'!P40 -> 0.0 | Q61: ='Übersicht Schützen'!Q40 -> 0.0 | R61: ='Übersicht Schützen'!R40 -> 0.00 | S61: 0.0 | T61: ='Übersicht Schützen'!U40 -> 0.00 | U61: 0.0 | V61: 0.0
A62: 40 | B62: ='Übersicht Schützen'!A41 -> Schütze 40 | C62: ='Übersicht Schützen'!B41 -> Verein VIII | D62: ='Übersicht Schützen'!C41 -> 0.0 | E62: ='Übersicht Schützen'!D41 -> 0.0 | F62: ='Übersicht Schützen'!E41 -> 0.0 | G62: ='Übersicht Schützen'!F41 -> 0.0 | H62: ='Übersicht Schützen'!G41 -> 0.0 | I62: ='Übersicht Schützen'!H41 -> 0.0 | J62: ='Übersicht Schützen'!I41 -> 0.00 | K62: 0.0 | L62: ='Übersicht Schützen'!L41 -> 0.0 | M62: ='Übersicht Schützen'!M41 -> 0.0 | N62: ='Übersicht Schützen'!N41 -> 0.0 | O62: ='Übersicht Schützen'!O41 -> 0.0 | P62: ='Übersicht Schützen'!P41 -> 0.0 | Q62: ='Übersicht Schützen'!Q41 -> 0.0 | R62: ='Übersicht Schützen'!R41 -> 0.00 | S62: 0.0 | T62: ='Übersicht Schützen'!U41 -> 0.00 | U62: 0.0 | V62: 0.0
A63: 41 | B63: ='Übersicht Schützen'!A42 -> Schütze 41 | C63: ='Übersicht Schützen'!B42 -> Verein IX | D63: ='Übersicht Schützen'!C42 -> 0.0 | E63: ='Übersicht Schützen'!D42 -> 0.0 | F63: ='Übersicht Schützen'!E42 -> 0.0 | G63: ='Übersicht Schützen'!F42 -> 0.0 | H63: ='Übersicht Schützen'!G42 -> 0.0 | I63: ='Übersicht Schützen'!H42 -> 0.0 | J63: ='Übersicht Schützen'!I42 -> 0.00 | K63: 0.0 | L63: ='Übersicht Schützen'!L42 -> 0.0 | M63: ='Übersicht Schützen'!M42 -> 0.0 | N63: ='Übersicht Schützen'!N42 -> 0.0 | O63: ='Übersicht Schützen'!O42 -> 0.0 | P63: ='Übersicht Schützen'!P42 -> 0.0 | Q63: ='Übersicht Schützen'!Q42 -> 0.0 | R63: ='Übersicht Schützen'!R42 -> 0.00 | S63: 0.0 | T63: ='Übersicht Schützen'!U42 -> 0.00 | U63: 0.0 | V63: 0.0
A64: 42 | B64: ='Übersicht Schützen'!A43 -> Schütze 42 | C64: ='Übersicht Schützen'!B43 -> Verein IX | D64: ='Übersicht Schützen'!C43 -> 0.0 | E64: ='Übersicht Schützen'!D43 -> 0.0 | F64: ='Übersicht Schützen'!E43 -> 0.0 | G64: ='Übersicht Schützen'!F43 -> 0.0 | H64: ='Übersicht Schützen'!G43 -> 0.0 | I64: ='Übersicht Schützen'!H43 -> 0.0 | J64: ='Übersicht Schützen'!I43 -> 0.00 | K64: 0.0 | L64: ='Übersicht Schützen'!L43 -> 0.0 | M64: ='Übersicht Schützen'!M43 -> 0.0 | N64: ='Übersicht Schützen'!N43 -> 0.0 | O64: ='Übersicht Schützen'!O43 -> 0.0 | P64: ='Übersicht Schützen'!P43 -> 0.0 | Q64: ='Übersicht Schützen'!Q43 -> 0.0 | R64: ='Übersicht Schützen'!R43 -> 0.00 | S64: 0.0 | T64: ='Übersicht Schützen'!U43 -> 0.00 | U64: 0.0 | V64: 0.0
A65: 43 | B65: ='Übersicht Schützen'!A44 -> Schütze 43 | C65: ='Übersicht Schützen'!B44 -> Verein IX | D65: ='Übersicht Schützen'!C44 -> 0.0 | E65: ='Übersicht Schützen'!D44 -> 0.0 | F65: ='Übersicht Schützen'!E44 -> 0.0 | G65: ='Übersicht Schützen'!F44 -> 0.0 | H65: ='Übersicht Schützen'!G44 -> 0.0 | I65: ='Übersicht Schützen'!H44 -> 0.0 | J65: ='Übersicht Schützen'!I44 -> 0.00 | K65: 0.0 | L65: ='Übersicht Schützen'!L44 -> 0.0 | M65: ='Übersicht Schützen'!M44 -> 0.0 | N65: ='Übersicht Schützen'!N44 -> 0.0 | O65: ='Übersicht Schützen'!O44 -> 0.0 | P65: ='Übersicht Schützen'!P44 -> 0.0 | Q65: ='Übersicht Schützen'!Q44 -> 0.0 | R65: ='Übersicht Schützen'!R44 -> 0.00 | S65: 0.0 | T65: ='Übersicht Schützen'!U44 -> 0.00 | U65: 0.0 | V65: 0.0
A66: 44 | B66: ='Übersicht Schützen'!A45 -> Schütze 44 | C66: ='Übersicht Schützen'!B45 -> Verein IX | D66: ='Übersicht Schützen'!C45 -> 0.0 | E66: ='Übersicht Schützen'!D45 -> 0.0 | F66: ='Übersicht Schützen'!E45 -> 0.0 | G66: ='Übersicht Schützen'!F45 -> 0.0 | H66: ='Übersicht Schützen'!G45 -> 0.0 | I66: ='Übersicht Schützen'!H45 -> 0.0 | J66: ='Übersicht Schützen'!I45 -> 0.00 | K66: 0.0 | L66: ='Übersicht Schützen'!L45 -> 0.0 | M66: ='Übersicht Schützen'!M45 -> 0.0 | N66: ='Übersicht Schützen'!N45 -> 0.0 | O66: ='Übersicht Schützen'!O45 -> 0.0 | P66: ='Übersicht Schützen'!P45 -> 0.0 | Q66: ='Übersicht Schützen'!Q45 -> 0.0 | R66: ='Übersicht Schützen'!R45 -> 0.00 | S66: 0.0 | T66: ='Übersicht Schützen'!U45 -> 0.00 | U66: 0.0 | V66: 0.0
A67: 45 | B67: ='Übersicht Schützen'!A46 -> Schütze 45 | C67: ='Übersicht Schützen'!B46 -> Verein IX | D67: ='Übersicht Schützen'!C46 -> 0.0 | E67: ='Übersicht Schützen'!D46 -> 0.0 | F67: ='Übersicht Schützen'!E46 -> 0.0 | G67: ='Übersicht Schützen'!F46 -> 0.0 | H67: ='Übersicht Schützen'!G46 -> 0.0 | I67: ='Übersicht Schützen'!H46 -> 0.0 | J67: ='Übersicht Schützen'!I46 -> 0.00 | K67: 0.0 | L67: ='Übersicht Schützen'!L46 -> 0.0 | M67: ='Übersicht Schützen'!M46 -> 0.0 | N67: ='Übersicht Schützen'!N46 -> 0.0 | O67: ='Übersicht Schützen'!O46 -> 0.0 | P67: ='Übersicht Schützen'!P46 -> 0.0 | Q67: ='Übersicht Schützen'!Q46 -> 0.0 | R67: ='Übersicht Schützen'!R46 -> 0.00 | S67: 0.0 | T67: ='Übersicht Schützen'!U46 -> 0.00 | U67: 0.0 | V67: 0.0
A68: 46 | B68: ='Übersicht Schützen'!A47 -> Schütze 46 | C68: ='Übersicht Schützen'!B47 -> Verein X | D68: ='Übersicht Schützen'!C47 -> 0.0 | E68: ='Übersicht Schützen'!D47 -> 0.0 | F68: ='Übersicht Schützen'!E47 -> 0.0 | G68: ='Übersicht Schützen'!F47 -> 0.0 | H68: ='Übersicht Schützen'!G47 -> 0.0 | I68: ='Übersicht Schützen'!H47 -> 0.0 | J68: ='Übersicht Schützen'!I47 -> 0.00 | K68: 0.0 | L68: ='Übersicht Schützen'!L47 -> 0.0 | M68: ='Übersicht Schützen'!M47 -> 0.0 | N68: ='Übersicht Schützen'!N47 -> 0.0 | O68: ='Übersicht Schützen'!O47 -> 0.0 | P68: ='Übersicht Schützen'!P47 -> 0.0 | Q68: ='Übersicht Schützen'!Q47 -> 0.0 | R68: ='Übersicht Schützen'!R47 -> 0.00 | S68: 0.0 | T68: ='Übersicht Schützen'!U47 -> 0.00 | U68: 0.0 | V68: 0.0
A69: 47 | B69: ='Übersicht Schützen'!A48 -> Schütze 47 | C69: ='Übersicht Schützen'!B48 -> Verein X | D69: ='Übersicht Schützen'!C48 -> 0.0 | E69: ='Übersicht Schützen'!D48 -> 0.0 | F69: ='Übersicht Schützen'!E48 -> 0.0 | G69: ='Übersicht Schützen'!F48 -> 0.0 | H69: ='Übersicht Schützen'!G48 -> 0.0 | I69: ='Übersicht Schützen'!H48 -> 0.0 | J69: ='Übersicht Schützen'!I48 -> 0.00 | K69: 0.0 | L69: ='Übersicht Schützen'!L48 -> 0.0 | M69: ='Übersicht Schützen'!M48 -> 0.0 | N69: ='Übersicht Schützen'!N48 -> 0.0 | O69: ='Übersicht Schützen'!O48 -> 0.0 | P69: ='Übersicht Schützen'!P48 -> 0.0 | Q69: ='Übersicht Schützen'!Q48 -> 0.0 | R69: ='Übersicht Schützen'!R48 -> 0.00 | S69: 0.0 | T69: ='Übersicht Schützen'!U48 -> 0.00 | U69: 0.0 | V69: 0.0
A70: 48 | B70: ='Übersicht Schützen'!A49 -> Schütze 48 | C70: ='Übersicht Schützen'!B49 -> Verein X | D70: ='Übersicht Schützen'!C49 -> 0.0 | E70: ='Übersicht Schützen'!D49 -> 0.0 | F70: ='Übersicht Schützen'!E49 -> 0.0 | G70: ='Übersicht Schützen'!F49 -> 0.0 | H70: ='Übersicht Schützen'!G49 -> 0.0 | I70: ='Übersicht Schützen'!H49 -> 0.0 | J70: ='Übersicht Schützen'!I49 -> 0.00 | K70: 0.0 | L70: ='Übersicht Schützen'!L49 -> 0.0 | M70: ='Übersicht Schützen'!M49 -> 0.0 | N70: ='Übersicht Schützen'!N49 -> 0.0 | O70: ='Übersicht Schützen'!O49 -> 0.0 | P70: ='Übersicht Schützen'!P49 -> 0.0 | Q70: ='Übersicht Schützen'!Q49 -> 0.0 | R70: ='Übersicht Schützen'!R49 -> 0.00 | S70: 0.0 | T70: ='Übersicht Schützen'!U49 -> 0.00 | U70: 0.0 | V70: 0.0
A71: 49 | B71: ='Übersicht Schützen'!A50 -> Schütze 49 | C71: ='Übersicht Schützen'!B50 -> Verein X | D71: ='Übersicht Schützen'!C50 -> 0.0 | E71: ='Übersicht Schützen'!D50 -> 0.0 | F71: ='Übersicht Schützen'!E50 -> 0.0 | G71: ='Übersicht Schützen'!F50 -> 0.0 | H71: ='Übersicht Schützen'!G50 -> 0.0 | I71: ='Übersicht Schützen'!H50 -> 0.0 | J71: ='Übersicht Schützen'!I50 -> 0.00 | K71: 0.0 | L71: ='Übersicht Schützen'!L50 -> 0.0 | M71: ='Übersicht Schützen'!M50 -> 0.0 | N71: ='Übersicht Schützen'!N50 -> 0.0 | O71: ='Übersicht Schützen'!O50 -> 0.0 | P71: ='Übersicht Schützen'!P50 -> 0.0 | Q71: ='Übersicht Schützen'!Q50 -> 0.0 | R71: ='Übersicht Schützen'!R50 -> 0.00 | S71: 0.0 | T71: ='Übersicht Schützen'!U50 -> 0.00 | U71: 0.0 | V71: 0.0
A72: 50 | B72: ='Übersicht Schützen'!A51 -> Schütze 50 | C72: ='Übersicht Schützen'!B51 -> Verein X | D72: ='Übersicht Schützen'!C51 -> 0.0 | E72: ='Übersicht Schützen'!D51 -> 0.0 | F72: ='Übersicht Schützen'!E51 -> 0.0 | G72: ='Übersicht Schützen'!F51 -> 0.0 | H72: ='Übersicht Schützen'!G51 -> 0.0 | I72: ='Übersicht Schützen'!H51 -> 0.0 | J72: ='Übersicht Schützen'!I51 -> 0.00 | K72: 0.0 | L72: ='Übersicht Schützen'!L51 -> 0.0 | M72: ='Übersicht Schützen'!M51 -> 0.0 | N72: ='Übersicht Schützen'!N51 -> 0.0 | O72: ='Übersicht Schützen'!O51 -> 0.0 | P72: ='Übersicht Schützen'!P51 -> 0.0 | Q72: ='Übersicht Schützen'!Q51 -> 0.0 | R72: ='Übersicht Schützen'!R51 -> 0.00 | S72: 0.0 | T72: ='Übersicht Schützen'!U51 -> 0.00 | U72: 0.0 | V72: 0.0
A73: 51 | B73: ='Übersicht Schützen'!A52 -> Schütze 51 | C73: ='Übersicht Schützen'!B52 -> Verein XI | D73: ='Übersicht Schützen'!C52 -> 0.0 | E73: ='Übersicht Schützen'!D52 -> 0.0 | F73: ='Übersicht Schützen'!E52 -> 0.0 | G73: ='Übersicht Schützen'!F52 -> 0.0 | H73: ='Übersicht Schützen'!G52 -> 0.0 | I73: ='Übersicht Schützen'!H52 -> 0.0 | J73: ='Übersicht Schützen'!I52 -> 0.00 | K73: 0.0 | L73: ='Übersicht Schützen'!L52 -> 0.0 | M73: ='Übersicht Schützen'!M52 -> 0.0 | N73: ='Übersicht Schützen'!N52 -> 0.0 | O73: ='Übersicht Schützen'!O52 -> 0.0 | P73: ='Übersicht Schützen'!P52 -> 0.0 | Q73: ='Übersicht Schützen'!Q52 -> 0.0 | R73: ='Übersicht Schützen'!R52 -> 0.00 | S73: 0.0 | T73: ='Übersicht Schützen'!U52 -> 0.00 | U73: 0.0 | V73: 0.0
A74: 52 | B74: ='Übersicht Schützen'!A53 -> Schütze 52 | C74: ='Übersicht Schützen'!B53 -> Verein XI | D74: ='Übersicht Schützen'!C53 -> 0.0 | E74: ='Übersicht Schützen'!D53 -> 0.0 | F74: ='Übersicht Schützen'!E53 -> 0.0 | G74: ='Übersicht Schützen'!F53 -> 0.0 | H74: ='Übersicht Schützen'!G53 -> 0.0 | I74: ='Übersicht Schützen'!H53 -> 0.0 | J74: ='Übersicht Schützen'!I53 -> 0.00 | K74: 0.0 | L74: ='Übersicht Schützen'!L53 -> 0.0 | M74: ='Übersicht Schützen'!M53 -> 0.0 | N74: ='Übersicht Schützen'!N53 -> 0.0 | O74: ='Übersicht Schützen'!O53 -> 0.0 | P74: ='Übersicht Schützen'!P53 -> 0.0 | Q74: ='Übersicht Schützen'!Q53 -> 0.0 | R74: ='Übersicht Schützen'!R53 -> 0.00 | S74: 0.0 | T74: ='Übersicht Schützen'!U53 -> 0.00 | U74: 0.0 | V74: 0.0
A75: 53 | B75: ='Übersicht Schützen'!A54 -> Schütze 53 | C75: ='Übersicht Schützen'!B54 -> Verein XI | D75: ='Übersicht Schützen'!C54 -> 0.0 | E75: ='Übersicht Schützen'!D54 -> 0.0 | F75: ='Übersicht Schützen'!E54 -> 0.0 | G75: ='Übersicht Schützen'!F54 -> 0.0 | H75: ='Übersicht Schützen'!G54 -> 0.0 | I75: ='Übersicht Schützen'!H54 -> 0.0 | J75: ='Übersicht Schützen'!I54 -> 0.00 | K75: 0.0 | L75: ='Übersicht Schützen'!L54 -> 0.0 | M75: ='Übersicht Schützen'!M54 -> 0.0 | N75: ='Übersicht Schützen'!N54 -> 0.0 | O75: ='Übersicht Schützen'!O54 -> 0.0 | P75: ='Übersicht Schützen'!P54 -> 0.0 | Q75: ='Übersicht Schützen'!Q54 -> 0.0 | R75: ='Übersicht Schützen'!R54 -> 0.00 | S75: 0.0 | T75: ='Übersicht Schützen'!U54 -> 0.00 | U75: 0.0 | V75: 0.0
A76: 54 | B76: ='Übersicht Schützen'!A55 -> Schütze 54 | C76: ='Übersicht Schützen'!B55 -> Verein XI | D76: ='Übersicht Schützen'!C55 -> 0.0 | E76: ='Übersicht Schützen'!D55 -> 0.0 | F76: ='Übersicht Schützen'!E55 -> 0.0 | G76: ='Übersicht Schützen'!F55 -> 0.0 | H76: ='Übersicht Schützen'!G55 -> 0.0 | I76: ='Übersicht Schützen'!H55 -> 0.0 | J76: ='Übersicht Schützen'!I55 -> 0.00 | K76: 0.0 | L76: ='Übersicht Schützen'!L55 -> 0.0 | M76: ='Übersicht Schützen'!M55 -> 0.0 | N76: ='Übersicht Schützen'!N55 -> 0.0 | O76: ='Übersicht Schützen'!O55 -> 0.0 | P76: ='Übersicht Schützen'!P55 -> 0.0 | Q76: ='Übersicht Schützen'!Q55 -> 0.0 | R76: ='Übersicht Schützen'!R55 -> 0.00 | S76: 0.0 | T76: ='Übersicht Schützen'!U55 -> 0.00 | U76: 0.0 | V76: 0.0
A77: 55 | B77: ='Übersicht Schützen'!A56 -> Schütze 55 | C77: ='Übersicht Schützen'!B56 -> Verein XI | D77: ='Übersicht Schützen'!C56 -> 0.0 | E77: ='Übersicht Schützen'!D56 -> 0.0 | F77: ='Übersicht Schützen'!E56 -> 0.0 | G77: ='Übersicht Schützen'!F56 -> 0.0 | H77: ='Übersicht Schützen'!G56 -> 0.0 | I77: ='Übersicht Schützen'!H56 -> 0.0 | J77: ='Übersicht Schützen'!I56 -> 0.00 | K77: 0.0 | L77: ='Übersicht Schützen'!L56 -> 0.0 | M77: ='Übersicht Schützen'!M56 -> 0.0 | N77: ='Übersicht Schützen'!N56 -> 0.0 | O77: ='Übersicht Schützen'!O56 -> 0.0 | P77: ='Übersicht Schützen'!P56 -> 0.0 | Q77: ='Übersicht Schützen'!Q56 -> 0.0 | R77: ='Übersicht Schützen'!R56 -> 0.00 | S77: 0.0 | T77: ='Übersicht Schützen'!U56 -> 0.00 | U77: 0.0 | V77: 0.0
A78: 56 | B78: ='Übersicht Schützen'!A57 -> Schütze 56 | C78: ='Übersicht Schützen'!B57 -> Verein XII | D78: ='Übersicht Schützen'!C57 -> 0.0 | E78: ='Übersicht Schützen'!D57 -> 0.0 | F78: ='Übersicht Schützen'!E57 -> 0.0 | G78: ='Übersicht Schützen'!F57 -> 0.0 | H78: ='Übersicht Schützen'!G57 -> 0.0 | I78: ='Übersicht Schützen'!H57 -> 0.0 | J78: ='Übersicht Schützen'!I57 -> 0.00 | K78: 0.0 | L78: ='Übersicht Schützen'!L57 -> 0.0 | M78: ='Übersicht Schützen'!M57 -> 0.0 | N78: ='Übersicht Schützen'!N57 -> 0.0 | O78: ='Übersicht Schützen'!O57 -> 0.0 | P78: ='Übersicht Schützen'!P57 -> 0.0 | Q78: ='Übersicht Schützen'!Q57 -> 0.0 | R78: ='Übersicht Schützen'!R57 -> 0.00 | S78: 0.0 | T78: ='Übersicht Schützen'!U57 -> 0.00 | U78: 0.0 | V78: 0.0
A79: 57 | B79: ='Übersicht Schützen'!A58 -> Schütze 57 | C79: ='Übersicht Schützen'!B58 -> Verein XII | D79: ='Übersicht Schützen'!C58 -> 0.0 | E79: ='Übersicht Schützen'!D58 -> 0.0 | F79: ='Übersicht Schützen'!E58 -> 0.0 | G79: ='Übersicht Schützen'!F58 -> 0.0 | H79: ='Übersicht Schützen'!G58 -> 0.0 | I79: ='Übersicht Schützen'!H58 -> 0.0 | J79: ='Übersicht Schützen'!I58 -> 0.00 | K79: 0.0 | L79: ='Übersicht Schützen'!L58 -> 0.0 | M79: ='Übersicht Schützen'!M58 -> 0.0 | N79: ='Übersicht Schützen'!N58 -> 0.0 | O79: ='Übersicht Schützen'!O58 -> 0.0 | P79: ='Übersicht Schützen'!P58 -> 0.0 | Q79: ='Übersicht Schützen'!Q58 -> 0.0 | R79: ='Übersicht Schützen'!R58 -> 0.00 | S79: 0.0 | T79: ='Übersicht Schützen'!U58 -> 0.00 | U79: 0.0 | V79: 0.0
A80: 58 | B80: ='Übersicht Schützen'!A59 -> Schütze 58 | C80: ='Übersicht Schützen'!B59 -> Verein XII | D80: ='Übersicht Schützen'!C59 -> 0.0 | E80: ='Übersicht Schützen'!D59 -> 0.0 | F80: ='Übersicht Schützen'!E59 -> 0.0 | G80: ='Übersicht Schützen'!F59 -> 0.0 | H80: ='Übersicht Schützen'!G59 -> 0.0 | I80: ='Übersicht Schützen'!H59 -> 0.0 | J80: ='Übersicht Schützen'!I59 -> 0.00 | K80: 0.0 | L80: ='Übersicht Schützen'!L59 -> 0.0 | M80: ='Übersicht Schützen'!M59 -> 0.0 | N80: ='Übersicht Schützen'!N59 -> 0.0 | O80: ='Übersicht Schützen'!O59 -> 0.0 | P80: ='Übersicht Schützen'!P59 -> 0.0 | Q80: ='Übersicht Schützen'!Q59 -> 0.0 | R80: ='Übersicht Schützen'!R59 -> 0.00 | S80: 0.0 | T80: ='Übersicht Schützen'!U59 -> 0.00 | U80: 0.0 | V80: 0.0
A81: 59 | B81: ='Übersicht Schützen'!A60 -> Schütze 59 | C81: ='Übersicht Schützen'!B60 -> Verein XII | D81: ='Übersicht Schützen'!C60 -> 0.0 | E81: ='Übersicht Schützen'!D60 -> 0.0 | F81: ='Übersicht Schützen'!E60 -> 0.0 | G81: ='Übersicht Schützen'!F60 -> 0.0 | H81: ='Übersicht Schützen'!G60 -> 0.0 | I81: ='Übersicht Schützen'!H60 -> 0.0 | J81: ='Übersicht Schützen'!I60 -> 0.00 | K81: 0.0 | L81: ='Übersicht Schützen'!L60 -> 0.0 | M81: ='Übersicht Schützen'!M60 -> 0.0 | N81: ='Übersicht Schützen'!N60 -> 0.0 | O81: ='Übersicht Schützen'!O60 -> 0.0 | P81: ='Übersicht Schützen'!P60 -> 0.0 | Q81: ='Übersicht Schützen'!Q60 -> 0.0 | R81: ='Übersicht Schützen'!R60 -> 0.00 | S81: 0.0 | T81: ='Übersicht Schützen'!U60 -> 0.00 | U81: 0.0 | V81: 0.0
A82: 60 | B82: ='Übersicht Schützen'!A61 -> Schütze 60 | C82: ='Übersicht Schützen'!B61 -> Verein XII | D82: ='Übersicht Schützen'!C61 -> 0.0 | E82: ='Übersicht Schützen'!D61 -> 0.0 | F82: ='Übersicht Schützen'!E61 -> 0.0 | G82: ='Übersicht Schützen'!F61 -> 0.0 | H82: ='Übersicht Schützen'!G61 -> 0.0 | I82: ='Übersicht Schützen'!H61 -> 0.0 | J82: ='Übersicht Schützen'!I61 -> 0.00 | K82: 0.0 | L82: ='Übersicht Schützen'!L61 -> 0.0 | M82: ='Übersicht Schützen'!M61 -> 0.0 | N82: ='Übersicht Schützen'!N61 -> 0.0 | O82: ='Übersicht Schützen'!O61 -> 0.0 | P82: ='Übersicht Schützen'!P61 -> 0.0 | Q82: ='Übersicht Schützen'!Q61 -> 0.0 | R82: ='Übersicht Schützen'!R61 -> 0.00 | S82: 0.0 | T82: ='Übersicht Schützen'!U61 -> 0.00 | U82: 0.0 | V82: 0.0
C84: Schnitt: | D84: =IF(Formelhilfe!B75 > 0, SUM(D23:D82)/Formelhilfe!B75, 0) -> 136.9 | E84: =IF(Formelhilfe!C75 > 0, SUM(E23:E82)/Formelhilfe!C75, 0) -> 134.1 | F84: =IF(Formelhilfe!D75 > 0, SUM(F23:F82)/Formelhilfe!D75, 0) -> 146.2 | G84: =IF(Formelhilfe!E75 > 0, SUM(G23:G82)/Formelhilfe!E75, 0) -> 146.2 | H84: =IF(Formelhilfe!F75 > 0, SUM(H23:H82)/Formelhilfe!F75, 0) -> 0.0 | I84: =IF(Formelhilfe!G75 > 0, SUM(I23:I82)/Formelhilfe!G75, 0) -> 0.0 | J84: =IF(SUM(J23:J82)<>0,AVERAGEIF(J23:J82,"<>0"),0) -> 140.48 | K84: =IF(SUM(K23:K82)<>0,AVERAGEIF(K23:K82,"<>0"),0) -> 493.01 | L84: =IF(Formelhilfe!I75 > 0, SUM(L23:L82)/Formelhilfe!I75, 0) -> 152.3 | M84: =IF(Formelhilfe!J75 > 0, SUM(M23:M82)/Formelhilfe!J75, 0) -> 151.0 | N84: =IF(Formelhilfe!K75 > 0, SUM(N23:N82)/Formelhilfe!K75, 0) -> 154.0 | O84: =IF(Formelhilfe!L75 > 0, SUM(O23:O82)/Formelhilfe!L75, 0) -> 153.2 | P84: =IF(Formelhilfe!M75 > 0, SUM(P23:P82)/Formelhilfe!M75, 0) -> 162.6 | Q84: =IF(Formelhilfe!N75 > 0, SUM(Q23:Q82)/Formelhilfe!N75, 0) -> 0.0 | R84: =IF(SUM(R23:R82)<>0,AVERAGEIF(R23:R82,"<>0"),0) -> 152.31 | S84: =IF(SUM(S23:S82)<>0,AVERAGEIF(S23:S82,"<>0"),0) -> 711.02 | T84: =IF(SUM(T23:T82)<>0,AVERAGEIF(T23:T82,"<>0"),0) -> 143.16 | U84: =(K84+S84) -> 1,204.02

Sheet Wettkampf 1
B1: Verein / Gruppe | D1: Ergebnisse | AJ1: Austragungsort: | AK1: =Übersicht!D4 -> Lorup
A2: 1 | B2: Lorup | D2: =G76 -> 394.9 | E2: =IF(H76>4,"Es sind zu viele Schützen in Wertung!"," ") -> Es sind zu viele Schützen in Wertung! | AJ2: Wettkampftag: | AK2: =Übersicht!D3 -> 16.09.
A3: 2 | B3: Sögel | D3: =I76 -> 0.0 | E3: =IF(J76>4,"Es sind zu viele Schützen in Wertung!"," ") -> 
A4: 3 | B4: Spahnharenstätte | D4: =K76 -> 318.6 | E4: =IF(L76>4,"Es sind zu viele Schützen in Wertung!"," ") ->  | AL4: Ansprechpartner für Rückfragen:
A5: 4 | B5: Esterwegen | D5: =M76 -> 519.5 | E5: =IF(N76>4,"Es sind zu viele Schützen in Wertung!"," ") ->  | AJ5: Name: | AK5: Heiner Krull
A6: 5 | B6: Lähden | D6: =O76 -> 565.0 | E6: =IF(P76>4,"Es sind zu viele Schützen in Wertung!"," ") -> Es sind zu viele Schützen in Wertung! | AJ6: Tel: | AK6: 05954659
A7: 6 | B7: Börgermoor | D7: =Q76 -> 183.4 | E7: =IF(R76>4,"Es sind zu viele Schützen in Wertung!"," ") ->  | AJ7: Standaufsicht: | AK7: Heiner Krull
A8: 7 | B8: Verein VII | D8: =S76 -> 0.0 | E8: =IF(T76>4,"Es sind zu viele Schützen in Wertung!"," ") -> 
A9: 8 | B9: Verein VIII | D9: =U76 -> 0.0 | E9: =IF(V76>4,"Es sind zu viele Schützen in Wertung!"," ") -> 
A10: 9 | B10: Verein IX | D10: =W76 -> 0.0 | E10: =IF(X76>4,"Es sind zu viele Schützen in Wertung!"," ") -> Es sind zu viele Schützen in Wertung!
A11: 10 | B11: Verein X | D11: =Y76 -> 0.0 | E11: =IF(Z76>4,"Es sind zu viele Schützen in Wertung!"," ") -> Es sind zu viele Schützen in Wertung!
A12: 11 | B12: Verein XI | D12: =AA76 -> 0.0 | E12: =IF(AB76>4,"Es sind zu viele Schützen in Wertung!"," ") -> Es sind zu viele Schützen in Wertung!
A13: 12 | B13: Verein XII | D13: =AC76 -> 0.0 | E13: =IF(AD76>4,"Es sind zu viele Schützen in Wertung!"," ") -> Es sind zu viele Schützen in Wertung!
B15: Einzelergebnisse: | C15: Verein/Gruppe (per Dropdown-Feld einzutragen) | D15: Ergebnisse | E15: AW? Dann x eintippen | G15: Verein 1 | I15: Verein 2 | K15: Verein 3 | M15: Verein 4 | O15: Verein 5 | Q15: Verein 6 | S15: Verein 7 | U15: Verein 8 | W15: Verein 9 | Y15: Verein 10 | AA15: Verein 11 | AC15: Verein 12 | AG15: Geburtsdatum | AI15: Proberechnung bei Streifen:
A16: 1 | B16: Wotte Lia | C16: Lorup | D16: 148.9 | F16: =IF(E16="x","0",D16) -> 148.9 | G16: =IF(C16=$B$2,F16,0) -> 148.9 | H16: =(IF(AND($E16="",$C16=$B$2),1,0)) -> 1 | I16: =IF($C16=$B$3,F16,0) -> 0 | J16: =(IF(AND($E16="",$C16=$B$3),1,0)) -> 0 | K16: =IF($C16=$B$4,F16,0) -> 0 | L16: =(IF(AND($E16="",$C16=$B$4),1,0)) -> 0 | M16: =IF($C16=$B$5,F16,0) -> 0 | N16: =(IF(AND($E16="",$C16=$B$5),1,0)) -> 0 | O16: =IF($C16=$B$6,F16,0) -> 0 | P16: =(IF(AND($E16="",$C16=$B$6),1,0)) -> 0 | Q16: =IF($C16=$B$7,F16,0) -> 0 | R16: =(IF(AND($E16="",$C16=$B$7),1,0)) -> 0 | S16: =IF($C16=$B$8,F16,0) -> 0 | T16: =(IF(AND($E16="",$C16=$B$8),1,0)) -> 0 | U16: =IF($C16=$B$9,F16,0) -> 0 | V16: =(IF(AND($E16="",$C16=$B$9),1,0)) -> 0 | W16: =IF($C16=$B$10,F16,0) -> 0 | X16: =(IF(AND($E16="",$C16=$B$10),1,0)) -> 0 | Y16: =IF($C16=$B$11,F16,0) -> 0 | Z16: =(IF(AND($E16="",$C16=$B$11),1,0)) -> 0 | AA16: =IF($C16=$B$12,F16,0) -> 0 | AB16: =(IF(AND($E16="",$C16=$B$12),1,0)) -> 0 | AC16: =IF($C16=$B$13,F16,0) -> 0 | AD16: =(IF(AND($E16="",$C16=$B$13),1,0)) -> 0 | AG16: 02.03.2011 | AL16: =SUM(AI16:AK16) -> 0.0 | AM16: =IF(AL16=D16,1,0) -> 0 | AN16: =IF(AL16=0,0,1) -> 0 | AO16: =IF(AM16+AN16=2,"Korrekt","") -> 
A17: 2 | B17: Wotte Hannes | C17: =B2 -> Lorup | D17: 135.3 | F17: =IF(E17="x","0",D17) -> 135.3 | G17: 135.3 | H17: =(IF(AND($E17="",$C17=$B$2),1,0)) -> 1 | I17: 0 | J17: =(IF(AND($E17="",$C17=$B$3),1,0)) -> 0 | K17: 0 | L17: =(IF(AND($E17="",$C17=$B$4),1,0)) -> 0 | M17: 0 | N17: =(IF(AND($E17="",$C17=$B$5),1,0)) -> 0 | O17: 0 | P17: =(IF(AND($E17="",$C17=$B$6),1,0)) -> 0 | Q17: 0 | R17: =(IF(AND($E17="",$C17=$B$7),1,0)) -> 0 | S17: =IF($C17=$B$8,F17,0) -> 0 | T17: =(IF(AND($E17="",$C17=$B$8),1,0)) -> 0 | U17: =IF($C17=$B$9,F17,0) -> 0 | V17: =(IF(AND($E17="",$C17=$B$9),1,0)) -> 0 | W17: =IF($C17=$B$10,F17,0) -> 0 | X17: =(IF(AND($E17="",$C17=$B$10),1,0)) -> 0 | Y17: =IF($C17=$B$11,F17,0) -> 0 | Z17: =(IF(AND($E17="",$C17=$B$11),1,0)) -> 0 | AA17: =IF($C17=$B$12,F17,0) -> 0 | AB17: =(IF(AND($E17="",$C17=$B$12),1,0)) -> 0 | AC17: =IF($C17=$B$13,F17,0) -> 0 | AD17: =(IF(AND($E17="",$C17=$B$13),1,0)) -> 0 | AG17: 05.01.2011 | AL17: =SUM(AI17:AK17) -> 0.0 | AM17: =IF(AL17=D17,1,0) -> 0 | AN17: =IF(AL17=0,0,1) -> 0 | AO17: =IF(AM17+AN17=2,"Korrekt","") -> 
A18: 3 | B18: Gretenabeln Elias | C18: =B2 -> Lorup | D18: 110.7 | F18: 110.7 | G18: 110.7 | H18: 1 | I18: 0 | J18: 0 | K18: 0 | L18: 0 | M18: 0 | N18: 0 | O18: 0 | P18: 0 | Q18: 0 | R18: 0 | S18: 0 | T18: 0 | U18: 0 | V18: 0 | W18: 0 | X18: 0 | Y18: 0 | Z18: 0 | AA18: 0 | AB18: 0 | AC18: 0 | AD18: 0 | AG18: 14.06.2011 | AL18: 0.0 | AM18: 0 | AN18: 0
A19: 4 | B19: Helmer Maike | C19: =B2 -> Lorup | D19: 91.9 | F19: 91.9 | G19: 91.9 | H19: 1 | I19: 0 | J19: 0 | K19: 0 | L19: 0 | M19: 0 | N19: 0 | O19: 0 | P19: 0 | Q19: 0 | R19: 0 | S19: 0 | T19: 0 | U19: 0 | V19: 0 | W19: 0 | X19: 0 | Y19: 0 | Z19: 0 | AA19: 0 | AB19: 0 | AC19: 0 | AD19: 0 | AG19: 07.07.2011 | AL19: 0.0 | AM19: 0 | AN19: 0
A20: 5 | B20: Többen Jannes | C20: =B2 -> Lorup | D20: 108.5 | E20: x | F20: 0 | G20: 0 | H20: 0 | I20: 0 | J20: 0 | K20: 0 | L20: 0 | M20: 0 | N20: 0 | O20: 0 | P20: 0 | Q20: 0 | R20: 0 | S20: 0 | T20: 0 | U20: 0 | V20: 0 | W20: 0 | X20: 0 | Y20: 0 | Z20: 0 | AA20: 0 | AB20: 0 | AC20: 0 | AD20: 0 | AG20: 09.06.2011 | AL20: 0.0 | AM20: 0 | AN20: 0
A21: 6 | B21: Lüken Arne | C21: Lorup | D21: 108.9 | E21: x | F21: 0 | G21: 0 | H21: 0 | I21: 0 | J21: 0 | K21: 0 | L21: 0 | M21: 0 | N21: 0 | O21: 0 | P21: 0 | Q21: 0 | R21: 0 | S21: 0 | T21: 0 | U21: 0 | V21: 0 | W21: 0 | X21: 0 | Y21: 0 | Z21: 0 | AA21: 0 | AB21: 0 | AC21: 0 | AD21: 0 | AG21: 25.01.2011 | AL21: 0.0 | AM21: 0 | AN21: 0
A22: 7 | B22: Schütze 7 | C22: =B3 -> Sögel | F22: 0 | G22: 0 | H22: 0 | I22: 0 | J22: 1 | K22: 0 | L22: 0 | M22: 0 | N22: 0 | O22: 0 | P22: 0 | Q22: 0 | R22: 0 | S22: 0 | T22: 0 | U22: 0 | V22: 0 | W22: 0 | X22: 0 | Y22: 0 | Z22: 0 | AA22: 0 | AB22: 0 | AC22: 0 | AD22: 0 | AL22: 0.0 | AM22: 1 | AN22: 0
A23: 8 | B23: Schütze 8 | C23: =B3 -> Sögel | F23: 0 | G23: 0 | H23: 0 | I23: 0 | J23: 1 | K23: 0 | L23: 0 | M23: 0 | N23: 0 | O23: 0 | P23: 0 | Q23: 0 | R23: 0 | S23: 0 | T23: 0 | U23: 0 | V23: 0 | W23: 0 | X23: 0 | Y23: 0 | Z23: 0 | AA23: 0 | AB23: 0 | AC23: 0 | AD23: 0 | AL23: 0.0 | AM23: 1 | AN23: 0
A24: 9 | B24: Schütze 9 | C24: =B3 -> Sögel | F24: 0 | G24: 0 | H24: 0 | I24: 0 | J24: 1 | K24: 0 | L24: 0 | M24: 0 | N24: 0 | O24: 0 | P24: 0 | Q24: 0 | R24: 0 | S24: 0 | T24: 0 | U24: 0 | V24: 0 | W24: 0 | X24: 0 | Y24: 0 | Z24: 0 | AA24: 0 | AB24: 0 | AC24: 0 | AD24: 0 | AL24: 0.0 | AM24: 1 | AN24: 0
A25: 10 | B25: Schütze 10 | C25: =B3 -> Sögel | F25: 0 | G25: 0 | H25: 0 | I25: 0 | J25: 1 | K25: 0 | L25: 0 | M25: 0 | N25: 0 | O25: 0 | P25: 0 | Q25: 0 | R25: 0 | S25: 0 | T25: 0 | U25: 0 | V25: 0 | W25: 0 | X25: 0 | Y25: 0 | Z25: 0 | AA25: 0 | AB25: 0 | AC25: 0 | AD25: 0 | AL25: 0.0 | AM25: 1 | AN25: 0
A26: 11 | B26: Engbers Hannes | C26: =B4 -> Spahnharenstätte | D26: 67.5 | F26: 67.5 | G26: 0 | H26: 0 | I26: 0 | J26: 0 | K26: 67.5 | L26: 1 | M26: 0 | N26: 0 | O26: 0 | P26: 0 | Q26: 0 | R26: 0 | S26: 0 | T26: 0 | U26: 0 | V26: 0 | W26: 0 | X26: 0 | Y26: 0 | Z26: 0 | AA26: 0 | AB26: 0 | AC26: 0 | AD26: 0 | AG26: 04.11.2011 | AL26: 0.0 | AM26: 0 | AN26: 0
A27: 12 | B27: Runde Marcel | C27: =B4 -> Spahnharenstätte | D27: 126.7 | F27: 126.7 | G27: 0 | H27: 0 | I27: 0 | J27: 0 | K27: 126.7 | L27: 1 | M27: 0 | N27: 0 | O27: 0 | P27: 0 | Q27: 0 | R27: 0 | S27: 0 | T27: 0 | U27: 0 | V27: 0 | W27: 0 | X27: 0 | Y27: 0 | Z27: 0 | AA27: 0 | AB27: 0 | AC27: 0 | AD27: 0 | AG27: 07.05.2010 | AL27: 0.0 | AM27: 0 | AN27: 0
A28: 13 | B28: Jansen Lars | C28: =B4 -> Spahnharenstätte | D28: 124.4 | F28: 124.4 | G28: 0 | H28: 0 | I28: 0 | J28: 0 | K28: 124.4 | L28: 1 | M28: 0 | N28: 0 | O28: 0 | P28: 0 | Q28: 0 | R28: 0 | S28: 0 | T28: 0 | U28: 0 | V28: 0 | W28: 0 | X28: 0 | Y28: 0 | Z28: 0 | AA28: 0 | AB28: 0 | AC28: 0 | AD28: 0 | AG28: 22.05.2010 | AL28: 0.0 | AM28: 0 | AN28: 0
A29: 14 | B29: Schütze 14 | C29: =B4 -> Spahnharenstätte | F29: 0 | G29: 0 | H29: 0 | I29: 0 | J29: 0 | K29: 0 | L29: 1 | M29: 0 | N29: 0 | O29: 0 | P29: 0 | Q29: 0 | R29: 0 | S29: 0 | T29: 0 | U29: 0 | V29: 0 | W29: 0 | X29: 0 | Y29: 0 | Z29: 0 | AA29: 0 | AB29: 0 | AC29: 0 | AD29: 0 | AL29: 0.0 | AM29: 1 | AN29: 0
A30: 15 | B30: Schütze 15 | C30: =B4 -> Spahnharenstätte | E30: x | F30: 0 | G30: 0 | H30: 0 | I30: 0 | J30: 0 | K30: 0 | L30: 0 | M30: 0 | N30: 0 | O30: 0 | P30: 0 | Q30: 0 | R30: 0 | S30: 0 | T30: 0 | U30: 0 | V30: 0 | W30: 0 | X30: 0 | Y30: 0 | Z30: 0 | AA30: 0 | AB30: 0 | AC30: 0 | AD30: 0 | AL30: 0.0 | AM30: 1 | AN30: 0
A31: 16 | B31: Suhle Annalena | C31: =B5 -> Esterwegen | D31: 177.9 | F31: 177.9 | G31: 0 | H31: 0 | I31: 0 | J31: 0 | K31: 0 | L31: 0 | M31: 177.9 | N31: 1 | O31: 0 | P31: 0 | Q31: 0 | R31: 0 | S31: 0 | T31: 0 | U31: 0 | V31: 0 | W31: 0 | X31: 0 | Y31: 0 | Z31: 0 | AA31: 0 | AB31: 0 | AC31: 0 | AD31: 0 | AG31: 11.04.2011 | AL31: 0.0 | AM31: 0 | AN31: 0
A32: 17 | B32: Gäken Lena | C32: =B5 -> Esterwegen | D32: 186.7 | F32: 186.7 | G32: 0 | H32: =(IF(AND($E32="",$C32=$B$2),1,0)) -> 0 | I32: 0 | J32: =(IF(AND($E32="",$C32=$B$3),1,0)) -> 0 | K32: 0 | L32: =(IF(AND($E32="",$C32=$B$4),1,0)) -> 0 | M32: 186.7 | N32: =(IF(AND($E32="",$C32=$B$5),1,0)) -> 1 | O32: 0 | P32: =(IF(AND($E32="",$C32=$B$6),1,0)) -> 0 | Q32: 0 | R32: =(IF(AND($E32="",$C32=$B$7),1,0)) -> 0 | S32: =IF($C32=$B$8,F32,0) -> 0 | T32: =(IF(AND($E32="",$C32=$B$8),1,0)) -> 0 | U32: =IF($C32=$B$9,F32,0) -> 0 | V32: =(IF(AND($E32="",$C32=$B$9),1,0)) -> 0 | W32: =IF($C32=$B$10,F32,0) -> 0 | X32: =(IF(AND($E32="",$C32=$B$10),1,0)) -> 0 | Y32: =IF($C32=$B$11,F32,0) -> 0 | Z32: =(IF(AND($E32="",$C32=$B$11),1,0)) -> 0 | AA32: =IF($C32=$B$12,F32,0) -> 0 | AB32: =(IF(AND($E32="",$C32=$B$12),1,0)) -> 0 | AC32: =IF($C32=$B$13,F32,0) -> 0 | AD32: =(IF(AND($E32="",$C32=$B$13),1,0)) -> 0 | AG32: 24.07.2011 | AL32: 0.0 | AM32: 0 | AN32: 0
A33: 18 | B33: Jansen Daniel | C33: =B5 -> Esterwegen | D33: 154.9 | F33: 154.9 | G33: 0 | H33: 0 | I33: 0 | J33: 0 | K33: 0 | L33: 0 | M33: 154.9 | N33: 1 | O33: 0 | P33: 0 | Q33: 0 | R33: 0 | S33: 0 | T33: 0 | U33: 0 | V33: 0 | W33: 0 | X33: 0 | Y33: 0 | Z33: 0 | AA33: 0 | AB33: 0 | AC33: 0 | AD33: 0 | AG33: 05.08.2011 | AL33: 0.0 | AM33: 0 | AN33: 0
A34: 19 | B34: Pieper Jonas | C34: =B5 -> Esterwegen | E34: x | F34: 0 | G34: 0 | H34: 0 | I34: 0 | J34: 0 | K34: 0 | L34: 0 | M34: 0 | N34: 0 | O34: 0 | P34: 0 | Q34: 0 | R34: 0 | S34: 0 | T34: 0 | U34: 0 | V34: 0 | W34: 0 | X34: 0 | Y34: 0 | Z34: 0 | AA34: 0 | AB34: 0 | AC34: 0 | AD34: 0 | AL34: 0.0 | AM34: 1 | AN34: 0
A35: 20 | B35: Schütze 20 | C35: =B5 -> Esterwegen | E35: x | F35: 0 | G35: 0 | H35: 0 | I35: 0 | J35: 0 | K35: 0 | L35: 0 | M35: 0 | N35: 0 | O35: 0 | P35: 0 | Q35: 0 | R35: 0 | S35: 0 | T35: 0 | U35: 0 | V35: 0 | W35: 0 | X35: 0 | Y35: 0 | Z35: 0 | AA35: 0 | AB35: 0 | AC35: 0 | AD35: 0 | AL35: 0.0 | AM35: 1 | AN35: 0
A36: 21 | B36: Hellweg Thea | C36: =B6 -> Lähden | D36: 191.8 | F36: 191.8 | G36: 0 | H36: 0 | I36: 0 | J36: 0 | K36: 0 | L36: 0 | M36: 0 | N36: 0 | O36: 191.8 | P36: 1 | Q36: 0 | R36: 0 | S36: 0 | T36: 0 | U36: 0 | V36: 0 | W36: 0 | X36: 0 | Y36: 0 | Z36: 0 | AA36: 0 | AB36: 0 | AC36: 0 | AD36: 0 | AG36: 10.2010 | AL36: 0.0 | AM36: 0 | AN36: 0
A37: 22 | B37: Bruns Henrik | C37: =B6 -> Lähden | D37: 184.5 | F37: 184.5 | G37: 0 | H37: 0 | I37: 0 | J37: 0 | K37: 0 | L37: 0 | M37: 0 | N37: 0 | O37: 184.5 | P37: 1 | Q37: 0 | R37: 0 | S37: 0 | T37: 0 | U37: 0 | V37: 0 | W37: 0 | X37: 0 | Y37: 0 | Z37: 0 | AA37: 0 | AB37: 0 | AC37: 0 | AD37: 0 | AG37: 12.2010 | AL37: 0.0 | AM37: 0 | AN37: 0
A38: 23 | B38: Buschen Johann | C38: =B6 -> Lähden | D38: 188.7 | F38: 188.7 | G38: 0 | H38: 0 | I38: 0 | J38: 0 | K38: 0 | L38: 0 | M38: 0 | N38: 0 | O38: 188.7 | P38: 1 | Q38: 0 | R38: 0 | S38: 0 | T38: 0 | U38: 0 | V38: 0 | W38: 0 | X38: 0 | Y38: 0 | Z38: 0 | AA38: 0 | AB38: 0 | AC38: 0 | AD38: 0 | AG38: 12.2011 | AL38: 0.0 | AM38: 0 | AN38: 0
A39: 24 | B39: Preut Jannis | C39: =B6 -> Lähden | D39: 173.7 | F39: 173.7 | G39: 0 | H39: 0 | I39: 0 | J39: 0 | K39: 0 | L39: 0 | M39: 0 | N39: 0 | O39: 173.7 | P39: 1 | Q39: 0 | R39: 0 | S39: 0 | T39: 0 | U39: 0 | V39: 0 | W39: 0 | X39: 0 | Y39: 0 | Z39: 0 | AA39: 0 | AB39: 0 | AC39: 0 | AD39: 0 | AG39: 10.2010 | AL39: 0.0 | AM39: 0 | AN39: 0
A40: 25 | B40: Fleschenberg Jana | C40: Lähden | E40: x | F40: 0 | G40: 0 | H40: 0 | I40: 0 | J40: 0 | K40: 0 | L40: 0 | M40: 0 | N40: 0 | O40: 0 | P40: 0 | Q40: 0 | R40: 0 | S40: 0 | T40: 0 | U40: 0 | V40: 0 | W40: 0 | X40: 0 | Y40: 0 | Z40: 0 | AA40: 0 | AB40: 0 | AC40: 0 | AD40: 0 | AL40: 0.0 | AM40: 1 | AN40: 0
A41: 26 | B41: von Seggern Moritz | C41: Lähden | E41: x | F41: 0 | G41: 0 | H41: 0 | I41: 0 | J41: 0 | K41: 0 | L41: 0 | M41: 0 | N41: 0 | O41: 0 | P41: 0 | Q41: 0 | R41: 0 | S41: 0 | T41: 0 | U41: 0 | V41: 0 | W41: 0 | X41: 0 | Y41: 0 | Z41: 0 | AA41: 0 | AB41: 0 | AC41: 0 | AD41: 0 | AL41: 0.0 | AM41: 1 | AN41: 0
A42: 27 | B42: Kohnen Saskia | C42: Börgermoor | D42: 134.9 | F42: 134.9 | G42: 0 | H42: 0 | I42: 0 | J42: 0 | K42: 0 | L42: 0 | M42: 0 | N42: 0 | O42: 0 | P42: 0 | Q42: 134.9 | R42: 1 | S42: 0 | T42: 0 | U42: 0 | V42: 0 | W42: 0 | X42: 0 | Y42: 0 | Z42: 0 | AA42: 0 | AB42: 0 | AC42: 0 | AD42: 0 | AG42: 24.11.2010 | AL42: 0.0 | AM42: 0 | AN42: 0
A43: 28 | B43: Niemann Paul | C43: Börgermoor | D43: 48.5 | F43: 48.5 | G43: 0 | H43: 0 | I43: 0 | J43: 0 | K43: 0 | L43: 0 | M43: 0 | N43: 0 | O43: 0 | P43: 0 | Q43: 48.5 | R43: 1 | S43: 0 | T43: 0 | U43: 0 | V43: 0 | W43: 0 | X43: 0 | Y43: 0 | Z43: 0 | AA43: 0 | AB43: 0 | AC43: 0 | AD43: 0 | AG43: 20.01.2010 | AL43: 0.0 | AM43: 0 | AN43: 0
A44: 29 | B44: Schütze 29 | C44: Börgermoor | F44: 0 | G44: 0 | H44: 0 | I44: 0 | J44: 0 | K44: 0 | L44: 0 | M44: 0 | N44: 0 | O44: 0 | P44: 0 | Q44: 0 | R44: 1 | S44: 0 | T44: 0 | U44: 0 | V44: 0 | W44: 0 | X44: 0 | Y44: 0 | Z44: 0 | AA44: 0 | AB44: 0 | AC44: 0 | AD44: 0 | AL44: 0.0 | AM44: 1 | AN44: 0
A45: 30 | B45: Schütze 30 | C45: Börgermoor | E45: x | F45: 0 | G45: 0 | H45: 0 | I45: 0 | J45: 0 | K45: 0 | L45: 0 | M45: 0 | N45: 0 | O45: 0 | P45: 0 | Q45: 0 | R45: 0 | S45: 0 | T45: 0 | U45: 0 | V45: 0 | W45: 0 | X45: 0 | Y45: 0 | Z45: 0 | AA45: 0 | AB45: 0 | AC45: 0 | AD45: 0 | AL45: 0.0 | AM45: 1 | AN45: 0
A46: 31 | B46: Stümpler Jan Luka | C46: Lähden | F46: 0 | G46: 0 | H46: 0 | I46: 0 | J46: 0 | K46: 0 | L46: 0 | M46: 0 | N46: 0 | O46: 0 | P46: 1 | Q46: 0 | R46: 0 | S46: 0 | T46: 0 | U46: 0 | V46: 0 | W46: 0 | X46: 0 | Y46: 0 | Z46: 0 | AA46: 0 | AB46: 0 | AC46: 0 | AD46: 0 | AL46: 0.0 | AM46: =IF(AL46=D46,1,0) -> 1 | AN46: =IF(AL46=0,0,1) -> 0 | AO46: =IF(AM46+AN46=2,"Korrekt","") -> 
A47: 32 | B47: Helmer, Nils | C47: Lorup | F47: 0 | G47: 0 | H47: 1 | I47: 0 | J47: 0 | K47: 0 | L47: 0 | M47: 0 | N47: 0 | O47: 0 | P47: 0 | Q47: 0 | R47: 0 | S47: 0 | T47: 0 | U47: 0 | V47: 0 | W47: 0 | X47: 0 | Y47: 0 | Z47: 0 | AA47: 0 | AB47: 0 | AC47: 0 | AD47: 0 | AL47: 0.0 | AM47: 1 | AN47: 0
A48: 33 | B48: Schütze 33 | C48: =B8 -> Verein VII | F48: 0 | G48: 0 | H48: 0 | I48: 0 | J48: 0 | K48: 0 | L48: 0 | M48: 0 | N48: 0 | O48: 0 | P48: 0 | Q48: 0 | R48: 0 | S48: 0 | T48: 1 | U48: 0 | V48: 0 | W48: 0 | X48: 0 | Y48: 0 | Z48: 0 | AA48: 0 | AB48: 0 | AC48: 0 | AD48: 0 | AL48: 0.0 | AM48: 1 | AN48: 0
A49: 34 | B49: Schütze 34 | C49: =B8 -> Verein VII | F49: 0 | G49: 0 | H49: 0 | I49: 0 | J49: 0 | K49: 0 | L49: 0 | M49: 0 | N49: 0 | O49: 0 | P49: 0 | Q49: 0 | R49: 0 | S49: 0 | T49: 1 | U49: 0 | V49: 0 | W49: 0 | X49: 0 | Y49: 0 | Z49: 0 | AA49: 0 | AB49: 0 | AC49: 0 | AD49: 0 | AL49: 0.0 | AM49: 1 | AN49: 0
A50: 35 | B50: Schütze 35 | C50: =B8 -> Verein VII | E50: x | F50: 0 | G50: 0 | H50: 0 | I50: 0 | J50: 0 | K50: 0 | L50: 0 | M50: 0 | N50: 0 | O50: 0 | P50: 0 | Q50: 0 | R50: 0 | S50: 0 | T50: 0 | U50: 0 | V50: 0 | W50: 0 | X50: 0 | Y50: 0 | Z50: 0 | AA50: 0 | AB50: 0 | AC50: 0 | AD50: 0 | AL50: 0.0 | AM50: 1 | AN50: 0
A51: 36 | B51: Schütze 36 | C51: Verein VII | E51: x | F51: 0 | G51: 0 | H51: 0 | I51: 0 | J51: 0 | K51: 0 | L51: 0 | M51: 0 | N51: 0 | O51: 0 | P51: 0 | Q51: 0 | R51: 0 | S51: 0 | T51: 0 | U51: 0 | V51: 0 | W51: 0 | X51: 0 | Y51: 0 | Z51: 0 | AA51: 0 | AB51: 0 | AC51: 0 | AD51: 0 | AL51: 0.0 | AM51: =IF(AL51=D51,1,0) -> 1 | AN51: =IF(AL51=0,0,1) -> 0 | AO51: =IF(AM51+AN51=2,"Korrekt","") -> 
A52: 37 | B52: Schütze 37 | C52: Verein VII | E52: x | F52: 0 | G52: =IF(C52=$B$2,F52,0) -> 0 | H52: 0 | I52: =IF($C52=$B$3,F52,0) -> 0 | J52: 0 | K52: =IF($C52=$B$4,F52,0) -> 0 | L52: 0 | M52: =IF($C52=$B$5,F52,0) -> 0 | N52: 0 | O52: =IF($C52=$B$6,F52,0) -> 0 | P52: 0 | Q52: =IF($C52=$B$7,F52,0) -> 0 | R52: 0 | S52: =IF($C52=$B$8,F52,0) -> 0 | T52: 0 | U52: =IF($C52=$B$9,F52,0) -> 0 | V52: 0 | W52: =IF($C52=$B$10,F52,0) -> 0 | X52: 0 | Y52: =IF($C52=$B$11,F52,0) -> 0 | Z52: 0 | AA52: =IF($C52=$B$12,F52,0) -> 0 | AB52: 0 | AC52: =IF($C52=$B$13,F52,0) -> 0 | AD52: 0 | AL52: 0.0
A53: 38 | B53: Schütze 38 | C53: =B9 -> Verein VIII | F53: 0 | G53: 0 | H53: 0 | I53: 0 | J53: 0 | K53: 0 | L53: 0 | M53: 0 | N53: 0 | O53: 0 | P53: 0 | Q53: 0 | R53: 0 | S53: 0 | T53: 0 | U53: 0 | V53: 1 | W53: 0 | X53: 0 | Y53: 0 | Z53: 0 | AA53: 0 | AB53: 0 | AC53: 0 | AD53: 0 | AL53: 0.0
A54: 39 | B54: Schütze 39 | C54: =B9 -> Verein VIII | F54: 0 | G54: 0 | H54: 0 | I54: 0 | J54: 0 | K54: 0 | L54: 0 | M54: 0 | N54: 0 | O54: 0 | P54: 0 | Q54: 0 | R54: 0 | S54: 0 | T54: 0 | U54: 0 | V54: 1 | W54: 0 | X54: 0 | Y54: 0 | Z54: 0 | AA54: 0 | AB54: 0 | AC54: 0 | AD54: 0 | AL54: 0.0
A55: 40 | B55: Schütze 40 | C55: =B9 -> Verein VIII | F55: 0 | G55: 0 | H55: 0 | I55: 0 | J55: 0 | K55: 0 | L55: 0 | M55: 0 | N55: 0 | O55: 0 | P55: 0 | Q55: 0 | R55: 0 | S55: 0 | T55: 0 | U55: 0 | V55: 1 | W55: 0 | X55: 0 | Y55: 0 | Z55: 0 | AA55: 0 | AB55: 0 | AC55: 0 | AD55: 0 | AL55: 0.0
A56: 41 | B56: Schütze 41 | C56: =B10 -> Verein IX | F56: 0 | G56: 0 | H56: 0 | I56: 0 | J56: 0 | K56: 0 | L56: 0 | M56: 0 | N56: 0 | O56: 0 | P56: 0 | Q56: 0 | R56: 0 | S56: 0 | T56: 0 | U56: 0 | V56: 0 | W56: 0 | X56: 1 | Y56: 0 | Z56: 0 | AA56: 0 | AB56: 0 | AC56: 0 | AD56: 0 | AL56: 0.0
A57: 42 | B57: Schütze 42 | C57: =B10 -> Verein IX | F57: 0 | G57: 0 | H57: 0 | I57: 0 | J57: 0 | K57: 0 | L57: 0 | M57: 0 | N57: 0 | O57: 0 | P57: 0 | Q57: 0 | R57: 0 | S57: 0 | T57: 0 | U57: 0 | V57: 0 | W57: 0 | X57: 1 | Y57: 0 | Z57: 0 | AA57: 0 | AB57: 0 | AC57: 0 | AD57: 0 | AL57: 0.0
A58: 43 | B58: Schütze 43 | C58: =B10 -> Verein IX | F58: 0 | G58: 0 | H58: 0 | I58: 0 | J58: 0 | K58: 0 | L58: 0 | M58: 0 | N58: 0 | O58: 0 | P58: 0 | Q58: 0 | R58: 0 | S58: 0 | T58: 0 | U58: 0 | V58: 0 | W58: 0 | X58: 1 | Y58: 0 | Z58: 0 | AA58: 0 | AB58: 0 | AC58: 0 | AD58: 0 | AL58: 0.0
A59: 44 | B59: Schütze 44 | C59: =B10 -> Verein IX | F59: 0 | G59: 0 | H59: 0 | I59: 0 | J59: 0 | K59: 0 | L59: 0 | M59: 0 | N59: 0 | O59: 0 | P59: 0 | Q59: 0 | R59: 0 | S59: 0 | T59: 0 | U59: 0 | V59: 0 | W59: 0 | X59: 1 | Y59: 0 | Z59: 0 | AA59: 0 | AB59: 0 | AC59: 0 | AD59: 0 | AL59: 0.0
A60: 45 | B60: Schütze 45 | C60: =B10 -> Verein IX | F60: 0 | G60: 0 | H60: 0 | I60: 0 | J60: 0 | K60: 0 | L60: 0 | M60: 0 | N60: 0 | O60: 0 | P60: 0 | Q60: 0 | R60: 0 | S60: 0 | T60: 0 | U60: 0 | V60: 0 | W60: 0 | X60: 1 | Y60: 0 | Z60: 0 | AA60: 0 | AB60: 0 | AC60: 0 | AD60: 0 | AL60: 0.0
A61: 46 | B61: Schütze 46 | C61: =B11 -> Verein X | F61: 0 | G61: 0 | H61: 0 | I61: 0 | J61: 0 | K61: 0 | L61: 0 | M61: 0 | N61: 0 | O61: 0 | P61: 0 | Q61: 0 | R61: 0 | S61: 0 | T61: 0 | U61: 0 | V61: 0 | W61: 0 | X61: 0 | Y61: 0 | Z61: 1 | AA61: 0 | AB61: 0 | AC61: 0 | AD61: 0 | AL61: 0.0
A62: 47 | B62: Schütze 47 | C62: =B11 -> Verein X | F62: 0 | G62: 0 | H62: 0 | I62: 0 | J62: 0 | K62: 0 | L62: 0 | M62: 0 | N62: 0 | O62: 0 | P62: 0 | Q62: 0 | R62: 0 | S62: 0 | T62: 0 | U62: 0 | V62: 0 | W62: 0 | X62: 0 | Y62: 0 | Z62: 1 | AA62: 0 | AB62: 0 | AC62: 0 | AD62: 0 | AL62: 0.0
A63: 48 | B63: Schütze 48 | C63: =B11 -> Verein X | F63: 0 | G63: 0 | H63: 0 | I63: 0 | J63: 0 | K63: 0 | L63: 0 | M63: 0 | N63: 0 | O63: 0 | P63: 0 | Q63: 0 | R63: 0 | S63: 0 | T63: 0 | U63: 0 | V63: 0 | W63: 0 | X63: 0 | Y63: 0 | Z63: 1 | AA63: 0 | AB63: 0 | AC63: 0 | AD63: 0 | AL63: 0.0
A64: 49 | B64: Schütze 49 | C64: =B11 -> Verein X | F64: 0 | G64: 0 | H64: 0 | I64: 0 | J64: 0 | K64: 0 | L64: 0 | M64: 0 | N64: 0 | O64: 0 | P64: 0 | Q64: 0 | R64: 0 | S64: 0 | T64: 0 | U64: 0 | V64: 0 | W64: 0 | X64: 0 | Y64: 0 | Z64: 1 | AA64: 0 | AB64: 0 | AC64: 0 | AD64: 0 | AL64: 0.0
A65: 50 | B65: Schütze 50 | C65: =B11 -> Verein X | F65: 0 | G65: 0 | H65: 0 | I65: 0 | J65: 0 | K65: 0 | L65: 0 | M65: 0 | N65: 0 | O65: 0 | P65: 0 | Q65: 0 | R65: 0 | S65: 0 | T65: 0 | U65: 0 | V65: 0 | W65: 0 | X65: 0 | Y65: 0 | Z65: 1 | AA65: 0 | AB65: 0 | AC65: 0 | AD65: 0 | AL65: 0.0
A66: 51 | B66: Schütze 51 | C66: =B12 -> Verein XI | F66: 0 | G66: 0 | H66: 0 | I66: 0 | J66: 0 | K66: 0 | L66: 0 | M66: 0 | N66: 0 | O66: 0 | P66: 0 | Q66: 0 | R66: 0 | S66: 0 | T66: 0 | U66: 0 | V66: 0 | W66: 0 | X66: 0 | Y66: 0 | Z66: 0 | AA66: 0 | AB66: 1 | AC66: 0 | AD66: 0 | AL66: 0.0
A67: 52 | B67: Schütze 52 | C67: =B12 -> Verein XI | F67: 0 | G67: 0 | H67: 0 | I67: 0 | J67: 0 | K67: 0 | L67: 0 | M67: 0 | N67: 0 | O67: 0 | P67: 0 | Q67: 0 | R67: 0 | S67: 0 | T67: 0 | U67: 0 | V67: 0 | W67: 0 | X67: 0 | Y67: 0 | Z67: 0 | AA67: 0 | AB67: 1 | AC67: 0 | AD67: 0 | AL67: 0.0
A68: 53 | B68: Schütze 53 | C68: =B12 -> Verein XI | F68: 0 | G68: 0 | H68: 0 | I68: 0 | J68: 0 | K68: 0 | L68: 0 | M68: 0 | N68: 0 | O68: 0 | P68: 0 | Q68: 0 | R68: 0 | S68: 0 | T68: 0 | U68: 0 | V68: 0 | W68: 0 | X68: 0 | Y68: 0 | Z68: 0 | AA68: 0 | AB68: 1 | AC68: 0 | AD68: 0 | AL68: 0.0
A69: 54 | B69: Schütze 54 | C69: =B12 -> Verein XI | F69: 0 | G69: 0 | H69: 0 | I69: 0 | J69: 0 | K69: 0 | L69: 0 | M69: 0 | N69: 0 | O69: 0 | P69: 0 | Q69: 0 | R69: 0 | S69: 0 | T69: 0 | U69: 0 | V69: 0 | W69: 0 | X69: 0 | Y69: 0 | Z69: 0 | AA69: 0 | AB69: 1 | AC69: 0 | AD69: 0 | AL69: 0.0
A70: 55 | B70: Schütze 55 | C70: =B12 -> Verein XI | F70: 0 | G70: 0 | H70: 0 | I70: 0 | J70: 0 | K70: 0 | L70: 0 | M70: 0 | N70: 0 | O70: 0 | P70: 0 | Q70: 0 | R70: 0 | S70: 0 | T70: 0 | U70: 0 | V70: 0 | W70: 0 | X70: 0 | Y70: 0 | Z70: 0 | AA70: 0 | AB70: 1 | AC70: 0 | AD70: 0 | AL70: 0.0
A71: 56 | B71: Schütze 56 | C71: =B13 -> Verein XII | F71: 0 | G71: 0 | H71: 0 | I71: 0 | J71: 0 | K71: 0 | L71: 0 | M71: 0 | N71: 0 | O71: 0 | P71: 0 | Q71: 0 | R71: 0 | S71: 0 | T71: 0 | U71: 0 | V71: 0 | W71: 0 | X71: 0 | Y71: 0 | Z71: 0 | AA71: 0 | AB71: 0 | AC71: 0 | AD71: 1 | AL71: 0.0
A72: 57 | B72: Schütze 57 | C72: =B13 -> Verein XII | F72: 0 | G72: 0 | H72: 0 | I72: 0 | J72: 0 | K72: 0 | L72: 0 | M72: 0 | N72: 0 | O72: 0 | P72: 0 | Q72: 0 | R72: 0 | S72: 0 | T72: 0 | U72: 0 | V72: 0 | W72: 0 | X72: 0 | Y72: 0 | Z72: 0 | AA72: 0 | AB72: 0 | AC72: 0 | AD72: 1 | AL72: 0.0
A73: 58 | B73: Schütze 58 | C73: =B13 -> Verein XII | F73: 0 | G73: 0 | H73: 0 | I73: 0 | J73: 0 | K73: 0 | L73: 0 | M73: 0 | N73: 0 | O73: 0 | P73: 0 | Q73: 0 | R73: 0 | S73: 0 | T73: 0 | U73: 0 | V73: 0 | W73: 0 | X73: 0 | Y73: 0 | Z73: 0 | AA73: 0 | AB73: 0 | AC73: 0 | AD73: 1 | AL73: 0.0
A74: 59 | B74: Schütze 59 | C74: =B13 -> Verein XII | F74: 0 | G74: 0 | H74: 0 | I74: 0 | J74: 0 | K74: 0 | L74: 0 | M74: 0 | N74: 0 | O74: 0 | P74: 0 | Q74: 0 | R74: 0 | S74: 0 | T74: 0 | U74: 0 | V74: 0 | W74: 0 | X74: 0 | Y74: 0 | Z74: 0 | AA74: 0 | AB74: 0 | AC74: 0 | AD74: 1 | AL74: 0.0
A75: 60 | B75: Schütze 60 | C75: =B13 -> Verein XII | F75: 0 | G75: 0 | H75: 0 | I75: 0 | J75: 0 | K75: 0 | L75: 0 | M75: 0 | N75: 0 | O75: 0 | P75: 0 | Q75: 0 | R75: 0 | S75: 0 | T75: 0 | U75: 0 | V75: 0 | W75: 0 | X75: 0 | Y75: 0 | Z75: 0 | AA75: 0 | AB75: 0 | AC75: 0 | AD75: 1 | AL75: 0.0
G76: =LARGE(G16:G75,1)+LARGE(G16:G75,2)+LARGE(G16:G75,3) -> 394.9 | H76: =SUM(H16:H75) -> 5 | I76: =LARGE(I16:I75,1)+LARGE(I16:I75,2)+LARGE(I16:I75,3) -> 0 | J76: =SUM(J16:J75) -> 4 | K76: =LARGE(K16:K75,1)+LARGE(K16:K75,2)+LARGE(K16:K75,3) -> 318.6 | L76: =SUM(L16:L75) -> 4 | M76: =LARGE(M16:M75,1)+LARGE(M16:M75,2)+LARGE(M16:M75,3) -> 519.5 | N76: =SUM(N16:N75) -> 3 | O76: =LARGE(O16:O75,1)+LARGE(O16:O75,2)+LARGE(O16:O75,3) -> 565 | P76: =SUM(P16:P75) -> 5 | Q76: =LARGE(Q16:Q75,1)+LARGE(Q16:Q75,2)+LARGE(Q16:Q75,3) -> 183.4 | R76: =SUM(R16:R75) -> 3 | S76: =LARGE(S16:S75,1)+LARGE(S16:S75,2)+LARGE(S16:S75,3) -> 0 | T76: =SUM(T16:T75) -> 2 | U76: =LARGE(U16:U75,1)+LARGE(U16:U75,2)+LARGE(U16:U75,3) -> 0 | V76: =SUM(V16:V75) -> 3 | W76: =LARGE(W16:W75,1)+LARGE(W16:W75,2)+LARGE(W16:W75,3) -> 0 | X76: =SUM(X16:X75) -> 5 | Y76: =LARGE(Y16:Y75,1)+LARGE(Y16:Y75,2)+LARGE(Y16:Y75,3) -> 0 | Z76: =SUM(Z16:Z75) -> 5 | AA76: =LARGE(AA16:AA75,1)+LARGE(AA16:AA75,2)+LARGE(AA16:AA75,3) -> 0 | AB76: =SUM(AB16:AB75) -> 5 | AC76: =LARGE(AC16:AC75,1)+LARGE(AC16:AC75,2)+LARGE(AC16:AC75,3) -> 0 | AD76: =SUM(AD16:AD75) -> 5
C77: per Email an: sk-huemmling@gmx.de

Sheet Börgermoor
B1: Verein / Gruppe | D1: Ergebnisse | AH1: Austragungsort: | AI1: =Übersicht!E4 -> Börgermoor
A2: 1 | B2: ='Wettkampf 1'!B2 -> Lorup | D2: =G76 -> 404.5 | E2: =IF(H76>4,"Es sind zu viele Schützen in Wertung!"," ") -> Es sind zu viele Schützen in Wertung! | AH2: Wettkampftag: | AI2: =Übersicht!E3 -> 07.10.
A3: 2 | B3: ='Wettkampf 1'!B3 -> Sögel | D3: =I76 -> 0.0 | E3: =IF(J76>4,"Es sind zu viele Schützen in Wertung!"," ") -> 
A4: 3 | B4: ='Wettkampf 1'!B4 -> Spahnharenstätte | D4: =K76 -> 349.1 | E4: =IF(L76>4,"Es sind zu viele Schützen in Wertung!"," ") -> Es sind zu viele Schützen in Wertung! | AJ4: Ansprechpartner für Rückfragen:
A5: 4 | B5: ='Wettkampf 1'!B5 -> Esterwegen | D5: =M76 -> 478.6 | E5: =IF(N76>4,"Es sind zu viele Schützen in Wertung!"," ") ->  | AH5: Name:
A6: 5 | B6: ='Wettkampf 1'!B6 -> Lähden | D6: =O76 -> 545.3 | E6: =IF(P76>4,"Es sind zu viele Schützen in Wertung!"," ") -> Es sind zu viele Schützen in Wertung! | AH6: Tel:
A7: 6 | B7: ='Wettkampf 1'!B7 -> Börgermoor | D7: =Q76 -> 201.1 | E7: =IF(R76>4,"Es sind zu viele Schützen in Wertung!"," ") ->  | AH7: Standaufsicht: | AI7: Yvonne Segbers
A8: 7 | B8: ='Wettkampf 1'!B8 -> Verein VII | D8: =S76 -> 0.0 | E8: =IF(T76>4,"Es sind zu viele Schützen in Wertung!"," ") -> Es sind zu viele Schützen in Wertung!
A9: 8 | B9: ='Wettkampf 1'!B9 -> Verein VIII | D9: =U76 -> 0.0 | E9: =IF(V76>4,"Es sind zu viele Schützen in Wertung!"," ") -> 
A10: 9 | B10: ='Wettkampf 1'!B10 -> Verein IX | D10: =W76 -> 0.0 | E10: =IF(X76>4,"Es sind zu viele Schützen in Wertung!"," ") -> Es sind zu viele Schützen in Wertung!
A11: 10 | B11: ='Wettkampf 1'!B11 -> Verein X | D11: =Y76 -> 0.0 | E11: =IF(Z76>4,"Es sind zu viele Schützen in Wertung!"," ") -> Es sind zu viele Schützen in Wertung!
A12: 11 | B12: ='Wettkampf 1'!B12 -> Verein XI | D12: =AA76 -> 0.0 | E12: =IF(AB76>4,"Es sind zu viele Schützen in Wertung!"," ") -> Es sind zu viele Schützen in Wertung!
A13: 12 | B13: ='Wettkampf 1'!B13 -> Verein XII | D13: =AC76 -> 0.0 | E13: =IF(AD76>4,"Es sind zu viele Schützen in Wertung!"," ") -> Es sind zu viele Schützen in Wertung!
B15: Einzelergebnisse: | C15: Verein / Gruppe | D15: Ergebnisse (mindestens 0 eintragen) | E15: AW? Dann x eintippen | G15: Verein 1 | I15: Verein 2 | K15: Verein 3 | M15: Verein 4 | O15: Verein 5 | Q15: Verein 6 | S15: Verein 7 | U15: Verein 8 | W15: Verein 9 | Y15: Verein 10 | AA15: Verein 11 | AC15: Verein 12 | AG15: Proberechnung bei Streifen:
A16: 1 | B16: ='Wettkampf 1'!B16 -> Wotte Lia | C16: ='Wettkampf 1'!C16 -> Lorup | D16: 166.8 | F16: =IF(E16="x","0",D16) -> 166.8 | G16: =IF(C16=$B$2,F16,0) -> 166.8 | H16: =(IF(AND($E16="",$C16=$B$2),1,0)) -> 1 | I16: =IF($C16=$B$3,$F16,0) -> 0 | J16: =(IF(AND($E16="",$C16=$B$3),1,0)) -> 0 | K16: =IF($C16=$B$4,F16,0) -> 0 | L16: =(IF(AND($E16="",$C16=$B$4),1,0)) -> 0 | M16: =IF($C16=$B$5,F16,0) -> 0 | N16: =(IF(AND($E16="",$C16=$B$5),1,0)) -> 0 | O16: =IF($C16=$B$6,F16,0) -> 0 | P16: =(IF(AND($E16="",$C16=$B$6),1,0)) -> 0 | Q16: =IF($C16=$B$7,F16,0) -> 0 | R16: =(IF(AND($E16="",$C16=$B$7),1,0)) -> 0 | S16: =IF($C16=$B$8,$F16,0) -> 0 | T16: =(IF(AND($E16="",$C16=$B$8),1,0)) -> 0 | U16: =IF($C16=$B$9,$F16,0) -> 0 | V16: =(IF(AND($E16="",$C16=$B$9),1,0)) -> 0 | W16: =IF($C16=$B$10,$F16,0) -> 0 | X16: =(IF(AND($E16="",$C16=$B$10),1,0)) -> 0 | Y16: =IF($C16=$B$11,$F16,0) -> 0 | Z16: =(IF(AND($E16="",$C16=$B$11),1,0)) -> 0 | AA16: =IF($C16=$B$12,$F16,0) -> 0 | AB16: =(IF(AND($E16="",$C16=$B$12),1,0)) -> 0 | AC16: =IF($C16=$B$13,$F16,0) -> 0 | AD16: =(IF(AND($E16="",$C16=$B$13),1,0)) -> 0 | AJ16: =SUM(AG16:AI16) -> 0.0 | AK16: =IF(AJ16=D16,1,0) -> 0 | AL16: =IF(AJ16=0,0,1) -> 0 | AM16: =IF(AK16+AL16=2,"Korrekt","") -> 
A17: 2 | B17: ='Wettkampf 1'!B17 -> Wotte Hannes | C17: ='Wettkampf 1'!C17 -> Lorup | D17: 125.8 | F17: =IF(E17="x","0",D17) -> 125.8 | G17: =IF(C17=$B$2,F17,0) -> 125.8 | H17: =(IF(AND($E17="",$C17=$B$2),1,0)) -> 1 | I17: =IF($C17=$B$3,F17,0) -> 0 | J17: =(IF(AND($E17="",$C17=$B$3),1,0)) -> 0 | K17: =IF($C17=$B$4,F17,0) -> 0 | L17: =(IF(AND($E17="",$C17=$B$4),1,0)) -> 0 | M17: =IF($C17=$B$5,F17,0) -> 0 | N17: =(IF(AND($E17="",$C17=$B$5),1,0)) -> 0 | O17: =IF($C17=$B$6,F17,0) -> 0 | P17: =(IF(AND($E17="",$C17=$B$6),1,0)) -> 0 | Q17: =IF($C17=$B$7,F17,0) -> 0 | R17: =(IF(AND($E17="",$C17=$B$7),1,0)) -> 0 | S17: =IF($C17=$B$8,$F17,0) -> 0 | T17: =(IF(AND($E17="",$C17=$B$8),1,0)) -> 0 | U17: =IF($C17=$B$9,$F17,0) -> 0 | V17: =(IF(AND($E17="",$C17=$B$9),1,0)) -> 0 | W17: =IF($C17=$B$10,$F17,0) -> 0 | X17: =(IF(AND($E17="",$C17=$B$10),1,0)) -> 0 | Y17: =IF($C17=$B$11,$F17,0) -> 0 | Z17: =(IF(AND($E17="",$C17=$B$11),1,0)) -> 0 | AA17: =IF($C17=$B$12,$F17,0) -> 0 | AB17: =(IF(AND($E17="",$C17=$B$12),1,0)) -> 0 | AC17: =IF($C17=$B$13,$F17,0) -> 0 | AD17: =(IF(AND($E17="",$C17=$B$13),1,0)) -> 0 | AJ17: =SUM(AG17:AI17) -> 0.0 | AK17: =IF(AJ17=D17,1,0) -> 0 | AL17: =IF(AJ17=0,0,1) -> 0 | AM17: =IF(AK17+AL17=2,"Korrekt","") -> 
A18: 3 | B18: ='Wettkampf 1'!B18 -> Gretenabeln Elias | C18: ='Wettkampf 1'!C18 -> Lorup | D18: 111.9 | F18: 111.9 | G18: 111.9 | H18: 1 | I18: 0 | J18: 0 | K18: 0 | L18: 0 | M18: 0 | N18: 0 | O18: 0 | P18: 0 | Q18: 0 | R18: 0 | S18: 0 | T18: 0 | U18: 0 | V18: 0 | W18: 0 | X18: 0 | Y18: 0 | Z18: 0 | AA18: 0 | AB18: 0 | AC18: 0 | AD18: 0 | AJ18: 0.0 | AK18: 0 | AL18: 0
A19: 4 | B19: ='Wettkampf 1'!B19 -> Helmer Maike | C19: ='Wettkampf 1'!C19 -> Lorup | D19: 101.8 | E19: x | F19: 0 | G19: 0 | H19: 0 | I19: 0 | J19: 0 | K19: 0 | L19: 0 | M19: 0 | N19: 0 | O19: 0 | P19: 0 | Q19: 0 | R19: 0 | S19: 0 | T19: 0 | U19: 0 | V19: 0 | W19: 0 | X19: 0 | Y19: 0 | Z19: 0 | AA19: 0 | AB19: 0 | AC19: 0 | AD19: 0 | AJ19: 0.0 | AK19: 0 | AL19: 0
A20: 5 | B20: ='Wettkampf 1'!B20 -> Többen Jannes | C20: ='Wettkampf 1'!C20 -> Lorup | D20: 91.0 | E20: x | F20: 0 | G20: 0 | H20: 0 | I20: 0 | J20: 0 | K20: 0 | L20: 0 | M20: 0 | N20: 0 | O20: 0 | P20: 0 | Q20: 0 | R20: 0 | S20: 0 | T20: 0 | U20: 0 | V20: 0 | W20: 0 | X20: 0 | Y20: 0 | Z20: 0 | AA20: 0 | AB20: 0 | AC20: 0 | AD20: 0 | AJ20: 0.0 | AK20: 0 | AL20: 0
A21: 6 | B21: ='Wettkampf 1'!B21 -> Lüken Arne | C21: ='Wettkampf 1'!C21 -> Lorup | D21: 107.8 | F21: 107.8 | G21: 107.8 | H21: 1 | I21: 0 | J21: 0 | K21: 0 | L21: 0 | M21: 0 | N21: 0 | O21: 0 | P21: 0 | Q21: 0 | R21: 0 | S21: 0 | T21: 0 | U21: 0 | V21: 0 | W21: 0 | X21: 0 | Y21: 0 | Z21: 0 | AA21: 0 | AB21: 0 | AC21: 0 | AD21: 0 | AJ21: 0.0 | AK21: 0 | AL21: 0
A22: 7 | B22: ='Wettkampf 1'!B22 -> Schütze 7 | C22: ='Wettkampf 1'!C22 -> Sögel | F22: 0.0 | G22: 0 | H22: 0 | I22: 0 | J22: 1 | K22: 0 | L22: 0 | M22: 0 | N22: 0 | O22: 0 | P22: 0 | Q22: 0 | R22: 0 | S22: 0 | T22: 0 | U22: 0 | V22: 0 | W22: 0 | X22: 0 | Y22: 0 | Z22: 0 | AA22: 0 | AB22: 0 | AC22: 0 | AD22: 0 | AJ22: 0.0 | AK22: 1 | AL22: 0
A23: 8 | B23: ='Wettkampf 1'!B23 -> Schütze 8 | C23: ='Wettkampf 1'!C23 -> Sögel | F23: 0.0 | G23: 0 | H23: 0 | I23: 0 | J23: 1 | K23: 0 | L23: 0 | M23: 0 | N23: 0 | O23: 0 | P23: 0 | Q23: 0 | R23: 0 | S23: 0 | T23: 0 | U23: 0 | V23: 0 | W23: 0 | X23: 0 | Y23: 0 | Z23: 0 | AA23: 0 | AB23: 0 | AC23: 0 | AD23: 0 | AJ23: 0.0 | AK23: 1 | AL23: 0
A24: 9 | B24: ='Wettkampf 1'!B24 -> Schütze 9 | C24: ='Wettkampf 1'!C24 -> Sögel | F24: 0.0 | G24: 0 | H24: 0 | I24: 0 | J24: 1 | K24: 0 | L24: 0 | M24: 0 | N24: 0 | O24: 0 | P24: 0 | Q24: 0 | R24: 0 | S24: 0 | T24: 0 | U24: 0 | V24: 0 | W24: 0 | X24: 0 | Y24: 0 | Z24: 0 | AA24: 0 | AB24: 0 | AC24: 0 | AD24: 0 | AJ24: 0.0 | AK24: 1 | AL24: 0
A25: 10 | B25: ='Wettkampf 1'!B25 -> Schütze 10 | C25: ='Wettkampf 1'!C25 -> Sögel | F25: 0.0 | G25: 0 | H25: 0 | I25: 0 | J25: 1 | K25: 0 | L25: 0 | M25: 0 | N25: 0 | O25: 0 | P25: 0 | Q25: 0 | R25: 0 | S25: 0 | T25: 0 | U25: 0 | V25: 0 | W25: 0 | X25: 0 | Y25: 0 | Z25: 0 | AA25: 0 | AB25: 0 | AC25: 0 | AD25: 0 | AJ25: 0.0 | AK25: 1 | AL25: 0
A26: 11 | B26: ='Wettkampf 1'!B26 -> Engbers Hannes | C26: ='Wettkampf 1'!C26 -> Spahnharenstätte | D26: 54.2 | F26: 54.2 | G26: 0 | H26: 0 | I26: 0 | J26: 0 | K26: 54.2 | L26: 1 | M26: 0 | N26: 0 | O26: 0 | P26: 0 | Q26: 0 | R26: 0 | S26: 0 | T26: 0 | U26: 0 | V26: 0 | W26: 0 | X26: 0 | Y26: 0 | Z26: 0 | AA26: 0 | AB26: 0 | AC26: 0 | AD26: 0 | AJ26: 0.0 | AK26: 0 | AL26: 0
A27: 12 | B27: ='Wettkampf 1'!B27 -> Runde Marcel | C27: ='Wettkampf 1'!C27 -> Spahnharenstätte | D27: 150.7 | F27: 150.7 | G27: 0 | H27: 0 | I27: 0 | J27: 0 | K27: 150.7 | L27: 1 | M27: 0 | N27: 0 | O27: 0 | P27: 0 | Q27: 0 | R27: 0 | S27: 0 | T27: 0 | U27: 0 | V27: 0 | W27: 0 | X27: 0 | Y27: 0 | Z27: 0 | AA27: 0 | AB27: 0 | AC27: 0 | AD27: 0 | AJ27: 0.0 | AK27: 0 | AL27: 0
A28: 13 | B28: ='Wettkampf 1'!B28 -> Jansen Lars | C28: ='Wettkampf 1'!C28 -> Spahnharenstätte | D28: 144.2 | F28: 144.2 | G28: 0 | H28: 0 | I28: 0 | J28: 0 | K28: 144.2 | L28: 1 | M28: 0 | N28: 0 | O28: 0 | P28: 0 | Q28: 0 | R28: 0 | S28: 0 | T28: 0 | U28: 0 | V28: 0 | W28: 0 | X28: 0 | Y28: 0 | Z28: 0 | AA28: 0 | AB28: 0 | AC28: 0 | AD28: 0 | AJ28: 0.0 | AK28: 0 | AL28: 0
A29: 14 | B29: ='Wettkampf 1'!B29 -> Schütze 14 | C29: ='Wettkampf 1'!C29 -> Spahnharenstätte | F29: 0.0 | G29: 0 | H29: 0 | I29: 0 | J29: 0 | K29: 0 | L29: 1 | M29: 0 | N29: 0 | O29: 0 | P29: 0 | Q29: 0 | R29: 0 | S29: 0 | T29: 0 | U29: 0 | V29: 0 | W29: 0 | X29: 0 | Y29: 0 | Z29: 0 | AA29: 0 | AB29: 0 | AC29: 0 | AD29: 0 | AJ29: 0.0 | AK29: 1 | AL29: 0
A30: 15 | B30: ='Wettkampf 1'!B30 -> Schütze 15 | C30: ='Wettkampf 1'!C30 -> Spahnharenstätte | F30: 0.0 | G30: 0 | H30: 0 | I30: 0 | J30: 0 | K30: 0 | L30: 1 | M30: 0 | N30: 0 | O30: 0 | P30: 0 | Q30: 0 | R30: 0 | S30: 0 | T30: 0 | U30: 0 | V30: 0 | W30: 0 | X30: 0 | Y30: 0 | Z30: 0 | AA30: 0 | AB30: 0 | AC30: 0 | AD30: 0 | AJ30: 0.0 | AK30: 1 | AL30: 0
A31: 16 | B31: ='Wettkampf 1'!B31 -> Suhle Annalena | C31: ='Wettkampf 1'!C31 -> Esterwegen | D31: 175.9 | F31: 175.9 | G31: 0 | H31: 0 | I31: 0 | J31: 0 | K31: 0 | L31: 0 | M31: 175.9 | N31: 1 | O31: 0 | P31: 0 | Q31: 0 | R31: 0 | S31: 0 | T31: 0 | U31: 0 | V31: 0 | W31: 0 | X31: 0 | Y31: 0 | Z31: 0 | AA31: 0 | AB31: 0 | AC31: 0 | AD31: 0 | AJ31: 0.0 | AK31: 0 | AL31: 0
A32: 17 | B32: ='Wettkampf 1'!B32 -> Gäken Lena | C32: ='Wettkampf 1'!C32 -> Esterwegen | D32: 170.4 | F32: 170.4 | G32: 0 | H32: 0 | I32: 0 | J32: 0 | K32: 0 | L32: 0 | M32: 170.4 | N32: 1 | O32: 0 | P32: 0 | Q32: 0 | R32: 0 | S32: 0 | T32: 0 | U32: 0 | V32: 0 | W32: 0 | X32: 0 | Y32: 0 | Z32: 0 | AA32: 0 | AB32: 0 | AC32: 0 | AD32: 0 | AJ32: 0.0 | AK32: 0 | AL32: 0
A33: 18 | B33: ='Wettkampf 1'!B33 -> Jansen Daniel | C33: ='Wettkampf 1'!C33 -> Esterwegen | D33: 132.3 | F33: 132.3 | G33: 0 | H33: 0 | I33: 0 | J33: 0 | K33: 0 | L33: 0 | M33: 132.3 | N33: 1 | O33: 0 | P33: 0 | Q33: 0 | R33: 0 | S33: 0 | T33: 0 | U33: 0 | V33: 0 | W33: 0 | X33: 0 | Y33: 0 | Z33: 0 | AA33: 0 | AB33: 0 | AC33: 0 | AD33: 0 | AJ33: 0.0 | AK33: 0 | AL33: 0
A34: 19 | B34: ='Wettkampf 1'!B34 -> Pieper Jonas | C34: ='Wettkampf 1'!C34 -> Esterwegen | E34: x | F34: 0 | G34: 0 | H34: 0 | I34: 0 | J34: 0 | K34: 0 | L34: 0 | M34: 0 | N34: 0 | O34: 0 | P34: 0 | Q34: 0 | R34: 0 | S34: 0 | T34: 0 | U34: 0 | V34: 0 | W34: 0 | X34: 0 | Y34: 0 | Z34: 0 | AA34: 0 | AB34: 0 | AC34: 0 | AD34: 0 | AJ34: 0.0 | AK34: 1 | AL34: 0
A35: 20 | B35: ='Wettkampf 1'!B35 -> Schütze 20 | C35: ='Wettkampf 1'!C35 -> Esterwegen | E35: x | F35: 0 | G35: 0 | H35: 0 | I35: 0 | J35: 0 | K35: 0 | L35: 0 | M35: 0 | N35: 0 | O35: 0 | P35: 0 | Q35: 0 | R35: 0 | S35: 0 | T35: 0 | U35: 0 | V35: 0 | W35: 0 | X35: 0 | Y35: 0 | Z35: 0 | AA35: 0 | AB35: 0 | AC35: 0 | AD35: 0 | AJ35: 0.0 | AK35: 1 | AL35: 0
A36: 21 | B36: ='Wettkampf 1'!B36 -> Hellweg Thea | C36: ='Wettkampf 1'!C36 -> Lähden | D36: 174.2 | F36: 174.2 | G36: 0 | H36: 0 | I36: 0 | J36: 0 | K36: 0 | L36: 0 | M36: 0 | N36: 0 | O36: 174.2 | P36: 1 | Q36: 0 | R36: 0 | S36: 0 | T36: 0 | U36: 0 | V36: 0 | W36: 0 | X36: 0 | Y36: 0 | Z36: 0 | AA36: 0 | AB36: 0 | AC36: 0 | AD36: 0 | AJ36: 0.0 | AK36: 0 | AL36: 0
A37: 22 | B37: ='Wettkampf 1'!B37 -> Bruns Henrik | C37: ='Wettkampf 1'!C37 -> Lähden | D37: 180.2 | F37: 180.2 | G37: 0 | H37: 0 | I37: 0 | J37: 0 | K37: 0 | L37: 0 | M37: 0 | N37: 0 | O37: 180.2 | P37: 1 | Q37: 0 | R37: 0 | S37: 0 | T37: 0 | U37: 0 | V37: 0 | W37: 0 | X37: 0 | Y37: 0 | Z37: 0 | AA37: 0 | AB37: 0 | AC37: 0 | AD37: 0 | AJ37: 0.0 | AK37: 0 | AL37: 0
A38: 23 | B38: ='Wettkampf 1'!B38 -> Buschen Johann | C38: ='Wettkampf 1'!C38 -> Lähden | D38: 190.9 | F38: 190.9 | G38: 0 | H38: 0 | I38: 0 | J38: 0 | K38: 0 | L38: 0 | M38: 0 | N38: 0 | O38: 190.9 | P38: 1 | Q38: 0 | R38: 0 | S38: 0 | T38: 0 | U38: 0 | V38: 0 | W38: 0 | X38: 0 | Y38: 0 | Z38: 0 | AA38: 0 | AB38: 0 | AC38: 0 | AD38: 0 | AJ38: 0.0 | AK38: 0 | AL38: 0
A39: 24 | B39: ='Wettkampf 1'!B39 -> Preut Jannis | C39: ='Wettkampf 1'!C39 -> Lähden | F39: 0.0 | G39: 0 | H39: 0 | I39: 0 | J39: 0 | K39: 0 | L39: 0 | M39: 0 | N39: 0 | O39: 0 | P39: 1 | Q39: 0 | R39: 0 | S39: 0 | T39: 0 | U39: 0 | V39: 0 | W39: 0 | X39: 0 | Y39: 0 | Z39: 0 | AA39: 0 | AB39: 0 | AC39: 0 | AD39: 0 | AJ39: 0.0 | AK39: 1 | AL39: 0
A40: 25 | B40: ='Wettkampf 1'!B40 -> Fleschenberg Jana | C40: ='Wettkampf 1'!C40 -> Lähden | F40: 0.0 | G40: 0 | H40: 0 | I40: 0 | J40: 0 | K40: 0 | L40: 0 | M40: 0 | N40: 0 | O40: 0 | P40: 1 | Q40: 0 | R40: 0 | S40: 0 | T40: 0 | U40: 0 | V40: 0 | W40: 0 | X40: 0 | Y40: 0 | Z40: 0 | AA40: 0 | AB40: 0 | AC40: 0 | AD40: 0 | AJ40: 0.0 | AK40: 1 | AL40: 0
A41: 26 | B41: ='Wettkampf 1'!B41 -> von Seggern Moritz | C41: ='Wettkampf 1'!C41 -> Lähden | F41: 0.0 | G41: 0 | H41: 0 | I41: 0 | J41: 0 | K41: 0 | L41: 0 | M41: 0 | N41: 0 | O41: 0 | P41: 1 | Q41: 0 | R41: 0 | S41: 0 | T41: 0 | U41: 0 | V41: 0 | W41: 0 | X41: 0 | Y41: 0 | Z41: 0 | AA41: 0 | AB41: 0 | AC41: 0 | AD41: 0 | AJ41: 0.0 | AK41: 1 | AL41: 0
A42: 27 | B42: ='Wettkampf 1'!B42 -> Kohnen Saskia | C42: ='Wettkampf 1'!C42 -> Börgermoor | D42: 139.4 | F42: 139.4 | G42: 0 | H42: 0 | I42: 0 | J42: 0 | K42: 0 | L42: 0 | M42: 0 | N42: 0 | O42: 0 | P42: 0 | Q42: 139.4 | R42: 1 | S42: 0 | T42: 0 | U42: 0 | V42: 0 | W42: 0 | X42: 0 | Y42: 0 | Z42: 0 | AA42: 0 | AB42: 0 | AC42: 0 | AD42: 0 | AJ42: 0.0 | AK42: 0 | AL42: 0
A43: 28 | B43: ='Wettkampf 1'!B43 -> Niemann Paul | C43: ='Wettkampf 1'!C43 -> Börgermoor | D43: 61.7 | F43: 61.7 | G43: 0 | H43: 0 | I43: 0 | J43: 0 | K43: 0 | L43: 0 | M43: 0 | N43: 0 | O43: 0 | P43: 0 | Q43: 61.7 | R43: 1 | S43: 0 | T43: 0 | U43: 0 | V43: 0 | W43: 0 | X43: 0 | Y43: 0 | Z43: 0 | AA43: 0 | AB43: 0 | AC43: 0 | AD43: 0 | AJ43: 0.0 | AK43: 0 | AL43: 0
A44: 29 | B44: ='Wettkampf 1'!B44 -> Schütze 29 | C44: ='Wettkampf 1'!C44 -> Börgermoor | F44: 0.0 | G44: 0 | H44: 0 | I44: 0 | J44: 0 | K44: 0 | L44: 0 | M44: 0 | N44: 0 | O44: 0 | P44: 0 | Q44: 0 | R44: 1 | S44: 0 | T44: 0 | U44: 0 | V44: 0 | W44: 0 | X44: 0 | Y44: 0 | Z44: 0 | AA44: 0 | AB44: 0 | AC44: 0 | AD44: 0 | AJ44: 0.0 | AK44: 1 | AL44: 0
A45: 30 | B45: ='Wettkampf 1'!B45 -> Schütze 30 | C45: ='Wettkampf 1'!C45 -> Börgermoor | F45: 0.0 | G45: 0 | H45: 0 | I45: 0 | J45: 0 | K45: 0 | L45: 0 | M45: 0 | N45: 0 | O45: 0 | P45: 0 | Q45: 0 | R45: 1 | S45: 0 | T45: 0 | U45: 0 | V45: 0 | W45: 0 | X45: 0 | Y45: 0 | Z45: 0 | AA45: 0 | AB45: 0 | AC45: 0 | AD45: 0 | AJ45: 0.0 | AK45: 1 | AL45: 0
A46: 31 | B46: ='Wettkampf 1'!B46 -> Stümpler Jan Luka | C46: ='Wettkampf 1'!C46 -> Lähden | F46: 0.0 | G46: 0 | H46: 0 | I46: 0 | J46: 0 | K46: 0 | L46: 0 | M46: 0 | N46: 0 | O46: 0 | P46: 1 | Q46: 0 | R46: 0 | S46: 0 | T46: 0 | U46: 0 | V46: 0 | W46: 0 | X46: 0 | Y46: 0 | Z46: 0 | AA46: 0 | AB46: 0 | AC46: 0 | AD46: 0 | AJ46: 0.0 | AK46: =IF(AJ46=D46,1,0) -> 1 | AL46: =IF(AJ46=0,0,1) -> 0 | AM46: =IF(AK46+AL46=2,"Korrekt","") -> 
A47: 32 | B47: ='Wettkampf 1'!B47 -> Helmer, Nils | C47: ='Wettkampf 1'!C47 -> Lorup | F47: 0.0 | G47: 0 | H47: 1 | I47: 0 | J47: 0 | K47: 0 | L47: 0 | M47: 0 | N47: 0 | O47: 0 | P47: 0 | Q47: 0 | R47: 0 | S47: 0 | T47: 0 | U47: 0 | V47: 0 | W47: 0 | X47: 0 | Y47: 0 | Z47: 0 | AA47: 0 | AB47: 0 | AC47: 0 | AD47: 0 | AJ47: 0.0 | AK47: 1 | AL47: 0
A48: 33 | B48: ='Wettkampf 1'!B48 -> Schütze 33 | C48: ='Wettkampf 1'!C48 -> Verein VII | F48: 0.0 | G48: 0 | H48: 0 | I48: 0 | J48: 0 | K48: 0 | L48: 0 | M48: 0 | N48: 0 | O48: 0 | P48: 0 | Q48: 0 | R48: 0 | S48: 0 | T48: 1 | U48: 0 | V48: 0 | W48: 0 | X48: 0 | Y48: 0 | Z48: 0 | AA48: 0 | AB48: 0 | AC48: 0 | AD48: 0 | AJ48: 0.0 | AK48: 1 | AL48: 0
A49: 34 | B49: ='Wettkampf 1'!B49 -> Schütze 34 | C49: ='Wettkampf 1'!C49 -> Verein VII | F49: 0.0 | G49: 0 | H49: 0 | I49: 0 | J49: 0 | K49: 0 | L49: 0 | M49: 0 | N49: 0 | O49: 0 | P49: 0 | Q49: 0 | R49: 0 | S49: 0 | T49: 1 | U49: 0 | V49: 0 | W49: 0 | X49: 0 | Y49: 0 | Z49: 0 | AA49: 0 | AB49: 0 | AC49: 0 | AD49: 0 | AJ49: 0.0 | AK49: 1 | AL49: 0
A50: 35 | B50: ='Wettkampf 1'!B50 -> Schütze 35 | C50: ='Wettkampf 1'!C50 -> Verein VII | F50: 0.0 | G50: 0 | H50: 0 | I50: 0 | J50: 0 | K50: 0 | L50: 0 | M50: 0 | N50: 0 | O50: 0 | P50: 0 | Q50: 0 | R50: 0 | S50: 0 | T50: 1 | U50: 0 | V50: 0 | W50: 0 | X50: 0 | Y50: 0 | Z50: 0 | AA50: 0 | AB50: 0 | AC50: 0 | AD50: 0 | AJ50: 0.0 | AK50: 1 | AL50: 0
A51: 36 | B51: ='Wettkampf 1'!B51 -> Schütze 36 | C51: ='Wettkampf 1'!C51 -> Verein VII | F51: 0.0 | G51: 0 | H51: 0 | I51: 0 | J51: 0 | K51: 0 | L51: 0 | M51: 0 | N51: 0 | O51: 0 | P51: 0 | Q51: 0 | R51: 0 | S51: 0 | T51: 1 | U51: 0 | V51: 0 | W51: 0 | X51: 0 | Y51: 0 | Z51: 0 | AA51: 0 | AB51: 0 | AC51: 0 | AD51: 0 | AJ51: 0.0 | AK51: =IF(AJ51=D51,1,0) -> 1 | AL51: =IF(AJ51=0,0,1) -> 0 | AM51: =IF(AK51+AL51=2,"Korrekt","") -> 
A52: 37 | B52: ='Wettkampf 1'!B52 -> Schütze 37 | C52: ='Wettkampf 1'!C52 -> Verein VII | F52: 0.0 | G52: 0 | H52: 0 | I52: 0 | J52: 0 | K52: =IF($C52=$B$4,F52,0) -> 0 | L52: 0 | M52: =IF($C52=$B$5,F52,0) -> 0 | N52: 0 | O52: =IF($C52=$B$6,F52,0) -> 0 | P52: 0 | Q52: =IF($C52=$B$7,F52,0) -> 0 | R52: 0 | S52: 0 | T52: 1 | U52: 0 | V52: 0 | W52: 0 | X52: 0 | Y52: 0 | Z52: 0 | AA52: 0 | AB52: 0 | AC52: 0 | AD52: 0 | AJ52: 0.0
A53: 38 | B53: ='Wettkampf 1'!B53 -> Schütze 38 | C53: ='Wettkampf 1'!C53 -> Verein VIII | F53: 0.0 | G53: 0 | H53: 0 | I53: 0 | J53: 0 | K53: 0 | L53: 0 | M53: 0 | N53: 0 | O53: 0 | P53: 0 | Q53: 0 | R53: 0 | S53: 0 | T53: 0 | U53: 0 | V53: 1 | W53: 0 | X53: 0 | Y53: 0 | Z53: 0 | AA53: 0 | AB53: 0 | AC53: 0 | AD53: 0 | AJ53: 0.0
A54: 39 | B54: ='Wettkampf 1'!B54 -> Schütze 39 | C54: ='Wettkampf 1'!C54 -> Verein VIII | F54: 0.0 | G54: 0 | H54: 0 | I54: 0 | J54: 0 | K54: 0 | L54: 0 | M54: 0 | N54: 0 | O54: 0 | P54: 0 | Q54: 0 | R54: 0 | S54: =IF($C54=$B$8,$F54,0) -> 0 | T54: =(IF(AND($E54="",$C54=$B$8),1,0)) -> 0 | U54: =IF($C54=$B$9,$F54,0) -> 0 | V54: =(IF(AND($E54="",$C54=$B$9),1,0)) -> 1 | W54: =IF($C54=$B$10,$F54,0) -> 0 | X54: =(IF(AND($E54="",$C54=$B$10),1,0)) -> 0 | Y54: =IF($C54=$B$11,$F54,0) -> 0 | Z54: =(IF(AND($E54="",$C54=$B$11),1,0)) -> 0 | AA54: =IF($C54=$B$12,$F54,0) -> 0 | AB54: =(IF(AND($E54="",$C54=$B$12),1,0)) -> 0 | AC54: =IF($C54=$B$13,$F54,0) -> 0 | AD54: =(IF(AND($E54="",$C54=$B$13),1,0)) -> 0 | AJ54: 0.0
A55: 40 | B55: ='Wettkampf 1'!B55 -> Schütze 40 | C55: ='Wettkampf 1'!C55 -> Verein VIII | F55: 0.0 | G55: 0 | H55: 0 | I55: 0 | J55: 0 | K55: 0 | L55: 0 | M55: 0 | N55: 0 | O55: 0 | P55: 0 | Q55: 0 | R55: 0 | S55: 0 | T55: 0 | U55: 0 | V55: 1 | W55: 0 | X55: 0 | Y55: 0 | Z55: 0 | AA55: 0 | AB55: 0 | AC55: 0 | AD55: 0 | AJ55: 0.0
A56: 41 | B56: ='Wettkampf 1'!B56 -> Schütze 41 | C56: ='Wettkampf 1'!C56 -> Verein IX | F56: 0.0 | G56: 0 | H56: 0 | I56: 0 | J56: 0 | K56: 0 | L56: 0 | M56: 0 | N56: 0 | O56: 0 | P56: 0 | Q56: 0 | R56: 0 | S56: 0 | T56: 0 | U56: 0 | V56: 0 | W56: 0 | X56: 1 | Y56: 0 | Z56: 0 | AA56: 0 | AB56: 0 | AC56: 0 | AD56: 0 | AJ56: 0.0
A57: 42 | B57: ='Wettkampf 1'!B57 -> Schütze 42 | C57: ='Wettkampf 1'!C57 -> Verein IX | F57: 0.0 | G57: 0 | H57: 0 | I57: 0 | J57: 0 | K57: 0 | L57: 0 | M57: 0 | N57: 0 | O57: 0 | P57: 0 | Q57: 0 | R57: 0 | S57: 0 | T57: 0 | U57: 0 | V57: 0 | W57: 0 | X57: 1 | Y57: 0 | Z57: 0 | AA57: 0 | AB57: 0 | AC57: 0 | AD57: 0 | AJ57: 0.0
A58: 43 | B58: ='Wettkampf 1'!B58 -> Schütze 43 | C58: ='Wettkampf 1'!C58 -> Verein IX | F58: 0.0 | G58: 0 | H58: 0 | I58: 0 | J58: 0 | K58: 0 | L58: 0 | M58: 0 | N58: 0 | O58: 0 | P58: 0 | Q58: 0 | R58: 0 | S58: 0 | T58: 0 | U58: 0 | V58: 0 | W58: 0 | X58: 1 | Y58: 0 | Z58: 0 | AA58: 0 | AB58: 0 | AC58: 0 | AD58: 0 | AJ58: 0.0
A59: 44 | B59: ='Wettkampf 1'!B59 -> Schütze 44 | C59: ='Wettkampf 1'!C59 -> Verein IX | F59: 0.0 | G59: 0 | H59: 0 | I59: 0 | J59: 0 | K59: 0 | L59: 0 | M59: 0 | N59: 0 | O59: 0 | P59: 0 | Q59: 0 | R59: 0 | S59: 0 | T59: 0 | U59: 0 | V59: 0 | W59: 0 | X59: 1 | Y59: 0 | Z59: 0 | AA59: 0 | AB59: 0 | AC59: 0 | AD59: 0 | AJ59: 0.0
A60: 45 | B60: ='Wettkampf 1'!B60 -> Schütze 45 | C60: ='Wettkampf 1'!C60 -> Verein IX | F60: 0.0 | G60: 0 | H60: 0 | I60: 0 | J60: 0 | K60: 0 | L60: 0 | M60: 0 | N60: 0 | O60: 0 | P60: 0 | Q60: 0 | R60: 0 | S60: 0 | T60: 0 | U60: 0 | V60: 0 | W60: 0 | X60: 1 | Y60: 0 | Z60: 0 | AA60: 0 | AB60: 0 | AC60: 0 | AD60: 0 | AJ60: 0.0
A61: 46 | B61: ='Wettkampf 1'!B61 -> Schütze 46 | C61: ='Wettkampf 1'!C61 -> Verein X | F61: 0.0 | G61: 0 | H61: 0 | I61: 0 | J61: 0 | K61: 0 | L61: 0 | M61: 0 | N61: 0 | O61: 0 | P61: 0 | Q61: 0 | R61: 0 | S61: 0 | T61: 0 | U61: 0 | V61: 0 | W61: 0 | X61: 0 | Y61: 0 | Z61: 1 | AA61: 0 | AB61: 0 | AC61: 0 | AD61: 0 | AJ61: 0.0
A62: 47 | B62: ='Wettkampf 1'!B62 -> Schütze 47 | C62: ='Wettkampf 1'!C62 -> Verein X | F62: 0.0 | G62: 0 | H62: 0 | I62: 0 | J62: 0 | K62: 0 | L62: 0 | M62: 0 | N62: 0 | O62: 0 | P62: 0 | Q62: 0 | R62: 0 | S62: 0 | T62: 0 | U62: 0 | V62: 0 | W62: 0 | X62: 0 | Y62: 0 | Z62: 1 | AA62: 0 | AB62: 0 | AC62: 0 | AD62: 0 | AJ62: 0.0
A63: 48 | B63: ='Wettkampf 1'!B63 -> Schütze 48 | C63: ='Wettkampf 1'!C63 -> Verein X | F63: 0.0 | G63: 0 | H63: 0 | I63: 0 | J63: 0 | K63: 0 | L63: 0 | M63: 0 | N63: 0 | O63: 0 | P63: 0 | Q63: 0 | R63: 0 | S63: 0 | T63: 0 | U63: 0 | V63: 0 | W63: 0 | X63: 0 | Y63: 0 | Z63: 1 | AA63: 0 | AB63: 0 | AC63: 0 | AD63: 0 | AJ63: 0.0
A64: 49 | B64: ='Wettkampf 1'!B64 -> Schütze 49 | C64: ='Wettkampf 1'!C64 -> Verein X | F64: 0.0 | G64: 0 | H64: 0 | I64: 0 | J64: 0 | K64: 0 | L64: 0 | M64: 0 | N64: 0 | O64: 0 | P64: 0 | Q64: 0 | R64: 0 | S64: 0 | T64: 0 | U64: 0 | V64: 0 | W64: 0 | X64: 0 | Y64: 0 | Z64: 1 | AA64: 0 | AB64: 0 | AC64: 0 | AD64: 0 | AJ64: 0.0
A65: 50 | B65: ='Wettkampf 1'!B65 -> Schütze 50 | C65: ='Wettkampf 1'!C65 -> Verein X | F65: 0.0 | G65: 0 | H65: 0 | I65: 0 | J65: 0 | K65: 0 | L65: 0 | M65: 0 | N65: 0 | O65: 0 | P65: 0 | Q65: 0 | R65: 0 | S65: 0 | T65: 0 | U65: 0 | V65: 0 | W65: 0 | X65: 0 | Y65: 0 | Z65: 1 | AA65: 0 | AB65: 0 | AC65: 0 | AD65: 0 | AJ65: 0.0
A66: 51 | B66: ='Wettkampf 1'!B66 -> Schütze 51 | C66: ='Wettkampf 1'!C66 -> Verein XI | F66: 0.0 | G66: 0 | H66: 0 | I66: 0 | J66: 0 | K66: 0 | L66: 0 | M66: 0 | N66: 0 | O66: 0 | P66: 0 | Q66: 0 | R66: 0 | S66: 0 | T66: 0 | U66: 0 | V66: 0 | W66: 0 | X66: 0 | Y66: 0 | Z66: 0 | AA66: 0 | AB66: 1 | AC66: 0 | AD66: 0 | AJ66: 0.0
A67: 52 | B67: ='Wettkampf 1'!B67 -> Schütze 52 | C67: ='Wettkampf 1'!C67 -> Verein XI | F67: 0.0 | G67: 0 | H67: 0 | I67: 0 | J67: 0 | K67: 0 | L67: 0 | M67: 0 | N67: 0 | O67: 0 | P67: 0 | Q67: 0 | R67: 0 | S67: 0 | T67: 0 | U67: 0 | V67: 0 | W67: 0 | X67: 0 | Y67: 0 | Z67: 0 | AA67: 0 | AB67: 1 | AC67: 0 | AD67: 0 | AJ67: 0.0
A68: 53 | B68: ='Wettkampf 1'!B68 -> Schütze 53 | C68: ='Wettkampf 1'!C68 -> Verein XI | F68: 0.0 | G68: 0 | H68: 0 | I68: 0 | J68: 0 | K68: 0 | L68: 0 | M68: 0 | N68: 0 | O68: 0 | P68: 0 | Q68: 0 | R68: 0 | S68: 0 | T68: 0 | U68: 0 | V68: 0 | W68: 0 | X68: 0 | Y68: 0 | Z68: 0 | AA68: 0 | AB68: 1 | AC68: 0 | AD68: 0 | AJ68: 0.0
A69: 54 | B69: ='Wettkampf 1'!B69 -> Schütze 54 | C69: ='Wettkampf 1'!C69 -> Verein XI | F69: 0.0 | G69: 0 | H69: 0 | I69: 0 | J69: 0 | K69: 0 | L69: 0 | M69: 0 | N69: 0 | O69: 0 | P69: 0 | Q69: 0 | R69: 0 | S69: 0 | T69: 0 | U69: 0 | V69: 0 | W69: 0 | X69: 0 | Y69: 0 | Z69: 0 | AA69: 0 | AB69: 1 | AC69: 0 | AD69: 0 | AJ69: 0.0
A70: 55 | B70: ='Wettkampf 1'!B70 -> Schütze 55 | C70: ='Wettkampf 1'!C70 -> Verein XI | F70: 0.0 | G70: 0 | H70: 0 | I70: 0 | J70: 0 | K70: 0 | L70: 0 | M70: 0 | N70: 0 | O70: 0 | P70: 0 | Q70: 0 | R70: 0 | S70: 0 | T70: 0 | U70: 0 | V70: 0 | W70: 0 | X70: 0 | Y70: 0 | Z70: 0 | AA70: 0 | AB70: 1 | AC70: 0 | AD70: 0 | AJ70: 0.0
A71: 56 | B71: ='Wettkampf 1'!B71 -> Schütze 56 | C71: ='Wettkampf 1'!C71 -> Verein XII | F71: 0.0 | G71: 0 | H71: 0 | I71: 0 | J71: 0 | K71: 0 | L71: 0 | M71: 0 | N71: 0 | O71: 0 | P71: 0 | Q71: 0 | R71: 0 | S71: 0 | T71: 0 | U71: 0 | V71: 0 | W71: 0 | X71: 0 | Y71: 0 | Z71: 0 | AA71: 0 | AB71: 0 | AC71: 0 | AD71: 1 | AJ71: 0.0
A72: 57 | B72: ='Wettkampf 1'!B72 -> Schütze 57 | C72: ='Wettkampf 1'!C72 -> Verein XII | F72: 0.0 | G72: 0 | H72: 0 | I72: 0 | J72: 0 | K72: 0 | L72: 0 | M72: 0 | N72: 0 | O72: 0 | P72: 0 | Q72: 0 | R72: 0 | S72: 0 | T72: 0 | U72: 0 | V72: 0 | W72: 0 | X72: 0 | Y72: 0 | Z72: 0 | AA72: 0 | AB72: 0 | AC72: 0 | AD72: 1 | AJ72: 0.0
A73: 58 | B73: ='Wettkampf 1'!B73 -> Schütze 58 | C73: ='Wettkampf 1'!C73 -> Verein XII | F73: 0.0 | G73: 0 | H73: 0 | I73: 0 | J73: 0 | K73: 0 | L73: 0 | M73: 0 | N73: 0 | O73: 0 | P73: 0 | Q73: 0 | R73: 0 | S73: 0 | T73: 0 | U73: 0 | V73: 0 | W73: 0 | X73: 0 | Y73: 0 | Z73: 0 | AA73: 0 | AB73: 0 | AC73: 0 | AD73: 1 | AJ73: 0.0
A74: 59 | B74: ='Wettkampf 1'!B74 -> Schütze 59 | C74: ='Wettkampf 1'!C74 -> Verein XII | F74: 0.0 | G74: 0 | H74: 0 | I74: 0 | J74: 0 | K74: 0 | L74: 0 | M74: 0 | N74: 0 | O74: 0 | P74: 0 | Q74: 0 | R74: 0 | S74: 0 | T74: 0 | U74: 0 | V74: 0 | W74: 0 | X74: 0 | Y74: 0 | Z74: 0 | AA74: 0 | AB74: 0 | AC74: 0 | AD74: 1 | AJ74: 0.0
A75: 60 | B75: ='Wettkampf 1'!B75 -> Schütze 60 | C75: ='Wettkampf 1'!C75 -> Verein XII | F75: 0.0 | G75: 0 | H75: 0 | I75: 0 | J75: 0 | K75: 0 | L75: 0 | M75: 0 | N75: 0 | O75: 0 | P75: 0 | Q75: 0 | R75: 0 | S75: 0 | T75: 0 | U75: 0 | V75: 0 | W75: 0 | X75: 0 | Y75: 0 | Z75: 0 | AA75: 0 | AB75: 0 | AC75: 0 | AD75: 1 | AJ75: 0.0
G76: =LARGE(G16:G75,1)+LARGE(G16:G75,2)+LARGE(G16:G75,3) -> 404.5 | H76: =SUM(H16:H75) -> 5 | I76: =LARGE(I16:I75,1)+LARGE(I16:I75,2)+LARGE(I16:I75,3) -> 0 | J76: =SUM(J16:J75) -> 4 | K76: =LARGE(K16:K75,1)+LARGE(K16:K75,2)+LARGE(K16:K75,3) -> 349.1 | L76: =SUM(L16:L75) -> 5 | M76: =LARGE(M16:M75,1)+LARGE(M16:M75,2)+LARGE(M16:M75,3) -> 478.6 | N76: =SUM(N16:N75) -> 3 | O76: =LARGE(O16:O75,1)+LARGE(O16:O75,2)+LARGE(O16:O75,3) -> 545.3 | P76: =SUM(P16:P75) -> 7 | Q76: =LARGE(Q16:Q75,1)+LARGE(Q16:Q75,2)+LARGE(Q16:Q75,3) -> 201.1 | R76: =SUM(R16:R75) -> 4 | S76: =LARGE(S16:S75,1)+LARGE(S16:S75,2)+LARGE(S16:S75,3) -> 0 | T76: =SUM(T16:T75) -> 5 | U76: =LARGE(U16:U75,1)+LARGE(U16:U75,2)+LARGE(U16:U75,3) -> 0 | V76: =SUM(V16:V75) -> 3 | W76: =LARGE(W16:W75,1)+LARGE(W16:W75,2)+LARGE(W16:W75,3) -> 0 | X76: =SUM(X16:X75) -> 5 | Y76: =LARGE(Y16:Y75,1)+LARGE(Y16:Y75,2)+LARGE(Y16:Y75,3) -> 0 | Z76: =SUM(Z16:Z75) -> 5 | AA76: =LARGE(AA16:AA75,1)+LARGE(AA16:AA75,2)+LARGE(AA16:AA75,3) -> 0 | AB76: =SUM(AB16:AB75) -> 5 | AC76: =LARGE(AC16:AC75,1)+LARGE(AC16:AC75,2)+LARGE(AC16:AC75,3) -> 0 | AD76: =SUM(AD16:AD75) -> 5
C77: per Email an: sk-huemmling@gmx.de

Sheet 3
B1: Verein / Gruppe | D1: Ergebnisse | AH1: Austragungsort: | AI1: =Übersicht!F4 -> Lahn
A2: 1 | B2: ='Wettkampf 1'!B2 -> Lorup | D2: =G76 -> 436.5 | E2: =IF(H76>4,"Es sind zu viele Schützen in Wertung!"," ") -> Es sind zu viele Schützen in Wertung! | AH2: Wettkampftag: | AI2: =Übersicht!F3 -> 04.11.
A3: 2 | B3: ='Wettkampf 1'!B3 -> Sögel | D3: =I76 -> 0.0 | E3: =IF(J76>4,"Es sind zu viele Schützen in Wertung!"," ") -> 
A4: 3 | B4: ='Wettkampf 1'!B4 -> Spahnharenstätte | D4: =K76 -> 263.5 | E4: =IF(L76>4,"Es sind zu viele Schützen in Wertung!"," ") -> Es sind zu viele Schützen in Wertung! | AJ4: Ansprechpartner für Rückfragen:
A5: 4 | B5: ='Wettkampf 1'!B5 -> Esterwegen | D5: =M76 -> 515.0 | E5: =IF(N76>4,"Es sind zu viele Schützen in Wertung!"," ") -> Es sind zu viele Schützen in Wertung! | AH5: Name:
A6: 5 | B6: ='Wettkampf 1'!B6 -> Lähden | D6: =O76 -> 564.7 | E6: =IF(P76>4,"Es sind zu viele Schützen in Wertung!"," ") -> Es sind zu viele Schützen in Wertung! | AH6: Tel:
A7: 6 | B7: ='Wettkampf 1'!B7 -> Börgermoor | D7: =Q76 -> 227.3 | E7: =IF(R76>4,"Es sind zu viele Schützen in Wertung!"," ") ->  | AH7: Standaufsicht: | AI7: eintragen
A8: 7 | B8: ='Wettkampf 1'!B8 -> Verein VII | D8: =S76 -> 0.0 | E8: =IF(T76>4,"Es sind zu viele Schützen in Wertung!"," ") -> Es sind zu viele Schützen in Wertung!
A9: 8 | B9: ='Wettkampf 1'!B9 -> Verein VIII | D9: =U76 -> 0.0 | E9: =IF(V76>4,"Es sind zu viele Schützen in Wertung!"," ") -> 
A10: 9 | B10: ='Wettkampf 1'!B10 -> Verein IX | D10: =W76 -> 0.0 | E10: =IF(X76>4,"Es sind zu viele Schützen in Wertung!"," ") -> Es sind zu viele Schützen in Wertung!
A11: 10 | B11: ='Wettkampf 1'!B11 -> Verein X | D11: =Y76 -> 0.0 | E11: =IF(Z76>4,"Es sind zu viele Schützen in Wertung!"," ") -> Es sind zu viele Schützen in Wertung!
A12: 11 | B12: ='Wettkampf 1'!B12 -> Verein XI | D12: =AA76 -> 0.0 | E12: =IF(AB76>4,"Es sind zu viele Schützen in Wertung!"," ") -> Es sind zu viele Schützen in Wertung!
A13: 12 | B13: ='Wettkampf 1'!B13 -> Verein XII | D13: =AC76 -> 0.0 | E13: =IF(AD76>4,"Es sind zu viele Schützen in Wertung!"," ") -> Es sind zu viele Schützen in Wertung!
B15: Einzelergebnisse: | C15: Verein / Gruppe | D15: Ergebnisse (mindestens 0 eintragen) | E15: AW? Dann x eintippen | G15: Verein 1 | I15: Verein 2 | K15: Verein 3 | M15: Verein 4 | O15: Verein 5 | Q15: Verein 6 | S15: Verein 7 | U15: Verein 8 | W15: Verein 9 | Y15: Verein 10 | AA15: Verein 11 | AC15: Verein 12 | AG15: Proberechnung bei Streifen:
A16: 1 | B16: ='Wettkampf 1'!B16 -> Wotte Lia | C16: ='Wettkampf 1'!C16 -> Lorup | D16: 165.9 | F16: =IF(E16="x","0",D16) -> 165.9 | G16: =IF(C16=$B$2,F16,0) -> 165.9 | H16: =(IF(AND($E16="",$C16=$B$2),1,0)) -> 1 | I16: =IF($C16=$B$3,$F16,0) -> 0 | J16: =(IF(AND($E16="",$C16=$B$3),1,0)) -> 0 | K16: =IF($C16=$B$4,F16,0) -> 0 | L16: =(IF(AND($E16="",$C16=$B$4),1,0)) -> 0 | M16: =IF($C16=$B$5,F16,0) -> 0 | N16: =(IF(AND($E16="",$C16=$B$5),1,0)) -> 0 | O16: =IF($C16=$B$6,F16,0) -> 0 | P16: =(IF(AND($E16="",$C16=$B$6),1,0)) -> 0 | Q16: =IF($C16=$B$7,F16,0) -> 0 | R16: =(IF(AND($E16="",$C16=$B$7),1,0)) -> 0 | S16: =IF($C16=$B$8,$F16,0) -> 0 | T16: =(IF(AND($E16="",$C16=$B$8),1,0)) -> 0 | U16: =IF($C16=$B$9,$F16,0) -> 0 | V16: =(IF(AND($E16="",$C16=$B$9),1,0)) -> 0 | W16: =IF($C16=$B$10,$F16,0) -> 0 | X16: =(IF(AND($E16="",$C16=$B$10),1,0)) -> 0 | Y16: =IF($C16=$B$11,$F16,0) -> 0 | Z16: =(IF(AND($E16="",$C16=$B$11),1,0)) -> 0 | AA16: =IF($C16=$B$12,$F16,0) -> 0 | AB16: =(IF(AND($E16="",$C16=$B$12),1,0)) -> 0 | AC16: =IF($C16=$B$13,$F16,0) -> 0 | AD16: =(IF(AND($E16="",$C16=$B$13),1,0)) -> 0 | AJ16: =SUM(AG16:AI16) -> 0.0 | AK16: =IF(AJ16=D16,1,0) -> 0 | AL16: =IF(AJ16=0,0,1) -> 0 | AM16: =IF(AK16+AL16=2,"Korrekt","") -> 
A17: 2 | B17: ='Wettkampf 1'!B17 -> Wotte Hannes | C17: ='Wettkampf 1'!C17 -> Lorup | D17: 139.7 | F17: =IF(E17="x","0",D17) -> 139.7 | G17: =IF(C17=$B$2,F17,0) -> 139.7 | H17: =(IF(AND($E17="",$C17=$B$2),1,0)) -> 1 | I17: =IF($C17=$B$3,F17,0) -> 0 | J17: =(IF(AND($E17="",$C17=$B$3),1,0)) -> 0 | K17: =IF($C17=$B$4,F17,0) -> 0 | L17: =(IF(AND($E17="",$C17=$B$4),1,0)) -> 0 | M17: =IF($C17=$B$5,F17,0) -> 0 | N17: =(IF(AND($E17="",$C17=$B$5),1,0)) -> 0 | O17: =IF($C17=$B$6,F17,0) -> 0 | P17: =(IF(AND($E17="",$C17=$B$6),1,0)) -> 0 | Q17: =IF($C17=$B$7,F17,0) -> 0 | R17: =(IF(AND($E17="",$C17=$B$7),1,0)) -> 0 | S17: =IF($C17=$B$8,$F17,0) -> 0 | T17: =(IF(AND($E17="",$C17=$B$8),1,0)) -> 0 | U17: =IF($C17=$B$9,$F17,0) -> 0 | V17: =(IF(AND($E17="",$C17=$B$9),1,0)) -> 0 | W17: =IF($C17=$B$10,$F17,0) -> 0 | X17: =(IF(AND($E17="",$C17=$B$10),1,0)) -> 0 | Y17: =IF($C17=$B$11,$F17,0) -> 0 | Z17: =(IF(AND($E17="",$C17=$B$11),1,0)) -> 0 | AA17: =IF($C17=$B$12,$F17,0) -> 0 | AB17: =(IF(AND($E17="",$C17=$B$12),1,0)) -> 0 | AC17: =IF($C17=$B$13,$F17,0) -> 0 | AD17: =(IF(AND($E17="",$C17=$B$13),1,0)) -> 0 | AJ17: =SUM(AG17:AI17) -> 0.0 | AK17: =IF(AJ17=D17,1,0) -> 0 | AL17: =IF(AJ17=0,0,1) -> 0 | AM17: =IF(AK17+AL17=2,"Korrekt","") -> 
A18: 3 | B18: ='Wettkampf 1'!B18 -> Gretenabeln Elias | C18: ='Wettkampf 1'!C18 -> Lorup | D18: 82.6 | E18: x | F18: 0 | G18: 0 | H18: 0 | I18: 0 | J18: 0 | K18: 0 | L18: 0 | M18: 0 | N18: 0 | O18: 0 | P18: 0 | Q18: 0 | R18: 0 | S18: 0 | T18: 0 | U18: 0 | V18: 0 | W18: 0 | X18: 0 | Y18: 0 | Z18: 0 | AA18: 0 | AB18: 0 | AC18: 0 | AD18: 0 | AJ18: 0.0 | AK18: 0 | AL18: 0
A19: 4 | B19: ='Wettkampf 1'!B19 -> Helmer Maike | C19: ='Wettkampf 1'!C19 -> Lorup | D19: 130.9 | F19: 130.9 | G19: 130.9 | H19: 1 | I19: 0 | J19: 0 | K19: 0 | L19: 0 | M19: 0 | N19: 0 | O19: 0 | P19: 0 | Q19: 0 | R19: 0 | S19: 0 | T19: 0 | U19: 0 | V19: 0 | W19: 0 | X19: 0 | Y19: 0 | Z19: 0 | AA19: 0 | AB19: 0 | AC19: 0 | AD19: 0 | AJ19: 0.0 | AK19: 0 | AL19: 0
A20: 5 | B20: ='Wettkampf 1'!B20 -> Többen Jannes | C20: ='Wettkampf 1'!C20 -> Lorup | D20: 76.0 | E20: x | F20: 0 | G20: 0 | H20: 0 | I20: 0 | J20: 0 | K20: 0 | L20: 0 | M20: 0 | N20: 0 | O20: 0 | P20: 0 | Q20: 0 | R20: 0 | S20: 0 | T20: 0 | U20: 0 | V20: 0 | W20: 0 | X20: 0 | Y20: 0 | Z20: 0 | AA20: 0 | AB20: 0 | AC20: 0 | AD20: 0 | AJ20: 0.0 | AK20: 0 | AL20: 0
A21: 6 | B21: ='Wettkampf 1'!B21 -> Lüken Arne | C21: ='Wettkampf 1'!C21 -> Lorup | D21: 114.4 | F21: 114.4 | G21: 114.4 | H21: 1 | I21: 0 | J21: 0 | K21: 0 | L21: 0 | M21: 0 | N21: 0 | O21: 0 | P21: 0 | Q21: 0 | R21: 0 | S21: 0 | T21: 0 | U21: 0 | V21: 0 | W21: 0 | X21: 0 | Y21: 0 | Z21: 0 | AA21: 0 | AB21: 0 | AC21: 0 | AD21: 0 | AJ21: 0.0 | AK21: 0 | AL21: 0
A22: 7 | B22: ='Wettkampf 1'!B22 -> Schütze 7 | C22: ='Wettkampf 1'!C22 -> Sögel | F22: 0.0 | G22: 0 | H22: 0 | I22: 0 | J22: 1 | K22: 0 | L22: 0 | M22: 0 | N22: 0 | O22: 0 | P22: 0 | Q22: 0 | R22: 0 | S22: 0 | T22: 0 | U22: 0 | V22: 0 | W22: 0 | X22: 0 | Y22: 0 | Z22: 0 | AA22: 0 | AB22: 0 | AC22: 0 | AD22: 0 | AJ22: 0.0 | AK22: 1 | AL22: 0
A23: 8 | B23: ='Wettkampf 1'!B23 -> Schütze 8 | C23: ='Wettkampf 1'!C23 -> Sögel | F23: 0.0 | G23: 0 | H23: 0 | I23: 0 | J23: 1 | K23: 0 | L23: 0 | M23: 0 | N23: 0 | O23: 0 | P23: 0 | Q23: 0 | R23: 0 | S23: 0 | T23: 0 | U23: 0 | V23: 0 | W23: 0 | X23: 0 | Y23: 0 | Z23: 0 | AA23: 0 | AB23: 0 | AC23: 0 | AD23: 0 | AJ23: 0.0 | AK23: 1 | AL23: 0
A24: 9 | B24: ='Wettkampf 1'!B24 -> Schütze 9 | C24: ='Wettkampf 1'!C24 -> Sögel | F24: 0.0 | G24: 0 | H24: 0 | I24: 0 | J24: 1 | K24: 0 | L24: 0 | M24: 0 | N24: 0 | O24: 0 | P24: 0 | Q24: 0 | R24: 0 | S24: 0 | T24: 0 | U24: 0 | V24: 0 | W24: 0 | X24: 0 | Y24: 0 | Z24: 0 | AA24: 0 | AB24: 0 | AC24: 0 | AD24: 0 | AJ24: 0.0 | AK24: 1 | AL24: 0
A25: 10 | B25: ='Wettkampf 1'!B25 -> Schütze 10 | C25: ='Wettkampf 1'!C25 -> Sögel | F25: 0.0 | G25: 0 | H25: 0 | I25: 0 | J25: 1 | K25: 0 | L25: 0 | M25: 0 | N25: 0 | O25: 0 | P25: 0 | Q25: 0 | R25: 0 | S25: 0 | T25: 0 | U25: 0 | V25: 0 | W25: 0 | X25: 0 | Y25: 0 | Z25: 0 | AA25: 0 | AB25: 0 | AC25: 0 | AD25: 0 | AJ25: 0.0 | AK25: 1 | AL25: 0
A26: 11 | B26: ='Wettkampf 1'!B26 -> Engbers Hannes | C26: ='Wettkampf 1'!C26 -> Spahnharenstätte | F26: 0.0 | G26: 0 | H26: 0 | I26: 0 | J26: 0 | K26: 0 | L26: 1 | M26: 0 | N26: 0 | O26: 0 | P26: 0 | Q26: 0 | R26: 0 | S26: 0 | T26: 0 | U26: 0 | V26: 0 | W26: 0 | X26: 0 | Y26: 0 | Z26: 0 | AA26: 0 | AB26: 0 | AC26: 0 | AD26: 0 | AJ26: 0.0 | AK26: 1 | AL26: 0
A27: 12 | B27: ='Wettkampf 1'!B27 -> Runde Marcel | C27: ='Wettkampf 1'!C27 -> Spahnharenstätte | D27: 144.5 | F27: 144.5 | G27: 0 | H27: 0 | I27: 0 | J27: 0 | K27: 144.5 | L27: 1 | M27: 0 | N27: 0 | O27: 0 | P27: 0 | Q27: 0 | R27: 0 | S27: 0 | T27: 0 | U27: 0 | V27: 0 | W27: 0 | X27: 0 | Y27: 0 | Z27: 0 | AA27: 0 | AB27: 0 | AC27: 0 | AD27: 0 | AJ27: 0.0 | AK27: 0 | AL27: 0
A28: 13 | B28: ='Wettkampf 1'!B28 -> Jansen Lars | C28: ='Wettkampf 1'!C28 -> Spahnharenstätte | D28: 119.0 | F28: 119.0 | G28: 0 | H28: 0 | I28: 0 | J28: 0 | K28: 119 | L28: 1 | M28: 0 | N28: 0 | O28: 0 | P28: 0 | Q28: 0 | R28: 0 | S28: 0 | T28: 0 | U28: 0 | V28: 0 | W28: 0 | X28: 0 | Y28: 0 | Z28: 0 | AA28: 0 | AB28: 0 | AC28: 0 | AD28: 0 | AJ28: 0.0 | AK28: 0 | AL28: 0
A29: 14 | B29: ='Wettkampf 1'!B29 -> Schütze 14 | C29: ='Wettkampf 1'!C29 -> Spahnharenstätte | F29: 0.0 | G29: 0 | H29: 0 | I29: 0 | J29: 0 | K29: 0 | L29: 1 | M29: 0 | N29: 0 | O29: 0 | P29: 0 | Q29: 0 | R29: 0 | S29: 0 | T29: 0 | U29: 0 | V29: 0 | W29: 0 | X29: 0 | Y29: 0 | Z29: 0 | AA29: 0 | AB29: 0 | AC29: 0 | AD29: 0 | AJ29: 0.0 | AK29: 1 | AL29: 0
A30: 15 | B30: ='Wettkampf 1'!B30 -> Schütze 15 | C30: ='Wettkampf 1'!C30 -> Spahnharenstätte | F30: 0.0 | G30: 0 | H30: 0 | I30: 0 | J30: 0 | K30: 0 | L30: 1 | M30: 0 | N30: 0 | O30: 0 | P30: 0 | Q30: 0 | R30: 0 | S30: 0 | T30: 0 | U30: 0 | V30: 0 | W30: 0 | X30: 0 | Y30: 0 | Z30: 0 | AA30: 0 | AB30: 0 | AC30: 0 | AD30: 0 | AJ30: 0.0 | AK30: 1 | AL30: 0
A31: 16 | B31: ='Wettkampf 1'!B31 -> Suhle Annalena | C31: ='Wettkampf 1'!C31 -> Esterwegen | D31: 184.4 | F31: 184.4 | G31: 0 | H31: 0 | I31: 0 | J31: 0 | K31: 0 | L31: 0 | M31: 184.4 | N31: 1 | O31: 0 | P31: 0 | Q31: 0 | R31: 0 | S31: 0 | T31: 0 | U31: 0 | V31: 0 | W31: 0 | X31: 0 | Y31: 0 | Z31: 0 | AA31: 0 | AB31: 0 | AC31: 0 | AD31: 0 | AJ31: 0.0 | AK31: 0 | AL31: 0
A32: 17 | B32: ='Wettkampf 1'!B32 -> Gäken Lena | C32: ='Wettkampf 1'!C32 -> Esterwegen | D32: 175.5 | F32: 175.5 | G32: 0 | H32: 0 | I32: 0 | J32: 0 | K32: 0 | L32: 0 | M32: 175.5 | N32: 1 | O32: 0 | P32: 0 | Q32: 0 | R32: 0 | S32: 0 | T32: 0 | U32: 0 | V32: 0 | W32: 0 | X32: 0 | Y32: 0 | Z32: 0 | AA32: 0 | AB32: 0 | AC32: 0 | AD32: 0 | AJ32: 0.0 | AK32: 0 | AL32: 0
A33: 18 | B33: ='Wettkampf 1'!B33 -> Jansen Daniel | C33: ='Wettkampf 1'!C33 -> Esterwegen | D33: 155.1 | F33: 155.1 | G33: 0 | H33: 0 | I33: 0 | J33: 0 | K33: 0 | L33: 0 | M33: 155.1 | N33: 1 | O33: 0 | P33: 0 | Q33: 0 | R33: 0 | S33: 0 | T33: 0 | U33: 0 | V33: 0 | W33: 0 | X33: 0 | Y33: 0 | Z33: 0 | AA33: 0 | AB33: 0 | AC33: 0 | AD33: 0 | AJ33: 0.0 | AK33: 0 | AL33: 0
A34: 19 | B34: ='Wettkampf 1'!B34 -> Pieper Jonas | C34: ='Wettkampf 1'!C34 -> Esterwegen | F34: 0.0 | G34: 0 | H34: 0 | I34: 0 | J34: 0 | K34: 0 | L34: 0 | M34: 0 | N34: 1 | O34: 0 | P34: 0 | Q34: 0 | R34: 0 | S34: 0 | T34: 0 | U34: 0 | V34: 0 | W34: 0 | X34: 0 | Y34: 0 | Z34: 0 | AA34: 0 | AB34: 0 | AC34: 0 | AD34: 0 | AJ34: 0.0 | AK34: 1 | AL34: 0
A35: 20 | B35: ='Wettkampf 1'!B35 -> Schütze 20 | C35: ='Wettkampf 1'!C35 -> Esterwegen | F35: 0.0 | G35: 0 | H35: 0 | I35: 0 | J35: 0 | K35: 0 | L35: 0 | M35: 0 | N35: 1 | O35: 0 | P35: 0 | Q35: 0 | R35: 0 | S35: 0 | T35: 0 | U35: 0 | V35: 0 | W35: 0 | X35: 0 | Y35: 0 | Z35: 0 | AA35: 0 | AB35: 0 | AC35: 0 | AD35: 0 | AJ35: 0.0 | AK35: 1 | AL35: 0
A36: 21 | B36: ='Wettkampf 1'!B36 -> Hellweg Thea | C36: ='Wettkampf 1'!C36 -> Lähden | D36: 181.9 | F36: 181.9 | G36: 0 | H36: 0 | I36: 0 | J36: 0 | K36: 0 | L36: 0 | M36: 0 | N36: 0 | O36: 181.9 | P36: 1 | Q36: 0 | R36: 0 | S36: 0 | T36: 0 | U36: 0 | V36: 0 | W36: 0 | X36: 0 | Y36: 0 | Z36: 0 | AA36: 0 | AB36: 0 | AC36: 0 | AD36: 0 | AJ36: 0.0 | AK36: 0 | AL36: 0
A37: 22 | B37: ='Wettkampf 1'!B37 -> Bruns Henrik | C37: ='Wettkampf 1'!C37 -> Lähden | D37: 187.9 | F37: 187.9 | G37: 0 | H37: 0 | I37: 0 | J37: 0 | K37: 0 | L37: 0 | M37: 0 | N37: 0 | O37: 187.9 | P37: 1 | Q37: 0 | R37: 0 | S37: 0 | T37: 0 | U37: 0 | V37: 0 | W37: 0 | X37: 0 | Y37: 0 | Z37: 0 | AA37: 0 | AB37: 0 | AC37: 0 | AD37: 0 | AJ37: 0.0 | AK37: 0 | AL37: 0
A38: 23 | B38: ='Wettkampf 1'!B38 -> Buschen Johann | C38: ='Wettkampf 1'!C38 -> Lähden | D38: 194.9 | F38: 194.9 | G38: 0 | H38: 0 | I38: 0 | J38: 0 | K38: 0 | L38: 0 | M38: 0 | N38: 0 | O38: 194.9 | P38: 1 | Q38: 0 | R38: 0 | S38: 0 | T38: 0 | U38: 0 | V38: 0 | W38: 0 | X38: 0 | Y38: 0 | Z38: 0 | AA38: 0 | AB38: 0 | AC38: 0 | AD38: 0 | AJ38: 0.0 | AK38: 0 | AL38: 0
A39: 24 | B39: ='Wettkampf 1'!B39 -> Preut Jannis | C39: ='Wettkampf 1'!C39 -> Lähden | D39: 173.0 | F39: 173.0 | G39: 0 | H39: 0 | I39: 0 | J39: 0 | K39: 0 | L39: 0 | M39: 0 | N39: 0 | O39: 173 | P39: 1 | Q39: 0 | R39: 0 | S39: 0 | T39: 0 | U39: 0 | V39: 0 | W39: 0 | X39: 0 | Y39: 0 | Z39: 0 | AA39: 0 | AB39: 0 | AC39: 0 | AD39: 0 | AJ39: 0.0 | AK39: 0 | AL39: 0
A40: 25 | B40: ='Wettkampf 1'!B40 -> Fleschenberg Jana | C40: ='Wettkampf 1'!C40 -> Lähden | D40: 178.6 | E40: x | F40: 0 | G40: 0 | H40: 0 | I40: 0 | J40: 0 | K40: 0 | L40: 0 | M40: 0 | N40: 0 | O40: 0 | P40: 0 | Q40: 0 | R40: 0 | S40: 0 | T40: 0 | U40: 0 | V40: 0 | W40: 0 | X40: 0 | Y40: 0 | Z40: 0 | AA40: 0 | AB40: 0 | AC40: 0 | AD40: 0 | AJ40: 0.0 | AK40: 0 | AL40: 0
A41: 26 | B41: ='Wettkampf 1'!B41 -> von Seggern Moritz | C41: ='Wettkampf 1'!C41 -> Lähden | E41: x | F41: 0 | G41: 0 | H41: 0 | I41: 0 | J41: 0 | K41: 0 | L41: 0 | M41: 0 | N41: 0 | O41: 0 | P41: 0 | Q41: 0 | R41: 0 | S41: 0 | T41: 0 | U41: 0 | V41: 0 | W41: 0 | X41: 0 | Y41: 0 | Z41: 0 | AA41: 0 | AB41: 0 | AC41: 0 | AD41: 0 | AJ41: 0.0 | AK41: 1 | AL41: 0
A42: 27 | B42: ='Wettkampf 1'!B42 -> Kohnen Saskia | C42: ='Wettkampf 1'!C42 -> Börgermoor | D42: 135.8 | F42: 135.8 | G42: 0 | H42: 0 | I42: 0 | J42: 0 | K42: 0 | L42: 0 | M42: 0 | N42: 0 | O42: 0 | P42: 0 | Q42: 135.8 | R42: 1 | S42: 0 | T42: 0 | U42: 0 | V42: 0 | W42: 0 | X42: 0 | Y42: 0 | Z42: 0 | AA42: 0 | AB42: 0 | AC42: 0 | AD42: 0 | AJ42: 0.0 | AK42: 0 | AL42: 0
A43: 28 | B43: ='Wettkampf 1'!B43 -> Niemann Paul | C43: ='Wettkampf 1'!C43 -> Börgermoor | D43: 91.5 | F43: 91.5 | G43: 0 | H43: 0 | I43: 0 | J43: 0 | K43: 0 | L43: 0 | M43: 0 | N43: 0 | O43: 0 | P43: 0 | Q43: 91.5 | R43: 1 | S43: 0 | T43: 0 | U43: 0 | V43: 0 | W43: 0 | X43: 0 | Y43: 0 | Z43: 0 | AA43: 0 | AB43: 0 | AC43: 0 | AD43: 0 | AJ43: 0.0 | AK43: 0 | AL43: 0
A44: 29 | B44: ='Wettkampf 1'!B44 -> Schütze 29 | C44: ='Wettkampf 1'!C44 -> Börgermoor | F44: 0.0 | G44: 0 | H44: 0 | I44: 0 | J44: 0 | K44: 0 | L44: 0 | M44: 0 | N44: 0 | O44: 0 | P44: 0 | Q44: 0 | R44: 1 | S44: 0 | T44: 0 | U44: 0 | V44: 0 | W44: 0 | X44: 0 | Y44: 0 | Z44: 0 | AA44: 0 | AB44: 0 | AC44: 0 | AD44: 0 | AJ44: 0.0 | AK44: 1 | AL44: 0
A45: 30 | B45: ='Wettkampf 1'!B45 -> Schütze 30 | C45: ='Wettkampf 1'!C45 -> Börgermoor | F45: 0.0 | G45: 0 | H45: 0 | I45: 0 | J45: 0 | K45: 0 | L45: 0 | M45: 0 | N45: 0 | O45: 0 | P45: 0 | Q45: 0 | R45: 1 | S45: 0 | T45: 0 | U45: 0 | V45: 0 | W45: 0 | X45: 0 | Y45: 0 | Z45: 0 | AA45: 0 | AB45: 0 | AC45: 0 | AD45: 0 | AJ45: 0.0 | AK45: 1 | AL45: 0
A46: 31 | B46: ='Wettkampf 1'!B46 -> Stümpler Jan Luka | C46: ='Wettkampf 1'!C46 -> Lähden | F46: 0.0 | G46: 0 | H46: 0 | I46: 0 | J46: 0 | K46: 0 | L46: 0 | M46: 0 | N46: 0 | O46: 0 | P46: 1 | Q46: 0 | R46: 0 | S46: 0 | T46: 0 | U46: 0 | V46: 0 | W46: 0 | X46: 0 | Y46: 0 | Z46: 0 | AA46: 0 | AB46: 0 | AC46: 0 | AD46: 0 | AJ46: 0.0 | AK46: 1 | AL46: 0
A47: 32 | B47: ='Wettkampf 1'!B47 -> Helmer, Nils | C47: ='Wettkampf 1'!C47 -> Lorup | F47: 0.0 | G47: 0 | H47: 1 | I47: 0 | J47: 0 | K47: 0 | L47: 0 | M47: 0 | N47: 0 | O47: 0 | P47: 0 | Q47: 0 | R47: 0 | S47: 0 | T47: 0 | U47: 0 | V47: 0 | W47: 0 | X47: 0 | Y47: 0 | Z47: 0 | AA47: 0 | AB47: 0 | AC47: 0 | AD47: 0 | AJ47: 0.0 | AK47: 1 | AL47: 0
A48: 33 | B48: ='Wettkampf 1'!B48 -> Schütze 33 | C48: ='Wettkampf 1'!C48 -> Verein VII | F48: 0.0 | G48: 0 | H48: 0 | I48: 0 | J48: 0 | K48: 0 | L48: 0 | M48: 0 | N48: 0 | O48: 0 | P48: 0 | Q48: 0 | R48: 0 | S48: 0 | T48: 1 | U48: 0 | V48: 0 | W48: 0 | X48: 0 | Y48: 0 | Z48: 0 | AA48: 0 | AB48: 0 | AC48: 0 | AD48: 0 | AJ48: 0.0 | AK48: 1 | AL48: 0
A49: 34 | B49: ='Wettkampf 1'!B49 -> Schütze 34 | C49: ='Wettkampf 1'!C49 -> Verein VII | F49: 0.0 | G49: 0 | H49: 0 | I49: 0 | J49: 0 | K49: 0 | L49: 0 | M49: 0 | N49: 0 | O49: 0 | P49: 0 | Q49: 0 | R49: 0 | S49: 0 | T49: 1 | U49: 0 | V49: 0 | W49: 0 | X49: 0 | Y49: 0 | Z49: 0 | AA49: 0 | AB49: 0 | AC49: 0 | AD49: 0 | AJ49: 0.0 | AK49: 1 | AL49: 0
A50: 35 | B50: ='Wettkampf 1'!B50 -> Schütze 35 | C50: ='Wettkampf 1'!C50 -> Verein VII | F50: 0.0 | G50: 0 | H50: 0 | I50: 0 | J50: 0 | K50: 0 | L50: 0 | M50: 0 | N50: 0 | O50: 0 | P50: 0 | Q50: 0 | R50: 0 | S50: 0 | T50: 1 | U50: 0 | V50: 0 | W50: 0 | X50: 0 | Y50: 0 | Z50: 0 | AA50: 0 | AB50: 0 | AC50: 0 | AD50: 0 | AJ50: 0.0 | AK50: 1 | AL50: 0
A51: 36 | B51: ='Wettkampf 1'!B51 -> Schütze 36 | C51: ='Wettkampf 1'!C51 -> Verein VII | F51: 0.0 | G51: 0 | H51: 0 | I51: 0 | J51: 0 | K51: 0 | L51: 0 | M51: 0 | N51: 0 | O51: 0 | P51: 0 | Q51: 0 | R51: 0 | S51: 0 | T51: 1 | U51: 0 | V51: 0 | W51: 0 | X51: 0 | Y51: 0 | Z51: 0 | AA51: 0 | AB51: 0 | AC51: 0 | AD51: 0 | AJ51: 0.0 | AK51: 1 | AL51: 0
A52: 37 | B52: ='Wettkampf 1'!B52 -> Schütze 37 | C52: ='Wettkampf 1'!C52 -> Verein VII | F52: 0.0 | G52: 0 | H52: 0 | I52: 0 | J52: 0 | K52: 0 | L52: 0 | M52: 0 | N52: 0 | O52: 0 | P52: 0 | Q52: 0 | R52: 0 | S52: 0 | T52: 1 | U52: 0 | V52: 0 | W52: 0 | X52: 0 | Y52: 0 | Z52: 0 | AA52: 0 | AB52: 0 | AC52: 0 | AD52: 0 | AJ52: 0.0
A53: 38 | B53: ='Wettkampf 1'!B53 -> Schütze 38 | C53: ='Wettkampf 1'!C53 -> Verein VIII | F53: 0.0 | G53: 0 | H53: 0 | I53: 0 | J53: 0 | K53: 0 | L53: 0 | M53: 0 | N53: 0 | O53: 0 | P53: 0 | Q53: 0 | R53: 0 | S53: 0 | T53: 0 | U53: 0 | V53: 1 | W53: 0 | X53: 0 | Y53: 0 | Z53: 0 | AA53: 0 | AB53: 0 | AC53: 0 | AD53: 0 | AJ53: 0.0
A54: 39 | B54: ='Wettkampf 1'!B54 -> Schütze 39 | C54: ='Wettkampf 1'!C54 -> Verein VIII | F54: 0.0 | G54: 0 | H54: 0 | I54: 0 | J54: 0 | K54: 0 | L54: 0 | M54: 0 | N54: 0 | O54: 0 | P54: 0 | Q54: 0 | R54: 0 | S54: =IF($C54=$B$8,$F54,0) -> 0 | T54: =(IF(AND($E54="",$C54=$B$8),1,0)) -> 0 | U54: =IF($C54=$B$9,$F54,0) -> 0 | V54: =(IF(AND($E54="",$C54=$B$9),1,0)) -> 1 | W54: =IF($C54=$B$10,$F54,0) -> 0 | X54: =(IF(AND($E54="",$C54=$B$10),1,0)) -> 0 | Y54: =IF($C54=$B$11,$F54,0) -> 0 | Z54: =(IF(AND($E54="",$C54=$B$11),1,0)) -> 0 | AA54: =IF($C54=$B$12,$F54,0) -> 0 | AB54: =(IF(AND($E54="",$C54=$B$12),1,0)) -> 0 | AC54: =IF($C54=$B$13,$F54,0) -> 0 | AD54: =(IF(AND($E54="",$C54=$B$13),1,0)) -> 0 | AJ54: 0.0
A55: 40 | B55: ='Wettkampf 1'!B55 -> Schütze 40 | C55: ='Wettkampf 1'!C55 -> Verein VIII | F55: 0.0 | G55: 0 | H55: 0 | I55: 0 | J55: 0 | K55: 0 | L55: 0 | M55: 0 | N55: 0 | O55: 0 | P55: 0 | Q55: 0 | R55: 0 | S55: 0 | T55: 0 | U55: 0 | V55: 1 | W55: 0 | X55: 0 | Y55: 0 | Z55: 0 | AA55: 0 | AB55: 0 | AC55: 0 | AD55: 0 | AJ55: 0.0
A56: 41 | B56: ='Wettkampf 1'!B56 -> Schütze 41 | C56: ='Wettkampf 1'!C56 -> Verein IX | F56: 0.0 | G56: 0 | H56: 0 | I56: 0 | J56: 0 | K56: 0 | L56: 0 | M56: 0 | N56: 0 | O56: 0 | P56: 0 | Q56: 0 | R56: 0 | S56: 0 | T56: 0 | U56: 0 | V56: 0 | W56: 0 | X56: 1 | Y56: 0 | Z56: 0 | AA56: 0 | AB56: 0 | AC56: 0 | AD56: 0 | AJ56: 0.0
A57: 42 | B57: ='Wettkampf 1'!B57 -> Schütze 42 | C57: ='Wettkampf 1'!C57 -> Verein IX | F57: 0.0 | G57: 0 | H57: 0 | I57: 0 | J57: 0 | K57: 0 | L57: 0 | M57: 0 | N57: 0 | O57: 0 | P57: 0 | Q57: 0 | R57: 0 | S57: 0 | T57: 0 | U57: 0 | V57: 0 | W57: 0 | X57: 1 | Y57: 0 | Z57: 0 | AA57: 0 | AB57: 0 | AC57: 0 | AD57: 0 | AJ57: 0.0
A58: 43 | B58: ='Wettkampf 1'!B58 -> Schütze 43 | C58: ='Wettkampf 1'!C58 -> Verein IX | F58: 0.0 | G58: 0 | H58: 0 | I58: 0 | J58: 0 | K58: 0 | L58: 0 | M58: 0 | N58: 0 | O58: 0 | P58: 0 | Q58: 0 | R58: 0 | S58: 0 | T58: 0 | U58: 0 | V58: 0 | W58: 0 | X58: 1 | Y58: 0 | Z58: 0 | AA58: 0 | AB58: 0 | AC58: 0 | AD58: 0 | AJ58: 0.0
A59: 44 | B59: ='Wettkampf 1'!B59 -> Schütze 44 | C59: ='Wettkampf 1'!C59 -> Verein IX | F59: 0.0 | G59: 0 | H59: 0 | I59: 0 | J59: 0 | K59: 0 | L59: 0 | M59: 0 | N59: 0 | O59: 0 | P59: 0 | Q59: 0 | R59: 0 | S59: 0 | T59: 0 | U59: 0 | V59: 0 | W59: 0 | X59: 1 | Y59: 0 | Z59: 0 | AA59: 0 | AB59: 0 | AC59: 0 | AD59: 0 | AJ59: 0.0
A60: 45 | B60: ='Wettkampf 1'!B60 -> Schütze 45 | C60: ='Wettkampf 1'!C60 -> Verein IX | F60: 0.0 | G60: 0 | H60: 0 | I60: 0 | J60: 0 | K60: 0 | L60: 0 | M60: 0 | N60: 0 | O60: 0 | P60: 0 | Q60: 0 | R60: 0 | S60: 0 | T60: 0 | U60: 0 | V60: 0 | W60: 0 | X60: 1 | Y60: 0 | Z60: 0 | AA60: 0 | AB60: 0 | AC60: 0 | AD60: 0 | AJ60: 0.0
A61: 46 | B61: ='Wettkampf 1'!B61 -> Schütze 46 | C61: ='Wettkampf 1'!C61 -> Verein X | F61: 0.0 | G61: 0 | H61: 0 | I61: 0 | J61: 0 | K61: 0 | L61: 0 | M61: 0 | N61: 0 | O61: 0 | P61: 0 | Q61: 0 | R61: 0 | S61: 0 | T61: 0 | U61: 0 | V61: 0 | W61: 0 | X61: 0 | Y61: 0 | Z61: 1 | AA61: 0 | AB61: 0 | AC61: 0 | AD61: 0 | AJ61: 0.0
A62: 47 | B62: ='Wettkampf 1'!B62 -> Schütze 47 | C62: ='Wettkampf 1'!C62 -> Verein X | F62: 0.0 | G62: 0 | H62: 0 | I62: 0 | J62: 0 | K62: 0 | L62: 0 | M62: 0 | N62: 0 | O62: 0 | P62: 0 | Q62: 0 | R62: 0 | S62: 0 | T62: 0 | U62: 0 | V62: 0 | W62: 0 | X62: 0 | Y62: 0 | Z62: 1 | AA62: 0 | AB62: 0 | AC62: 0 | AD62: 0 | AJ62: 0.0
A63: 48 | B63: ='Wettkampf 1'!B63 -> Schütze 48 | C63: ='Wettkampf 1'!C63 -> Verein X | F63: 0.0 | G63: 0 | H63: 0 | I63: 0 | J63: 0 | K63: 0 | L63: 0 | M63: 0 | N63: 0 | O63: 0 | P63: 0 | Q63: 0 | R63: 0 | S63: 0 | T63: 0 | U63: 0 | V63: 0 | W63: 0 | X63: 0 | Y63: 0 | Z63: 1 | AA63: 0 | AB63: 0 | AC63: 0 | AD63: 0 | AJ63: 0.0
A64: 49 | B64: ='Wettkampf 1'!B64 -> Schütze 49 | C64: ='Wettkampf 1'!C64 -> Verein X | F64: 0.0 | G64: 0 | H64: 0 | I64: 0 | J64: 0 | K64: 0 | L64: 0 | M64: 0 | N64: 0 | O64: 0 | P64: 0 | Q64: 0 | R64: 0 | S64: 0 | T64: 0 | U64: 0 | V64: 0 | W64: 0 | X64: 0 | Y64: 0 | Z64: 1 | AA64: 0 | AB64: 0 | AC64: 0 | AD64: 0 | AJ64: 0.0
A65: 50 | B65: ='Wettkampf 1'!B65 -> Schütze 50 | C65: ='Wettkampf 1'!C65 -> Verein X | F65: 0.0 | G65: 0 | H65: 0 | I65: 0 | J65: 0 | K65: 0 | L65: 0 | M65: 0 | N65: 0 | O65: 0 | P65: 0 | Q65: 0 | R65: 0 | S65: 0 | T65: 0 | U65: 0 | V65: 0 | W65: 0 | X65: 0 | Y65: 0 | Z65: 1 | AA65: 0 | AB65: 0 | AC65: 0 | AD65: 0 | AJ65: 0.0
A66: 51 | B66: ='Wettkampf 1'!B66 -> Schütze 51 | C66: ='Wettkampf 1'!C66 -> Verein XI | F66: 0.0 | G66: 0 | H66: 0 | I66: 0 | J66: 0 | K66: 0 | L66: 0 | M66: 0 | N66: 0 | O66: 0 | P66: 0 | Q66: 0 | R66: 0 | S66: 0 | T66: 0 | U66: 0 | V66: 0 | W66: 0 | X66: 0 | Y66: 0 | Z66: 0 | AA66: 0 | AB66: 1 | AC66: 0 | AD66: 0 | AJ66: 0.0
A67: 52 | B67: ='Wettkampf 1'!B67 -> Schütze 52 | C67: ='Wettkampf 1'!C67 -> Verein XI | F67: 0.0 | G67: 0 | H67: 0 | I67: 0 | J67: 0 | K67: 0 | L67: 0 | M67: 0 | N67: 0 | O67: 0 | P67: 0 | Q67: 0 | R67: 0 | S67: 0 | T67: 0 | U67: 0 | V67: 0 | W67: 0 | X67: 0 | Y67: 0 | Z67: 0 | AA67: 0 | AB67: 1 | AC67: 0 | AD67: 0 | AJ67: 0.0
A68: 53 | B68: ='Wettkampf 1'!B68 -> Schütze 53 | C68: ='Wettkampf 1'!C68 -> Verein XI | F68: 0.0 | G68: 0 | H68: 0 | I68: 0 | J68: 0 | K68: 0 | L68: 0 | M68: 0 | N68: 0 | O68: 0 | P68: 0 | Q68: 0 | R68: 0 | S68: 0 | T68: 0 | U68: 0 | V68: 0 | W68: 0 | X68: 0 | Y68: 0 | Z68: 0 | AA68: 0 | AB68: 1 | AC68: 0 | AD68: 0 | AJ68: 0.0
A69: 54 | B69: ='Wettkampf 1'!B69 -> Schütze 54 | C69: ='Wettkampf 1'!C69 -> Verein XI | F69: 0.0 | G69: 0 | H69: 0 | I69: 0 | J69: 0 | K69: 0 | L69: 0 | M69: 0 | N69: 0 | O69: 0 | P69: 0 | Q69: 0 | R69: 0 | S69: 0 | T69: 0 | U69: 0 | V69: 0 | W69: 0 | X69: 0 | Y69: 0 | Z69: 0 | AA69: 0 | AB69: 1 | AC69: 0 | AD69: 0 | AJ69: 0.0
A70: 55 | B70: ='Wettkampf 1'!B70 -> Schütze 55 | C70: ='Wettkampf 1'!C70 -> Verein XI | F70: 0.0 | G70: 0 | H70: 0 | I70: 0 | J70: 0 | K70: 0 | L70: 0 | M70: 0 | N70: 0 | O70: 0 | P70: 0 | Q70: 0 | R70: 0 | S70: 0 | T70: 0 | U70: 0 | V70: 0 | W70: 0 | X70: 0 | Y70: 0 | Z70: 0 | AA70: 0 | AB70: 1 | AC70: 0 | AD70: 0 | AJ70: 0.0
A71: 56 | B71: ='Wettkampf 1'!B71 -> Schütze 56 | C71: ='Wettkampf 1'!C71 -> Verein XII | F71: 0.0 | G71: 0 | H71: 0 | I71: 0 | J71: 0 | K71: 0 | L71: 0 | M71: 0 | N71: 0 | O71: 0 | P71: 0 | Q71: 0 | R71: 0 | S71: 0 | T71: 0 | U71: 0 | V71: 0 | W71: 0 | X71: 0 | Y71: 0 | Z71: 0 | AA71: 0 | AB71: 0 | AC71: 0 | AD71: 1 | AJ71: 0.0
A72: 57 | B72: ='Wettkampf 1'!B72 -> Schütze 57 | C72: ='Wettkampf 1'!C72 -> Verein XII | F72: 0.0 | G72: 0 | H72: 0 | I72: 0 | J72: 0 | K72: 0 | L72: 0 | M72: 0 | N72: 0 | O72: 0 | P72: 0 | Q72: 0 | R72: 0 | S72: 0 | T72: 0 | U72: 0 | V72: 0 | W72: 0 | X72: 0 | Y72: 0 | Z72: 0 | AA72: 0 | AB72: 0 | AC72: 0 | AD72: 1 | AJ72: 0.0
A73: 58 | B73: ='Wettkampf 1'!B73 -> Schütze 58 | C73: ='Wettkampf 1'!C73 -> Verein XII | F73: 0.0 | G73: 0 | H73: 0 | I73: 0 | J73: 0 | K73: 0 | L73: 0 | M73: 0 | N73: 0 | O73: 0 | P73: 0 | Q73: 0 | R73: 0 | S73: 0 | T73: 0 | U73: 0 | V73: 0 | W73: 0 | X73: 0 | Y73: 0 | Z73: 0 | AA73: 0 | AB73: 0 | AC73: 0 | AD73: 1 | AJ73: 0.0
A74: 59 | B74: ='Wettkampf 1'!B74 -> Schütze 59 | C74: ='Wettkampf 1'!C74 -> Verein XII | F74: 0.0 | G74: 0 | H74: 0 | I74: 0 | J74: 0 | K74: 0 | L74: 0 | M74: 0 | N74: 0 | O74: 0 | P74: 0 | Q74: 0 | R74: 0 | S74: 0 | T74: 0 | U74: 0 | V74: 0 | W74: 0 | X74: 0 | Y74: 0 | Z74: 0 | AA74: 0 | AB74: 0 | AC74: 0 | AD74: 1 | AJ74: 0.0
A75: 60 | B75: ='Wettkampf 1'!B75 -> Schütze 60 | C75: ='Wettkampf 1'!C75 -> Verein XII | F75: 0.0 | G75: 0 | H75: 0 | I75: 0 | J75: 0 | K75: 0 | L75: 0 | M75: 0 | N75: 0 | O75: 0 | P75: 0 | Q75: 0 | R75: 0 | S75: 0 | T75: 0 | U75: 0 | V75: 0 | W75: 0 | X75: 0 | Y75: 0 | Z75: 0 | AA75: 0 | AB75: 0 | AC75: 0 | AD75: 1 | AJ75: 0.0
G76: =LARGE(G16:G75,1)+LARGE(G16:G75,2)+LARGE(G16:G75,3) -> 436.5 | H76: =SUM(H16:H75) -> 5 | I76: =LARGE(I16:I75,1)+LARGE(I16:I75,2)+LARGE(I16:I75,3) -> 0 | J76: =SUM(J16:J75) -> 4 | K76: =LARGE(K16:K75,1)+LARGE(K16:K75,2)+LARGE(K16:K75,3) -> 263.5 | L76: =SUM(L16:L75) -> 5 | M76: =LARGE(M16:M75,1)+LARGE(M16:M75,2)+LARGE(M16:M75,3) -> 515 | N76: =SUM(N16:N75) -> 5 | O76: =LARGE(O16:O75,1)+LARGE(O16:O75,2)+LARGE(O16:O75,3) -> 564.7 | P76: =SUM(P16:P75) -> 5 | Q76: =LARGE(Q16:Q75,1)+LARGE(Q16:Q75,2)+LARGE(Q16:Q75,3) -> 227.3 | R76: =SUM(R16:R75) -> 4 | S76: =LARGE(S16:S75,1)+LARGE(S16:S75,2)+LARGE(S16:S75,3) -> 0 | T76: =SUM(T16:T75) -> 5 | U76: =LARGE(U16:U75,1)+LARGE(U16:U75,2)+LARGE(U16:U75,3) -> 0 | V76: =SUM(V16:V75) -> 3 | W76: =LARGE(W16:W75,1)+LARGE(W16:W75,2)+LARGE(W16:W75,3) -> 0 | X76: =SUM(X16:X75) -> 5 | Y76: =LARGE(Y16:Y75,1)+LARGE(Y16:Y75,2)+LARGE(Y16:Y75,3) -> 0 | Z76: =SUM(Z16:Z75) -> 5 | AA76: =LARGE(AA16:AA75,1)+LARGE(AA16:AA75,2)+LARGE(AA16:AA75,3) -> 0 | AB76: =SUM(AB16:AB75) -> 5 | AC76: =LARGE(AC16:AC75,1)+LARGE(AC16:AC75,2)+LARGE(AC16:AC75,3) -> 0 | AD76: =SUM(AD16:AD75) -> 5
C77: per Email an: sk-huemmling@gmx.de

Sheet 4
B1: Verein / Gruppe | D1: Ergebnisse | AH1: Austragungsort: | AI1: =Übersicht!G4 -> Spahnharrenstätte
A2: 1 | B2: ='Wettkampf 1'!B2 -> Lorup | D2: =G76 -> 443.2 | E2: =IF(H76>4,"Es sind zu viele Schützen in Wertung!"," ") -> Es sind zu viele Schützen in Wertung! | AH2: Wettkampftag: | AI2: =Übersicht!G3 -> 02.12.
A3: 2 | B3: ='Wettkampf 1'!B3 -> Sögel | D3: =I76 -> 0.0 | E3: =IF(J76>4,"Es sind zu viele Schützen in Wertung!"," ") -> 
A4: 3 | B4: ='Wettkampf 1'!B4 -> Spahnharenstätte | D4: =K76 -> 344.4 | E4: =IF(L76>4,"Es sind zu viele Schützen in Wertung!"," ") -> Es sind zu viele Schützen in Wertung! | AJ4: Ansprechpartner für Rückfragen:
A5: 4 | B5: ='Wettkampf 1'!B5 -> Esterwegen | D5: =M76 -> 492.8 | E5: =IF(N76>4,"Es sind zu viele Schützen in Wertung!"," ") -> Es sind zu viele Schützen in Wertung! | AH5: Name:
A6: 5 | B6: ='Wettkampf 1'!B6 -> Lähden | D6: =O76 -> 539.2 | E6: =IF(P76>4,"Es sind zu viele Schützen in Wertung!"," ") -> Es sind zu viele Schützen in Wertung! | AH6: Tel:
A7: 6 | B7: ='Wettkampf 1'!B7 -> Börgermoor | D7: =Q76 -> 134.2 | E7: =IF(R76>4,"Es sind zu viele Schützen in Wertung!"," ") ->  | AH7: Standaufsicht: | AI7: eintragen
A8: 7 | B8: ='Wettkampf 1'!B8 -> Verein VII | D8: =S76 -> 0.0 | E8: =IF(T76>4,"Es sind zu viele Schützen in Wertung!"," ") -> Es sind zu viele Schützen in Wertung!
A9: 8 | B9: ='Wettkampf 1'!B9 -> Verein VIII | D9: =U76 -> 0.0 | E9: =IF(V76>4,"Es sind zu viele Schützen in Wertung!"," ") -> 
A10: 9 | B10: ='Wettkampf 1'!B10 -> Verein IX | D10: =W76 -> 0.0 | E10: =IF(X76>4,"Es sind zu viele Schützen in Wertung!"," ") -> Es sind zu viele Schützen in Wertung!
A11: 10 | B11: ='Wettkampf 1'!B11 -> Verein X | D11: =Y76 -> 0.0 | E11: =IF(Z76>4,"Es sind zu viele Schützen in Wertung!"," ") -> Es sind zu viele Schützen in Wertung!
A12: 11 | B12: ='Wettkampf 1'!B12 -> Verein XI | D12: =AA76 -> 0.0 | E12: =IF(AB76>4,"Es sind zu viele Schützen in Wertung!"," ") -> Es sind zu viele Schützen in Wertung!
A13: 12 | B13: ='Wettkampf 1'!B13 -> Verein XII | D13: =AC76 -> 0.0 | E13: =IF(AD76>4,"Es sind zu viele Schützen in Wertung!"," ") -> Es sind zu viele Schützen in Wertung!
B15: Einzelergebnisse: | C15: Verein / Gruppe | D15: Ergebnisse (mindestens 0 eintragen) | E15: AW? Dann x eintippen | G15: Verein 1 | I15: Verein 2 | K15: Verein 3 | M15: Verein 4 | O15: Verein 5 | Q15: Verein 6 | S15: Verein 7 | U15: Verein 8 | W15: Verein 9 | Y15: Verein 10 | AA15: Verein 11 | AC15: Verein 12 | AG15: Proberechnung bei Streifen:
A16: 1 | B16: ='Wettkampf 1'!B16 -> Wotte Lia | C16: ='Wettkampf 1'!C16 -> Lorup | D16: 170.3 | F16: =IF(E16="x","0",D16) -> 170.3 | G16: =IF(C16=$B$2,F16,0) -> 170.3 | H16: =(IF(AND($E16="",$C16=$B$2),1,0)) -> 1 | I16: =IF($C16=$B$3,$F16,0) -> 0 | J16: =(IF(AND($E16="",$C16=$B$3),1,0)) -> 0 | K16: =IF($C16=$B$4,F16,0) -> 0 | L16: =(IF(AND($E16="",$C16=$B$4),1,0)) -> 0 | M16: =IF($C16=$B$5,F16,0) -> 0 | N16: =(IF(AND($E16="",$C16=$B$5),1,0)) -> 0 | O16: =IF($C16=$B$6,F16,0) -> 0 | P16: =(IF(AND($E16="",$C16=$B$6),1,0)) -> 0 | Q16: =IF($C16=$B$7,F16,0) -> 0 | R16: =(IF(AND($E16="",$C16=$B$7),1,0)) -> 0 | S16: =IF($C16=$B$8,$F16,0) -> 0 | T16: =(IF(AND($E16="",$C16=$B$8),1,0)) -> 0 | U16: =IF($C16=$B$9,$F16,0) -> 0 | V16: =(IF(AND($E16="",$C16=$B$9),1,0)) -> 0 | W16: =IF($C16=$B$10,$F16,0) -> 0 | X16: =(IF(AND($E16="",$C16=$B$10),1,0)) -> 0 | Y16: =IF($C16=$B$11,$F16,0) -> 0 | Z16: =(IF(AND($E16="",$C16=$B$11),1,0)) -> 0 | AA16: =IF($C16=$B$12,$F16,0) -> 0 | AB16: =(IF(AND($E16="",$C16=$B$12),1,0)) -> 0 | AC16: =IF($C16=$B$13,$F16,0) -> 0 | AD16: =(IF(AND($E16="",$C16=$B$13),1,0)) -> 0 | AJ16: =SUM(AG16:AI16) -> 0.0 | AK16: =IF(AJ16=D16,1,0) -> 0 | AL16: =IF(AJ16=0,0,1) -> 0 | AM16: =IF(AK16+AL16=2,"Korrekt","") -> 
A17: 2 | B17: ='Wettkampf 1'!B17 -> Wotte Hannes | C17: ='Wettkampf 1'!C17 -> Lorup | D17: 144.1 | F17: =IF(E17="x","0",D17) -> 144.1 | G17: =IF(C17=$B$2,F17,0) -> 144.1 | H17: =(IF(AND($E17="",$C17=$B$2),1,0)) -> 1 | I17: =IF($C17=$B$3,F17,0) -> 0 | J17: =(IF(AND($E17="",$C17=$B$3),1,0)) -> 0 | K17: =IF($C17=$B$4,F17,0) -> 0 | L17: =(IF(AND($E17="",$C17=$B$4),1,0)) -> 0 | M17: =IF($C17=$B$5,F17,0) -> 0 | N17: =(IF(AND($E17="",$C17=$B$5),1,0)) -> 0 | O17: =IF($C17=$B$6,F17,0) -> 0 | P17: =(IF(AND($E17="",$C17=$B$6),1,0)) -> 0 | Q17: =IF($C17=$B$7,F17,0) -> 0 | R17: =(IF(AND($E17="",$C17=$B$7),1,0)) -> 0 | S17: =IF($C17=$B$8,$F17,0) -> 0 | T17: =(IF(AND($E17="",$C17=$B$8),1,0)) -> 0 | U17: =IF($C17=$B$9,$F17,0) -> 0 | V17: =(IF(AND($E17="",$C17=$B$9),1,0)) -> 0 | W17: =IF($C17=$B$10,$F17,0) -> 0 | X17: =(IF(AND($E17="",$C17=$B$10),1,0)) -> 0 | Y17: =IF($C17=$B$11,$F17,0) -> 0 | Z17: =(IF(AND($E17="",$C17=$B$11),1,0)) -> 0 | AA17: =IF($C17=$B$12,$F17,0) -> 0 | AB17: =(IF(AND($E17="",$C17=$B$12),1,0)) -> 0 | AC17: =IF($C17=$B$13,$F17,0) -> 0 | AD17: =(IF(AND($E17="",$C17=$B$13),1,0)) -> 0 | AJ17: =SUM(AG17:AI17) -> 0.0 | AK17: =IF(AJ17=D17,1,0) -> 0 | AL17: =IF(AJ17=0,0,1) -> 0 | AM17: =IF(AK17+AL17=2,"Korrekt","") -> 
A18: 3 | B18: ='Wettkampf 1'!B18 -> Gretenabeln Elias | C18: ='Wettkampf 1'!C18 -> Lorup | D18: 128.8 | F18: 128.8 | G18: 128.8 | H18: 1 | I18: 0 | J18: 0 | K18: 0 | L18: 0 | M18: 0 | N18: 0 | O18: 0 | P18: 0 | Q18: 0 | R18: 0 | S18: 0 | T18: 0 | U18: 0 | V18: 0 | W18: 0 | X18: 0 | Y18: 0 | Z18: 0 | AA18: 0 | AB18: 0 | AC18: 0 | AD18: 0 | AJ18: 0.0 | AK18: 0 | AL18: 0
A19: 4 | B19: ='Wettkampf 1'!B19 -> Helmer Maike | C19: ='Wettkampf 1'!C19 -> Lorup | D19: 118.8 | F19: 118.8 | G19: 118.8 | H19: 1 | I19: 0 | J19: 0 | K19: 0 | L19: 0 | M19: 0 | N19: 0 | O19: 0 | P19: 0 | Q19: 0 | R19: 0 | S19: 0 | T19: 0 | U19: 0 | V19: 0 | W19: 0 | X19: 0 | Y19: 0 | Z19: 0 | AA19: 0 | AB19: 0 | AC19: 0 | AD19: 0 | AJ19: 0.0 | AK19: 0 | AL19: 0
A20: 5 | B20: ='Wettkampf 1'!B20 -> Többen Jannes | C20: ='Wettkampf 1'!C20 -> Lorup | D20: 105.4 | E20: x | F20: 0 | G20: 0 | H20: 0 | I20: 0 | J20: 0 | K20: 0 | L20: 0 | M20: 0 | N20: 0 | O20: 0 | P20: 0 | Q20: 0 | R20: 0 | S20: 0 | T20: 0 | U20: 0 | V20: 0 | W20: 0 | X20: 0 | Y20: 0 | Z20: 0 | AA20: 0 | AB20: 0 | AC20: 0 | AD20: 0 | AJ20: 0.0 | AK20: 0 | AL20: 0
A21: 6 | B21: ='Wettkampf 1'!B21 -> Lüken Arne | C21: ='Wettkampf 1'!C21 -> Lorup | F21: 0.0 | G21: 0 | H21: 1 | I21: 0 | J21: 0 | K21: 0 | L21: 0 | M21: 0 | N21: 0 | O21: 0 | P21: 0 | Q21: 0 | R21: 0 | S21: 0 | T21: 0 | U21: 0 | V21: 0 | W21: 0 | X21: 0 | Y21: 0 | Z21: 0 | AA21: 0 | AB21: 0 | AC21: 0 | AD21: 0 | AJ21: 0.0 | AK21: 1 | AL21: 0
A22: 7 | B22: ='Wettkampf 1'!B22 -> Schütze 7 | C22: ='Wettkampf 1'!C22 -> Sögel | F22: 0.0 | G22: 0 | H22: 0 | I22: 0 | J22: 1 | K22: 0 | L22: 0 | M22: 0 | N22: 0 | O22: 0 | P22: 0 | Q22: 0 | R22: 0 | S22: 0 | T22: 0 | U22: 0 | V22: 0 | W22: 0 | X22: 0 | Y22: 0 | Z22: 0 | AA22: 0 | AB22: 0 | AC22: 0 | AD22: 0 | AJ22: 0.0 | AK22: 1 | AL22: 0
A23: 8 | B23: ='Wettkampf 1'!B23 -> Schütze 8 | C23: ='Wettkampf 1'!C23 -> Sögel | F23: 0.0 | G23: 0 | H23: 0 | I23: 0 | J23: 1 | K23: 0 | L23: 0 | M23: 0 | N23: 0 | O23: 0 | P23: 0 | Q23: 0 | R23: 0 | S23: 0 | T23: 0 | U23: 0 | V23: 0 | W23: 0 | X23: 0 | Y23: 0 | Z23: 0 | AA23: 0 | AB23: 0 | AC23: 0 | AD23: 0 | AJ23: 0.0 | AK23: 1 | AL23: 0
A24: 9 | B24: ='Wettkampf 1'!B24 -> Schütze 9 | C24: ='Wettkampf 1'!C24 -> Sögel | F24: 0.0 | G24: 0 | H24: 0 | I24: 0 | J24: 1 | K24: 0 | L24: 0 | M24: 0 | N24: 0 | O24: 0 | P24: 0 | Q24: 0 | R24: 0 | S24: 0 | T24: 0 | U24: 0 | V24: 0 | W24: 0 | X24: 0 | Y24: 0 | Z24: 0 | AA24: 0 | AB24: 0 | AC24: 0 | AD24: 0 | AJ24: 0.0 | AK24: 1 | AL24: 0
A25: 10 | B25: ='Wettkampf 1'!B25 -> Schütze 10 | C25: ='Wettkampf 1'!C25 -> Sögel | F25: 0.0 | G25: 0 | H25: 0 | I25: 0 | J25: 1 | K25: 0 | L25: 0 | M25: 0 | N25: 0 | O25: 0 | P25: 0 | Q25: 0 | R25: 0 | S25: 0 | T25: 0 | U25: 0 | V25: 0 | W25: 0 | X25: 0 | Y25: 0 | Z25: 0 | AA25: 0 | AB25: 0 | AC25: 0 | AD25: 0 | AJ25: 0.0 | AK25: 1 | AL25: 0
A26: 11 | B26: ='Wettkampf 1'!B26 -> Engbers Hannes | C26: ='Wettkampf 1'!C26 -> Spahnharenstätte | D26: 78.5 | F26: 78.5 | G26: 0 | H26: 0 | I26: 0 | J26: 0 | K26: 78.5 | L26: 1 | M26: 0 | N26: 0 | O26: 0 | P26: 0 | Q26: 0 | R26: 0 | S26: 0 | T26: 0 | U26: 0 | V26: 0 | W26: 0 | X26: 0 | Y26: 0 | Z26: 0 | AA26: 0 | AB26: 0 | AC26: 0 | AD26: 0 | AJ26: 0.0 | AK26: 0 | AL26: 0
A27: 12 | B27: ='Wettkampf 1'!B27 -> Runde Marcel | C27: ='Wettkampf 1'!C27 -> Spahnharenstätte | D27: 140.6 | F27: 140.6 | G27: 0 | H27: 0 | I27: 0 | J27: 0 | K27: 140.6 | L27: 1 | M27: 0 | N27: 0 | O27: 0 | P27: 0 | Q27: 0 | R27: 0 | S27: 0 | T27: 0 | U27: 0 | V27: 0 | W27: 0 | X27: 0 | Y27: 0 | Z27: 0 | AA27: 0 | AB27: 0 | AC27: 0 | AD27: 0 | AJ27: 0.0 | AK27: 0 | AL27: 0
A28: 13 | B28: ='Wettkampf 1'!B28 -> Jansen Lars | C28: ='Wettkampf 1'!C28 -> Spahnharenstätte | D28: 125.3 | F28: 125.3 | G28: 0 | H28: 0 | I28: 0 | J28: 0 | K28: 125.3 | L28: 1 | M28: 0 | N28: 0 | O28: 0 | P28: 0 | Q28: 0 | R28: 0 | S28: 0 | T28: 0 | U28: 0 | V28: 0 | W28: 0 | X28: 0 | Y28: 0 | Z28: 0 | AA28: 0 | AB28: 0 | AC28: 0 | AD28: 0 | AJ28: 0.0 | AK28: 0 | AL28: 0
A29: 14 | B29: ='Wettkampf 1'!B29 -> Schütze 14 | C29: ='Wettkampf 1'!C29 -> Spahnharenstätte | F29: 0.0 | G29: 0 | H29: 0 | I29: 0 | J29: 0 | K29: 0 | L29: 1 | M29: 0 | N29: 0 | O29: 0 | P29: 0 | Q29: 0 | R29: 0 | S29: 0 | T29: 0 | U29: 0 | V29: 0 | W29: 0 | X29: 0 | Y29: 0 | Z29: 0 | AA29: 0 | AB29: 0 | AC29: 0 | AD29: 0 | AJ29: 0.0 | AK29: 1 | AL29: 0
A30: 15 | B30: ='Wettkampf 1'!B30 -> Schütze 15 | C30: ='Wettkampf 1'!C30 -> Spahnharenstätte | F30: 0.0 | G30: 0 | H30: 0 | I30: 0 | J30: 0 | K30: 0 | L30: 1 | M30: 0 | N30: 0 | O30: 0 | P30: 0 | Q30: 0 | R30: 0 | S30: 0 | T30: 0 | U30: 0 | V30: 0 | W30: 0 | X30: 0 | Y30: 0 | Z30: 0 | AA30: 0 | AB30: 0 | AC30: 0 | AD30: 0 | AJ30: 0.0 | AK30: 1 | AL30: 0
A31: 16 | B31: ='Wettkampf 1'!B31 -> Suhle Annalena | C31: ='Wettkampf 1'!C31 -> Esterwegen | D31: 179.3 | F31: 179.3 | G31: 0 | H31: 0 | I31: 0 | J31: 0 | K31: 0 | L31: 0 | M31: 179.3 | N31: 1 | O31: 0 | P31: 0 | Q31: 0 | R31: 0 | S31: 0 | T31: 0 | U31: 0 | V31: 0 | W31: 0 | X31: 0 | Y31: 0 | Z31: 0 | AA31: 0 | AB31: 0 | AC31: 0 | AD31: 0 | AJ31: 0.0 | AK31: 0 | AL31: 0
A32: 17 | B32: ='Wettkampf 1'!B32 -> Gäken Lena | C32: ='Wettkampf 1'!C32 -> Esterwegen | D32: 179.5 | F32: 179.5 | G32: 0 | H32: 0 | I32: 0 | J32: 0 | K32: 0 | L32: 0 | M32: 179.5 | N32: 1 | O32: 0 | P32: 0 | Q32: 0 | R32: 0 | S32: 0 | T32: 0 | U32: 0 | V32: 0 | W32: 0 | X32: 0 | Y32: 0 | Z32: 0 | AA32: 0 | AB32: 0 | AC32: 0 | AD32: 0 | AJ32: 0.0 | AK32: 0 | AL32: 0
A33: 18 | B33: ='Wettkampf 1'!B33 -> Jansen Daniel | C33: ='Wettkampf 1'!C33 -> Esterwegen | D33: 134.0 | F33: 134.0 | G33: 0 | H33: 0 | I33: 0 | J33: 0 | K33: 0 | L33: 0 | M33: 134 | N33: 1 | O33: 0 | P33: 0 | Q33: 0 | R33: 0 | S33: 0 | T33: 0 | U33: 0 | V33: 0 | W33: 0 | X33: 0 | Y33: 0 | Z33: 0 | AA33: 0 | AB33: 0 | AC33: 0 | AD33: 0 | AJ33: 0.0 | AK33: 0 | AL33: 0
A34: 19 | B34: ='Wettkampf 1'!B34 -> Pieper Jonas | C34: ='Wettkampf 1'!C34 -> Esterwegen | F34: 0.0 | G34: 0 | H34: 0 | I34: 0 | J34: 0 | K34: 0 | L34: 0 | M34: 0 | N34: 1 | O34: 0 | P34: 0 | Q34: 0 | R34: 0 | S34: 0 | T34: 0 | U34: 0 | V34: 0 | W34: 0 | X34: 0 | Y34: 0 | Z34: 0 | AA34: 0 | AB34: 0 | AC34: 0 | AD34: 0 | AJ34: 0.0 | AK34: 1 | AL34: 0
A35: 20 | B35: ='Wettkampf 1'!B35 -> Schütze 20 | C35: ='Wettkampf 1'!C35 -> Esterwegen | F35: 0.0 | G35: 0 | H35: 0 | I35: 0 | J35: 0 | K35: 0 | L35: 0 | M35: 0 | N35: 1 | O35: 0 | P35: 0 | Q35: 0 | R35: 0 | S35: 0 | T35: 0 | U35: 0 | V35: 0 | W35: 0 | X35: 0 | Y35: 0 | Z35: 0 | AA35: 0 | AB35: 0 | AC35: 0 | AD35: 0 | AJ35: 0.0 | AK35: 1 | AL35: 0
A36: 21 | B36: ='Wettkampf 1'!B36 -> Hellweg Thea | C36: ='Wettkampf 1'!C36 -> Lähden | D36: 182.2 | F36: 182.2 | G36: 0 | H36: 0 | I36: 0 | J36: 0 | K36: 0 | L36: 0 | M36: 0 | N36: 0 | O36: 182.2 | P36: 1 | Q36: 0 | R36: 0 | S36: 0 | T36: 0 | U36: 0 | V36: 0 | W36: 0 | X36: 0 | Y36: 0 | Z36: 0 | AA36: 0 | AB36: 0 | AC36: 0 | AD36: 0 | AJ36: 0.0 | AK36: 0 | AL36: 0
A37: 22 | B37: ='Wettkampf 1'!B37 -> Bruns Henrik | C37: ='Wettkampf 1'!C37 -> Lähden | D37: 172.1 | F37: 172.1 | G37: 0 | H37: 0 | I37: 0 | J37: 0 | K37: 0 | L37: 0 | M37: 0 | N37: 0 | O37: 172.1 | P37: 1 | Q37: 0 | R37: 0 | S37: 0 | T37: 0 | U37: 0 | V37: 0 | W37: 0 | X37: 0 | Y37: 0 | Z37: 0 | AA37: 0 | AB37: 0 | AC37: 0 | AD37: 0 | AJ37: 0.0 | AK37: 0 | AL37: 0
A38: 23 | B38: ='Wettkampf 1'!B38 -> Buschen Johann | C38: ='Wettkampf 1'!C38 -> Lähden | D38: 184.9 | F38: 184.9 | G38: 0 | H38: 0 | I38: 0 | J38: 0 | K38: 0 | L38: 0 | M38: 0 | N38: 0 | O38: 184.9 | P38: 1 | Q38: 0 | R38: 0 | S38: 0 | T38: 0 | U38: 0 | V38: 0 | W38: 0 | X38: 0 | Y38: 0 | Z38: 0 | AA38: 0 | AB38: 0 | AC38: 0 | AD38: 0 | AJ38: 0.0 | AK38: 0 | AL38: 0
A39: 24 | B39: ='Wettkampf 1'!B39 -> Preut Jannis | C39: ='Wettkampf 1'!C39 -> Lähden | D39: 164.2 | F39: 164.2 | G39: 0 | H39: 0 | I39: 0 | J39: 0 | K39: 0 | L39: 0 | M39: 0 | N39: 0 | O39: 164.2 | P39: 1 | Q39: 0 | R39: 0 | S39: 0 | T39: 0 | U39: 0 | V39: 0 | W39: 0 | X39: 0 | Y39: 0 | Z39: 0 | AA39: 0 | AB39: 0 | AC39: 0 | AD39: 0 | AJ39: 0.0 | AK39: 0 | AL39: 0
A40: 25 | B40: ='Wettkampf 1'!B40 -> Fleschenberg Jana | C40: ='Wettkampf 1'!C40 -> Lähden | F40: 0.0 | G40: 0 | H40: 0 | I40: 0 | J40: 0 | K40: 0 | L40: 0 | M40: 0 | N40: 0 | O40: 0 | P40: 1 | Q40: 0 | R40: 0 | S40: 0 | T40: 0 | U40: 0 | V40: 0 | W40: 0 | X40: 0 | Y40: 0 | Z40: 0 | AA40: 0 | AB40: 0 | AC40: 0 | AD40: 0 | AJ40: 0.0 | AK40: 1 | AL40: 0
A41: 26 | B41: ='Wettkampf 1'!B41 -> von Seggern Moritz | C41: ='Wettkampf 1'!C41 -> Lähden | D41: 142.7 | F41: 142.7 | G41: 0 | H41: 0 | I41: 0 | J41: 0 | K41: 0 | L41: 0 | M41: 0 | N41: 0 | O41: 142.7 | P41: 1 | Q41: 0 | R41: 0 | S41: 0 | T41: 0 | U41: 0 | V41: 0 | W41: 0 | X41: 0 | Y41: 0 | Z41: 0 | AA41: 0 | AB41: 0 | AC41: 0 | AD41: 0 | AJ41: 0.0 | AK41: 0 | AL41: 0
A42: 27 | B42: ='Wettkampf 1'!B42 -> Kohnen Saskia | C42: ='Wettkampf 1'!C42 -> Börgermoor | D42: 134.2 | F42: 134.2 | G42: 0 | H42: 0 | I42: 0 | J42: 0 | K42: 0 | L42: 0 | M42: 0 | N42: 0 | O42: 0 | P42: 0 | Q42: 134.2 | R42: 1 | S42: 0 | T42: 0 | U42: 0 | V42: 0 | W42: 0 | X42: 0 | Y42: 0 | Z42: 0 | AA42: 0 | AB42: 0 | AC42: 0 | AD42: 0 | AJ42: 0.0 | AK42: 0 | AL42: 0
A43: 28 | B43: ='Wettkampf 1'!B43 -> Niemann Paul | C43: ='Wettkampf 1'!C43 -> Börgermoor | F43: 0.0 | G43: 0 | H43: 0 | I43: 0 | J43: 0 | K43: 0 | L43: 0 | M43: 0 | N43: 0 | O43: 0 | P43: 0 | Q43: 0 | R43: 1 | S43: 0 | T43: 0 | U43: 0 | V43: 0 | W43: 0 | X43: 0 | Y43: 0 | Z43: 0 | AA43: 0 | AB43: 0 | AC43: 0 | AD43: 0 | AJ43: 0.0 | AK43: 1 | AL43: 0
A44: 29 | B44: ='Wettkampf 1'!B44 -> Schütze 29 | C44: ='Wettkampf 1'!C44 -> Börgermoor | F44: 0.0 | G44: 0 | H44: 0 | I44: 0 | J44: 0 | K44: 0 | L44: 0 | M44: 0 | N44: 0 | O44: 0 | P44: 0 | Q44: 0 | R44: 1 | S44: 0 | T44: 0 | U44: 0 | V44: 0 | W44: 0 | X44: 0 | Y44: 0 | Z44: 0 | AA44: 0 | AB44: 0 | AC44: 0 | AD44: 0 | AJ44: 0.0 | AK44: 1 | AL44: 0
A45: 30 | B45: ='Wettkampf 1'!B45 -> Schütze 30 | C45: ='Wettkampf 1'!C45 -> Börgermoor | F45: 0.0 | G45: 0 | H45: 0 | I45: 0 | J45: 0 | K45: 0 | L45: 0 | M45: 0 | N45: 0 | O45: 0 | P45: 0 | Q45: 0 | R45: 1 | S45: 0 | T45: 0 | U45: 0 | V45: 0 | W45: 0 | X45: 0 | Y45: 0 | Z45: 0 | AA45: 0 | AB45: 0 | AC45: 0 | AD45: 0 | AJ45: 0.0 | AK45: 1 | AL45: 0
A46: 31 | B46: ='Wettkampf 1'!B46 -> Stümpler Jan Luka | C46: ='Wettkampf 1'!C46 -> Lähden | F46: 0.0 | G46: 0 | H46: 0 | I46: 0 | J46: 0 | K46: 0 | L46: 0 | M46: 0 | N46: 0 | O46: 0 | P46: 1 | Q46: 0 | R46: 0 | S46: 0 | T46: 0 | U46: 0 | V46: 0 | W46: 0 | X46: 0 | Y46: 0 | Z46: 0 | AA46: 0 | AB46: 0 | AC46: 0 | AD46: 0 | AJ46: 0.0 | AK46: 1 | AL46: 0
A47: 32 | B47: ='Wettkampf 1'!B47 -> Helmer, Nils | C47: ='Wettkampf 1'!C47 -> Lorup | F47: 0.0 | G47: 0 | H47: 1 | I47: 0 | J47: 0 | K47: 0 | L47: 0 | M47: 0 | N47: 0 | O47: 0 | P47: 0 | Q47: 0 | R47: 0 | S47: 0 | T47: 0 | U47: 0 | V47: 0 | W47: 0 | X47: 0 | Y47: 0 | Z47: 0 | AA47: 0 | AB47: 0 | AC47: 0 | AD47: 0 | AJ47: 0.0 | AK47: 1 | AL47: 0
A48: 33 | B48: ='Wettkampf 1'!B48 -> Schütze 33 | C48: ='Wettkampf 1'!C48 -> Verein VII | F48: 0.0 | G48: 0 | H48: 0 | I48: 0 | J48: 0 | K48: 0 | L48: 0 | M48: 0 | N48: 0 | O48: 0 | P48: 0 | Q48: 0 | R48: 0 | S48: 0 | T48: 1 | U48: 0 | V48: 0 | W48: 0 | X48: 0 | Y48: 0 | Z48: 0 | AA48: 0 | AB48: 0 | AC48: 0 | AD48: 0 | AJ48: 0.0 | AK48: 1 | AL48: 0
A49: 34 | B49: ='Wettkampf 1'!B49 -> Schütze 34 | C49: ='Wettkampf 1'!C49 -> Verein VII | F49: 0.0 | G49: 0 | H49: 0 | I49: 0 | J49: 0 | K49: 0 | L49: 0 | M49: 0 | N49: 0 | O49: 0 | P49: 0 | Q49: 0 | R49: 0 | S49: 0 | T49: 1 | U49: 0 | V49: 0 | W49: 0 | X49: 0 | Y49: 0 | Z49: 0 | AA49: 0 | AB49: 0 | AC49: 0 | AD49: 0 | AJ49: 0.0 | AK49: 1 | AL49: 0
A50: 35 | B50: ='Wettkampf 1'!B50 -> Schütze 35 | C50: ='Wettkampf 1'!C50 -> Verein VII | F50: 0.0 | G50: 0 | H50: 0 | I50: 0 | J50: 0 | K50: 0 | L50: 0 | M50: 0 | N50: 0 | O50: 0 | P50: 0 | Q50: 0 | R50: 0 | S50: 0 | T50: 1 | U50: 0 | V50: 0 | W50: 0 | X50: 0 | Y50: 0 | Z50: 0 | AA50: 0 | AB50: 0 | AC50: 0 | AD50: 0 | AJ50: 0.0 | AK50: 1 | AL50: 0
A51: 36 | B51: ='Wettkampf 1'!B51 -> Schütze 36 | C51: ='Wettkampf 1'!C51 -> Verein VII | F51: 0.0 | G51: 0 | H51: 0 | I51: 0 | J51: 0 | K51: 0 | L51: 0 | M51: 0 | N51: 0 | O51: 0 | P51: 0 | Q51: 0 | R51: 0 | S51: 0 | T51: 1 | U51: 0 | V51: 0 | W51: 0 | X51: 0 | Y51: 0 | Z51: 0 | AA51: 0 | AB51: 0 | AC51: 0 | AD51: 0 | AJ51: 0.0 | AK51: 1 | AL51: 0
A52: 37 | B52: ='Wettkampf 1'!B52 -> Schütze 37 | C52: ='Wettkampf 1'!C52 -> Verein VII | F52: 0.0 | G52: 0 | H52: 0 | I52: 0 | J52: 0 | K52: 0 | L52: 0 | M52: 0 | N52: 0 | O52: 0 | P52: 0 | Q52: 0 | R52: 0 | S52: 0 | T52: 1 | U52: 0 | V52: 0 | W52: 0 | X52: 0 | Y52: 0 | Z52: 0 | AA52: 0 | AB52: 0 | AC52: 0 | AD52: 0 | AJ52: 0.0
A53: 38 | B53: ='Wettkampf 1'!B53 -> Schütze 38 | C53: ='Wettkampf 1'!C53 -> Verein VIII | F53: 0.0 | G53: 0 | H53: 0 | I53: 0 | J53: 0 | K53: 0 | L53: 0 | M53: 0 | N53: 0 | O53: 0 | P53: 0 | Q53: 0 | R53: 0 | S53: 0 | T53: 0 | U53: 0 | V53: 1 | W53: 0 | X53: 0 | Y53: 0 | Z53: 0 | AA53: 0 | AB53: 0 | AC53: 0 | AD53: 0 | AJ53: 0.0
A54: 39 | B54: ='Wettkampf 1'!B54 -> Schütze 39 | C54: ='Wettkampf 1'!C54 -> Verein VIII | F54: 0.0 | G54: 0 | H54: 0 | I54: 0 | J54: 0 | K54: 0 | L54: 0 | M54: 0 | N54: 0 | O54: 0 | P54: 0 | Q54: 0 | R54: 0 | S54: =IF($C54=$B$8,$F54,0) -> 0 | T54: =(IF(AND($E54="",$C54=$B$8),1,0)) -> 0 | U54: =IF($C54=$B$9,$F54,0) -> 0 | V54: =(IF(AND($E54="",$C54=$B$9),1,0)) -> 1 | W54: =IF($C54=$B$10,$F54,0) -> 0 | X54: =(IF(AND($E54="",$C54=$B$10),1,0)) -> 0 | Y54: =IF($C54=$B$11,$F54,0) -> 0 | Z54: =(IF(AND($E54="",$C54=$B$11),1,0)) -> 0 | AA54: =IF($C54=$B$12,$F54,0) -> 0 | AB54: =(IF(AND($E54="",$C54=$B$12),1,0)) -> 0 | AC54: =IF($C54=$B$13,$F54,0) -> 0 | AD54: =(IF(AND($E54="",$C54=$B$13),1,0)) -> 0 | AJ54: 0.0
A55: 40 | B55: ='Wettkampf 1'!B55 -> Schütze 40 | C55: ='Wettkampf 1'!C55 -> Verein VIII | F55: 0.0 | G55: 0 | H55: 0 | I55: 0 | J55: 0 | K55: 0 | L55: 0 | M55: 0 | N55: 0 | O55: 0 | P55: 0 | Q55: 0 | R55: 0 | S55: 0 | T55: 0 | U55: 0 | V55: 1 | W55: 0 | X55: 0 | Y55: 0 | Z55: 0 | AA55: 0 | AB55: 0 | AC55: 0 | AD55: 0 | AJ55: 0.0
A56: 41 | B56: ='Wettkampf 1'!B56 -> Schütze 41 | C56: ='Wettkampf 1'!C56 -> Verein IX | F56: 0.0 | G56: 0 | H56: 0 | I56: 0 | J56: 0 | K56: 0 | L56: 0 | M56: 0 | N56: 0 | O56: 0 | P56: 0 | Q56: 0 | R56: 0 | S56: 0 | T56: 0 | U56: 0 | V56: 0 | W56: 0 | X56: 1 | Y56: 0 | Z56: 0 | AA56: 0 | AB56: 0 | AC56: 0 | AD56: 0 | AJ56: 0.0
A57: 42 | B57: ='Wettkampf 1'!B57 -> Schütze 42 | C57: ='Wettkampf 1'!C57 -> Verein IX | F57: 0.0 | G57: 0 | H57: 0 | I57: 0 | J57: 0 | K57: 0 | L57: 0 | M57: 0 | N57: 0 | O57: 0 | P57: 0 | Q57: 0 | R57: 0 | S57: 0 | T57: 0 | U57: 0 | V57: 0 | W57: 0 | X57: 1 | Y57: 0 | Z57: 0 | AA57: 0 | AB57: 0 | AC57: 0 | AD57: 0 | AJ57: 0.0
A58: 43 | B58: ='Wettkampf 1'!B58 -> Schütze 43 | C58: ='Wettkampf 1'!C58 -> Verein IX | F58: 0.0 | G58: 0 | H58: 0 | I58: 0 | J58: 0 | K58: 0 | L58: 0 | M58: 0 | N58: 0 | O58: 0 | P58: 0 | Q58: 0 | R58: 0 | S58: 0 | T58: 0 | U58: 0 | V58: 0 | W58: 0 | X58: 1 | Y58: 0 | Z58: 0 | AA58: 0 | AB58: 0 | AC58: 0 | AD58: 0 | AJ58: 0.0
A59: 44 | B59: ='Wettkampf 1'!B59 -> Schütze 44 | C59: ='Wettkampf 1'!C59 -> Verein IX | F59: 0.0 | G59: 0 | H59: 0 | I59: 0 | J59: 0 | K59: 0 | L59: 0 | M59: 0 | N59: 0 | O59: 0 | P59: 0 | Q59: 0 | R59: 0 | S59: 0 | T59: 0 | U59: 0 | V59: 0 | W59: 0 | X59: 1 | Y59: 0 | Z59: 0 | AA59: 0 | AB59: 0 | AC59: 0 | AD59: 0 | AJ59: 0.0
A60: 45 | B60: ='Wettkampf 1'!B60 -> Schütze 45 | C60: ='Wettkampf 1'!C60 -> Verein IX | F60: 0.0 | G60: 0 | H60: 0 | I60: 0 | J60: 0 | K60: 0 | L60: 0 | M60: 0 | N60: 0 | O60: 0 | P60: 0 | Q60: 0 | R60: 0 | S60: 0 | T60: 0 | U60: 0 | V60: 0 | W60: 0 | X60: 1 | Y60: 0 | Z60: 0 | AA60: 0 | AB60: 0 | AC60: 0 | AD60: 0 | AJ60: 0.0
A61: 46 | B61: ='Wettkampf 1'!B61 -> Schütze 46 | C61: ='Wettkampf 1'!C61 -> Verein X | F61: 0.0 | G61: 0 | H61: 0 | I61: 0 | J61: 0 | K61: 0 | L61: 0 | M61: 0 | N61: 0 | O61: 0 | P61: 0 | Q61: 0 | R61: 0 | S61: 0 | T61: 0 | U61: 0 | V61: 0 | W61: 0 | X61: 0 | Y61: 0 | Z61: 1 | AA61: 0 | AB61: 0 | AC61: 0 | AD61: 0 | AJ61: 0.0
A62: 47 | B62: ='Wettkampf 1'!B62 -> Schütze 47 | C62: ='Wettkampf 1'!C62 -> Verein X | F62: 0.0 | G62: 0 | H62: 0 | I62: 0 | J62: 0 | K62: 0 | L62: 0 | M62: 0 | N62: 0 | O62: 0 | P62: 0 | Q62: 0 | R62: 0 | S62: 0 | T62: 0 | U62: 0 | V62: 0 | W62: 0 | X62: 0 | Y62: 0 | Z62: 1 | AA62: 0 | AB62: 0 | AC62: 0 | AD62: 0 | AJ62: 0.0
A63: 48 | B63: ='Wettkampf 1'!B63 -> Schütze 48 | C63: ='Wettkampf 1'!C63 -> Verein X | F63: 0.0 | G63: 0 | H63: 0 | I63: 0 | J63: 0 | K63: 0 | L63: 0 | M63: 0 | N63: 0 | O63: 0 | P63: 0 | Q63: 0 | R63: 0 | S63: 0 | T63: 0 | U63: 0 | V63: 0 | W63: 0 | X63: 0 | Y63: 0 | Z63: 1 | AA63: 0 | AB63: 0 | AC63: 0 | AD63: 0 | AJ63: 0.0
A64: 49 | B64: ='Wettkampf 1'!B64 -> Schütze 49 | C64: ='Wettkampf 1'!C64 -> Verein X | F64: 0.0 | G64: 0 | H64: 0 | I64: 0 | J64: 0 | K64: 0 | L64: 0 | M64: 0 | N64: 0 | O64: 0 | P64: 0 | Q64: 0 | R64: 0 | S64: 0 | T64: 0 | U64: 0 | V64: 0 | W64: 0 | X64: 0 | Y64: 0 | Z64: 1 | AA64: 0 | AB64: 0 | AC64: 0 | AD64: 0 | AJ64: 0.0
A65: 50 | B65: ='Wettkampf 1'!B65 -> Schütze 50 | C65: ='Wettkampf 1'!C65 -> Verein X | F65: 0.0 | G65: 0 | H65: 0 | I65: 0 | J65: 0 | K65: 0 | L65: 0 | M65: 0 | N65: 0 | O65: 0 | P65: 0 | Q65: 0 | R65: 0 | S65: 0 | T65: 0 | U65: 0 | V65: 0 | W65: 0 | X65: 0 | Y65: 0 | Z65: 1 | AA65: 0 | AB65: 0 | AC65: 0 | AD65: 0 | AJ65: 0.0
A66: 51 | B66: ='Wettkampf 1'!B66 -> Schütze 51 | C66: ='Wettkampf 1'!C66 -> Verein XI | F66: 0.0 | G66: 0 | H66: 0 | I66: 0 | J66: 0 | K66: 0 | L66: 0 | M66: 0 | N66: 0 | O66: 0 | P66: 0 | Q66: 0 | R66: 0 | S66: 0 | T66: 0 | U66: 0 | V66: 0 | W66: 0 | X66: 0 | Y66: 0 | Z66: 0 | AA66: 0 | AB66: 1 | AC66: 0 | AD66: 0 | AJ66: 0.0
A67: 52 | B67: ='Wettkampf 1'!B67 -> Schütze 52 | C67: ='Wettkampf 1'!C67 -> Verein XI | F67: 0.0 | G67: 0 | H67: 0 | I67: 0 | J67: 0 | K67: 0 | L67: 0 | M67: 0 | N67: 0 | O67: 0 | P67: 0 | Q67: 0 | R67: 0 | S67: 0 | T67: 0 | U67: 0 | V67: 0 | W67: 0 | X67: 0 | Y67: 0 | Z67: 0 | AA67: 0 | AB67: 1 | AC67: 0 | AD67: 0 | AJ67: 0.0
A68: 53 | B68: ='Wettkampf 1'!B68 -> Schütze 53 | C68: ='Wettkampf 1'!C68 -> Verein XI | F68: 0.0 | G68: 0 | H68: 0 | I68: 0 | J68: 0 | K68: 0 | L68: 0 | M68: 0 | N68: 0 | O68: 0 | P68: 0 | Q68: 0 | R68: 0 | S68: 0 | T68: 0 | U68: 0 | V68: 0 | W68: 0 | X68: 0 | Y68: 0 | Z68: 0 | AA68: 0 | AB68: 1 | AC68: 0 | AD68: 0 | AJ68: 0.0
A69: 54 | B69: ='Wettkampf 1'!B69 -> Schütze 54 | C69: ='Wettkampf 1'!C69 -> Verein XI | F69: 0.0 | G69: 0 | H69: 0 | I69: 0 | J69: 0 | K69: 0 | L69: 0 | M69: 0 | N69: 0 | O69: 0 | P69: 0 | Q69: 0 | R69: 0 | S69: 0 | T69: 0 | U69: 0 | V69: 0 | W69: 0 | X69: 0 | Y69: 0 | Z69: 0 | AA69: 0 | AB69: 1 | AC69: 0 | AD69: 0 | AJ69: 0.0
A70: 55 | B70: ='Wettkampf 1'!B70 -> Schütze 55 | C70: ='Wettkampf 1'!C70 -> Verein XI | F70: 0.0 | G70: 0 | H70: 0 | I70: 0 | J70: 0 | K70: 0 | L70: 0 | M70: 0 | N70: 0 | O70: 0 | P70: 0 | Q70: 0 | R70: 0 | S70: 0 | T70: 0 | U70: 0 | V70: 0 | W70: 0 | X70: 0 | Y70: 0 | Z70: 0 | AA70: 0 | AB70: 1 | AC70: 0 | AD70: 0 | AJ70: 0.0
A71: 56 | B71: ='Wettkampf 1'!B71 -> Schütze 56 | C71: ='Wettkampf 1'!C71 -> Verein XII | F71: 0.0 | G71: 0 | H71: 0 | I71: 0 | J71: 0 | K71: 0 | L71: 0 | M71: 0 | N71: 0 | O71: 0 | P71: 0 | Q71: 0 | R71: 0 | S71: 0 | T71: 0 | U71: 0 | V71: 0 | W71: 0 | X71: 0 | Y71: 0 | Z71: 0 | AA71: 0 | AB71: 0 | AC71: 0 | AD71: 1 | AJ71: 0.0
A72: 57 | B72: ='Wettkampf 1'!B72 -> Schütze 57 | C72: ='Wettkampf 1'!C72 -> Verein XII | F72: 0.0 | G72: 0 | H72: 0 | I72: 0 | J72: 0 | K72: 0 | L72: 0 | M72: 0 | N72: 0 | O72: 0 | P72: 0 | Q72: 0 | R72: 0 | S72: 0 | T72: 0 | U72: 0 | V72: 0 | W72: 0 | X72: 0 | Y72: 0 | Z72: 0 | AA72: 0 | AB72: 0 | AC72: 0 | AD72: 1 | AJ72: 0.0
A73: 58 | B73: ='Wettkampf 1'!B73 -> Schütze 58 | C73: ='Wettkampf 1'!C73 -> Verein XII | F73: 0.0 | G73: 0 | H73: 0 | I73: 0 | J73: 0 | K73: 0 | L73: 0 | M73: 0 | N73: 0 | O73: 0 | P73: 0 | Q73: 0 | R73: 0 | S73: 0 | T73: 0 | U73: 0 | V73: 0 | W73: 0 | X73: 0 | Y73: 0 | Z73: 0 | AA73: 0 | AB73: 0 | AC73: 0 | AD73: 1 | AJ73: 0.0
A74: 59 | B74: ='Wettkampf 1'!B74 -> Schütze 59 | C74: ='Wettkampf 1'!C74 -> Verein XII | F74: 0.0 | G74: 0 | H74: 0 | I74: 0 | J74: 0 | K74: 0 | L74: 0 | M74: 0 | N74: 0 | O74: 0 | P74: 0 | Q74: 0 | R74: 0 | S74: 0 | T74: 0 | U74: 0 | V74: 0 | W74: 0 | X74: 0 | Y74: 0 | Z74: 0 | AA74: 0 | AB74: 0 | AC74: 0 | AD74: 1 | AJ74: 0.0
A75: 60 | B75: ='Wettkampf 1'!B75 -> Schütze 60 | C75: ='Wettkampf 1'!C75 -> Verein XII | F75: 0.0 | G75: 0 | H75: 0 | I75: 0 | J75: 0 | K75: 0 | L75: 0 | M75: 0 | N75: 0 | O75: 0 | P75: 0 | Q75: 0 | R75: 0 | S75: 0 | T75: 0 | U75: 0 | V75: 0 | W75: 0 | X75: 0 | Y75: 0 | Z75: 0 | AA75: 0 | AB75: 0 | AC75: 0 | AD75: 1 | AJ75: 0.0
G76: =LARGE(G16:G75,1)+LARGE(G16:G75,2)+LARGE(G16:G75,3) -> 443.2 | H76: =SUM(H16:H75) -> 6 | I76: =LARGE(I16:I75,1)+LARGE(I16:I75,2)+LARGE(I16:I75,3) -> 0 | J76: =SUM(J16:J75) -> 4 | K76: =LARGE(K16:K75,1)+LARGE(K16:K75,2)+LARGE(K16:K75,3) -> 344.4 | L76: =SUM(L16:L75) -> 5 | M76: =LARGE(M16:M75,1)+LARGE(M16:M75,2)+LARGE(M16:M75,3) -> 492.8 | N76: =SUM(N16:N75) -> 5 | O76: =LARGE(O16:O75,1)+LARGE(O16:O75,2)+LARGE(O16:O75,3) -> 539.2 | P76: =SUM(P16:P75) -> 7 | Q76: =LARGE(Q16:Q75,1)+LARGE(Q16:Q75,2)+LARGE(Q16:Q75,3) -> 134.2 | R76: =SUM(R16:R75) -> 4 | S76: =LARGE(S16:S75,1)+LARGE(S16:S75,2)+LARGE(S16:S75,3) -> 0 | T76: =SUM(T16:T75) -> 5 | U76: =LARGE(U16:U75,1)+LARGE(U16:U75,2)+LARGE(U16:U75,3) -> 0 | V76: =SUM(V16:V75) -> 3 | W76: =LARGE(W16:W75,1)+LARGE(W16:W75,2)+LARGE(W16:W75,3) -> 0 | X76: =SUM(X16:X75) -> 5 | Y76: =LARGE(Y16:Y75,1)+LARGE(Y16:Y75,2)+LARGE(Y16:Y75,3) -> 0 | Z76: =SUM(Z16:Z75) -> 5 | AA76: =LARGE(AA16:AA75,1)+LARGE(AA16:AA75,2)+LARGE(AA16:AA75,3) -> 0 | AB76: =SUM(AB16:AB75) -> 5 | AC76: =LARGE(AC16:AC75,1)+LARGE(AC16:AC75,2)+LARGE(AC16:AC75,3) -> 0 | AD76: =SUM(AD16:AD75) -> 5
C77: per Email an: sk-huemmling@gmx.de

Sheet 5
B1: Verein / Gruppe | D1: Ergebnisse | AH1: Austragungsort: | AI1: =Übersicht!H4 -> 0
A2: 1 | B2: ='Wettkampf 1'!B2 -> Lorup | D2: =G76 -> 0.0 | E2: =IF(H76>4,"Es sind zu viele Schützen in Wertung!"," ") -> Es sind zu viele Schützen in Wertung! | AH2: Wettkampftag: | AI2: =Übersicht!H3 -> 0
A3: 2 | B3: ='Wettkampf 1'!B3 -> Sögel | D3: =I76 -> 0.0 | E3: =IF(J76>4,"Es sind zu viele Schützen in Wertung!"," ") -> 
A4: 3 | B4: ='Wettkampf 1'!B4 -> Spahnharenstätte | D4: =K76 -> 0.0 | E4: =IF(L76>4,"Es sind zu viele Schützen in Wertung!"," ") -> Es sind zu viele Schützen in Wertung! | AJ4: Ansprechpartner für Rückfragen:
A5: 4 | B5: ='Wettkampf 1'!B5 -> Esterwegen | D5: =M76 -> 0.0 | E5: =IF(N76>4,"Es sind zu viele Schützen in Wertung!"," ") -> Es sind zu viele Schützen in Wertung! | AH5: Name:
A6: 5 | B6: ='Wettkampf 1'!B6 -> Lähden | D6: =O76 -> 0.0 | E6: =IF(P76>4,"Es sind zu viele Schützen in Wertung!"," ") -> Es sind zu viele Schützen in Wertung! | AH6: Tel:
A7: 6 | B7: ='Wettkampf 1'!B7 -> Börgermoor | D7: =Q76 -> 0.0 | E7: =IF(R76>4,"Es sind zu viele Schützen in Wertung!"," ") ->  | AH7: Standaufsicht: | AI7: eintragen
A8: 7 | B8: ='Wettkampf 1'!B8 -> Verein VII | D8: =S76 -> 0.0 | E8: =IF(T76>4,"Es sind zu viele Schützen in Wertung!"," ") -> Es sind zu viele Schützen in Wertung!
A9: 8 | B9: ='Wettkampf 1'!B9 -> Verein VIII | D9: =U76 -> 0.0 | E9: =IF(V76>4,"Es sind zu viele Schützen in Wertung!"," ") -> 
A10: 9 | B10: ='Wettkampf 1'!B10 -> Verein IX | D10: =W76 -> 0.0 | E10: =IF(X76>4,"Es sind zu viele Schützen in Wertung!"," ") -> Es sind zu viele Schützen in Wertung!
A11: 10 | B11: ='Wettkampf 1'!B11 -> Verein X | D11: =Y76 -> 0.0 | E11: =IF(Z76>4,"Es sind zu viele Schützen in Wertung!"," ") -> Es sind zu viele Schützen in Wertung!
A12: 11 | B12: ='Wettkampf 1'!B12 -> Verein XI | D12: =AA76 -> 0.0 | E12: =IF(AB76>4,"Es sind zu viele Schützen in Wertung!"," ") -> Es sind zu viele Schützen in Wertung!
A13: 12 | B13: ='Wettkampf 1'!B13 -> Verein XII | D13: =AC76 -> 0.0 | E13: =IF(AD76>4,"Es sind zu viele Schützen in Wertung!"," ") -> Es sind zu viele Schützen in Wertung!
B15: Einzelergebnisse: | C15: Verein / Gruppe | D15: Ergebnisse (mindestens 0 eintragen) | E15: AW? Dann x eintippen | G15: Verein 1 | I15: Verein 2 | K15: Verein 3 | M15: Verein 4 | O15: Verein 5 | Q15: Verein 6 | S15: Verein 7 | U15: Verein 8 | W15: Verein 9 | Y15: Verein 10 | AA15: Verein 11 | AC15: Verein 12 | AG15: Proberechnung bei Streifen:
A16: 1 | B16: ='Wettkampf 1'!B16 -> Wotte Lia | C16: ='Wettkampf 1'!C16 -> Lorup | F16: =IF(E16="x","0",D16) -> 0.0 | G16: =IF(C16=$B$2,F16,0) -> 0 | H16: =(IF(AND($E16="",$C16=$B$2),1,0)) -> 1 | I16: =IF($C16=$B$3,$F16,0) -> 0 | J16: =(IF(AND($E16="",$C16=$B$3),1,0)) -> 0 | K16: =IF($C16=$B$4,F16,0) -> 0 | L16: =(IF(AND($E16="",$C16=$B$4),1,0)) -> 0 | M16: =IF($C16=$B$5,F16,0) -> 0 | N16: =(IF(AND($E16="",$C16=$B$5),1,0)) -> 0 | O16: =IF($C16=$B$6,F16,0) -> 0 | P16: =(IF(AND($E16="",$C16=$B$6),1,0)) -> 0 | Q16: =IF($C16=$B$7,F16,0) -> 0 | R16: =(IF(AND($E16="",$C16=$B$7),1,0)) -> 0 | S16: =IF($C16=$B$8,$F16,0) -> 0 | T16: =(IF(AND($E16="",$C16=$B$8),1,0)) -> 0 | U16: =IF($C16=$B$9,$F16,0) -> 0 | V16: =(IF(AND($E16="",$C16=$B$9),1,0)) -> 0 | W16: =IF($C16=$B$10,$F16,0) -> 0 | X16: =(IF(AND($E16="",$C16=$B$10),1,0)) -> 0 | Y16: =IF($C16=$B$11,$F16,0) -> 0 | Z16: =(IF(AND($E16="",$C16=$B$11),1,0)) -> 0 | AA16: =IF($C16=$B$12,$F16,0) -> 0 | AB16: =(IF(AND($E16="",$C16=$B$12),1,0)) -> 0 | AC16: =IF($C16=$B$13,$F16,0) -> 0 | AD16: =(IF(AND($E16="",$C16=$B$13),1,0)) -> 0 | AJ16: =SUM(AG16:AI16) -> 0.0 | AK16: =IF(AJ16=D16,1,0) -> 1 | AL16: =IF(AJ16=0,0,1) -> 0 | AM16: =IF(AK16+AL16=2,"Korrekt","") -> 
A17: 2 | B17: ='Wettkampf 1'!B17 -> Wotte Hannes | C17: ='Wettkampf 1'!C17 -> Lorup | F17: =IF(E17="x","0",D17) -> 0.0 | G17: =IF(C17=$B$2,F17,0) -> 0 | H17: =(IF(AND($E17="",$C17=$B$2),1,0)) -> 1 | I17: =IF($C17=$B$3,F17,0) -> 0 | J17: =(IF(AND($E17="",$C17=$B$3),1,0)) -> 0 | K17: =IF($C17=$B$4,F17,0) -> 0 | L17: =(IF(AND($E17="",$C17=$B$4),1,0)) -> 0 | M17: =IF($C17=$B$5,F17,0) -> 0 | N17: =(IF(AND($E17="",$C17=$B$5),1,0)) -> 0 | O17: =IF($C17=$B$6,F17,0) -> 0 | P17: =(IF(AND($E17="",$C17=$B$6),1,0)) -> 0 | Q17: =IF($C17=$B$7,F17,0) -> 0 | R17: =(IF(AND($E17="",$C17=$B$7),1,0)) -> 0 | S17: =IF($C17=$B$8,$F17,0) -> 0 | T17: =(IF(AND($E17="",$C17=$B$8),1,0)) -> 0 | U17: =IF($C17=$B$9,$F17,0) -> 0 | V17: =(IF(AND($E17="",$C17=$B$9),1,0)) -> 0 | W17: =IF($C17=$B$10,$F17,0) -> 0 | X17: =(IF(AND($E17="",$C17=$B$10),1,0)) -> 0 | Y17: =IF($C17=$B$11,$F17,0) -> 0 | Z17: =(IF(AND($E17="",$C17=$B$11),1,0)) -> 0 | AA17: =IF($C17=$B$12,$F17,0) -> 0 | AB17: =(IF(AND($E17="",$C17=$B$12),1,0)) -> 0 | AC17: =IF($C17=$B$13,$F17,0) -> 0 | AD17: =(IF(AND($E17="",$C17=$B$13),1,0)) -> 0 | AJ17: =SUM(AG17:AI17) -> 0.0 | AK17: =IF(AJ17=D17,1,0) -> 1 | AL17: =IF(AJ17=0,0,1) -> 0 | AM17: =IF(AK17+AL17=2,"Korrekt","") -> 
A18: 3 | B18: ='Wettkampf 1'!B18 -> Gretenabeln Elias | C18: ='Wettkampf 1'!C18 -> Lorup | F18: 0.0 | G18: 0 | H18: 1 | I18: 0 | J18: 0 | K18: 0 | L18: 0 | M18: 0 | N18: 0 | O18: 0 | P18: 0 | Q18: 0 | R18: 0 | S18: 0 | T18: 0 | U18: 0 | V18: 0 | W18: 0 | X18: 0 | Y18: 0 | Z18: 0 | AA18: 0 | AB18: 0 | AC18: 0 | AD18: 0 | AJ18: 0.0 | AK18: 1 | AL18: 0
A19: 4 | B19: ='Wettkampf 1'!B19 -> Helmer Maike | C19: ='Wettkampf 1'!C19 -> Lorup | F19: 0.0 | G19: 0 | H19: 1 | I19: 0 | J19: 0 | K19: 0 | L19: 0 | M19: 0 | N19: 0 | O19: 0 | P19: 0 | Q19: 0 | R19: 0 | S19: 0 | T19: 0 | U19: 0 | V19: 0 | W19: 0 | X19: 0 | Y19: 0 | Z19: 0 | AA19: 0 | AB19: 0 | AC19: 0 | AD19: 0 | AJ19: 0.0 | AK19: 1 | AL19: 0
A20: 5 | B20: ='Wettkampf 1'!B20 -> Többen Jannes | C20: ='Wettkampf 1'!C20 -> Lorup | F20: 0.0 | G20: 0 | H20: 1 | I20: 0 | J20: 0 | K20: 0 | L20: 0 | M20: 0 | N20: 0 | O20: 0 | P20: 0 | Q20: 0 | R20: 0 | S20: 0 | T20: 0 | U20: 0 | V20: 0 | W20: 0 | X20: 0 | Y20: 0 | Z20: 0 | AA20: 0 | AB20: 0 | AC20: 0 | AD20: 0 | AJ20: 0.0 | AK20: 1 | AL20: 0
A21: 6 | B21: ='Wettkampf 1'!B21 -> Lüken Arne | C21: ='Wettkampf 1'!C21 -> Lorup | F21: 0.0 | G21: 0 | H21: 1 | I21: 0 | J21: 0 | K21: 0 | L21: 0 | M21: 0 | N21: 0 | O21: 0 | P21: 0 | Q21: 0 | R21: 0 | S21: 0 | T21: 0 | U21: 0 | V21: 0 | W21: 0 | X21: 0 | Y21: 0 | Z21: 0 | AA21: 0 | AB21: 0 | AC21: 0 | AD21: 0 | AJ21: 0.0 | AK21: 1 | AL21: 0
A22: 7 | B22: ='Wettkampf 1'!B22 -> Schütze 7 | C22: ='Wettkampf 1'!C22 -> Sögel | F22: 0.0 | G22: 0 | H22: 0 | I22: 0 | J22: 1 | K22: 0 | L22: 0 | M22: 0 | N22: 0 | O22: 0 | P22: 0 | Q22: 0 | R22: 0 | S22: 0 | T22: 0 | U22: 0 | V22: 0 | W22: 0 | X22: 0 | Y22: 0 | Z22: 0 | AA22: 0 | AB22: 0 | AC22: 0 | AD22: 0 | AJ22: 0.0 | AK22: 1 | AL22: 0
A23: 8 | B23: ='Wettkampf 1'!B23 -> Schütze 8 | C23: ='Wettkampf 1'!C23 -> Sögel | F23: 0.0 | G23: 0 | H23: 0 | I23: 0 | J23: 1 | K23: 0 | L23: 0 | M23: 0 | N23: 0 | O23: 0 | P23: 0 | Q23: 0 | R23: 0 | S23: 0 | T23: 0 | U23: 0 | V23: 0 | W23: 0 | X23: 0 | Y23: 0 | Z23: 0 | AA23: 0 | AB23: 0 | AC23: 0 | AD23: 0 | AJ23: 0.0 | AK23: 1 | AL23: 0
A24: 9 | B24: ='Wettkampf 1'!B24 -> Schütze 9 | C24: ='Wettkampf 1'!C24 -> Sögel | F24: 0.0 | G24: 0 | H24: 0 | I24: 0 | J24: 1 | K24: 0 | L24: 0 | M24: 0 | N24: 0 | O24: 0 | P24: 0 | Q24: 0 | R24: 0 | S24: 0 | T24: 0 | U24: 0 | V24: 0 | W24: 0 | X24: 0 | Y24: 0 | Z24: 0 | AA24: 0 | AB24: 0 | AC24: 0 | AD24: 0 | AJ24: 0.0 | AK24: 1 | AL24: 0
A25: 10 | B25: ='Wettkampf 1'!B25 -> Schütze 10 | C25: ='Wettkampf 1'!C25 -> Sögel | F25: 0.0 | G25: 0 | H25: 0 | I25: 0 | J25: 1 | K25: 0 | L25: 0 | M25: 0 | N25: 0 | O25: 0 | P25: 0 | Q25: 0 | R25: 0 | S25: 0 | T25: 0 | U25: 0 | V25: 0 | W25: 0 | X25: 0 | Y25: 0 | Z25: 0 | AA25: 0 | AB25: 0 | AC25: 0 | AD25: 0 | AJ25: 0.0 | AK25: 1 | AL25: 0
A26: 11 | B26: ='Wettkampf 1'!B26 -> Engbers Hannes | C26: ='Wettkampf 1'!C26 -> Spahnharenstätte | F26: 0.0 | G26: 0 | H26: 0 | I26: 0 | J26: 0 | K26: 0 | L26: 1 | M26: 0 | N26: 0 | O26: 0 | P26: 0 | Q26: 0 | R26: 0 | S26: 0 | T26: 0 | U26: 0 | V26: 0 | W26: 0 | X26: 0 | Y26: 0 | Z26: 0 | AA26: 0 | AB26: 0 | AC26: 0 | AD26: 0 | AJ26: 0.0 | AK26: 1 | AL26: 0
A27: 12 | B27: ='Wettkampf 1'!B27 -> Runde Marcel | C27: ='Wettkampf 1'!C27 -> Spahnharenstätte | F27: 0.0 | G27: 0 | H27: 0 | I27: 0 | J27: 0 | K27: 0 | L27: 1 | M27: 0 | N27: 0 | O27: 0 | P27: 0 | Q27: 0 | R27: 0 | S27: 0 | T27: 0 | U27: 0 | V27: 0 | W27: 0 | X27: 0 | Y27: 0 | Z27: 0 | AA27: 0 | AB27: 0 | AC27: 0 | AD27: 0 | AJ27: 0.0 | AK27: 1 | AL27: 0
A28: 13 | B28: ='Wettkampf 1'!B28 -> Jansen Lars | C28: ='Wettkampf 1'!C28 -> Spahnharenstätte | F28: 0.0 | G28: 0 | H28: 0 | I28: 0 | J28: 0 | K28: 0 | L28: 1 | M28: 0 | N28: 0 | O28: 0 | P28: 0 | Q28: 0 | R28: 0 | S28: 0 | T28: 0 | U28: 0 | V28: 0 | W28: 0 | X28: 0 | Y28: 0 | Z28: 0 | AA28: 0 | AB28: 0 | AC28: 0 | AD28: 0 | AJ28: 0.0 | AK28: 1 | AL28: 0
A29: 14 | B29: ='Wettkampf 1'!B29 -> Schütze 14 | C29: ='Wettkampf 1'!C29 -> Spahnharenstätte | F29: 0.0 | G29: 0 | H29: 0 | I29: 0 | J29: 0 | K29: 0 | L29: 1 | M29: 0 | N29: 0 | O29: 0 | P29: 0 | Q29: 0 | R29: 0 | S29: 0 | T29: 0 | U29: 0 | V29: 0 | W29: 0 | X29: 0 | Y29: 0 | Z29: 0 | AA29: 0 | AB29: 0 | AC29: 0 | AD29: 0 | AJ29: 0.0 | AK29: 1 | AL29: 0
A30: 15 | B30: ='Wettkampf 1'!B30 -> Schütze 15 | C30: ='Wettkampf 1'!C30 -> Spahnharenstätte | F30: 0.0 | G30: 0 | H30: 0 | I30: 0 | J30: 0 | K30: 0 | L30: 1 | M30: 0 | N30: 0 | O30: 0 | P30: 0 | Q30: 0 | R30: 0 | S30: 0 | T30: 0 | U30: 0 | V30: 0 | W30: 0 | X30: 0 | Y30: 0 | Z30: 0 | AA30: 0 | AB30: 0 | AC30: 0 | AD30: 0 | AJ30: 0.0 | AK30: 1 | AL30: 0
A31: 16 | B31: ='Wettkampf 1'!B31 -> Suhle Annalena | C31: ='Wettkampf 1'!C31 -> Esterwegen | F31: 0.0 | G31: 0 | H31: 0 | I31: 0 | J31: 0 | K31: 0 | L31: 0 | M31: 0 | N31: 1 | O31: 0 | P31: 0 | Q31: 0 | R31: 0 | S31: 0 | T31: 0 | U31: 0 | V31: 0 | W31: 0 | X31: 0 | Y31: 0 | Z31: 0 | AA31: 0 | AB31: 0 | AC31: 0 | AD31: 0 | AJ31: 0.0 | AK31: 1 | AL31: 0
A32: 17 | B32: ='Wettkampf 1'!B32 -> Gäken Lena | C32: ='Wettkampf 1'!C32 -> Esterwegen | F32: 0.0 | G32: 0 | H32: 0 | I32: 0 | J32: 0 | K32: 0 | L32: 0 | M32: 0 | N32: 1 | O32: 0 | P32: 0 | Q32: 0 | R32: 0 | S32: 0 | T32: 0 | U32: 0 | V32: 0 | W32: 0 | X32: 0 | Y32: 0 | Z32: 0 | AA32: 0 | AB32: 0 | AC32: 0 | AD32: 0 | AJ32: 0.0 | AK32: 1 | AL32: 0
A33: 18 | B33: ='Wettkampf 1'!B33 -> Jansen Daniel | C33: ='Wettkampf 1'!C33 -> Esterwegen | F33: 0.0 | G33: 0 | H33: 0 | I33: 0 | J33: 0 | K33: 0 | L33: 0 | M33: 0 | N33: 1 | O33: 0 | P33: 0 | Q33: 0 | R33: 0 | S33: 0 | T33: 0 | U33: 0 | V33: 0 | W33: 0 | X33: 0 | Y33: 0 | Z33: 0 | AA33: 0 | AB33: 0 | AC33: 0 | AD33: 0 | AJ33: 0.0 | AK33: 1 | AL33: 0
A34: 19 | B34: ='Wettkampf 1'!B34 -> Pieper Jonas | C34: ='Wettkampf 1'!C34 -> Esterwegen | F34: 0.0 | G34: 0 | H34: 0 | I34: 0 | J34: 0 | K34: 0 | L34: 0 | M34: 0 | N34: 1 | O34: 0 | P34: 0 | Q34: 0 | R34: 0 | S34: 0 | T34: 0 | U34: 0 | V34: 0 | W34: 0 | X34: 0 | Y34: 0 | Z34: 0 | AA34: 0 | AB34: 0 | AC34: 0 | AD34: 0 | AJ34: 0.0 | AK34: 1 | AL34: 0
A35: 20 | B35: ='Wettkampf 1'!B35 -> Schütze 20 | C35: ='Wettkampf 1'!C35 -> Esterwegen | F35: 0.0 | G35: 0 | H35: 0 | I35: 0 | J35: 0 | K35: 0 | L35: 0 | M35: 0 | N35: 1 | O35: 0 | P35: 0 | Q35: 0 | R35: 0 | S35: 0 | T35: 0 | U35: 0 | V35: 0 | W35: 0 | X35: 0 | Y35: 0 | Z35: 0 | AA35: 0 | AB35: 0 | AC35: 0 | AD35: 0 | AJ35: 0.0 | AK35: 1 | AL35: 0
A36: 21 | B36: ='Wettkampf 1'!B36 -> Hellweg Thea | C36: ='Wettkampf 1'!C36 -> Lähden | F36: 0.0 | G36: 0 | H36: 0 | I36: 0 | J36: 0 | K36: 0 | L36: 0 | M36: 0 | N36: 0 | O36: 0 | P36: 1 | Q36: 0 | R36: 0 | S36: 0 | T36: 0 | U36: 0 | V36: 0 | W36: 0 | X36: 0 | Y36: 0 | Z36: 0 | AA36: 0 | AB36: 0 | AC36: 0 | AD36: 0 | AJ36: 0.0 | AK36: 1 | AL36: 0
A37: 22 | B37: ='Wettkampf 1'!B37 -> Bruns Henrik | C37: ='Wettkampf 1'!C37 -> Lähden | F37: 0.0 | G37: 0 | H37: 0 | I37: 0 | J37: 0 | K37: 0 | L37: 0 | M37: 0 | N37: 0 | O37: 0 | P37: 1 | Q37: 0 | R37: 0 | S37: 0 | T37: 0 | U37: 0 | V37: 0 | W37: 0 | X37: 0 | Y37: 0 | Z37: 0 | AA37: 0 | AB37: 0 | AC37: 0 | AD37: 0 | AJ37: 0.0 | AK37: 1 | AL37: 0
A38: 23 | B38: ='Wettkampf 1'!B38 -> Buschen Johann | C38: ='Wettkampf 1'!C38 -> Lähden | F38: 0.0 | G38: 0 | H38: 0 | I38: 0 | J38: 0 | K38: 0 | L38: 0 | M38: 0 | N38: 0 | O38: 0 | P38: 1 | Q38: 0 | R38: 0 | S38: 0 | T38: 0 | U38: 0 | V38: 0 | W38: 0 | X38: 0 | Y38: 0 | Z38: 0 | AA38: 0 | AB38: 0 | AC38: 0 | AD38: 0 | AJ38: 0.0 | AK38: 1 | AL38: 0
A39: 24 | B39: ='Wettkampf 1'!B39 -> Preut Jannis | C39: ='Wettkampf 1'!C39 -> Lähden | F39: 0.0 | G39: 0 | H39: 0 | I39: 0 | J39: 0 | K39: 0 | L39: 0 | M39: 0 | N39: 0 | O39: 0 | P39: 1 | Q39: 0 | R39: 0 | S39: 0 | T39: 0 | U39: 0 | V39: 0 | W39: 0 | X39: 0 | Y39: 0 | Z39: 0 | AA39: 0 | AB39: 0 | AC39: 0 | AD39: 0 | AJ39: 0.0 | AK39: 1 | AL39: 0
A40: 25 | B40: ='Wettkampf 1'!B40 -> Fleschenberg Jana | C40: ='Wettkampf 1'!C40 -> Lähden | F40: 0.0 | G40: 0 | H40: 0 | I40: 0 | J40: 0 | K40: 0 | L40: 0 | M40: 0 | N40: 0 | O40: 0 | P40: 1 | Q40: 0 | R40: 0 | S40: 0 | T40: 0 | U40: 0 | V40: 0 | W40: 0 | X40: 0 | Y40: 0 | Z40: 0 | AA40: 0 | AB40: 0 | AC40: 0 | AD40: 0 | AJ40: 0.0 | AK40: 1 | AL40: 0
A41: 26 | B41: ='Wettkampf 1'!B41 -> von Seggern Moritz | C41: ='Wettkampf 1'!C41 -> Lähden | F41: 0.0 | G41: 0 | H41: 0 | I41: 0 | J41: 0 | K41: 0 | L41: 0 | M41: 0 | N41: 0 | O41: 0 | P41: 1 | Q41: 0 | R41: 0 | S41: 0 | T41: 0 | U41: 0 | V41: 0 | W41: 0 | X41: 0 | Y41: 0 | Z41: 0 | AA41: 0 | AB41: 0 | AC41: 0 | AD41: 0 | AJ41: 0.0 | AK41: 1 | AL41: 0
A42: 27 | B42: ='Wettkampf 1'!B42 -> Kohnen Saskia | C42: ='Wettkampf 1'!C42 -> Börgermoor | F42: 0.0 | G42: 0 | H42: 0 | I42: 0 | J42: 0 | K42: 0 | L42: 0 | M42: 0 | N42: 0 | O42: 0 | P42: 0 | Q42: 0 | R42: 1 | S42: 0 | T42: 0 | U42: 0 | V42: 0 | W42: 0 | X42: 0 | Y42: 0 | Z42: 0 | AA42: 0 | AB42: 0 | AC42: 0 | AD42: 0 | AJ42: 0.0 | AK42: 1 | AL42: 0
A43: 28 | B43: ='Wettkampf 1'!B43 -> Niemann Paul | C43: ='Wettkampf 1'!C43 -> Börgermoor | F43: 0.0 | G43: 0 | H43: 0 | I43: 0 | J43: 0 | K43: 0 | L43: 0 | M43: 0 | N43: 0 | O43: 0 | P43: 0 | Q43: 0 | R43: 1 | S43: 0 | T43: 0 | U43: 0 | V43: 0 | W43: 0 | X43: 0 | Y43: 0 | Z43: 0 | AA43: 0 | AB43: 0 | AC43: 0 | AD43: 0 | AJ43: 0.0 | AK43: 1 | AL43: 0
A44: 29 | B44: ='Wettkampf 1'!B44 -> Schütze 29 | C44: ='Wettkampf 1'!C44 -> Börgermoor | F44: 0.0 | G44: 0 | H44: 0 | I44: 0 | J44: 0 | K44: 0 | L44: 0 | M44: 0 | N44: 0 | O44: 0 | P44: 0 | Q44: 0 | R44: 1 | S44: 0 | T44: 0 | U44: 0 | V44: 0 | W44: 0 | X44: 0 | Y44: 0 | Z44: 0 | AA44: 0 | AB44: 0 | AC44: 0 | AD44: 0 | AJ44: 0.0 | AK44: 1 | AL44: 0
A45: 30 | B45: ='Wettkampf 1'!B45 -> Schütze 30 | C45: ='Wettkampf 1'!C45 -> Börgermoor | F45: 0.0 | G45: 0 | H45: 0 | I45: 0 | J45: 0 | K45: 0 | L45: 0 | M45: 0 | N45: 0 | O45: 0 | P45: 0 | Q45: 0 | R45: 1 | S45: 0 | T45: 0 | U45: 0 | V45: 0 | W45: 0 | X45: 0 | Y45: 0 | Z45: 0 | AA45: 0 | AB45: 0 | AC45: 0 | AD45: 0 | AJ45: 0.0 | AK45: 1 | AL45: 0
A46: 31 | B46: ='Wettkampf 1'!B46 -> Stümpler Jan Luka | C46: ='Wettkampf 1'!C46 -> Lähden | F46: 0.0 | G46: 0 | H46: 0 | I46: 0 | J46: 0 | K46: 0 | L46: 0 | M46: 0 | N46: 0 | O46: 0 | P46: 1 | Q46: 0 | R46: 0 | S46: 0 | T46: 0 | U46: 0 | V46: 0 | W46: 0 | X46: 0 | Y46: 0 | Z46: 0 | AA46: 0 | AB46: 0 | AC46: 0 | AD46: 0 | AJ46: 0.0 | AK46: 1 | AL46: 0
A47: 32 | B47: ='Wettkampf 1'!B47 -> Helmer, Nils | C47: ='Wettkampf 1'!C47 -> Lorup | F47: 0.0 | G47: 0 | H47: 1 | I47: 0 | J47: 0 | K47: 0 | L47: 0 | M47: 0 | N47: 0 | O47: 0 | P47: 0 | Q47: 0 | R47: 0 | S47: 0 | T47: 0 | U47: 0 | V47: 0 | W47: 0 | X47: 0 | Y47: 0 | Z47: 0 | AA47: 0 | AB47: 0 | AC47: 0 | AD47: 0 | AJ47: 0.0 | AK47: 1 | AL47: 0
A48: 33 | B48: ='Wettkampf 1'!B48 -> Schütze 33 | C48: ='Wettkampf 1'!C48 -> Verein VII | F48: 0.0 | G48: 0 | H48: 0 | I48: 0 | J48: 0 | K48: 0 | L48: 0 | M48: 0 | N48: 0 | O48: 0 | P48: 0 | Q48: 0 | R48: 0 | S48: 0 | T48: 1 | U48: 0 | V48: 0 | W48: 0 | X48: 0 | Y48: 0 | Z48: 0 | AA48: 0 | AB48: 0 | AC48: 0 | AD48: 0 | AJ48: 0.0 | AK48: 1 | AL48: 0
A49: 34 | B49: ='Wettkampf 1'!B49 -> Schütze 34 | C49: ='Wettkampf 1'!C49 -> Verein VII | F49: 0.0 | G49: 0 | H49: 0 | I49: 0 | J49: 0 | K49: 0 | L49: 0 | M49: 0 | N49: 0 | O49: 0 | P49: 0 | Q49: 0 | R49: 0 | S49: 0 | T49: 1 | U49: 0 | V49: 0 | W49: 0 | X49: 0 | Y49: 0 | Z49: 0 | AA49: 0 | AB49: 0 | AC49: 0 | AD49: 0 | AJ49: 0.0 | AK49: 1 | AL49: 0
A50: 35 | B50: ='Wettkampf 1'!B50 -> Schütze 35 | C50: ='Wettkampf 1'!C50 -> Verein VII | F50: 0.0 | G50: 0 | H50: 0 | I50: 0 | J50: 0 | K50: 0 | L50: 0 | M50: 0 | N50: 0 | O50: 0 | P50: 0 | Q50: 0 | R50: 0 | S50: 0 | T50: 1 | U50: 0 | V50: 0 | W50: 0 | X50: 0 | Y50: 0 | Z50: 0 | AA50: 0 | AB50: 0 | AC50: 0 | AD50: 0 | AJ50: 0.0 | AK50: 1 | AL50: 0
A51: 36 | B51: ='Wettkampf 1'!B51 -> Schütze 36 | C51: ='Wettkampf 1'!C51 -> Verein VII | F51: 0.0 | G51: 0 | H51: 0 | I51: 0 | J51: 0 | K51: 0 | L51: 0 | M51: 0 | N51: 0 | O51: 0 | P51: 0 | Q51: 0 | R51: 0 | S51: 0 | T51: 1 | U51: 0 | V51: 0 | W51: 0 | X51: 0 | Y51: 0 | Z51: 0 | AA51: 0 | AB51: 0 | AC51: 0 | AD51: 0 | AJ51: 0.0 | AK51: 1 | AL51: 0
A52: 37 | B52: ='Wettkampf 1'!B52 -> Schütze 37 | C52: ='Wettkampf 1'!C52 -> Verein VII | F52: 0.0 | G52: 0 | H52: 0 | I52: 0 | J52: 0 | K52: 0 | L52: 0 | M52: 0 | N52: 0 | O52: 0 | P52: 0 | Q52: 0 | R52: 0 | S52: 0 | T52: 1 | U52: 0 | V52: 0 | W52: 0 | X52: 0 | Y52: 0 | Z52: 0 | AA52: 0 | AB52: 0 | AC52: 0 | AD52: 0 | AJ52: 0.0
A53: 38 | B53: ='Wettkampf 1'!B53 -> Schütze 38 | C53: ='Wettkampf 1'!C53 -> Verein VIII | F53: 0.0 | G53: 0 | H53: 0 | I53: 0 | J53: 0 | K53: 0 | L53: 0 | M53: 0 | N53: 0 | O53: 0 | P53: 0 | Q53: 0 | R53: 0 | S53: 0 | T53: 0 | U53: 0 | V53: 1 | W53: 0 | X53: 0 | Y53: 0 | Z53: 0 | AA53: 0 | AB53: 0 | AC53: 0 | AD53: 0 | AJ53: 0.0
A54: 39 | B54: ='Wettkampf 1'!B54 -> Schütze 39 | C54: ='Wettkampf 1'!C54 -> Verein VIII | F54: 0.0 | G54: 0 | H54: 0 | I54: 0 | J54: 0 | K54: 0 | L54: 0 | M54: 0 | N54: 0 | O54: 0 | P54: 0 | Q54: 0 | R54: 0 | S54: =IF($C54=$B$8,$F54,0) -> 0 | T54: =(IF(AND($E54="",$C54=$B$8),1,0)) -> 0 | U54: =IF($C54=$B$9,$F54,0) -> 0 | V54: =(IF(AND($E54="",$C54=$B$9),1,0)) -> 1 | W54: =IF($C54=$B$10,$F54,0) -> 0 | X54: =(IF(AND($E54="",$C54=$B$10),1,0)) -> 0 | Y54: =IF($C54=$B$11,$F54,0) -> 0 | Z54: =(IF(AND($E54="",$C54=$B$11),1,0)) -> 0 | AA54: =IF($C54=$B$12,$F54,0) -> 0 | AB54: =(IF(AND($E54="",$C54=$B$12),1,0)) -> 0 | AC54: =IF($C54=$B$13,$F54,0) -> 0 | AD54: =(IF(AND($E54="",$C54=$B$13),1,0)) -> 0 | AJ54: 0.0
A55: 40 | B55: ='Wettkampf 1'!B55 -> Schütze 40 | C55: ='Wettkampf 1'!C55 -> Verein VIII | F55: 0.0 | G55: 0 | H55: 0 | I55: 0 | J55: 0 | K55: 0 | L55: 0 | M55: 0 | N55: 0 | O55: 0 | P55: 0 | Q55: 0 | R55: 0 | S55: 0 | T55: 0 | U55: 0 | V55: 1 | W55: 0 | X55: 0 | Y55: 0 | Z55: 0 | AA55: 0 | AB55: 0 | AC55: 0 | AD55: 0 | AJ55: 0.0
A56: 41 | B56: ='Wettkampf 1'!B56 -> Schütze 41 | C56: ='Wettkampf 1'!C56 -> Verein IX | F56: 0.0 | G56: 0 | H56: 0 | I56: 0 | J56: 0 | K56: 0 | L56: 0 | M56: 0 | N56: 0 | O56: 0 | P56: 0 | Q56: 0 | R56: 0 | S56: 0 | T56: 0 | U56: 0 | V56: 0 | W56: 0 | X56: 1 | Y56: 0 | Z56: 0 | AA56: 0 | AB56: 0 | AC56: 0 | AD56: 0 | AJ56: 0.0
A57: 42 | B57: ='Wettkampf 1'!B57 -> Schütze 42 | C57: ='Wettkampf 1'!C57 -> Verein IX | F57: 0.0 | G57: 0 | H57: 0 | I57: 0 | J57: 0 | K57: 0 | L57: 0 | M57: 0 | N57: 0 | O57: 0 | P57: 0 | Q57: 0 | R57: 0 | S57: 0 | T57: 0 | U57: 0 | V57: 0 | W57: 0 | X57: 1 | Y57: 0 | Z57: 0 | AA57: 0 | AB57: 0 | AC57: 0 | AD57: 0 | AJ57: 0.0
A58: 43 | B58: ='Wettkampf 1'!B58 -> Schütze 43 | C58: ='Wettkampf 1'!C58 -> Verein IX | F58: 0.0 | G58: 0 | H58: 0 | I58: 0 | J58: 0 | K58: 0 | L58: 0 | M58: 0 | N58: 0 | O58: 0 | P58: 0 | Q58: 0 | R58: 0 | S58: 0 | T58: 0 | U58: 0 | V58: 0 | W58: 0 | X58: 1 | Y58: 0 | Z58: 0 | AA58: 0 | AB58: 0 | AC58: 0 | AD58: 0 | AJ58: 0.0
A59: 44 | B59: ='Wettkampf 1'!B59 -> Schütze 44 | C59: ='Wettkampf 1'!C59 -> Verein IX | F59: 0.0 | G59: 0 | H59: 0 | I59: 0 | J59: 0 | K59: 0 | L59: 0 | M59: 0 | N59: 0 | O59: 0 | P59: 0 | Q59: 0 | R59: 0 | S59: 0 | T59: 0 | U59: 0 | V59: 0 | W59: 0 | X59: 1 | Y59: 0 | Z59: 0 | AA59: 0 | AB59: 0 | AC59: 0 | AD59: 0 | AJ59: 0.0
A60: 45 | B60: ='Wettkampf 1'!B60 -> Schütze 45 | C60: ='Wettkampf 1'!C60 -> Verein IX | F60: 0.0 | G60: 0 | H60: 0 | I60: 0 | J60: 0 | K60: 0 | L60: 0 | M60: 0 | N60: 0 | O60: 0 | P60: 0 | Q60: 0 | R60: 0 | S60: 0 | T60: 0 | U60: 0 | V60: 0 | W60: 0 | X60: 1 | Y60: 0 | Z60: 0 | AA60: 0 | AB60: 0 | AC60: 0 | AD60: 0 | AJ60: 0.0
A61: 46 | B61: ='Wettkampf 1'!B61 -> Schütze 46 | C61: ='Wettkampf 1'!C61 -> Verein X | F61: 0.0 | G61: 0 | H61: 0 | I61: 0 | J61: 0 | K61: 0 | L61: 0 | M61: 0 | N61: 0 | O61: 0 | P61: 0 | Q61: 0 | R61: 0 | S61: 0 | T61: 0 | U61: 0 | V61: 0 | W61: 0 | X61: 0 | Y61: 0 | Z61: 1 | AA61: 0 | AB61: 0 | AC61: 0 | AD61: 0 | AJ61: 0.0
A62: 47 | B62: ='Wettkampf 1'!B62 -> Schütze 47 | C62: ='Wettkampf 1'!C62 -> Verein X | F62: 0.0 | G62: 0 | H62: 0 | I62: 0 | J62: 0 | K62: 0 | L62: 0 | M62: 0 | N62: 0 | O62: 0 | P62: 0 | Q62: 0 | R62: 0 | S62: 0 | T62: 0 | U62: 0 | V62: 0 | W62: 0 | X62: 0 | Y62: 0 | Z62: 1 | AA62: 0 | AB62: 0 | AC62: 0 | AD62: 0 | AJ62: 0.0
A63: 48 | B63: ='Wettkampf 1'!B63 -> Schütze 48 | C63: ='Wettkampf 1'!C63 -> Verein X | F63: 0.0 | G63: 0 | H63: 0 | I63: 0 | J63: 0 | K63: 0 | L63: 0 | M63: 0 | N63: 0 | O63: 0 | P63: 0 | Q63: 0 | R63: 0 | S63: 0 | T63: 0 | U63: 0 | V63: 0 | W63: 0 | X63: 0 | Y63: 0 | Z63: 1 | AA63: 0 | AB63: 0 | AC63: 0 | AD63: 0 | AJ63: 0.0
A64: 49 | B64: ='Wettkampf 1'!B64 -> Schütze 49 | C64: ='Wettkampf 1'!C64 -> Verein X | F64: 0.0 | G64: 0 | H64: 0 | I64: 0 | J64: 0 | K64: 0 | L64: 0 | M64: 0 | N64: 0 | O64: 0 | P64: 0 | Q64: 0 | R64: 0 | S64: 0 | T64: 0 | U64: 0 | V64: 0 | W64: 0 | X64: 0 | Y64: 0 | Z64: 1 | AA64: 0 | AB64: 0 | AC64: 0 | AD64: 0 | AJ64: 0.0
A65: 50 | B65: ='Wettkampf 1'!B65 -> Schütze 50 | C65: ='Wettkampf 1'!C65 -> Verein X | F65: 0.0 | G65: 0 | H65: 0 | I65: 0 | J65: 0 | K65: 0 | L65: 0 | M65: 0 | N65: 0 | O65: 0 | P65: 0 | Q65: 0 | R65: 0 | S65: 0 | T65: 0 | U65: 0 | V65: 0 | W65: 0 | X65: 0 | Y65: 0 | Z65: 1 | AA65: 0 | AB65: 0 | AC65: 0 | AD65: 0 | AJ65: 0.0
A66: 51 | B66: ='Wettkampf 1'!B66 -> Schütze 51 | C66: ='Wettkampf 1'!C66 -> Verein XI | F66: 0.0 | G66: 0 | H66: 0 | I66: 0 | J66: 0 | K66: 0 | L66: 0 | M66: 0 | N66: 0 | O66: 0 | P66: 0 | Q66: 0 | R66: 0 | S66: 0 | T66: 0 | U66: 0 | V66: 0 | W66: 0 | X66: 0 | Y66: 0 | Z66: 0 | AA66: 0 | AB66: 1 | AC66: 0 | AD66: 0 | AJ66: 0.0
A67: 52 | B67: ='Wettkampf 1'!B67 -> Schütze 52 | C67: ='Wettkampf 1'!C67 -> Verein XI | F67: 0.0 | G67: 0 | H67: 0 | I67: 0 | J67: 0 | K67: 0 | L67: 0 | M67: 0 | N67: 0 | O67: 0 | P67: 0 | Q67: 0 | R67: 0 | S67: 0 | T67: 0 | U67: 0 | V67: 0 | W67: 0 | X67: 0 | Y67: 0 | Z67: 0 | AA67: 0 | AB67: 1 | AC67: 0 | AD67: 0 | AJ67: 0.0
A68: 53 | B68: ='Wettkampf 1'!B68 -> Schütze 53 | C68: ='Wettkampf 1'!C68 -> Verein XI | F68: 0.0 | G68: 0 | H68: 0 | I68: 0 | J68: 0 | K68: 0 | L68: 0 | M68: 0 | N68: 0 | O68: 0 | P68: 0 | Q68: 0 | R68: 0 | S68: 0 | T68: 0 | U68: 0 | V68: 0 | W68: 0 | X68: 0 | Y68: 0 | Z68: 0 | AA68: 0 | AB68: 1 | AC68: 0 | AD68: 0 | AJ68: 0.0
A69: 54 | B69: ='Wettkampf 1'!B69 -> Schütze 54 | C69: ='Wettkampf 1'!C69 -> Verein XI | F69: 0.0 | G69: 0 | H69: 0 | I69: 0 | J69: 0 | K69: 0 | L69: 0 | M69: 0 | N69: 0 | O69: 0 | P69: 0 | Q69: 0 | R69: 0 | S69: 0 | T69: 0 | U69: 0 | V69: 0 | W69: 0 | X69: 0 | Y69: 0 | Z69: 0 | AA69: 0 | AB69: 1 | AC69: 0 | AD69: 0 | AJ69: 0.0
A70: 55 | B70: ='Wettkampf 1'!B70 -> Schütze 55 | C70: ='Wettkampf 1'!C70 -> Verein XI | F70: 0.0 | G70: 0 | H70: 0 | I70: 0 | J70: 0 | K70: 0 | L70: 0 | M70: 0 | N70: 0 | O70: 0 | P70: 0 | Q70: 0 | R70: 0 | S70: 0 | T70: 0 | U70: 0 | V70: 0 | W70: 0 | X70: 0 | Y70: 0 | Z70: 0 | AA70: 0 | AB70: 1 | AC70: 0 | AD70: 0 | AJ70: 0.0
A71: 56 | B71: ='Wettkampf 1'!B71 -> Schütze 56 | C71: ='Wettkampf 1'!C71 -> Verein XII | F71: 0.0 | G71: 0 | H71: 0 | I71: 0 | J71: 0 | K71: 0 | L71: 0 | M71: 0 | N71: 0 | O71: 0 | P71: 0 | Q71: 0 | R71: 0 | S71: 0 | T71: 0 | U71: 0 | V71: 0 | W71: 0 | X71: 0 | Y71: 0 | Z71: 0 | AA71: 0 | AB71: 0 | AC71: 0 | AD71: 1 | AJ71: 0.0
A72: 57 | B72: ='Wettkampf 1'!B72 -> Schütze 57 | C72: ='Wettkampf 1'!C72 -> Verein XII | F72: 0.0 | G72: 0 | H72: 0 | I72: 0 | J72: 0 | K72: 0 | L72: 0 | M72: 0 | N72: 0 | O72: 0 | P72: 0 | Q72: 0 | R72: 0 | S72: 0 | T72: 0 | U72: 0 | V72: 0 | W72: 0 | X72: 0 | Y72: 0 | Z72: 0 | AA72: 0 | AB72: 0 | AC72: 0 | AD72: 1 | AJ72: 0.0
A73: 58 | B73: ='Wettkampf 1'!B73 -> Schütze 58 | C73: ='Wettkampf 1'!C73 -> Verein XII | F73: 0.0 | G73: 0 | H73: 0 | I73: 0 | J73: 0 | K73: 0 | L73: 0 | M73: 0 | N73: 0 | O73: 0 | P73: 0 | Q73: 0 | R73: 0 | S73: 0 | T73: 0 | U73: 0 | V73: 0 | W73: 0 | X73: 0 | Y73: 0 | Z73: 0 | AA73: 0 | AB73: 0 | AC73: 0 | AD73: 1 | AJ73: 0.0
A74: 59 | B74: ='Wettkampf 1'!B74 -> Schütze 59 | C74: ='Wettkampf 1'!C74 -> Verein XII | F74: 0.0 | G74: 0 | H74: 0 | I74: 0 | J74: 0 | K74: 0 | L74: 0 | M74: 0 | N74: 0 | O74: 0 | P74: 0 | Q74: 0 | R74: 0 | S74: 0 | T74: 0 | U74: 0 | V74: 0 | W74: 0 | X74: 0 | Y74: 0 | Z74: 0 | AA74: 0 | AB74: 0 | AC74: 0 | AD74: 1 | AJ74: 0.0
A75: 60 | B75: ='Wettkampf 1'!B75 -> Schütze 60 | C75: ='Wettkampf 1'!C75 -> Verein XII | F75: 0.0 | G75: 0 | H75: 0 | I75: 0 | J75: 0 | K75: 0 | L75: 0 | M75: 0 | N75: 0 | O75: 0 | P75: 0 | Q75: 0 | R75: 0 | S75: 0 | T75: 0 | U75: 0 | V75: 0 | W75: 0 | X75: 0 | Y75: 0 | Z75: 0 | AA75: 0 | AB75: 0 | AC75: 0 | AD75: 1 | AJ75: 0.0
G76: =LARGE(G16:G75,1)+LARGE(G16:G75,2)+LARGE(G16:G75,3) -> 0 | H76: =SUM(H16:H75) -> 7 | I76: =LARGE(I16:I75,1)+LARGE(I16:I75,2)+LARGE(I16:I75,3) -> 0 | J76: =SUM(J16:J75) -> 4 | K76: =LARGE(K16:K75,1)+LARGE(K16:K75,2)+LARGE(K16:K75,3) -> 0 | L76: =SUM(L16:L75) -> 5 | M76: =LARGE(M16:M75,1)+LARGE(M16:M75,2)+LARGE(M16:M75,3) -> 0 | N76: =SUM(N16:N75) -> 5 | O76: =LARGE(O16:O75,1)+LARGE(O16:O75,2)+LARGE(O16:O75,3) -> 0 | P76: =SUM(P16:P75) -> 7 | Q76: =LARGE(Q16:Q75,1)+LARGE(Q16:Q75,2)+LARGE(Q16:Q75,3) -> 0 | R76: =SUM(R16:R75) -> 4 | S76: =LARGE(S16:S75,1)+LARGE(S16:S75,2)+LARGE(S16:S75,3) -> 0 | T76: =SUM(T16:T75) -> 5 | U76: =LARGE(U16:U75,1)+LARGE(U16:U75,2)+LARGE(U16:U75,3) -> 0 | V76: =SUM(V16:V75) -> 3 | W76: =LARGE(W16:W75,1)+LARGE(W16:W75,2)+LARGE(W16:W75,3) -> 0 | X76: =SUM(X16:X75) -> 5 | Y76: =LARGE(Y16:Y75,1)+LARGE(Y16:Y75,2)+LARGE(Y16:Y75,3) -> 0 | Z76: =SUM(Z16:Z75) -> 5 | AA76: =LARGE(AA16:AA75,1)+LARGE(AA16:AA75,2)+LARGE(AA16:AA75,3) -> 0 | AB76: =SUM(AB16:AB75) -> 5 | AC76: =LARGE(AC16:AC75,1)+LARGE(AC16:AC75,2)+LARGE(AC16:AC75,3) -> 0 | AD76: =SUM(AD16:AD75) -> 5
C77: per Email an: sk-huemmling@gmx.de

Sheet 6
B1: Verein / Gruppe | D1: Ergebnisse | AH1: Austragungsort: | AI1: =Übersicht!I4 -> 0
A2: 1 | B2: ='Wettkampf 1'!B2 -> Lorup | D2: =G76 -> 0.0 | E2: =IF(H76>4,"Es sind zu viele Schützen in Wertung!"," ") -> Es sind zu viele Schützen in Wertung! | AH2: Wettkampftag: | AI2: =Übersicht!I3 -> 0
A3: 2 | B3: ='Wettkampf 1'!B3 -> Sögel | D3: =I76 -> 0.0 | E3: =IF(J76>4,"Es sind zu viele Schützen in Wertung!"," ") -> 
A4: 3 | B4: ='Wettkampf 1'!B4 -> Spahnharenstätte | D4: =K76 -> 0.0 | E4: =IF(L76>4,"Es sind zu viele Schützen in Wertung!"," ") -> Es sind zu viele Schützen in Wertung! | AJ4: Ansprechpartner für Rückfragen:
A5: 4 | B5: ='Wettkampf 1'!B5 -> Esterwegen | D5: =M76 -> 0.0 | E5: =IF(N76>4,"Es sind zu viele Schützen in Wertung!"," ") -> Es sind zu viele Schützen in Wertung! | AH5: Name:
A6: 5 | B6: ='Wettkampf 1'!B6 -> Lähden | D6: =O76 -> 0.0 | E6: =IF(P76>4,"Es sind zu viele Schützen in Wertung!"," ") -> Es sind zu viele Schützen in Wertung! | AH6: Tel:
A7: 6 | B7: ='Wettkampf 1'!B7 -> Börgermoor | D7: =Q76 -> 0.0 | E7: =IF(R76>4,"Es sind zu viele Schützen in Wertung!"," ") ->  | AH7: Standaufsicht: | AI7: eintragen
A8: 7 | B8: ='Wettkampf 1'!B8 -> Verein VII | D8: =S76 -> 0.0 | E8: =IF(T76>4,"Es sind zu viele Schützen in Wertung!"," ") -> Es sind zu viele Schützen in Wertung!
A9: 8 | B9: ='Wettkampf 1'!B9 -> Verein VIII | D9: =U76 -> 0.0 | E9: =IF(V76>4,"Es sind zu viele Schützen in Wertung!"," ") -> 
A10: 9 | B10: ='Wettkampf 1'!B10 -> Verein IX | D10: =W76 -> 0.0 | E10: =IF(X76>4,"Es sind zu viele Schützen in Wertung!"," ") -> Es sind zu viele Schützen in Wertung!
A11: 10 | B11: ='Wettkampf 1'!B11 -> Verein X | D11: =Y76 -> 0.0 | E11: =IF(Z76>4,"Es sind zu viele Schützen in Wertung!"," ") -> Es sind zu viele Schützen in Wertung!
A12: 11 | B12: ='Wettkampf 1'!B12 -> Verein XI | D12: =AA76 -> 0.0 | E12: =IF(AB76>4,"Es sind zu viele Schützen in Wertung!"," ") -> Es sind zu viele Schützen in Wertung!
A13: 12 | B13: ='Wettkampf 1'!B13 -> Verein XII | D13: =AC76 -> 0.0 | E13: =IF(AD76>4,"Es sind zu viele Schützen in Wertung!"," ") -> Es sind zu viele Schützen in Wertung!
B15: Einzelergebnisse: | C15: Verein / Gruppe | D15: Ergebnisse (mindestens 0 eintragen) | E15: AW? Dann x eintippen | G15: Verein 1 | I15: Verein 2 | K15: Verein 3 | M15: Verein 4 | O15: Verein 5 | Q15: Verein 6 | S15: Verein 7 | U15: Verein 8 | W15: Verein 9 | Y15: Verein 10 | AA15: Verein 11 | AC15: Verein 12 | AG15: Proberechnung bei Streifen:
A16: 1 | B16: ='Wettkampf 1'!B16 -> Wotte Lia | C16: ='Wettkampf 1'!C16 -> Lorup | F16: =IF(E16="x","0",D16) -> 0.0 | G16: =IF(C16=$B$2,F16,0) -> 0 | H16: =(IF(AND($E16="",$C16=$B$2),1,0)) -> 1 | I16: =IF($C16=$B$3,$F16,0) -> 0 | J16: =(IF(AND($E16="",$C16=$B$3),1,0)) -> 0 | K16: =IF($C16=$B$4,F16,0) -> 0 | L16: =(IF(AND($E16="",$C16=$B$4),1,0)) -> 0 | M16: =IF($C16=$B$5,F16,0) -> 0 | N16: =(IF(AND($E16="",$C16=$B$5),1,0)) -> 0 | O16: =IF($C16=$B$6,F16,0) -> 0 | P16: =(IF(AND($E16="",$C16=$B$6),1,0)) -> 0 | Q16: =IF($C16=$B$7,F16,0) -> 0 | R16: =(IF(AND($E16="",$C16=$B$7),1,0)) -> 0 | S16: =IF($C16=$B$8,$F16,0) -> 0 | T16: =(IF(AND($E16="",$C16=$B$8),1,0)) -> 0 | U16: =IF($C16=$B$9,$F16,0) -> 0 | V16: =(IF(AND($E16="",$C16=$B$9),1,0)) -> 0 | W16: =IF($C16=$B$10,$F16,0) -> 0 | X16: =(IF(AND($E16="",$C16=$B$10),1,0)) -> 0 | Y16: =IF($C16=$B$11,$F16,0) -> 0 | Z16: =(IF(AND($E16="",$C16=$B$11),1,0)) -> 0 | AA16: =IF($C16=$B$12,$F16,0) -> 0 | AB16: =(IF(AND($E16="",$C16=$B$12),1,0)) -> 0 | AC16: =IF($C16=$B$13,$F16,0) -> 0 | AD16: =(IF(AND($E16="",$C16=$B$13),1,0)) -> 0 | AJ16: =SUM(AG16:AI16) -> 0.0 | AK16: =IF(AJ16=D16,1,0) -> 1 | AL16: =IF(AJ16=0,0,1) -> 0 | AM16: =IF(AK16+AL16=2,"Korrekt","") -> 
A17: 2 | B17: ='Wettkampf 1'!B17 -> Wotte Hannes | C17: ='Wettkampf 1'!C17 -> Lorup | F17: =IF(E17="x","0",D17) -> 0.0 | G17: =IF(C17=$B$2,F17,0) -> 0 | H17: =(IF(AND($E17="",$C17=$B$2),1,0)) -> 1 | I17: =IF($C17=$B$3,F17,0) -> 0 | J17: =(IF(AND($E17="",$C17=$B$3),1,0)) -> 0 | K17: =IF($C17=$B$4,F17,0) -> 0 | L17: =(IF(AND($E17="",$C17=$B$4),1,0)) -> 0 | M17: =IF($C17=$B$5,F17,0) -> 0 | N17: =(IF(AND($E17="",$C17=$B$5),1,0)) -> 0 | O17: =IF($C17=$B$6,F17,0) -> 0 | P17: =(IF(AND($E17="",$C17=$B$6),1,0)) -> 0 | Q17: =IF($C17=$B$7,F17,0) -> 0 | R17: =(IF(AND($E17="",$C17=$B$7),1,0)) -> 0 | S17: =IF($C17=$B$8,$F17,0) -> 0 | T17: =(IF(AND($E17="",$C17=$B$8),1,0)) -> 0 | U17: =IF($C17=$B$9,$F17,0) -> 0 | V17: =(IF(AND($E17="",$C17=$B$9),1,0)) -> 0 | W17: =IF($C17=$B$10,$F17,0) -> 0 | X17: =(IF(AND($E17="",$C17=$B$10),1,0)) -> 0 | Y17: =IF($C17=$B$11,$F17,0) -> 0 | Z17: =(IF(AND($E17="",$C17=$B$11),1,0)) -> 0 | AA17: =IF($C17=$B$12,$F17,0) -> 0 | AB17: =(IF(AND($E17="",$C17=$B$12),1,0)) -> 0 | AC17: =IF($C17=$B$13,$F17,0) -> 0 | AD17: =(IF(AND($E17="",$C17=$B$13),1,0)) -> 0 | AJ17: =SUM(AG17:AI17) -> 0.0 | AK17: =IF(AJ17=D17,1,0) -> 1 | AL17: =IF(AJ17=0,0,1) -> 0 | AM17: =IF(AK17+AL17=2,"Korrekt","") -> 
A18: 3 | B18: ='Wettkampf 1'!B18 -> Gretenabeln Elias | C18: ='Wettkampf 1'!C18 -> Lorup | F18: 0.0 | G18: 0 | H18: 1 | I18: 0 | J18: 0 | K18: 0 | L18: 0 | M18: 0 | N18: 0 | O18: 0 | P18: 0 | Q18: 0 | R18: 0 | S18: 0 | T18: 0 | U18: 0 | V18: 0 | W18: 0 | X18: 0 | Y18: 0 | Z18: 0 | AA18: 0 | AB18: 0 | AC18: 0 | AD18: 0 | AJ18: 0.0 | AK18: 1 | AL18: 0
A19: 4 | B19: ='Wettkampf 1'!B19 -> Helmer Maike | C19: ='Wettkampf 1'!C19 -> Lorup | F19: 0.0 | G19: 0 | H19: 1 | I19: 0 | J19: 0 | K19: 0 | L19: 0 | M19: 0 | N19: 0 | O19: 0 | P19: 0 | Q19: 0 | R19: 0 | S19: 0 | T19: 0 | U19: 0 | V19: 0 | W19: 0 | X19: 0 | Y19: 0 | Z19: 0 | AA19: 0 | AB19: 0 | AC19: 0 | AD19: 0 | AJ19: 0.0 | AK19: 1 | AL19: 0
A20: 5 | B20: ='Wettkampf 1'!B20 -> Többen Jannes | C20: ='Wettkampf 1'!C20 -> Lorup | F20: 0.0 | G20: 0 | H20: 1 | I20: 0 | J20: 0 | K20: 0 | L20: 0 | M20: 0 | N20: 0 | O20: 0 | P20: 0 | Q20: 0 | R20: 0 | S20: 0 | T20: 0 | U20: 0 | V20: 0 | W20: 0 | X20: 0 | Y20: 0 | Z20: 0 | AA20: 0 | AB20: 0 | AC20: 0 | AD20: 0 | AJ20: 0.0 | AK20: 1 | AL20: 0
A21: 6 | B21: ='Wettkampf 1'!B21 -> Lüken Arne | C21: ='Wettkampf 1'!C21 -> Lorup | F21: 0.0 | G21: 0 | H21: 1 | I21: 0 | J21: 0 | K21: 0 | L21: 0 | M21: 0 | N21: 0 | O21: 0 | P21: 0 | Q21: 0 | R21: 0 | S21: 0 | T21: 0 | U21: 0 | V21: 0 | W21: 0 | X21: 0 | Y21: 0 | Z21: 0 | AA21: 0 | AB21: 0 | AC21: 0 | AD21: 0 | AJ21: 0.0 | AK21: 1 | AL21: 0
A22: 7 | B22: ='Wettkampf 1'!B22 -> Schütze 7 | C22: ='Wettkampf 1'!C22 -> Sögel | F22: 0.0 | G22: 0 | H22: 0 | I22: 0 | J22: 1 | K22: 0 | L22: 0 | M22: 0 | N22: 0 | O22: 0 | P22: 0 | Q22: 0 | R22: 0 | S22: 0 | T22: 0 | U22: 0 | V22: 0 | W22: 0 | X22: 0 | Y22: 0 | Z22: 0 | AA22: 0 | AB22: 0 | AC22: 0 | AD22: 0 | AJ22: 0.0 | AK22: 1 | AL22: 0
A23: 8 | B23: ='Wettkampf 1'!B23 -> Schütze 8 | C23: ='Wettkampf 1'!C23 -> Sögel | F23: 0.0 | G23: 0 | H23: 0 | I23: 0 | J23: 1 | K23: 0 | L23: 0 | M23: 0 | N23: 0 | O23: 0 | P23: 0 | Q23: 0 | R23: 0 | S23: 0 | T23: 0 | U23: 0 | V23: 0 | W23: 0 | X23: 0 | Y23: 0 | Z23: 0 | AA23: 0 | AB23: 0 | AC23: 0 | AD23: 0 | AJ23: 0.0 | AK23: 1 | AL23: 0
A24: 9 | B24: ='Wettkampf 1'!B24 -> Schütze 9 | C24: ='Wettkampf 1'!C24 -> Sögel | F24: 0.0 | G24: 0 | H24: 0 | I24: 0 | J24: 1 | K24: 0 | L24: 0 | M24: 0 | N24: 0 | O24: 0 | P24: 0 | Q24: 0 | R24: 0 | S24: 0 | T24: 0 | U24: 0 | V24: 0 | W24: 0 | X24: 0 | Y24: 0 | Z24: 0 | AA24: 0 | AB24: 0 | AC24: 0 | AD24: 0 | AJ24: 0.0 | AK24: 1 | AL24: 0
A25: 10 | B25: ='Wettkampf 1'!B25 -> Schütze 10 | C25: ='Wettkampf 1'!C25 -> Sögel | F25: 0.0 | G25: 0 | H25: 0 | I25: 0 | J25: 1 | K25: 0 | L25: 0 | M25: 0 | N25: 0 | O25: 0 | P25: 0 | Q25: 0 | R25: 0 | S25: 0 | T25: 0 | U25: 0 | V25: 0 | W25: 0 | X25: 0 | Y25: 0 | Z25: 0 | AA25: 0 | AB25: 0 | AC25: 0 | AD25: 0 | AJ25: 0.0 | AK25: 1 | AL25: 0
A26: 11 | B26: ='Wettkampf 1'!B26 -> Engbers Hannes | C26: ='Wettkampf 1'!C26 -> Spahnharenstätte | F26: 0.0 | G26: 0 | H26: 0 | I26: 0 | J26: 0 | K26: 0 | L26: 1 | M26: 0 | N26: 0 | O26: 0 | P26: 0 | Q26: 0 | R26: 0 | S26: 0 | T26: 0 | U26: 0 | V26: 0 | W26: 0 | X26: 0 | Y26: 0 | Z26: 0 | AA26: 0 | AB26: 0 | AC26: 0 | AD26: 0 | AJ26: 0.0 | AK26: 1 | AL26: 0
A27: 12 | B27: ='Wettkampf 1'!B27 -> Runde Marcel | C27: ='Wettkampf 1'!C27 -> Spahnharenstätte | F27: 0.0 | G27: 0 | H27: 0 | I27: 0 | J27: 0 | K27: 0 | L27: 1 | M27: 0 | N27: 0 | O27: 0 | P27: 0 | Q27: 0 | R27: 0 | S27: 0 | T27: 0 | U27: 0 | V27: 0 | W27: 0 | X27: 0 | Y27: 0 | Z27: 0 | AA27: 0 | AB27: 0 | AC27: 0 | AD27: 0 | AJ27: 0.0 | AK27: 1 | AL27: 0
A28: 13 | B28: ='Wettkampf 1'!B28 -> Jansen Lars | C28: ='Wettkampf 1'!C28 -> Spahnharenstätte | F28: 0.0 | G28: 0 | H28: 0 | I28: 0 | J28: 0 | K28: 0 | L28: 1 | M28: 0 | N28: 0 | O28: 0 | P28: 0 | Q28: 0 | R28: 0 | S28: 0 | T28: 0 | U28: 0 | V28: 0 | W28: 0 | X28: 0 | Y28: 0 | Z28: 0 | AA28: 0 | AB28: 0 | AC28: 0 | AD28: 0 | AJ28: 0.0 | AK28: 1 | AL28: 0
A29: 14 | B29: ='Wettkampf 1'!B29 -> Schütze 14 | C29: ='Wettkampf 1'!C29 -> Spahnharenstätte | F29: 0.0 | G29: 0 | H29: 0 | I29: 0 | J29: 0 | K29: 0 | L29: 1 | M29: 0 | N29: 0 | O29: 0 | P29: 0 | Q29: 0 | R29: 0 | S29: 0 | T29: 0 | U29: 0 | V29: 0 | W29: 0 | X29: 0 | Y29: 0 | Z29: 0 | AA29: 0 | AB29: 0 | AC29: 0 | AD29: 0 | AJ29: 0.0 | AK29: 1 | AL29: 0
A30: 15 | B30: ='Wettkampf 1'!B30 -> Schütze 15 | C30: ='Wettkampf 1'!C30 -> Spahnharenstätte | F30: 0.0 | G30: 0 | H30: 0 | I30: 0 | J30: 0 | K30: 0 | L30: 1 | M30: 0 | N30: 0 | O30: 0 | P30: 0 | Q30: 0 | R30: 0 | S30: 0 | T30: 0 | U30: 0 | V30: 0 | W30: 0 | X30: 0 | Y30: 0 | Z30: 0 | AA30: 0 | AB30: 0 | AC30: 0 | AD30: 0 | AJ30: 0.0 | AK30: 1 | AL30: 0
A31: 16 | B31: ='Wettkampf 1'!B31 -> Suhle Annalena | C31: ='Wettkampf 1'!C31 -> Esterwegen | F31: 0.0 | G31: 0 | H31: 0 | I31: 0 | J31: 0 | K31: 0 | L31: 0 | M31: 0 | N31: 1 | O31: 0 | P31: 0 | Q31: 0 | R31: 0 | S31: 0 | T31: 0 | U31: 0 | V31: 0 | W31: 0 | X31: 0 | Y31: 0 | Z31: 0 | AA31: 0 | AB31: 0 | AC31: 0 | AD31: 0 | AJ31: 0.0 | AK31: 1 | AL31: 0
A32: 17 | B32: ='Wettkampf 1'!B32 -> Gäken Lena | C32: ='Wettkampf 1'!C32 -> Esterwegen | F32: 0.0 | G32: 0 | H32: 0 | I32: 0 | J32: 0 | K32: 0 | L32: 0 | M32: 0 | N32: 1 | O32: 0 | P32: 0 | Q32: 0 | R32: 0 | S32: 0 | T32: 0 | U32: 0 | V32: 0 | W32: 0 | X32: 0 | Y32: 0 | Z32: 0 | AA32: 0 | AB32: 0 | AC32: 0 | AD32: 0 | AJ32: 0.0 | AK32: 1 | AL32: 0
A33: 18 | B33: ='Wettkampf 1'!B33 -> Jansen Daniel | C33: ='Wettkampf 1'!C33 -> Esterwegen | F33: 0.0 | G33: 0 | H33: 0 | I33: 0 | J33: 0 | K33: 0 | L33: 0 | M33: 0 | N33: 1 | O33: 0 | P33: 0 | Q33: 0 | R33: 0 | S33: 0 | T33: 0 | U33: 0 | V33: 0 | W33: 0 | X33: 0 | Y33: 0 | Z33: 0 | AA33: 0 | AB33: 0 | AC33: 0 | AD33: 0 | AJ33: 0.0 | AK33: 1 | AL33: 0
A34: 19 | B34: ='Wettkampf 1'!B34 -> Pieper Jonas | C34: ='Wettkampf 1'!C34 -> Esterwegen | F34: 0.0 | G34: 0 | H34: 0 | I34: 0 | J34: 0 | K34: 0 | L34: 0 | M34: 0 | N34: 1 | O34: 0 | P34: 0 | Q34: 0 | R34: 0 | S34: 0 | T34: 0 | U34: 0 | V34: 0 | W34: 0 | X34: 0 | Y34: 0 | Z34: 0 | AA34: 0 | AB34: 0 | AC34: 0 | AD34: 0 | AJ34: 0.0 | AK34: 1 | AL34: 0
A35: 20 | B35: ='Wettkampf 1'!B35 -> Schütze 20 | C35: ='Wettkampf 1'!C35 -> Esterwegen | F35: 0.0 | G35: 0 | H35: 0 | I35: 0 | J35: 0 | K35: 0 | L35: 0 | M35: 0 | N35: 1 | O35: 0 | P35: 0 | Q35: 0 | R35: 0 | S35: 0 | T35: 0 | U35: 0 | V35: 0 | W35: 0 | X35: 0 | Y35: 0 | Z35: 0 | AA35: 0 | AB35: 0 | AC35: 0 | AD35: 0 | AJ35: 0.0 | AK35: 1 | AL35: 0
A36: 21 | B36: ='Wettkampf 1'!B36 -> Hellweg Thea | C36: ='Wettkampf 1'!C36 -> Lähden | F36: 0.0 | G36: 0 | H36: 0 | I36: 0 | J36: 0 | K36: 0 | L36: 0 | M36: 0 | N36: 0 | O36: 0 | P36: 1 | Q36: 0 | R36: 0 | S36: 0 | T36: 0 | U36: 0 | V36: 0 | W36: 0 | X36: 0 | Y36: 0 | Z36: 0 | AA36: 0 | AB36: 0 | AC36: 0 | AD36: 0 | AJ36: 0.0 | AK36: 1 | AL36: 0
A37: 22 | B37: ='Wettkampf 1'!B37 -> Bruns Henrik | C37: ='Wettkampf 1'!C37 -> Lähden | F37: 0.0 | G37: 0 | H37: 0 | I37: 0 | J37: 0 | K37: 0 | L37: 0 | M37: 0 | N37: 0 | O37: 0 | P37: 1 | Q37: 0 | R37: 0 | S37: 0 | T37: 0 | U37: 0 | V37: 0 | W37: 0 | X37: 0 | Y37: 0 | Z37: 0 | AA37: 0 | AB37: 0 | AC37: 0 | AD37: 0 | AJ37: 0.0 | AK37: 1 | AL37: 0
A38: 23 | B38: ='Wettkampf 1'!B38 -> Buschen Johann | C38: ='Wettkampf 1'!C38 -> Lähden | F38: 0.0 | G38: 0 | H38: 0 | I38: 0 | J38: 0 | K38: 0 | L38: 0 | M38: 0 | N38: 0 | O38: 0 | P38: 1 | Q38: 0 | R38: 0 | S38: 0 | T38: 0 | U38: 0 | V38: 0 | W38: 0 | X38: 0 | Y38: 0 | Z38: 0 | AA38: 0 | AB38: 0 | AC38: 0 | AD38: 0 | AJ38: 0.0 | AK38: 1 | AL38: 0
A39: 24 | B39: ='Wettkampf 1'!B39 -> Preut Jannis | C39: ='Wettkampf 1'!C39 -> Lähden | F39: 0.0 | G39: 0 | H39: 0 | I39: 0 | J39: 0 | K39: 0 | L39: 0 | M39: 0 | N39: 0 | O39: 0 | P39: 1 | Q39: 0 | R39: 0 | S39: 0 | T39: 0 | U39: 0 | V39: 0 | W39: 0 | X39: 0 | Y39: 0 | Z39: 0 | AA39: 0 | AB39: 0 | AC39: 0 | AD39: 0 | AJ39: 0.0 | AK39: 1 | AL39: 0
A40: 25 | B40: ='Wettkampf 1'!B40 -> Fleschenberg Jana | C40: ='Wettkampf 1'!C40 -> Lähden | F40: 0.0 | G40: 0 | H40: 0 | I40: 0 | J40: 0 | K40: 0 | L40: 0 | M40: 0 | N40: 0 | O40: 0 | P40: 1 | Q40: 0 | R40: 0 | S40: 0 | T40: 0 | U40: 0 | V40: 0 | W40: 0 | X40: 0 | Y40: 0 | Z40: 0 | AA40: 0 | AB40: 0 | AC40: 0 | AD40: 0 | AJ40: 0.0 | AK40: 1 | AL40: 0
A41: 26 | B41: ='Wettkampf 1'!B41 -> von Seggern Moritz | C41: ='Wettkampf 1'!C41 -> Lähden | F41: 0.0 | G41: 0 | H41: 0 | I41: 0 | J41: 0 | K41: 0 | L41: 0 | M41: 0 | N41: 0 | O41: 0 | P41: 1 | Q41: 0 | R41: 0 | S41: 0 | T41: 0 | U41: 0 | V41: 0 | W41: 0 | X41: 0 | Y41: 0 | Z41: 0 | AA41: 0 | AB41: 0 | AC41: 0 | AD41: 0 | AJ41: 0.0 | AK41: 1 | AL41: 0
A42: 27 | B42: ='Wettkampf 1'!B42 -> Kohnen Saskia | C42: ='Wettkampf 1'!C42 -> Börgermoor | F42: 0.0 | G42: 0 | H42: 0 | I42: 0 | J42: 0 | K42: 0 | L42: 0 | M42: 0 | N42: 0 | O42: 0 | P42: 0 | Q42: 0 | R42: 1 | S42: 0 | T42: 0 | U42: 0 | V42: 0 | W42: 0 | X42: 0 | Y42: 0 | Z42: 0 | AA42: 0 | AB42: 0 | AC42: 0 | AD42: 0 | AJ42: 0.0 | AK42: 1 | AL42: 0
A43: 28 | B43: ='Wettkampf 1'!B43 -> Niemann Paul | C43: ='Wettkampf 1'!C43 -> Börgermoor | F43: 0.0 | G43: 0 | H43: 0 | I43: 0 | J43: 0 | K43: 0 | L43: 0 | M43: 0 | N43: 0 | O43: 0 | P43: 0 | Q43: 0 | R43: 1 | S43: 0 | T43: 0 | U43: 0 | V43: 0 | W43: 0 | X43: 0 | Y43: 0 | Z43: 0 | AA43: 0 | AB43: 0 | AC43: 0 | AD43: 0 | AJ43: 0.0 | AK43: 1 | AL43: 0
A44: 29 | B44: ='Wettkampf 1'!B44 -> Schütze 29 | C44: ='Wettkampf 1'!C44 -> Börgermoor | F44: 0.0 | G44: 0 | H44: 0 | I44: 0 | J44: 0 | K44: 0 | L44: 0 | M44: 0 | N44: 0 | O44: 0 | P44: 0 | Q44: 0 | R44: 1 | S44: 0 | T44: 0 | U44: 0 | V44: 0 | W44: 0 | X44: 0 | Y44: 0 | Z44: 0 | AA44: 0 | AB44: 0 | AC44: 0 | AD44: 0 | AJ44: 0.0 | AK44: 1 | AL44: 0
A45: 30 | B45: ='Wettkampf 1'!B45 -> Schütze 30 | C45: ='Wettkampf 1'!C45 -> Börgermoor | F45: 0.0 | G45: 0 | H45: 0 | I45: 0 | J45: 0 | K45: 0 | L45: 0 | M45: 0 | N45: 0 | O45: 0 | P45: 0 | Q45: 0 | R45: 1 | S45: 0 | T45: 0 | U45: 0 | V45: 0 | W45: 0 | X45: 0 | Y45: 0 | Z45: 0 | AA45: 0 | AB45: 0 | AC45: 0 | AD45: 0 | AJ45: 0.0 | AK45: 1 | AL45: 0
A46: 31 | B46: ='Wettkampf 1'!B46 -> Stümpler Jan Luka | C46: ='Wettkampf 1'!C46 -> Lähden | F46: 0.0 | G46: 0 | H46: 0 | I46: 0 | J46: 0 | K46: 0 | L46: 0 | M46: 0 | N46: 0 | O46: 0 | P46: 1 | Q46: 0 | R46: 0 | S46: 0 | T46: 0 | U46: 0 | V46: 0 | W46: 0 | X46: 0 | Y46: 0 | Z46: 0 | AA46: 0 | AB46: 0 | AC46: 0 | AD46: 0 | AJ46: 0.0 | AK46: 1 | AL46: 0
A47: 32 | B47: ='Wettkampf 1'!B47 -> Helmer, Nils | C47: ='Wettkampf 1'!C47 -> Lorup | F47: 0.0 | G47: 0 | H47: 1 | I47: 0 | J47: 0 | K47: 0 | L47: 0 | M47: 0 | N47: 0 | O47: 0 | P47: 0 | Q47: 0 | R47: 0 | S47: 0 | T47: 0 | U47: 0 | V47: 0 | W47: 0 | X47: 0 | Y47: 0 | Z47: 0 | AA47: 0 | AB47: 0 | AC47: 0 | AD47: 0 | AJ47: 0.0 | AK47: 1 | AL47: 0
A48: 33 | B48: ='Wettkampf 1'!B48 -> Schütze 33 | C48: ='Wettkampf 1'!C48 -> Verein VII | F48: 0.0 | G48: 0 | H48: 0 | I48: 0 | J48: 0 | K48: 0 | L48: 0 | M48: 0 | N48: 0 | O48: 0 | P48: 0 | Q48: 0 | R48: 0 | S48: 0 | T48: 1 | U48: 0 | V48: 0 | W48: 0 | X48: 0 | Y48: 0 | Z48: 0 | AA48: 0 | AB48: 0 | AC48: 0 | AD48: 0 | AJ48: 0.0 | AK48: 1 | AL48: 0
A49: 34 | B49: ='Wettkampf 1'!B49 -> Schütze 34 | C49: ='Wettkampf 1'!C49 -> Verein VII | F49: 0.0 | G49: 0 | H49: 0 | I49: 0 | J49: 0 | K49: 0 | L49: 0 | M49: 0 | N49: 0 | O49: 0 | P49: 0 | Q49: 0 | R49: 0 | S49: 0 | T49: 1 | U49: 0 | V49: 0 | W49: 0 | X49: 0 | Y49: 0 | Z49: 0 | AA49: 0 | AB49: 0 | AC49: 0 | AD49: 0 | AJ49: 0.0 | AK49: 1 | AL49: 0
A50: 35 | B50: ='Wettkampf 1'!B50 -> Schütze 35 | C50: ='Wettkampf 1'!C50 -> Verein VII | F50: 0.0 | G50: 0 | H50: 0 | I50: 0 | J50: 0 | K50: 0 | L50: 0 | M50: 0 | N50: 0 | O50: 0 | P50: 0 | Q50: 0 | R50: 0 | S50: 0 | T50: 1 | U50: 0 | V50: 0 | W50: 0 | X50: 0 | Y50: 0 | Z50: 0 | AA50: 0 | AB50: 0 | AC50: 0 | AD50: 0 | AJ50: 0.0 | AK50: 1 | AL50: 0
A51: 36 | B51: ='Wettkampf 1'!B51 -> Schütze 36 | C51: ='Wettkampf 1'!C51 -> Verein VII | F51: 0.0 | G51: 0 | H51: 0 | I51: 0 | J51: 0 | K51: 0 | L51: 0 | M51: 0 | N51: 0 | O51: 0 | P51: 0 | Q51: 0 | R51: 0 | S51: 0 | T51: 1 | U51: 0 | V51: 0 | W51: 0 | X51: 0 | Y51: 0 | Z51: 0 | AA51: 0 | AB51: 0 | AC51: 0 | AD51: 0 | AJ51: 0.0 | AK51: 1 | AL51: 0
A52: 37 | B52: ='Wettkampf 1'!B52 -> Schütze 37 | C52: ='Wettkampf 1'!C52 -> Verein VII | F52: 0.0 | G52: 0 | H52: 0 | I52: 0 | J52: 0 | K52: 0 | L52: 0 | M52: 0 | N52: 0 | O52: 0 | P52: 0 | Q52: 0 | R52: 0 | S52: 0 | T52: 1 | U52: 0 | V52: 0 | W52: 0 | X52: 0 | Y52: 0 | Z52: 0 | AA52: 0 | AB52: 0 | AC52: 0 | AD52: 0 | AJ52: 0.0
A53: 38 | B53: ='Wettkampf 1'!B53 -> Schütze 38 | C53: ='Wettkampf 1'!C53 -> Verein VIII | F53: 0.0 | G53: 0 | H53: 0 | I53: 0 | J53: 0 | K53: 0 | L53: 0 | M53: 0 | N53: 0 | O53: 0 | P53: 0 | Q53: 0 | R53: 0 | S53: 0 | T53: 0 | U53: 0 | V53: 1 | W53: 0 | X53: 0 | Y53: 0 | Z53: 0 | AA53: 0 | AB53: 0 | AC53: 0 | AD53: 0 | AJ53: 0.0
A54: 39 | B54: ='Wettkampf 1'!B54 -> Schütze 39 | C54: ='Wettkampf 1'!C54 -> Verein VIII | F54: 0.0 | G54: 0 | H54: 0 | I54: 0 | J54: 0 | K54: 0 | L54: 0 | M54: 0 | N54: 0 | O54: 0 | P54: 0 | Q54: 0 | R54: 0 | S54: =IF($C54=$B$8,$F54,0) -> 0 | T54: =(IF(AND($E54="",$C54=$B$8),1,0)) -> 0 | U54: =IF($C54=$B$9,$F54,0) -> 0 | V54: =(IF(AND($E54="",$C54=$B$9),1,0)) -> 1 | W54: =IF($C54=$B$10,$F54,0) -> 0 | X54: =(IF(AND($E54="",$C54=$B$10),1,0)) -> 0 | Y54: =IF($C54=$B$11,$F54,0) -> 0 | Z54: =(IF(AND($E54="",$C54=$B$11),1,0)) -> 0 | AA54: =IF($C54=$B$12,$F54,0) -> 0 | AB54: =(IF(AND($E54="",$C54=$B$12),1,0)) -> 0 | AC54: =IF($C54=$B$13,$F54,0) -> 0 | AD54: =(IF(AND($E54="",$C54=$B$13),1,0)) -> 0 | AJ54: 0.0
A55: 40 | B55: ='Wettkampf 1'!B55 -> Schütze 40 | C55: ='Wettkampf 1'!C55 -> Verein VIII | F55: 0.0 | G55: 0 | H55: 0 | I55: 0 | J55: 0 | K55: 0 | L55: 0 | M55: 0 | N55: 0 | O55: 0 | P55: 0 | Q55: 0 | R55: 0 | S55: 0 | T55: 0 | U55: 0 | V55: 1 | W55: 0 | X55: 0 | Y55: 0 | Z55: 0 | AA55: 0 | AB55: 0 | AC55: 0 | AD55: 0 | AJ55: 0.0
A56: 41 | B56: ='Wettkampf 1'!B56 -> Schütze 41 | C56: ='Wettkampf 1'!C56 -> Verein IX | F56: 0.0 | G56: 0 | H56: 0 | I56: 0 | J56: 0 | K56: 0 | L56: 0 | M56: 0 | N56: 0 | O56: 0 | P56: 0 | Q56: 0 | R56: 0 | S56: 0 | T56: 0 | U56: 0 | V56: 0 | W56: 0 | X56: 1 | Y56: 0 | Z56: 0 | AA56: 0 | AB56: 0 | AC56: 0 | AD56: 0 | AJ56: 0.0
A57: 42 | B57: ='Wettkampf 1'!B57 -> Schütze 42 | C57: ='Wettkampf 1'!C57 -> Verein IX | F57: 0.0 | G57: 0 | H57: 0 | I57: 0 | J57: 0 | K57: 0 | L57: 0 | M57: 0 | N57: 0 | O57: 0 | P57: 0 | Q57: 0 | R57: 0 | S57: 0 | T57: 0 | U57: 0 | V57: 0 | W57: 0 | X57: 1 | Y57: 0 | Z57: 0 | AA57: 0 | AB57: 0 | AC57: 0 | AD57: 0 | AJ57: 0.0
A58: 43 | B58: ='Wettkampf 1'!B58 -> Schütze 43 | C58: ='Wettkampf 1'!C58 -> Verein IX | F58: 0.0 | G58: 0 | H58: 0 | I58: 0 | J58: 0 | K58: 0 | L58: 0 | M58: 0 | N58: 0 | O58: 0 | P58: 0 | Q58: 0 | R58: 0 | S58: 0 | T58: 0 | U58: 0 | V58: 0 | W58: 0 | X58: 1 | Y58: 0 | Z58: 0 | AA58: 0 | AB58: 0 | AC58: 0 | AD58: 0 | AJ58: 0.0
A59: 44 | B59: ='Wettkampf 1'!B59 -> Schütze 44 | C59: ='Wettkampf 1'!C59 -> Verein IX | F59: 0.0 | G59: 0 | H59: 0 | I59: 0 | J59: 0 | K59: 0 | L59: 0 | M59: 0 | N59: 0 | O59: 0 | P59: 0 | Q59: 0 | R59: 0 | S59: 0 | T59: 0 | U59: 0 | V59: 0 | W59: 0 | X59: 1 | Y59: 0 | Z59: 0 | AA59: 0 | AB59: 0 | AC59: 0 | AD59: 0 | AJ59: 0.0
A60: 45 | B60: ='Wettkampf 1'!B60 -> Schütze 45 | C60: ='Wettkampf 1'!C60 -> Verein IX | F60: 0.0 | G60: 0 | H60: 0 | I60: 0 | J60: 0 | K60: 0 | L60: 0 | M60: 0 | N60: 0 | O60: 0 | P60: 0 | Q60: 0 | R60: 0 | S60: 0 | T60: 0 | U60: 0 | V60: 0 | W60: 0 | X60: 1 | Y60: 0 | Z60: 0 | AA60: 0 | AB60: 0 | AC60: 0 | AD60: 0 | AJ60: 0.0
A61: 46 | B61: ='Wettkampf 1'!B61 -> Schütze 46 | C61: ='Wettkampf 1'!C61 -> Verein X | F61: 0.0 | G61: 0 | H61: 0 | I61: 0 | J61: 0 | K61: 0 | L61: 0 | M61: 0 | N61: 0 | O61: 0 | P61: 0 | Q61: 0 | R61: 0 | S61: 0 | T61: 0 | U61: 0 | V61: 0 | W61: 0 | X61: 0 | Y61: 0 | Z61: 1 | AA61: 0 | AB61: 0 | AC61: 0 | AD61: 0 | AJ61: 0.0
A62: 47 | B62: ='Wettkampf 1'!B62 -> Schütze 47 | C62: ='Wettkampf 1'!C62 -> Verein X | F62: 0.0 | G62: 0 | H62: 0 | I62: 0 | J62: 0 | K62: 0 | L62: 0 | M62: 0 | N62: 0 | O62: 0 | P62: 0 | Q62: 0 | R62: 0 | S62: 0 | T62: 0 | U62: 0 | V62: 0 | W62: 0 | X62: 0 | Y62: 0 | Z62: 1 | AA62: 0 | AB62: 0 | AC62: 0 | AD62: 0 | AJ62: 0.0
A63: 48 | B63: ='Wettkampf 1'!B63 -> Schütze 48 | C63: ='Wettkampf 1'!C63 -> Verein X | F63: 0.0 | G63: 0 | H63: 0 | I63: 0 | J63: 0 | K63: 0 | L63: 0 | M63: 0 | N63: 0 | O63: 0 | P63: 0 | Q63: 0 | R63: 0 | S63: 0 | T63: 0 | U63: 0 | V63: 0 | W63: 0 | X63: 0 | Y63: 0 | Z63: 1 | AA63: 0 | AB63: 0 | AC63: 0 | AD63: 0 | AJ63: 0.0
A64: 49 | B64: ='Wettkampf 1'!B64 -> Schütze 49 | C64: ='Wettkampf 1'!C64 -> Verein X | F64: 0.0 | G64: 0 | H64: 0 | I64: 0 | J64: 0 | K64: 0 | L64: 0 | M64: 0 | N64: 0 | O64: 0 | P64: 0 | Q64: 0 | R64: 0 | S64: 0 | T64: 0 | U64: 0 | V64: 0 | W64: 0 | X64: 0 | Y64: 0 | Z64: 1 | AA64: 0 | AB64: 0 | AC64: 0 | AD64: 0 | AJ64: 0.0
A65: 50 | B65: ='Wettkampf 1'!B65 -> Schütze 50 | C65: ='Wettkampf 1'!C65 -> Verein X | F65: 0.0 | G65: 0 | H65: 0 | I65: 0 | J65: 0 | K65: 0 | L65: 0 | M65: 0 | N65: 0 | O65: 0 | P65: 0 | Q65: 0 | R65: 0 | S65: 0 | T65: 0 | U65: 0 | V65: 0 | W65: 0 | X65: 0 | Y65: 0 | Z65: 1 | AA65: 0 | AB65: 0 | AC65: 0 | AD65: 0 | AJ65: 0.0
A66: 51 | B66: ='Wettkampf 1'!B66 -> Schütze 51 | C66: ='Wettkampf 1'!C66 -> Verein XI | F66: 0.0 | G66: 0 | H66: 0 | I66: 0 | J66: 0 | K66: 0 | L66: 0 | M66: 0 | N66: 0 | O66: 0 | P66: 0 | Q66: 0 | R66: 0 | S66: 0 | T66: 0 | U66: 0 | V66: 0 | W66: 0 | X66: 0 | Y66: 0 | Z66: 0 | AA66: 0 | AB66: 1 | AC66: 0 | AD66: 0 | AJ66: 0.0
A67: 52 | B67: ='Wettkampf 1'!B67 -> Schütze 52 | C67: ='Wettkampf 1'!C67 -> Verein XI | F67: 0.0 | G67: 0 | H67: 0 | I67: 0 | J67: 0 | K67: 0 | L67: 0 | M67: 0 | N67: 0 | O67: 0 | P67: 0 | Q67: 0 | R67: 0 | S67: 0 | T67: 0 | U67: 0 | V67: 0 | W67: 0 | X67: 0 | Y67: 0 | Z67: 0 | AA67: 0 | AB67: 1 | AC67: 0 | AD67: 0 | AJ67: 0.0
A68: 53 | B68: ='Wettkampf 1'!B68 -> Schütze 53 | C68: ='Wettkampf 1'!C68 -> Verein XI | F68: 0.0 | G68: 0 | H68: 0 | I68: 0 | J68: 0 | K68: 0 | L68: 0 | M68: 0 | N68: 0 | O68: 0 | P68: 0 | Q68: 0 | R68: 0 | S68: 0 | T68: 0 | U68: 0 | V68: 0 | W68: 0 | X68: 0 | Y68: 0 | Z68: 0 | AA68: 0 | AB68: 1 | AC68: 0 | AD68: 0 | AJ68: 0.0
A69: 54 | B69: ='Wettkampf 1'!B69 -> Schütze 54 | C69: ='Wettkampf 1'!C69 -> Verein XI | F69: 0.0 | G69: 0 | H69: 0 | I69: 0 | J69: 0 | K69: 0 | L69: 0 | M69: 0 | N69: 0 | O69: 0 | P69: 0 | Q69: 0 | R69: 0 | S69: 0 | T69: 0 | U69: 0 | V69: 0 | W69: 0 | X69: 0 | Y69: 0 | Z69: 0 | AA69: 0 | AB69: 1 | AC69: 0 | AD69: 0 | AJ69: 0.0
A70: 55 | B70: ='Wettkampf 1'!B70 -> Schütze 55 | C70: ='Wettkampf 1'!C70 -> Verein XI | F70: 0.0 | G70: 0 | H70: 0 | I70: 0 | J70: 0 | K70: 0 | L70: 0 | M70: 0 | N70: 0 | O70: 0 | P70: 0 | Q70: 0 | R70: 0 | S70: 0 | T70: 0 | U70: 0 | V70: 0 | W70: 0 | X70: 0 | Y70: 0 | Z70: 0 | AA70: 0 | AB70: 1 | AC70: 0 | AD70: 0 | AJ70: 0.0
A71: 56 | B71: ='Wettkampf 1'!B71 -> Schütze 56 | C71: ='Wettkampf 1'!C71 -> Verein XII | F71: 0.0 | G71: 0 | H71: 0 | I71: 0 | J71: 0 | K71: 0 | L71: 0 | M71: 0 | N71: 0 | O71: 0 | P71: 0 | Q71: 0 | R71: 0 | S71: 0 | T71: 0 | U71: 0 | V71: 0 | W71: 0 | X71: 0 | Y71: 0 | Z71: 0 | AA71: 0 | AB71: 0 | AC71: 0 | AD71: 1 | AJ71: 0.0
A72: 57 | B72: ='Wettkampf 1'!B72 -> Schütze 57 | C72: ='Wettkampf 1'!C72 -> Verein XII | F72: 0.0 | G72: 0 | H72: 0 | I72: 0 | J72: 0 | K72: 0 | L72: 0 | M72: 0 | N72: 0 | O72: 0 | P72: 0 | Q72: 0 | R72: 0 | S72: 0 | T72: 0 | U72: 0 | V72: 0 | W72: 0 | X72: 0 | Y72: 0 | Z72: 0 | AA72: 0 | AB72: 0 | AC72: 0 | AD72: 1 | AJ72: 0.0
A73: 58 | B73: ='Wettkampf 1'!B73 -> Schütze 58 | C73: ='Wettkampf 1'!C73 -> Verein XII | F73: 0.0 | G73: 0 | H73: 0 | I73: 0 | J73: 0 | K73: 0 | L73: 0 | M73: 0 | N73: 0 | O73: 0 | P73: 0 | Q73: 0 | R73: 0 | S73: 0 | T73: 0 | U73: 0 | V73: 0 | W73: 0 | X73: 0 | Y73: 0 | Z73: 0 | AA73: 0 | AB73: 0 | AC73: 0 | AD73: 1 | AJ73: 0.0
A74: 59 | B74: ='Wettkampf 1'!B74 -> Schütze 59 | C74: ='Wettkampf 1'!C74 -> Verein XII | F74: 0.0 | G74: 0 | H74: 0 | I74: 0 | J74: 0 | K74: 0 | L74: 0 | M74: 0 | N74: 0 | O74: 0 | P74: 0 | Q74: 0 | R74: 0 | S74: 0 | T74: 0 | U74: 0 | V74: 0 | W74: 0 | X74: 0 | Y74: 0 | Z74: 0 | AA74: 0 | AB74: 0 | AC74: 0 | AD74: 1 | AJ74: 0.0
A75: 60 | B75: ='Wettkampf 1'!B75 -> Schütze 60 | C75: ='Wettkampf 1'!C75 -> Verein XII | F75: 0.0 | G75: 0 | H75: 0 | I75: 0 | J75: 0 | K75: 0 | L75: 0 | M75: 0 | N75: 0 | O75: 0 | P75: 0 | Q75: 0 | R75: 0 | S75: 0 | T75: 0 | U75: 0 | V75: 0 | W75: 0 | X75: 0 | Y75: 0 | Z75: 0 | AA75: 0 | AB75: 0 | AC75: 0 | AD75: 1 | AJ75: 0.0
G76: =LARGE(G16:G75,1)+LARGE(G16:G75,2)+LARGE(G16:G75,3) -> 0 | H76: =SUM(H16:H75) -> 7 | I76: =LARGE(I16:I75,1)+LARGE(I16:I75,2)+LARGE(I16:I75,3) -> 0 | J76: =SUM(J16:J75) -> 4 | K76: =LARGE(K16:K75,1)+LARGE(K16:K75,2)+LARGE(K16:K75,3) -> 0 | L76: =SUM(L16:L75) -> 5 | M76: =LARGE(M16:M75,1)+LARGE(M16:M75,2)+LARGE(M16:M75,3) -> 0 | N76: =SUM(N16:N75) -> 5 | O76: =LARGE(O16:O75,1)+LARGE(O16:O75,2)+LARGE(O16:O75,3) -> 0 | P76: =SUM(P16:P75) -> 7 | Q76: =LARGE(Q16:Q75,1)+LARGE(Q16:Q75,2)+LARGE(Q16:Q75,3) -> 0 | R76: =SUM(R16:R75) -> 4 | S76: =LARGE(S16:S75,1)+LARGE(S16:S75,2)+LARGE(S16:S75,3) -> 0 | T76: =SUM(T16:T75) -> 5 | U76: =LARGE(U16:U75,1)+LARGE(U16:U75,2)+LARGE(U16:U75,3) -> 0 | V76: =SUM(V16:V75) -> 3 | W76: =LARGE(W16:W75,1)+LARGE(W16:W75,2)+LARGE(W16:W75,3) -> 0 | X76: =SUM(X16:X75) -> 5 | Y76: =LARGE(Y16:Y75,1)+LARGE(Y16:Y75,2)+LARGE(Y16:Y75,3) -> 0 | Z76: =SUM(Z16:Z75) -> 5 | AA76: =LARGE(AA16:AA75,1)+LARGE(AA16:AA75,2)+LARGE(AA16:AA75,3) -> 0 | AB76: =SUM(AB16:AB75) -> 5 | AC76: =LARGE(AC16:AC75,1)+LARGE(AC16:AC75,2)+LARGE(AC16:AC75,3) -> 0 | AD76: =SUM(AD16:AD75) -> 5
C77: per Email an: sk-huemmling@gmx.de

Sheet 7
B1: Verein / Gruppe | D1: Ergebnisse | AH1: Austragungsort: | AI1: =Übersicht!L4 -> Esterwegen
A2: 1 | B2: ='Wettkampf 1'!B2 -> Lorup | D2: =G76 -> 425.4 | E2: =IF(H76>4,"Es sind zu viele Schützen in Wertung!"," ") -> Es sind zu viele Schützen in Wertung! | AH2: Wettkampftag: | AI2: =Übersicht!L3 -> 13.01.
A3: 2 | B3: ='Wettkampf 1'!B3 -> Sögel | D3: =I76 -> 0.0 | E3: =IF(J76>4,"Es sind zu viele Schützen in Wertung!"," ") -> 
A4: 3 | B4: ='Wettkampf 1'!B4 -> Spahnharenstätte | D4: =K76 -> 225.8 | E4: =IF(L76>4,"Es sind zu viele Schützen in Wertung!"," ") -> Es sind zu viele Schützen in Wertung! | AJ4: Ansprechpartner für Rückfragen:
A5: 4 | B5: ='Wettkampf 1'!B5 -> Esterwegen | D5: =M76 -> 522.2 | E5: =IF(N76>4,"Es sind zu viele Schützen in Wertung!"," ") -> Es sind zu viele Schützen in Wertung! | AH5: Name: | AI5: Michael Meibers
A6: 5 | B6: ='Wettkampf 1'!B6 -> Lähden | D6: =O76 -> 563.6 | E6: =IF(P76>4,"Es sind zu viele Schützen in Wertung!"," ") -> Es sind zu viele Schützen in Wertung! | AH6: Tel:
A7: 6 | B7: ='Wettkampf 1'!B7 -> Börgermoor | D7: =Q76 -> 0.0 | E7: =IF(R76>4,"Es sind zu viele Schützen in Wertung!"," ") ->  | AH7: Standaufsicht: | AI7: Michael Meibers
A8: 7 | B8: ='Wettkampf 1'!B8 -> Verein VII | D8: =S76 -> 0.0 | E8: =IF(T76>4,"Es sind zu viele Schützen in Wertung!"," ") -> Es sind zu viele Schützen in Wertung!
A9: 8 | B9: ='Wettkampf 1'!B9 -> Verein VIII | D9: =U76 -> 0.0 | E9: =IF(V76>4,"Es sind zu viele Schützen in Wertung!"," ") -> 
A10: 9 | B10: ='Wettkampf 1'!B10 -> Verein IX | D10: =W76 -> 0.0 | E10: =IF(X76>4,"Es sind zu viele Schützen in Wertung!"," ") -> Es sind zu viele Schützen in Wertung!
A11: 10 | B11: ='Wettkampf 1'!B11 -> Verein X | D11: =Y76 -> 0.0 | E11: =IF(Z76>4,"Es sind zu viele Schützen in Wertung!"," ") -> Es sind zu viele Schützen in Wertung!
A12: 11 | B12: ='Wettkampf 1'!B12 -> Verein XI | D12: =AA76 -> 0.0 | E12: =IF(AB76>4,"Es sind zu viele Schützen in Wertung!"," ") -> Es sind zu viele Schützen in Wertung!
A13: 12 | B13: ='Wettkampf 1'!B13 -> Verein XII | D13: =AC76 -> 0.0 | E13: =IF(AD76>4,"Es sind zu viele Schützen in Wertung!"," ") -> Es sind zu viele Schützen in Wertung!
B15: Einzelergebnisse: | C15: Verein / Gruppe | D15: Ergebnisse (mindestens 0 eintragen) | E15: AW? Dann x eintippen | G15: Verein 1 | I15: Verein 2 | K15: Verein 3 | M15: Verein 4 | O15: Verein 5 | Q15: Verein 6 | S15: Verein 7 | U15: Verein 8 | W15: Verein 9 | Y15: Verein 10 | AA15: Verein 11 | AC15: Verein 12 | AG15: Proberechnung bei Streifen:
A16: 1 | B16: ='Wettkampf 1'!B16 -> Wotte Lia | C16: ='Wettkampf 1'!C16 -> Lorup | D16: 166.3 | F16: =IF(E16="x","0",D16) -> 166.3 | G16: =IF(C16=$B$2,F16,0) -> 166.3 | H16: =(IF(AND($E16="",$C16=$B$2),1,0)) -> 1 | I16: =IF($C16=$B$3,$F16,0) -> 0 | J16: =(IF(AND($E16="",$C16=$B$3),1,0)) -> 0 | K16: =IF($C16=$B$4,F16,0) -> 0 | L16: =(IF(AND($E16="",$C16=$B$4),1,0)) -> 0 | M16: =IF($C16=$B$5,F16,0) -> 0 | N16: =(IF(AND($E16="",$C16=$B$5),1,0)) -> 0 | O16: =IF($C16=$B$6,F16,0) -> 0 | P16: =(IF(AND($E16="",$C16=$B$6),1,0)) -> 0 | Q16: =IF($C16=$B$7,F16,0) -> 0 | R16: =(IF(AND($E16="",$C16=$B$7),1,0)) -> 0 | S16: =IF($C16=$B$8,$F16,0) -> 0 | T16: =(IF(AND($E16="",$C16=$B$8),1,0)) -> 0 | U16: =IF($C16=$B$9,$F16,0) -> 0 | V16: =(IF(AND($E16="",$C16=$B$9),1,0)) -> 0 | W16: =IF($C16=$B$10,$F16,0) -> 0 | X16: =(IF(AND($E16="",$C16=$B$10),1,0)) -> 0 | Y16: =IF($C16=$B$11,$F16,0) -> 0 | Z16: =(IF(AND($E16="",$C16=$B$11),1,0)) -> 0 | AA16: =IF($C16=$B$12,$F16,0) -> 0 | AB16: =(IF(AND($E16="",$C16=$B$12),1,0)) -> 0 | AC16: =IF($C16=$B$13,$F16,0) -> 0 | AD16: =(IF(AND($E16="",$C16=$B$13),1,0)) -> 0 | AJ16: =SUM(AG16:AI16) -> 0.0 | AK16: =IF(AJ16=D16,1,0) -> 0 | AL16: =IF(AJ16=0,0,1) -> 0 | AM16: =IF(AK16+AL16=2,"Korrekt","") -> 
A17: 2 | B17: ='Wettkampf 1'!B17 -> Wotte Hannes | C17: ='Wettkampf 1'!C17 -> Lorup | D17: 131.3 | F17: =IF(E17="x","0",D17) -> 131.3 | G17: =IF(C17=$B$2,F17,0) -> 131.3 | H17: =(IF(AND($E17="",$C17=$B$2),1,0)) -> 1 | I17: =IF($C17=$B$3,F17,0) -> 0 | J17: =(IF(AND($E17="",$C17=$B$3),1,0)) -> 0 | K17: =IF($C17=$B$4,F17,0) -> 0 | L17: =(IF(AND($E17="",$C17=$B$4),1,0)) -> 0 | M17: =IF($C17=$B$5,F17,0) -> 0 | N17: =(IF(AND($E17="",$C17=$B$5),1,0)) -> 0 | O17: =IF($C17=$B$6,F17,0) -> 0 | P17: =(IF(AND($E17="",$C17=$B$6),1,0)) -> 0 | Q17: =IF($C17=$B$7,F17,0) -> 0 | R17: =(IF(AND($E17="",$C17=$B$7),1,0)) -> 0 | S17: =IF($C17=$B$8,$F17,0) -> 0 | T17: =(IF(AND($E17="",$C17=$B$8),1,0)) -> 0 | U17: =IF($C17=$B$9,$F17,0) -> 0 | V17: =(IF(AND($E17="",$C17=$B$9),1,0)) -> 0 | W17: =IF($C17=$B$10,$F17,0) -> 0 | X17: =(IF(AND($E17="",$C17=$B$10),1,0)) -> 0 | Y17: =IF($C17=$B$11,$F17,0) -> 0 | Z17: =(IF(AND($E17="",$C17=$B$11),1,0)) -> 0 | AA17: =IF($C17=$B$12,$F17,0) -> 0 | AB17: =(IF(AND($E17="",$C17=$B$12),1,0)) -> 0 | AC17: =IF($C17=$B$13,$F17,0) -> 0 | AD17: =(IF(AND($E17="",$C17=$B$13),1,0)) -> 0 | AJ17: =SUM(AG17:AI17) -> 0.0 | AK17: =IF(AJ17=D17,1,0) -> 0 | AL17: =IF(AJ17=0,0,1) -> 0 | AM17: =IF(AK17+AL17=2,"Korrekt","") -> 
A18: 3 | B18: ='Wettkampf 1'!B18 -> Gretenabeln Elias | C18: ='Wettkampf 1'!C18 -> Lorup | D18: 105.2 | F18: 105.2 | G18: 105.2 | H18: 1 | I18: 0 | J18: 0 | K18: 0 | L18: 0 | M18: 0 | N18: 0 | O18: 0 | P18: 0 | Q18: 0 | R18: 0 | S18: 0 | T18: 0 | U18: 0 | V18: 0 | W18: 0 | X18: 0 | Y18: 0 | Z18: 0 | AA18: 0 | AB18: 0 | AC18: 0 | AD18: 0 | AJ18: 0.0 | AK18: 0 | AL18: 0
A19: 4 | B19: ='Wettkampf 1'!B19 -> Helmer Maike | C19: ='Wettkampf 1'!C19 -> Lorup | D19: 127.8 | F19: 127.8 | G19: 127.8 | H19: 1 | I19: 0 | J19: 0 | K19: 0 | L19: 0 | M19: 0 | N19: 0 | O19: 0 | P19: 0 | Q19: 0 | R19: 0 | S19: 0 | T19: 0 | U19: 0 | V19: 0 | W19: 0 | X19: 0 | Y19: 0 | Z19: 0 | AA19: 0 | AB19: 0 | AC19: 0 | AD19: 0 | AJ19: 0.0 | AK19: 0 | AL19: 0
A20: 5 | B20: ='Wettkampf 1'!B20 -> Többen Jannes | C20: ='Wettkampf 1'!C20 -> Lorup | D20: 109.5 | E20: x | F20: 0 | G20: 0 | H20: 0 | I20: 0 | J20: 0 | K20: 0 | L20: 0 | M20: 0 | N20: 0 | O20: 0 | P20: 0 | Q20: 0 | R20: 0 | S20: 0 | T20: 0 | U20: 0 | V20: 0 | W20: 0 | X20: 0 | Y20: 0 | Z20: 0 | AA20: 0 | AB20: 0 | AC20: 0 | AD20: 0 | AJ20: 0.0 | AK20: 0 | AL20: 0
A21: 6 | B21: ='Wettkampf 1'!B21 -> Lüken Arne | C21: ='Wettkampf 1'!C21 -> Lorup | F21: 0.0 | G21: 0 | H21: 1 | I21: 0 | J21: 0 | K21: 0 | L21: 0 | M21: 0 | N21: 0 | O21: 0 | P21: 0 | Q21: 0 | R21: 0 | S21: 0 | T21: 0 | U21: 0 | V21: 0 | W21: 0 | X21: 0 | Y21: 0 | Z21: 0 | AA21: 0 | AB21: 0 | AC21: 0 | AD21: 0 | AJ21: 0.0 | AK21: 1 | AL21: 0
A22: 7 | B22: ='Wettkampf 1'!B22 -> Schütze 7 | C22: ='Wettkampf 1'!C22 -> Sögel | F22: 0.0 | G22: 0 | H22: 0 | I22: 0 | J22: 1 | K22: 0 | L22: 0 | M22: 0 | N22: 0 | O22: 0 | P22: 0 | Q22: 0 | R22: 0 | S22: 0 | T22: 0 | U22: 0 | V22: 0 | W22: 0 | X22: 0 | Y22: 0 | Z22: 0 | AA22: 0 | AB22: 0 | AC22: 0 | AD22: 0 | AJ22: 0.0 | AK22: 1 | AL22: 0
A23: 8 | B23: ='Wettkampf 1'!B23 -> Schütze 8 | C23: ='Wettkampf 1'!C23 -> Sögel | F23: 0.0 | G23: 0 | H23: 0 | I23: 0 | J23: 1 | K23: 0 | L23: 0 | M23: 0 | N23: 0 | O23: 0 | P23: 0 | Q23: 0 | R23: 0 | S23: 0 | T23: 0 | U23: 0 | V23: 0 | W23: 0 | X23: 0 | Y23: 0 | Z23: 0 | AA23: 0 | AB23: 0 | AC23: 0 | AD23: 0 | AJ23: 0.0 | AK23: 1 | AL23: 0
A24: 9 | B24: ='Wettkampf 1'!B24 -> Schütze 9 | C24: ='Wettkampf 1'!C24 -> Sögel | F24: 0.0 | G24: 0 | H24: 0 | I24: 0 | J24: 1 | K24: 0 | L24: 0 | M24: 0 | N24: 0 | O24: 0 | P24: 0 | Q24: 0 | R24: 0 | S24: 0 | T24: 0 | U24: 0 | V24: 0 | W24: 0 | X24: 0 | Y24: 0 | Z24: 0 | AA24: 0 | AB24: 0 | AC24: 0 | AD24: 0 | AJ24: 0.0 | AK24: 1 | AL24: 0
A25: 10 | B25: ='Wettkampf 1'!B25 -> Schütze 10 | C25: ='Wettkampf 1'!C25 -> Sögel | F25: 0.0 | G25: 0 | H25: 0 | I25: 0 | J25: 1 | K25: 0 | L25: 0 | M25: 0 | N25: 0 | O25: 0 | P25: 0 | Q25: 0 | R25: 0 | S25: 0 | T25: 0 | U25: 0 | V25: 0 | W25: 0 | X25: 0 | Y25: 0 | Z25: 0 | AA25: 0 | AB25: 0 | AC25: 0 | AD25: 0 | AJ25: 0.0 | AK25: 1 | AL25: 0
A26: 11 | B26: ='Wettkampf 1'!B26 -> Engbers Hannes | C26: ='Wettkampf 1'!C26 -> Spahnharenstätte | D26: 70.0 | F26: 70.0 | G26: 0 | H26: 0 | I26: 0 | J26: 0 | K26: 70 | L26: 1 | M26: 0 | N26: 0 | O26: 0 | P26: 0 | Q26: 0 | R26: 0 | S26: 0 | T26: 0 | U26: 0 | V26: 0 | W26: 0 | X26: 0 | Y26: 0 | Z26: 0 | AA26: 0 | AB26: 0 | AC26: 0 | AD26: 0 | AJ26: 0.0 | AK26: 0 | AL26: 0
A27: 12 | B27: ='Wettkampf 1'!B27 -> Runde Marcel | C27: ='Wettkampf 1'!C27 -> Spahnharenstätte | D27: 155.8 | F27: 155.8 | G27: 0 | H27: 0 | I27: 0 | J27: 0 | K27: 155.8 | L27: 1 | M27: 0 | N27: 0 | O27: 0 | P27: 0 | Q27: 0 | R27: 0 | S27: 0 | T27: 0 | U27: 0 | V27: 0 | W27: 0 | X27: 0 | Y27: 0 | Z27: 0 | AA27: 0 | AB27: 0 | AC27: 0 | AD27: 0 | AJ27: 0.0 | AK27: 0 | AL27: 0
A28: 13 | B28: ='Wettkampf 1'!B28 -> Jansen Lars | C28: ='Wettkampf 1'!C28 -> Spahnharenstätte | F28: 0.0 | G28: 0 | H28: 0 | I28: 0 | J28: 0 | K28: 0 | L28: 1 | M28: 0 | N28: 0 | O28: 0 | P28: 0 | Q28: 0 | R28: 0 | S28: 0 | T28: 0 | U28: 0 | V28: 0 | W28: 0 | X28: 0 | Y28: 0 | Z28: 0 | AA28: 0 | AB28: 0 | AC28: 0 | AD28: 0 | AJ28: 0.0 | AK28: 1 | AL28: 0
A29: 14 | B29: ='Wettkampf 1'!B29 -> Schütze 14 | C29: ='Wettkampf 1'!C29 -> Spahnharenstätte | F29: 0.0 | G29: 0 | H29: 0 | I29: 0 | J29: 0 | K29: 0 | L29: 1 | M29: 0 | N29: 0 | O29: 0 | P29: 0 | Q29: 0 | R29: 0 | S29: 0 | T29: 0 | U29: 0 | V29: 0 | W29: 0 | X29: 0 | Y29: 0 | Z29: 0 | AA29: 0 | AB29: 0 | AC29: 0 | AD29: 0 | AJ29: 0.0 | AK29: 1 | AL29: 0
A30: 15 | B30: ='Wettkampf 1'!B30 -> Schütze 15 | C30: ='Wettkampf 1'!C30 -> Spahnharenstätte | F30: 0.0 | G30: 0 | H30: 0 | I30: 0 | J30: 0 | K30: 0 | L30: 1 | M30: 0 | N30: 0 | O30: 0 | P30: 0 | Q30: 0 | R30: 0 | S30: 0 | T30: 0 | U30: 0 | V30: 0 | W30: 0 | X30: 0 | Y30: 0 | Z30: 0 | AA30: 0 | AB30: 0 | AC30: 0 | AD30: 0 | AJ30: 0.0 | AK30: 1 | AL30: 0
A31: 16 | B31: ='Wettkampf 1'!B31 -> Suhle Annalena | C31: ='Wettkampf 1'!C31 -> Esterwegen | D31: 185.3 | F31: 185.3 | G31: 0 | H31: 0 | I31: 0 | J31: 0 | K31: 0 | L31: 0 | M31: 185.3 | N31: 1 | O31: 0 | P31: 0 | Q31: 0 | R31: 0 | S31: 0 | T31: 0 | U31: 0 | V31: 0 | W31: 0 | X31: 0 | Y31: 0 | Z31: 0 | AA31: 0 | AB31: 0 | AC31: 0 | AD31: 0 | AJ31: 0.0 | AK31: 0 | AL31: 0
A32: 17 | B32: ='Wettkampf 1'!B32 -> Gäken Lena | C32: ='Wettkampf 1'!C32 -> Esterwegen | D32: 170.4 | F32: 170.4 | G32: 0 | H32: 0 | I32: 0 | J32: 0 | K32: 0 | L32: 0 | M32: 170.4 | N32: 1 | O32: 0 | P32: 0 | Q32: 0 | R32: 0 | S32: 0 | T32: 0 | U32: 0 | V32: 0 | W32: 0 | X32: 0 | Y32: 0 | Z32: 0 | AA32: 0 | AB32: 0 | AC32: 0 | AD32: 0 | AJ32: 0.0 | AK32: 0 | AL32: 0
A33: 18 | B33: ='Wettkampf 1'!B33 -> Jansen Daniel | C33: ='Wettkampf 1'!C33 -> Esterwegen | D33: 166.5 | F33: 166.5 | G33: 0 | H33: 0 | I33: 0 | J33: 0 | K33: 0 | L33: 0 | M33: 166.5 | N33: 1 | O33: 0 | P33: 0 | Q33: 0 | R33: 0 | S33: 0 | T33: 0 | U33: 0 | V33: 0 | W33: 0 | X33: 0 | Y33: 0 | Z33: 0 | AA33: 0 | AB33: 0 | AC33: 0 | AD33: 0 | AJ33: 0.0 | AK33: 0 | AL33: 0
A34: 19 | B34: ='Wettkampf 1'!B34 -> Pieper Jonas | C34: ='Wettkampf 1'!C34 -> Esterwegen | F34: 0.0 | G34: 0 | H34: 0 | I34: 0 | J34: 0 | K34: 0 | L34: 0 | M34: 0 | N34: 1 | O34: 0 | P34: 0 | Q34: 0 | R34: 0 | S34: 0 | T34: 0 | U34: 0 | V34: 0 | W34: 0 | X34: 0 | Y34: 0 | Z34: 0 | AA34: 0 | AB34: 0 | AC34: 0 | AD34: 0 | AJ34: 0.0 | AK34: 1 | AL34: 0
A35: 20 | B35: ='Wettkampf 1'!B35 -> Schütze 20 | C35: ='Wettkampf 1'!C35 -> Esterwegen | F35: 0.0 | G35: 0 | H35: 0 | I35: 0 | J35: 0 | K35: 0 | L35: 0 | M35: 0 | N35: 1 | O35: 0 | P35: 0 | Q35: 0 | R35: 0 | S35: 0 | T35: 0 | U35: 0 | V35: 0 | W35: 0 | X35: 0 | Y35: 0 | Z35: 0 | AA35: 0 | AB35: 0 | AC35: 0 | AD35: 0 | AJ35: 0.0 | AK35: 1 | AL35: 0
A36: 21 | B36: ='Wettkampf 1'!B36 -> Hellweg Thea | C36: ='Wettkampf 1'!C36 -> Lähden | D36: 183.8 | F36: 183.8 | G36: 0 | H36: 0 | I36: 0 | J36: 0 | K36: 0 | L36: 0 | M36: 0 | N36: 0 | O36: 183.8 | P36: 1 | Q36: 0 | R36: 0 | S36: 0 | T36: 0 | U36: 0 | V36: 0 | W36: 0 | X36: 0 | Y36: 0 | Z36: 0 | AA36: 0 | AB36: 0 | AC36: 0 | AD36: 0 | AJ36: 0.0 | AK36: 0 | AL36: 0
A37: 22 | B37: ='Wettkampf 1'!B37 -> Bruns Henrik | C37: ='Wettkampf 1'!C37 -> Lähden | D37: 183.9 | F37: 183.9 | G37: 0 | H37: 0 | I37: 0 | J37: 0 | K37: 0 | L37: 0 | M37: 0 | N37: 0 | O37: 183.9 | P37: 1 | Q37: 0 | R37: 0 | S37: 0 | T37: 0 | U37: 0 | V37: 0 | W37: 0 | X37: 0 | Y37: 0 | Z37: 0 | AA37: 0 | AB37: 0 | AC37: 0 | AD37: 0 | AJ37: 0.0 | AK37: 0 | AL37: 0
A38: 23 | B38: ='Wettkampf 1'!B38 -> Buschen Johann | C38: ='Wettkampf 1'!C38 -> Lähden | D38: 195.9 | F38: 195.9 | G38: 0 | H38: 0 | I38: 0 | J38: 0 | K38: 0 | L38: 0 | M38: 0 | N38: 0 | O38: 195.9 | P38: 1 | Q38: 0 | R38: 0 | S38: 0 | T38: 0 | U38: 0 | V38: 0 | W38: 0 | X38: 0 | Y38: 0 | Z38: 0 | AA38: 0 | AB38: 0 | AC38: 0 | AD38: 0 | AJ38: 0.0 | AK38: 0 | AL38: 0
A39: 24 | B39: ='Wettkampf 1'!B39 -> Preut Jannis | C39: ='Wettkampf 1'!C39 -> Lähden | D39: 173.3 | E39: x | F39: 0 | G39: 0 | H39: 0 | I39: 0 | J39: 0 | K39: 0 | L39: 0 | M39: 0 | N39: 0 | O39: 0 | P39: 0 | Q39: 0 | R39: 0 | S39: 0 | T39: 0 | U39: 0 | V39: 0 | W39: 0 | X39: 0 | Y39: 0 | Z39: 0 | AA39: 0 | AB39: 0 | AC39: 0 | AD39: 0 | AJ39: 0.0 | AK39: 0 | AL39: 0
A40: 25 | B40: ='Wettkampf 1'!B40 -> Fleschenberg Jana | C40: ='Wettkampf 1'!C40 -> Lähden | D40: 179.2 | F40: 179.2 | G40: 0 | H40: 0 | I40: 0 | J40: 0 | K40: 0 | L40: 0 | M40: 0 | N40: 0 | O40: 179.2 | P40: 1 | Q40: 0 | R40: 0 | S40: 0 | T40: 0 | U40: 0 | V40: 0 | W40: 0 | X40: 0 | Y40: 0 | Z40: 0 | AA40: 0 | AB40: 0 | AC40: 0 | AD40: 0 | AJ40: 0.0 | AK40: 0 | AL40: 0
A41: 26 | B41: ='Wettkampf 1'!B41 -> von Seggern Moritz | C41: ='Wettkampf 1'!C41 -> Lähden | D41: 133.0 | E41: x | F41: 0 | G41: 0 | H41: 0 | I41: 0 | J41: 0 | K41: 0 | L41: 0 | M41: 0 | N41: 0 | O41: 0 | P41: 0 | Q41: 0 | R41: 0 | S41: 0 | T41: 0 | U41: 0 | V41: 0 | W41: 0 | X41: 0 | Y41: 0 | Z41: 0 | AA41: 0 | AB41: 0 | AC41: 0 | AD41: 0 | AJ41: 0.0 | AK41: 0 | AL41: 0
A42: 27 | B42: ='Wettkampf 1'!B42 -> Kohnen Saskia | C42: ='Wettkampf 1'!C42 -> Börgermoor | F42: 0.0 | G42: 0 | H42: 0 | I42: 0 | J42: 0 | K42: 0 | L42: 0 | M42: 0 | N42: 0 | O42: 0 | P42: 0 | Q42: 0 | R42: 1 | S42: 0 | T42: 0 | U42: 0 | V42: 0 | W42: 0 | X42: 0 | Y42: 0 | Z42: 0 | AA42: 0 | AB42: 0 | AC42: 0 | AD42: 0 | AJ42: 0.0 | AK42: 1 | AL42: 0
A43: 28 | B43: ='Wettkampf 1'!B43 -> Niemann Paul | C43: ='Wettkampf 1'!C43 -> Börgermoor | F43: 0.0 | G43: 0 | H43: 0 | I43: 0 | J43: 0 | K43: 0 | L43: 0 | M43: 0 | N43: 0 | O43: 0 | P43: 0 | Q43: 0 | R43: 1 | S43: 0 | T43: 0 | U43: 0 | V43: 0 | W43: 0 | X43: 0 | Y43: 0 | Z43: 0 | AA43: 0 | AB43: 0 | AC43: 0 | AD43: 0 | AJ43: 0.0 | AK43: 1 | AL43: 0
A44: 29 | B44: ='Wettkampf 1'!B44 -> Schütze 29 | C44: ='Wettkampf 1'!C44 -> Börgermoor | F44: 0.0 | G44: 0 | H44: 0 | I44: 0 | J44: 0 | K44: 0 | L44: 0 | M44: 0 | N44: 0 | O44: 0 | P44: 0 | Q44: 0 | R44: 1 | S44: 0 | T44: 0 | U44: 0 | V44: 0 | W44: 0 | X44: 0 | Y44: 0 | Z44: 0 | AA44: 0 | AB44: 0 | AC44: 0 | AD44: 0 | AJ44: 0.0 | AK44: 1 | AL44: 0
A45: 30 | B45: ='Wettkampf 1'!B45 -> Schütze 30 | C45: ='Wettkampf 1'!C45 -> Börgermoor | F45: 0.0 | G45: 0 | H45: 0 | I45: 0 | J45: 0 | K45: 0 | L45: 0 | M45: 0 | N45: 0 | O45: 0 | P45: 0 | Q45: 0 | R45: 1 | S45: 0 | T45: 0 | U45: 0 | V45: 0 | W45: 0 | X45: 0 | Y45: 0 | Z45: 0 | AA45: 0 | AB45: 0 | AC45: 0 | AD45: 0 | AJ45: 0.0 | AK45: 1 | AL45: 0
A46: 31 | B46: ='Wettkampf 1'!B46 -> Stümpler Jan Luka | C46: ='Wettkampf 1'!C46 -> Lähden | F46: 0.0 | G46: 0 | H46: 0 | I46: 0 | J46: 0 | K46: 0 | L46: 0 | M46: 0 | N46: 0 | O46: 0 | P46: 1 | Q46: 0 | R46: 0 | S46: 0 | T46: 0 | U46: 0 | V46: 0 | W46: 0 | X46: 0 | Y46: 0 | Z46: 0 | AA46: 0 | AB46: 0 | AC46: 0 | AD46: 0 | AJ46: 0.0 | AK46: 1 | AL46: 0
A47: 32 | B47: ='Wettkampf 1'!B47 -> Helmer, Nils | C47: ='Wettkampf 1'!C47 -> Lorup | F47: 0.0 | G47: 0 | H47: 1 | I47: 0 | J47: 0 | K47: 0 | L47: 0 | M47: 0 | N47: 0 | O47: 0 | P47: 0 | Q47: 0 | R47: 0 | S47: 0 | T47: 0 | U47: 0 | V47: 0 | W47: 0 | X47: 0 | Y47: 0 | Z47: 0 | AA47: 0 | AB47: 0 | AC47: 0 | AD47: 0 | AJ47: 0.0 | AK47: 1 | AL47: 0
A48: 33 | B48: ='Wettkampf 1'!B48 -> Schütze 33 | C48: ='Wettkampf 1'!C48 -> Verein VII | F48: 0.0 | G48: 0 | H48: 0 | I48: 0 | J48: 0 | K48: 0 | L48: 0 | M48: 0 | N48: 0 | O48: 0 | P48: 0 | Q48: 0 | R48: 0 | S48: 0 | T48: 1 | U48: 0 | V48: 0 | W48: 0 | X48: 0 | Y48: 0 | Z48: 0 | AA48: 0 | AB48: 0 | AC48: 0 | AD48: 0 | AJ48: 0.0 | AK48: 1 | AL48: 0
A49: 34 | B49: ='Wettkampf 1'!B49 -> Schütze 34 | C49: ='Wettkampf 1'!C49 -> Verein VII | F49: 0.0 | G49: 0 | H49: 0 | I49: 0 | J49: 0 | K49: 0 | L49: 0 | M49: 0 | N49: 0 | O49: 0 | P49: 0 | Q49: 0 | R49: 0 | S49: 0 | T49: 1 | U49: 0 | V49: 0 | W49: 0 | X49: 0 | Y49: 0 | Z49: 0 | AA49: 0 | AB49: 0 | AC49: 0 | AD49: 0 | AJ49: 0.0 | AK49: 1 | AL49: 0
A50: 35 | B50: ='Wettkampf 1'!B50 -> Schütze 35 | C50: ='Wettkampf 1'!C50 -> Verein VII | F50: 0.0 | G50: 0 | H50: 0 | I50: 0 | J50: 0 | K50: 0 | L50: 0 | M50: 0 | N50: 0 | O50: 0 | P50: 0 | Q50: 0 | R50: 0 | S50: 0 | T50: 1 | U50: 0 | V50: 0 | W50: 0 | X50: 0 | Y50: 0 | Z50: 0 | AA50: 0 | AB50: 0 | AC50: 0 | AD50: 0 | AJ50: 0.0 | AK50: 1 | AL50: 0
A51: 36 | B51: ='Wettkampf 1'!B51 -> Schütze 36 | C51: ='Wettkampf 1'!C51 -> Verein VII | F51: 0.0 | G51: 0 | H51: 0 | I51: 0 | J51: 0 | K51: 0 | L51: 0 | M51: 0 | N51: 0 | O51: 0 | P51: 0 | Q51: 0 | R51: 0 | S51: 0 | T51: 1 | U51: 0 | V51: 0 | W51: 0 | X51: 0 | Y51: 0 | Z51: 0 | AA51: 0 | AB51: 0 | AC51: 0 | AD51: 0 | AJ51: 0.0 | AK51: 1 | AL51: 0
A52: 37 | B52: ='Wettkampf 1'!B52 -> Schütze 37 | C52: ='Wettkampf 1'!C52 -> Verein VII | F52: 0.0 | G52: 0 | H52: 0 | I52: 0 | J52: 0 | K52: 0 | L52: 0 | M52: 0 | N52: 0 | O52: 0 | P52: 0 | Q52: 0 | R52: 0 | S52: 0 | T52: 1 | U52: 0 | V52: 0 | W52: 0 | X52: 0 | Y52: 0 | Z52: 0 | AA52: 0 | AB52: 0 | AC52: 0 | AD52: 0 | AJ52: 0.0
A53: 38 | B53: ='Wettkampf 1'!B53 -> Schütze 38 | C53: ='Wettkampf 1'!C53 -> Verein VIII | F53: 0.0 | G53: 0 | H53: 0 | I53: 0 | J53: 0 | K53: 0 | L53: 0 | M53: 0 | N53: 0 | O53: 0 | P53: 0 | Q53: 0 | R53: 0 | S53: 0 | T53: 0 | U53: 0 | V53: 1 | W53: 0 | X53: 0 | Y53: 0 | Z53: 0 | AA53: 0 | AB53: 0 | AC53: 0 | AD53: 0 | AJ53: 0.0
A54: 39 | B54: ='Wettkampf 1'!B54 -> Schütze 39 | C54: ='Wettkampf 1'!C54 -> Verein VIII | F54: 0.0 | G54: 0 | H54: 0 | I54: 0 | J54: 0 | K54: 0 | L54: 0 | M54: 0 | N54: 0 | O54: 0 | P54: 0 | Q54: 0 | R54: 0 | S54: =IF($C54=$B$8,$F54,0) -> 0 | T54: =(IF(AND($E54="",$C54=$B$8),1,0)) -> 0 | U54: =IF($C54=$B$9,$F54,0) -> 0 | V54: =(IF(AND($E54="",$C54=$B$9),1,0)) -> 1 | W54: =IF($C54=$B$10,$F54,0) -> 0 | X54: =(IF(AND($E54="",$C54=$B$10),1,0)) -> 0 | Y54: =IF($C54=$B$11,$F54,0) -> 0 | Z54: =(IF(AND($E54="",$C54=$B$11),1,0)) -> 0 | AA54: =IF($C54=$B$12,$F54,0) -> 0 | AB54: =(IF(AND($E54="",$C54=$B$12),1,0)) -> 0 | AC54: =IF($C54=$B$13,$F54,0) -> 0 | AD54: =(IF(AND($E54="",$C54=$B$13),1,0)) -> 0 | AJ54: 0.0
A55: 40 | B55: ='Wettkampf 1'!B55 -> Schütze 40 | C55: ='Wettkampf 1'!C55 -> Verein VIII | F55: 0.0 | G55: 0 | H55: 0 | I55: 0 | J55: 0 | K55: 0 | L55: 0 | M55: 0 | N55: 0 | O55: 0 | P55: 0 | Q55: 0 | R55: 0 | S55: 0 | T55: 0 | U55: 0 | V55: 1 | W55: 0 | X55: 0 | Y55: 0 | Z55: 0 | AA55: 0 | AB55: 0 | AC55: 0 | AD55: 0 | AJ55: 0.0
A56: 41 | B56: ='Wettkampf 1'!B56 -> Schütze 41 | C56: ='Wettkampf 1'!C56 -> Verein IX | F56: 0.0 | G56: 0 | H56: 0 | I56: 0 | J56: 0 | K56: 0 | L56: 0 | M56: 0 | N56: 0 | O56: 0 | P56: 0 | Q56: 0 | R56: 0 | S56: 0 | T56: 0 | U56: 0 | V56: 0 | W56: 0 | X56: 1 | Y56: 0 | Z56: 0 | AA56: 0 | AB56: 0 | AC56: 0 | AD56: 0 | AJ56: 0.0
A57: 42 | B57: ='Wettkampf 1'!B57 -> Schütze 42 | C57: ='Wettkampf 1'!C57 -> Verein IX | F57: 0.0 | G57: 0 | H57: 0 | I57: 0 | J57: 0 | K57: 0 | L57: 0 | M57: 0 | N57: 0 | O57: 0 | P57: 0 | Q57: 0 | R57: 0 | S57: 0 | T57: 0 | U57: 0 | V57: 0 | W57: 0 | X57: 1 | Y57: 0 | Z57: 0 | AA57: 0 | AB57: 0 | AC57: 0 | AD57: 0 | AJ57: 0.0
A58: 43 | B58: ='Wettkampf 1'!B58 -> Schütze 43 | C58: ='Wettkampf 1'!C58 -> Verein IX | F58: 0.0 | G58: 0 | H58: 0 | I58: 0 | J58: 0 | K58: 0 | L58: 0 | M58: 0 | N58: 0 | O58: 0 | P58: 0 | Q58: 0 | R58: 0 | S58: 0 | T58: 0 | U58: 0 | V58: 0 | W58: 0 | X58: 1 | Y58: 0 | Z58: 0 | AA58: 0 | AB58: 0 | AC58: 0 | AD58: 0 | AJ58: 0.0
A59: 44 | B59: ='Wettkampf 1'!B59 -> Schütze 44 | C59: ='Wettkampf 1'!C59 -> Verein IX | F59: 0.0 | G59: 0 | H59: 0 | I59: 0 | J59: 0 | K59: 0 | L59: 0 | M59: 0 | N59: 0 | O59: 0 | P59: 0 | Q59: 0 | R59: 0 | S59: 0 | T59: 0 | U59: 0 | V59: 0 | W59: 0 | X59: 1 | Y59: 0 | Z59: 0 | AA59: 0 | AB59: 0 | AC59: 0 | AD59: 0 | AJ59: 0.0
A60: 45 | B60: ='Wettkampf 1'!B60 -> Schütze 45 | C60: ='Wettkampf 1'!C60 -> Verein IX | F60: 0.0 | G60: 0 | H60: 0 | I60: 0 | J60: 0 | K60: 0 | L60: 0 | M60: 0 | N60: 0 | O60: 0 | P60: 0 | Q60: 0 | R60: 0 | S60: 0 | T60: 0 | U60: 0 | V60: 0 | W60: 0 | X60: 1 | Y60: 0 | Z60: 0 | AA60: 0 | AB60: 0 | AC60: 0 | AD60: 0 | AJ60: 0.0
A61: 46 | B61: ='Wettkampf 1'!B61 -> Schütze 46 | C61: ='Wettkampf 1'!C61 -> Verein X | F61: 0.0 | G61: 0 | H61: 0 | I61: 0 | J61: 0 | K61: 0 | L61: 0 | M61: 0 | N61: 0 | O61: 0 | P61: 0 | Q61: 0 | R61: 0 | S61: 0 | T61: 0 | U61: 0 | V61: 0 | W61: 0 | X61: 0 | Y61: 0 | Z61: 1 | AA61: 0 | AB61: 0 | AC61: 0 | AD61: 0 | AJ61: 0.0
A62: 47 | B62: ='Wettkampf 1'!B62 -> Schütze 47 | C62: ='Wettkampf 1'!C62 -> Verein X | F62: 0.0 | G62: 0 | H62: 0 | I62: 0 | J62: 0 | K62: 0 | L62: 0 | M62: 0 | N62: 0 | O62: 0 | P62: 0 | Q62: 0 | R62: 0 | S62: 0 | T62: 0 | U62: 0 | V62: 0 | W62: 0 | X62: 0 | Y62: 0 | Z62: 1 | AA62: 0 | AB62: 0 | AC62: 0 | AD62: 0 | AJ62: 0.0
A63: 48 | B63: ='Wettkampf 1'!B63 -> Schütze 48 | C63: ='Wettkampf 1'!C63 -> Verein X | F63: 0.0 | G63: 0 | H63: 0 | I63: 0 | J63: 0 | K63: 0 | L63: 0 | M63: 0 | N63: 0 | O63: 0 | P63: 0 | Q63: 0 | R63: 0 | S63: 0 | T63: 0 | U63: 0 | V63: 0 | W63: 0 | X63: 0 | Y63: 0 | Z63: 1 | AA63: 0 | AB63: 0 | AC63: 0 | AD63: 0 | AJ63: 0.0
A64: 49 | B64: ='Wettkampf 1'!B64 -> Schütze 49 | C64: ='Wettkampf 1'!C64 -> Verein X | F64: 0.0 | G64: 0 | H64: 0 | I64: 0 | J64: 0 | K64: 0 | L64: 0 | M64: 0 | N64: 0 | O64: 0 | P64: 0 | Q64: 0 | R64: 0 | S64: 0 | T64: 0 | U64: 0 | V64: 0 | W64: 0 | X64: 0 | Y64: 0 | Z64: 1 | AA64: 0 | AB64: 0 | AC64: 0 | AD64: 0 | AJ64: 0.0
A65: 50 | B65: ='Wettkampf 1'!B65 -> Schütze 50 | C65: ='Wettkampf 1'!C65 -> Verein X | F65: 0.0 | G65: 0 | H65: 0 | I65: 0 | J65: 0 | K65: 0 | L65: 0 | M65: 0 | N65: 0 | O65: 0 | P65: 0 | Q65: 0 | R65: 0 | S65: 0 | T65: 0 | U65: 0 | V65: 0 | W65: 0 | X65: 0 | Y65: 0 | Z65: 1 | AA65: 0 | AB65: 0 | AC65: 0 | AD65: 0 | AJ65: 0.0
A66: 51 | B66: ='Wettkampf 1'!B66 -> Schütze 51 | C66: ='Wettkampf 1'!C66 -> Verein XI | F66: 0.0 | G66: 0 | H66: 0 | I66: 0 | J66: 0 | K66: 0 | L66: 0 | M66: 0 | N66: 0 | O66: 0 | P66: 0 | Q66: 0 | R66: 0 | S66: 0 | T66: 0 | U66: 0 | V66: 0 | W66: 0 | X66: 0 | Y66: 0 | Z66: 0 | AA66: 0 | AB66: 1 | AC66: 0 | AD66: 0 | AJ66: 0.0
A67: 52 | B67: ='Wettkampf 1'!B67 -> Schütze 52 | C67: ='Wettkampf 1'!C67 -> Verein XI | F67: 0.0 | G67: 0 | H67: 0 | I67: 0 | J67: 0 | K67: 0 | L67: 0 | M67: 0 | N67: 0 | O67: 0 | P67: 0 | Q67: 0 | R67: 0 | S67: 0 | T67: 0 | U67: 0 | V67: 0 | W67: 0 | X67: 0 | Y67: 0 | Z67: 0 | AA67: 0 | AB67: 1 | AC67: 0 | AD67: 0 | AJ67: 0.0
A68: 53 | B68: ='Wettkampf 1'!B68 -> Schütze 53 | C68: ='Wettkampf 1'!C68 -> Verein XI | F68: 0.0 | G68: 0 | H68: 0 | I68: 0 | J68: 0 | K68: 0 | L68: 0 | M68: 0 | N68: 0 | O68: 0 | P68: 0 | Q68: 0 | R68: 0 | S68: 0 | T68: 0 | U68: 0 | V68: 0 | W68: 0 | X68: 0 | Y68: 0 | Z68: 0 | AA68: 0 | AB68: 1 | AC68: 0 | AD68: 0 | AJ68: 0.0
A69: 54 | B69: ='Wettkampf 1'!B69 -> Schütze 54 | C69: ='Wettkampf 1'!C69 -> Verein XI | F69: 0.0 | G69: 0 | H69: 0 | I69: 0 | J69: 0 | K69: 0 | L69: 0 | M69: 0 | N69: 0 | O69: 0 | P69: 0 | Q69: 0 | R69: 0 | S69: 0 | T69: 0 | U69: 0 | V69: 0 | W69: 0 | X69: 0 | Y69: 0 | Z69: 0 | AA69: 0 | AB69: 1 | AC69: 0 | AD69: 0 | AJ69: 0.0
A70: 55 | B70: ='Wettkampf 1'!B70 -> Schütze 55 | C70: ='Wettkampf 1'!C70 -> Verein XI | F70: 0.0 | G70: 0 | H70: 0 | I70: 0 | J70: 0 | K70: 0 | L70: 0 | M70: 0 | N70: 0 | O70: 0 | P70: 0 | Q70: 0 | R70: 0 | S70: 0 | T70: 0 | U70: 0 | V70: 0 | W70: 0 | X70: 0 | Y70: 0 | Z70: 0 | AA70: 0 | AB70: 1 | AC70: 0 | AD70: 0 | AJ70: 0.0
A71: 56 | B71: ='Wettkampf 1'!B71 -> Schütze 56 | C71: ='Wettkampf 1'!C71 -> Verein XII | F71: 0.0 | G71: 0 | H71: 0 | I71: 0 | J71: 0 | K71: 0 | L71: 0 | M71: 0 | N71: 0 | O71: 0 | P71: 0 | Q71: 0 | R71: 0 | S71: 0 | T71: 0 | U71: 0 | V71: 0 | W71: 0 | X71: 0 | Y71: 0 | Z71: 0 | AA71: 0 | AB71: 0 | AC71: 0 | AD71: 1 | AJ71: 0.0
A72: 57 | B72: ='Wettkampf 1'!B72 -> Schütze 57 | C72: ='Wettkampf 1'!C72 -> Verein XII | F72: 0.0 | G72: 0 | H72: 0 | I72: 0 | J72: 0 | K72: 0 | L72: 0 | M72: 0 | N72: 0 | O72: 0 | P72: 0 | Q72: 0 | R72: 0 | S72: 0 | T72: 0 | U72: 0 | V72: 0 | W72: 0 | X72: 0 | Y72: 0 | Z72: 0 | AA72: 0 | AB72: 0 | AC72: 0 | AD72: 1 | AJ72: 0.0
A73: 58 | B73: ='Wettkampf 1'!B73 -> Schütze 58 | C73: ='Wettkampf 1'!C73 -> Verein XII | F73: 0.0 | G73: 0 | H73: 0 | I73: 0 | J73: 0 | K73: 0 | L73: 0 | M73: 0 | N73: 0 | O73: 0 | P73: 0 | Q73: 0 | R73: 0 | S73: 0 | T73: 0 | U73: 0 | V73: 0 | W73: 0 | X73: 0 | Y73: 0 | Z73: 0 | AA73: 0 | AB73: 0 | AC73: 0 | AD73: 1 | AJ73: 0.0
A74: 59 | B74: ='Wettkampf 1'!B74 -> Schütze 59 | C74: ='Wettkampf 1'!C74 -> Verein XII | F74: 0.0 | G74: 0 | H74: 0 | I74: 0 | J74: 0 | K74: 0 | L74: 0 | M74: 0 | N74: 0 | O74: 0 | P74: 0 | Q74: 0 | R74: 0 | S74: 0 | T74: 0 | U74: 0 | V74: 0 | W74: 0 | X74: 0 | Y74: 0 | Z74: 0 | AA74: 0 | AB74: 0 | AC74: 0 | AD74: 1 | AJ74: 0.0
A75: 60 | B75: ='Wettkampf 1'!B75 -> Schütze 60 | C75: ='Wettkampf 1'!C75 -> Verein XII | F75: 0.0 | G75: 0 | H75: 0 | I75: 0 | J75: 0 | K75: 0 | L75: 0 | M75: 0 | N75: 0 | O75: 0 | P75: 0 | Q75: 0 | R75: 0 | S75: 0 | T75: 0 | U75: 0 | V75: 0 | W75: 0 | X75: 0 | Y75: 0 | Z75: 0 | AA75: 0 | AB75: 0 | AC75: 0 | AD75: 1 | AJ75: 0.0
G76: =LARGE(G16:G75,1)+LARGE(G16:G75,2)+LARGE(G16:G75,3) -> 425.4 | H76: =SUM(H16:H75) -> 6 | I76: =LARGE(I16:I75,1)+LARGE(I16:I75,2)+LARGE(I16:I75,3) -> 0 | J76: =SUM(J16:J75) -> 4 | K76: =LARGE(K16:K75,1)+LARGE(K16:K75,2)+LARGE(K16:K75,3) -> 225.8 | L76: =SUM(L16:L75) -> 5 | M76: =LARGE(M16:M75,1)+LARGE(M16:M75,2)+LARGE(M16:M75,3) -> 522.2 | N76: =SUM(N16:N75) -> 5 | O76: =LARGE(O16:O75,1)+LARGE(O16:O75,2)+LARGE(O16:O75,3) -> 563.6 | P76: =SUM(P16:P75) -> 5 | Q76: =LARGE(Q16:Q75,1)+LARGE(Q16:Q75,2)+LARGE(Q16:Q75,3) -> 0 | R76: =SUM(R16:R75) -> 4 | S76: =LARGE(S16:S75,1)+LARGE(S16:S75,2)+LARGE(S16:S75,3) -> 0 | T76: =SUM(T16:T75) -> 5 | U76: =LARGE(U16:U75,1)+LARGE(U16:U75,2)+LARGE(U16:U75,3) -> 0 | V76: =SUM(V16:V75) -> 3 | W76: =LARGE(W16:W75,1)+LARGE(W16:W75,2)+LARGE(W16:W75,3) -> 0 | X76: =SUM(X16:X75) -> 5 | Y76: =LARGE(Y16:Y75,1)+LARGE(Y16:Y75,2)+LARGE(Y16:Y75,3) -> 0 | Z76: =SUM(Z16:Z75) -> 5 | AA76: =LARGE(AA16:AA75,1)+LARGE(AA16:AA75,2)+LARGE(AA16:AA75,3) -> 0 | AB76: =SUM(AB16:AB75) -> 5 | AC76: =LARGE(AC16:AC75,1)+LARGE(AC16:AC75,2)+LARGE(AC16:AC75,3) -> 0 | AD76: =SUM(AD16:AD75) -> 5
C77: per Email an: sk-huemmling@gmx.de

Sheet 8
B1: Verein / Gruppe | D1: Ergebnisse | AH1: Austragungsort: | AI1: =Übersicht!M4 -> Lähden
A2: 1 | B2: ='Wettkampf 1'!B2 -> Lorup | D2: =G76 -> 444.2 | E2: =IF(H76>4,"Es sind zu viele Schützen in Wertung!"," ") -> Es sind zu viele Schützen in Wertung! | AH2: Wettkampftag: | AI2: =Übersicht!M3 -> 03.02.
A3: 2 | B3: ='Wettkampf 1'!B3 -> Sögel | D3: =I76 -> 0.0 | E3: =IF(J76>4,"Es sind zu viele Schützen in Wertung!"," ") -> 
A4: 3 | B4: ='Wettkampf 1'!B4 -> Spahnharenstätte | D4: =K76 -> 361.5 | E4: =IF(L76>4,"Es sind zu viele Schützen in Wertung!"," ") -> Es sind zu viele Schützen in Wertung! | AJ4: Ansprechpartner für Rückfragen:
A5: 4 | B5: ='Wettkampf 1'!B5 -> Esterwegen | D5: =M76 -> 522.9 | E5: =IF(N76>4,"Es sind zu viele Schützen in Wertung!"," ") -> Es sind zu viele Schützen in Wertung! | AH5: Name:
A6: 5 | B6: ='Wettkampf 1'!B6 -> Lähden | D6: =O76 -> 551.9 | E6: =IF(P76>4,"Es sind zu viele Schützen in Wertung!"," ") -> Es sind zu viele Schützen in Wertung! | AH6: Tel:
A7: 6 | B7: ='Wettkampf 1'!B7 -> Börgermoor | D7: =Q76 -> 145.7 | E7: =IF(R76>4,"Es sind zu viele Schützen in Wertung!"," ") ->  | AH7: Standaufsicht: | AI7: Hendrik Merschendorf
A8: 7 | B8: ='Wettkampf 1'!B8 -> Verein VII | D8: =S76 -> 0.0 | E8: =IF(T76>4,"Es sind zu viele Schützen in Wertung!"," ") -> Es sind zu viele Schützen in Wertung!
A9: 8 | B9: ='Wettkampf 1'!B9 -> Verein VIII | D9: =U76 -> 0.0 | E9: =IF(V76>4,"Es sind zu viele Schützen in Wertung!"," ") -> 
A10: 9 | B10: ='Wettkampf 1'!B10 -> Verein IX | D10: =W76 -> 0.0 | E10: =IF(X76>4,"Es sind zu viele Schützen in Wertung!"," ") -> Es sind zu viele Schützen in Wertung!
A11: 10 | B11: ='Wettkampf 1'!B11 -> Verein X | D11: =Y76 -> 0.0 | E11: =IF(Z76>4,"Es sind zu viele Schützen in Wertung!"," ") -> Es sind zu viele Schützen in Wertung!
A12: 11 | B12: ='Wettkampf 1'!B12 -> Verein XI | D12: =AA76 -> 0.0 | E12: =IF(AB76>4,"Es sind zu viele Schützen in Wertung!"," ") -> Es sind zu viele Schützen in Wertung!
A13: 12 | B13: ='Wettkampf 1'!B13 -> Verein XII | D13: =AC76 -> 0.0 | E13: =IF(AD76>4,"Es sind zu viele Schützen in Wertung!"," ") -> Es sind zu viele Schützen in Wertung!
B15: Einzelergebnisse: | C15: Verein / Gruppe | D15: Ergebnisse (mindestens 0 eintragen) | E15: AW? Dann x eintippen | G15: Verein 1 | I15: Verein 2 | K15: Verein 3 | M15: Verein 4 | O15: Verein 5 | Q15: Verein 6 | S15: Verein 7 | U15: Verein 8 | W15: Verein 9 | Y15: Verein 10 | AA15: Verein 11 | AC15: Verein 12 | AG15: Proberechnung bei Streifen:
A16: 1 | B16: ='Wettkampf 1'!B16 -> Wotte Lia | C16: ='Wettkampf 1'!C16 -> Lorup | D16: 168.8 | F16: =IF(E16="x","0",D16) -> 168.8 | G16: =IF(C16=$B$2,F16,0) -> 168.8 | H16: =(IF(AND($E16="",$C16=$B$2),1,0)) -> 1 | I16: =IF($C16=$B$3,$F16,0) -> 0 | J16: =(IF(AND($E16="",$C16=$B$3),1,0)) -> 0 | K16: =IF($C16=$B$4,F16,0) -> 0 | L16: =(IF(AND($E16="",$C16=$B$4),1,0)) -> 0 | M16: =IF($C16=$B$5,F16,0) -> 0 | N16: =(IF(AND($E16="",$C16=$B$5),1,0)) -> 0 | O16: =IF($C16=$B$6,F16,0) -> 0 | P16: =(IF(AND($E16="",$C16=$B$6),1,0)) -> 0 | Q16: =IF($C16=$B$7,F16,0) -> 0 | R16: =(IF(AND($E16="",$C16=$B$7),1,0)) -> 0 | S16: =IF($C16=$B$8,$F16,0) -> 0 | T16: =(IF(AND($E16="",$C16=$B$8),1,0)) -> 0 | U16: =IF($C16=$B$9,$F16,0) -> 0 | V16: =(IF(AND($E16="",$C16=$B$9),1,0)) -> 0 | W16: =IF($C16=$B$10,$F16,0) -> 0 | X16: =(IF(AND($E16="",$C16=$B$10),1,0)) -> 0 | Y16: =IF($C16=$B$11,$F16,0) -> 0 | Z16: =(IF(AND($E16="",$C16=$B$11),1,0)) -> 0 | AA16: =IF($C16=$B$12,$F16,0) -> 0 | AB16: =(IF(AND($E16="",$C16=$B$12),1,0)) -> 0 | AC16: =IF($C16=$B$13,$F16,0) -> 0 | AD16: =(IF(AND($E16="",$C16=$B$13),1,0)) -> 0 | AJ16: =SUM(AG16:AI16) -> 0.0 | AK16: =IF(AJ16=D16,1,0) -> 0 | AL16: =IF(AJ16=0,0,1) -> 0 | AM16: =IF(AK16+AL16=2,"Korrekt","") -> 
A17: 2 | B17: ='Wettkampf 1'!B17 -> Wotte Hannes | C17: ='Wettkampf 1'!C17 -> Lorup | D17: 135.9 | F17: =IF(E17="x","0",D17) -> 135.9 | G17: =IF(C17=$B$2,F17,0) -> 135.9 | H17: =(IF(AND($E17="",$C17=$B$2),1,0)) -> 1 | I17: =IF($C17=$B$3,F17,0) -> 0 | J17: =(IF(AND($E17="",$C17=$B$3),1,0)) -> 0 | K17: =IF($C17=$B$4,F17,0) -> 0 | L17: =(IF(AND($E17="",$C17=$B$4),1,0)) -> 0 | M17: =IF($C17=$B$5,F17,0) -> 0 | N17: =(IF(AND($E17="",$C17=$B$5),1,0)) -> 0 | O17: =IF($C17=$B$6,F17,0) -> 0 | P17: =(IF(AND($E17="",$C17=$B$6),1,0)) -> 0 | Q17: =IF($C17=$B$7,F17,0) -> 0 | R17: =(IF(AND($E17="",$C17=$B$7),1,0)) -> 0 | S17: =IF($C17=$B$8,$F17,0) -> 0 | T17: =(IF(AND($E17="",$C17=$B$8),1,0)) -> 0 | U17: =IF($C17=$B$9,$F17,0) -> 0 | V17: =(IF(AND($E17="",$C17=$B$9),1,0)) -> 0 | W17: =IF($C17=$B$10,$F17,0) -> 0 | X17: =(IF(AND($E17="",$C17=$B$10),1,0)) -> 0 | Y17: =IF($C17=$B$11,$F17,0) -> 0 | Z17: =(IF(AND($E17="",$C17=$B$11),1,0)) -> 0 | AA17: =IF($C17=$B$12,$F17,0) -> 0 | AB17: =(IF(AND($E17="",$C17=$B$12),1,0)) -> 0 | AC17: =IF($C17=$B$13,$F17,0) -> 0 | AD17: =(IF(AND($E17="",$C17=$B$13),1,0)) -> 0 | AJ17: =SUM(AG17:AI17) -> 0.0 | AK17: =IF(AJ17=D17,1,0) -> 0 | AL17: =IF(AJ17=0,0,1) -> 0 | AM17: =IF(AK17+AL17=2,"Korrekt","") -> 
A18: 3 | B18: ='Wettkampf 1'!B18 -> Gretenabeln Elias | C18: ='Wettkampf 1'!C18 -> Lorup | D18: 117.5 | F18: 117.5 | G18: 117.5 | H18: 1 | I18: 0 | J18: 0 | K18: 0 | L18: 0 | M18: 0 | N18: 0 | O18: 0 | P18: 0 | Q18: 0 | R18: 0 | S18: 0 | T18: 0 | U18: 0 | V18: 0 | W18: 0 | X18: 0 | Y18: 0 | Z18: 0 | AA18: 0 | AB18: 0 | AC18: 0 | AD18: 0 | AJ18: 0.0 | AK18: 0 | AL18: 0
A19: 4 | B19: ='Wettkampf 1'!B19 -> Helmer Maike | C19: ='Wettkampf 1'!C19 -> Lorup | D19: 139.5 | F19: 139.5 | G19: 139.5 | H19: 1 | I19: 0 | J19: 0 | K19: 0 | L19: 0 | M19: 0 | N19: 0 | O19: 0 | P19: 0 | Q19: 0 | R19: 0 | S19: 0 | T19: 0 | U19: 0 | V19: 0 | W19: 0 | X19: 0 | Y19: 0 | Z19: 0 | AA19: 0 | AB19: 0 | AC19: 0 | AD19: 0 | AJ19: 0.0 | AK19: 0 | AL19: 0
A20: 5 | B20: ='Wettkampf 1'!B20 -> Többen Jannes | C20: ='Wettkampf 1'!C20 -> Lorup | D20: 125.6 | E20: x | F20: 0 | G20: 0 | H20: 0 | I20: 0 | J20: 0 | K20: 0 | L20: 0 | M20: 0 | N20: 0 | O20: 0 | P20: 0 | Q20: 0 | R20: 0 | S20: 0 | T20: 0 | U20: 0 | V20: 0 | W20: 0 | X20: 0 | Y20: 0 | Z20: 0 | AA20: 0 | AB20: 0 | AC20: 0 | AD20: 0 | AJ20: 0.0 | AK20: 0 | AL20: 0
A21: 6 | B21: ='Wettkampf 1'!B21 -> Lüken Arne | C21: ='Wettkampf 1'!C21 -> Lorup | F21: 0.0 | G21: 0 | H21: 1 | I21: 0 | J21: 0 | K21: 0 | L21: 0 | M21: 0 | N21: 0 | O21: 0 | P21: 0 | Q21: 0 | R21: 0 | S21: 0 | T21: 0 | U21: 0 | V21: 0 | W21: 0 | X21: 0 | Y21: 0 | Z21: 0 | AA21: 0 | AB21: 0 | AC21: 0 | AD21: 0 | AJ21: 0.0 | AK21: 1 | AL21: 0
A22: 7 | B22: ='Wettkampf 1'!B22 -> Schütze 7 | C22: ='Wettkampf 1'!C22 -> Sögel | F22: 0.0 | G22: 0 | H22: 0 | I22: 0 | J22: 1 | K22: 0 | L22: 0 | M22: 0 | N22: 0 | O22: 0 | P22: 0 | Q22: 0 | R22: 0 | S22: 0 | T22: 0 | U22: 0 | V22: 0 | W22: 0 | X22: 0 | Y22: 0 | Z22: 0 | AA22: 0 | AB22: 0 | AC22: 0 | AD22: 0 | AJ22: 0.0 | AK22: 1 | AL22: 0
A23: 8 | B23: ='Wettkampf 1'!B23 -> Schütze 8 | C23: ='Wettkampf 1'!C23 -> Sögel | F23: 0.0 | G23: 0 | H23: 0 | I23: 0 | J23: 1 | K23: 0 | L23: 0 | M23: 0 | N23: 0 | O23: 0 | P23: 0 | Q23: 0 | R23: 0 | S23: 0 | T23: 0 | U23: 0 | V23: 0 | W23: 0 | X23: 0 | Y23: 0 | Z23: 0 | AA23: 0 | AB23: 0 | AC23: 0 | AD23: 0 | AJ23: 0.0 | AK23: 1 | AL23: 0
A24: 9 | B24: ='Wettkampf 1'!B24 -> Schütze 9 | C24: ='Wettkampf 1'!C24 -> Sögel | F24: 0.0 | G24: 0 | H24: 0 | I24: 0 | J24: 1 | K24: 0 | L24: 0 | M24: 0 | N24: 0 | O24: 0 | P24: 0 | Q24: 0 | R24: 0 | S24: 0 | T24: 0 | U24: 0 | V24: 0 | W24: 0 | X24: 0 | Y24: 0 | Z24: 0 | AA24: 0 | AB24: 0 | AC24: 0 | AD24: 0 | AJ24: 0.0 | AK24: 1 | AL24: 0
A25: 10 | B25: ='Wettkampf 1'!B25 -> Schütze 10 | C25: ='Wettkampf 1'!C25 -> Sögel | F25: 0.0 | G25: 0 | H25: 0 | I25: 0 | J25: 1 | K25: 0 | L25: 0 | M25: 0 | N25: 0 | O25: 0 | P25: 0 | Q25: 0 | R25: 0 | S25: 0 | T25: 0 | U25: 0 | V25: 0 | W25: 0 | X25: 0 | Y25: 0 | Z25: 0 | AA25: 0 | AB25: 0 | AC25: 0 | AD25: 0 | AJ25: 0.0 | AK25: 1 | AL25: 0
A26: 11 | B26: ='Wettkampf 1'!B26 -> Engbers Hannes | C26: ='Wettkampf 1'!C26 -> Spahnharenstätte | D26: 88.4 | F26: 88.4 | G26: 0 | H26: 0 | I26: 0 | J26: 0 | K26: 88.4 | L26: 1 | M26: 0 | N26: 0 | O26: 0 | P26: 0 | Q26: 0 | R26: 0 | S26: 0 | T26: 0 | U26: 0 | V26: 0 | W26: 0 | X26: 0 | Y26: 0 | Z26: 0 | AA26: 0 | AB26: 0 | AC26: 0 | AD26: 0 | AJ26: 0.0 | AK26: 0 | AL26: 0
A27: 12 | B27: ='Wettkampf 1'!B27 -> Runde Marcel | C27: ='Wettkampf 1'!C27 -> Spahnharenstätte | D27: 151.2 | F27: 151.2 | G27: 0 | H27: 0 | I27: 0 | J27: 0 | K27: 151.2 | L27: 1 | M27: 0 | N27: 0 | O27: 0 | P27: 0 | Q27: 0 | R27: 0 | S27: 0 | T27: 0 | U27: 0 | V27: 0 | W27: 0 | X27: 0 | Y27: 0 | Z27: 0 | AA27: 0 | AB27: 0 | AC27: 0 | AD27: 0 | AJ27: 0.0 | AK27: 0 | AL27: 0
A28: 13 | B28: ='Wettkampf 1'!B28 -> Jansen Lars | C28: ='Wettkampf 1'!C28 -> Spahnharenstätte | D28: 121.9 | F28: 121.9 | G28: 0 | H28: 0 | I28: 0 | J28: 0 | K28: 121.9 | L28: 1 | M28: 0 | N28: 0 | O28: 0 | P28: 0 | Q28: 0 | R28: 0 | S28: 0 | T28: 0 | U28: 0 | V28: 0 | W28: 0 | X28: 0 | Y28: 0 | Z28: 0 | AA28: 0 | AB28: 0 | AC28: 0 | AD28: 0 | AJ28: 0.0 | AK28: 0 | AL28: 0
A29: 14 | B29: ='Wettkampf 1'!B29 -> Schütze 14 | C29: ='Wettkampf 1'!C29 -> Spahnharenstätte | F29: 0.0 | G29: 0 | H29: 0 | I29: 0 | J29: 0 | K29: 0 | L29: 1 | M29: 0 | N29: 0 | O29: 0 | P29: 0 | Q29: 0 | R29: 0 | S29: 0 | T29: 0 | U29: 0 | V29: 0 | W29: 0 | X29: 0 | Y29: 0 | Z29: 0 | AA29: 0 | AB29: 0 | AC29: 0 | AD29: 0 | AJ29: 0.0 | AK29: 1 | AL29: 0
A30: 15 | B30: ='Wettkampf 1'!B30 -> Schütze 15 | C30: ='Wettkampf 1'!C30 -> Spahnharenstätte | F30: 0.0 | G30: 0 | H30: 0 | I30: 0 | J30: 0 | K30: 0 | L30: 1 | M30: 0 | N30: 0 | O30: 0 | P30: 0 | Q30: 0 | R30: 0 | S30: 0 | T30: 0 | U30: 0 | V30: 0 | W30: 0 | X30: 0 | Y30: 0 | Z30: 0 | AA30: 0 | AB30: 0 | AC30: 0 | AD30: 0 | AJ30: 0.0 | AK30: 1 | AL30: 0
A31: 16 | B31: ='Wettkampf 1'!B31 -> Suhle Annalena | C31: ='Wettkampf 1'!C31 -> Esterwegen | D31: 190.5 | F31: 190.5 | G31: 0 | H31: 0 | I31: 0 | J31: 0 | K31: 0 | L31: 0 | M31: 190.5 | N31: 1 | O31: 0 | P31: 0 | Q31: 0 | R31: 0 | S31: 0 | T31: 0 | U31: 0 | V31: 0 | W31: 0 | X31: 0 | Y31: 0 | Z31: 0 | AA31: 0 | AB31: 0 | AC31: 0 | AD31: 0 | AJ31: 0.0 | AK31: 0 | AL31: 0
A32: 17 | B32: ='Wettkampf 1'!B32 -> Gäken Lena | C32: ='Wettkampf 1'!C32 -> Esterwegen | D32: 184.7 | F32: 184.7 | G32: 0 | H32: 0 | I32: 0 | J32: 0 | K32: 0 | L32: 0 | M32: 184.7 | N32: 1 | O32: 0 | P32: 0 | Q32: 0 | R32: 0 | S32: 0 | T32: 0 | U32: 0 | V32: 0 | W32: 0 | X32: 0 | Y32: 0 | Z32: 0 | AA32: 0 | AB32: 0 | AC32: 0 | AD32: 0 | AJ32: 0.0 | AK32: 0 | AL32: 0
A33: 18 | B33: ='Wettkampf 1'!B33 -> Jansen Daniel | C33: ='Wettkampf 1'!C33 -> Esterwegen | D33: 126.8 | F33: 126.8 | G33: 0 | H33: 0 | I33: 0 | J33: 0 | K33: 0 | L33: 0 | M33: 126.8 | N33: 1 | O33: 0 | P33: 0 | Q33: 0 | R33: 0 | S33: 0 | T33: 0 | U33: 0 | V33: 0 | W33: 0 | X33: 0 | Y33: 0 | Z33: 0 | AA33: 0 | AB33: 0 | AC33: 0 | AD33: 0 | AJ33: 0.0 | AK33: 0 | AL33: 0
A34: 19 | B34: ='Wettkampf 1'!B34 -> Pieper Jonas | C34: ='Wettkampf 1'!C34 -> Esterwegen | D34: 147.7 | F34: 147.7 | G34: 0 | H34: 0 | I34: 0 | J34: 0 | K34: 0 | L34: 0 | M34: 147.7 | N34: 1 | O34: 0 | P34: 0 | Q34: 0 | R34: 0 | S34: 0 | T34: 0 | U34: 0 | V34: 0 | W34: 0 | X34: 0 | Y34: 0 | Z34: 0 | AA34: 0 | AB34: 0 | AC34: 0 | AD34: 0 | AJ34: 0.0 | AK34: 0 | AL34: 0
A35: 20 | B35: ='Wettkampf 1'!B35 -> Schütze 20 | C35: ='Wettkampf 1'!C35 -> Esterwegen | F35: 0.0 | G35: 0 | H35: 0 | I35: 0 | J35: 0 | K35: 0 | L35: 0 | M35: 0 | N35: 1 | O35: 0 | P35: 0 | Q35: 0 | R35: 0 | S35: 0 | T35: 0 | U35: 0 | V35: 0 | W35: 0 | X35: 0 | Y35: 0 | Z35: 0 | AA35: 0 | AB35: 0 | AC35: 0 | AD35: 0 | AJ35: 0.0 | AK35: 1 | AL35: 0
A36: 21 | B36: ='Wettkampf 1'!B36 -> Hellweg Thea | C36: ='Wettkampf 1'!C36 -> Lähden | D36: 180.4 | F36: 180.4 | G36: 0 | H36: 0 | I36: 0 | J36: 0 | K36: 0 | L36: 0 | M36: 0 | N36: 0 | O36: 180.4 | P36: 1 | Q36: 0 | R36: 0 | S36: 0 | T36: 0 | U36: 0 | V36: 0 | W36: 0 | X36: 0 | Y36: 0 | Z36: 0 | AA36: 0 | AB36: 0 | AC36: 0 | AD36: 0 | AJ36: 0.0 | AK36: 0 | AL36: 0
A37: 22 | B37: ='Wettkampf 1'!B37 -> Bruns Henrik | C37: ='Wettkampf 1'!C37 -> Lähden | D37: 179.1 | F37: 179.1 | G37: 0 | H37: 0 | I37: 0 | J37: 0 | K37: 0 | L37: 0 | M37: 0 | N37: 0 | O37: 179.1 | P37: 1 | Q37: 0 | R37: 0 | S37: 0 | T37: 0 | U37: 0 | V37: 0 | W37: 0 | X37: 0 | Y37: 0 | Z37: 0 | AA37: 0 | AB37: 0 | AC37: 0 | AD37: 0 | AJ37: 0.0 | AK37: 0 | AL37: 0
A38: 23 | B38: ='Wettkampf 1'!B38 -> Buschen Johann | C38: ='Wettkampf 1'!C38 -> Lähden | D38: 179.6 | F38: 179.6 | G38: 0 | H38: 0 | I38: 0 | J38: 0 | K38: 0 | L38: 0 | M38: 0 | N38: 0 | O38: 179.6 | P38: 1 | Q38: 0 | R38: 0 | S38: 0 | T38: 0 | U38: 0 | V38: 0 | W38: 0 | X38: 0 | Y38: 0 | Z38: 0 | AA38: 0 | AB38: 0 | AC38: 0 | AD38: 0 | AJ38: 0.0 | AK38: 0 | AL38: 0
A39: 24 | B39: ='Wettkampf 1'!B39 -> Preut Jannis | C39: ='Wettkampf 1'!C39 -> Lähden | D39: 166.4 | E39: x | F39: 0 | G39: 0 | H39: 0 | I39: 0 | J39: 0 | K39: 0 | L39: 0 | M39: 0 | N39: 0 | O39: 0 | P39: 0 | Q39: 0 | R39: 0 | S39: 0 | T39: 0 | U39: 0 | V39: 0 | W39: 0 | X39: 0 | Y39: 0 | Z39: 0 | AA39: 0 | AB39: 0 | AC39: 0 | AD39: 0 | AJ39: 0.0 | AK39: 0 | AL39: 0
A40: 25 | B40: ='Wettkampf 1'!B40 -> Fleschenberg Jana | C40: ='Wettkampf 1'!C40 -> Lähden | D40: 191.9 | F40: 191.9 | G40: 0 | H40: 0 | I40: 0 | J40: 0 | K40: 0 | L40: 0 | M40: 0 | N40: 0 | O40: 191.9 | P40: 1 | Q40: 0 | R40: 0 | S40: 0 | T40: 0 | U40: 0 | V40: 0 | W40: 0 | X40: 0 | Y40: 0 | Z40: 0 | AA40: 0 | AB40: 0 | AC40: 0 | AD40: 0 | AJ40: 0.0 | AK40: 0 | AL40: 0
A41: 26 | B41: ='Wettkampf 1'!B41 -> von Seggern Moritz | C41: ='Wettkampf 1'!C41 -> Lähden | D41: 152.4 | E41: x | F41: 0 | G41: 0 | H41: 0 | I41: 0 | J41: 0 | K41: 0 | L41: 0 | M41: 0 | N41: 0 | O41: 0 | P41: 0 | Q41: 0 | R41: 0 | S41: 0 | T41: 0 | U41: 0 | V41: 0 | W41: 0 | X41: 0 | Y41: 0 | Z41: 0 | AA41: 0 | AB41: 0 | AC41: 0 | AD41: 0 | AJ41: 0.0 | AK41: 0 | AL41: 0
A42: 27 | B42: ='Wettkampf 1'!B42 -> Kohnen Saskia | C42: ='Wettkampf 1'!C42 -> Börgermoor | D42: 145.7 | F42: 145.7 | G42: 0 | H42: 0 | I42: 0 | J42: 0 | K42: 0 | L42: 0 | M42: 0 | N42: 0 | O42: 0 | P42: 0 | Q42: 145.7 | R42: 1 | S42: 0 | T42: 0 | U42: 0 | V42: 0 | W42: 0 | X42: 0 | Y42: 0 | Z42: 0 | AA42: 0 | AB42: 0 | AC42: 0 | AD42: 0 | AJ42: 0.0 | AK42: 0 | AL42: 0
A43: 28 | B43: ='Wettkampf 1'!B43 -> Niemann Paul | C43: ='Wettkampf 1'!C43 -> Börgermoor | F43: 0.0 | G43: 0 | H43: 0 | I43: 0 | J43: 0 | K43: 0 | L43: 0 | M43: 0 | N43: 0 | O43: 0 | P43: 0 | Q43: 0 | R43: 1 | S43: 0 | T43: 0 | U43: 0 | V43: 0 | W43: 0 | X43: 0 | Y43: 0 | Z43: 0 | AA43: 0 | AB43: 0 | AC43: 0 | AD43: 0 | AJ43: 0.0 | AK43: 1 | AL43: 0
A44: 29 | B44: ='Wettkampf 1'!B44 -> Schütze 29 | C44: ='Wettkampf 1'!C44 -> Börgermoor | F44: 0.0 | G44: 0 | H44: 0 | I44: 0 | J44: 0 | K44: 0 | L44: 0 | M44: 0 | N44: 0 | O44: 0 | P44: 0 | Q44: 0 | R44: 1 | S44: 0 | T44: 0 | U44: 0 | V44: 0 | W44: 0 | X44: 0 | Y44: 0 | Z44: 0 | AA44: 0 | AB44: 0 | AC44: 0 | AD44: 0 | AJ44: 0.0 | AK44: 1 | AL44: 0
A45: 30 | B45: ='Wettkampf 1'!B45 -> Schütze 30 | C45: ='Wettkampf 1'!C45 -> Börgermoor | F45: 0.0 | G45: 0 | H45: 0 | I45: 0 | J45: 0 | K45: 0 | L45: 0 | M45: 0 | N45: 0 | O45: 0 | P45: 0 | Q45: 0 | R45: 1 | S45: 0 | T45: 0 | U45: 0 | V45: 0 | W45: 0 | X45: 0 | Y45: 0 | Z45: 0 | AA45: 0 | AB45: 0 | AC45: 0 | AD45: 0 | AJ45: 0.0 | AK45: 1 | AL45: 0
A46: 31 | B46: ='Wettkampf 1'!B46 -> Stümpler Jan Luka | C46: ='Wettkampf 1'!C46 -> Lähden | F46: 0.0 | G46: 0 | H46: 0 | I46: 0 | J46: 0 | K46: 0 | L46: 0 | M46: 0 | N46: 0 | O46: 0 | P46: 1 | Q46: 0 | R46: 0 | S46: 0 | T46: 0 | U46: 0 | V46: 0 | W46: 0 | X46: 0 | Y46: 0 | Z46: 0 | AA46: 0 | AB46: 0 | AC46: 0 | AD46: 0 | AJ46: 0.0 | AK46: 1 | AL46: 0
A47: 32 | B47: ='Wettkampf 1'!B47 -> Helmer, Nils | C47: ='Wettkampf 1'!C47 -> Lorup | D47: 126.2 | E47: x | F47: 0 | G47: 0 | H47: 0 | I47: 0 | J47: 0 | K47: 0 | L47: 0 | M47: 0 | N47: 0 | O47: 0 | P47: 0 | Q47: 0 | R47: 0 | S47: 0 | T47: 0 | U47: 0 | V47: 0 | W47: 0 | X47: 0 | Y47: 0 | Z47: 0 | AA47: 0 | AB47: 0 | AC47: 0 | AD47: 0 | AJ47: 0.0 | AK47: 0 | AL47: 0
A48: 33 | B48: ='Wettkampf 1'!B48 -> Schütze 33 | C48: ='Wettkampf 1'!C48 -> Verein VII | F48: 0.0 | G48: 0 | H48: 0 | I48: 0 | J48: 0 | K48: 0 | L48: 0 | M48: 0 | N48: 0 | O48: 0 | P48: 0 | Q48: 0 | R48: 0 | S48: 0 | T48: 1 | U48: 0 | V48: 0 | W48: 0 | X48: 0 | Y48: 0 | Z48: 0 | AA48: 0 | AB48: 0 | AC48: 0 | AD48: 0 | AJ48: 0.0 | AK48: 1 | AL48: 0
A49: 34 | B49: ='Wettkampf 1'!B49 -> Schütze 34 | C49: ='Wettkampf 1'!C49 -> Verein VII | F49: 0.0 | G49: 0 | H49: 0 | I49: 0 | J49: 0 | K49: 0 | L49: 0 | M49: 0 | N49: 0 | O49: 0 | P49: 0 | Q49: 0 | R49: 0 | S49: 0 | T49: 1 | U49: 0 | V49: 0 | W49: 0 | X49: 0 | Y49: 0 | Z49: 0 | AA49: 0 | AB49: 0 | AC49: 0 | AD49: 0 | AJ49: 0.0 | AK49: 1 | AL49: 0
A50: 35 | B50: ='Wettkampf 1'!B50 -> Schütze 35 | C50: ='Wettkampf 1'!C50 -> Verein VII | F50: 0.0 | G50: 0 | H50: 0 | I50: 0 | J50: 0 | K50: 0 | L50: 0 | M50: 0 | N50: 0 | O50: 0 | P50: 0 | Q50: 0 | R50: 0 | S50: 0 | T50: 1 | U50: 0 | V50: 0 | W50: 0 | X50: 0 | Y50: 0 | Z50: 0 | AA50: 0 | AB50: 0 | AC50: 0 | AD50: 0 | AJ50: 0.0 | AK50: 1 | AL50: 0
A51: 36 | B51: ='Wettkampf 1'!B51 -> Schütze 36 | C51: ='Wettkampf 1'!C51 -> Verein VII | F51: 0.0 | G51: 0 | H51: 0 | I51: 0 | J51: 0 | K51: 0 | L51: 0 | M51: 0 | N51: 0 | O51: 0 | P51: 0 | Q51: 0 | R51: 0 | S51: 0 | T51: 1 | U51: 0 | V51: 0 | W51: 0 | X51: 0 | Y51: 0 | Z51: 0 | AA51: 0 | AB51: 0 | AC51: 0 | AD51: 0 | AJ51: 0.0 | AK51: 1 | AL51: 0
A52: 37 | B52: ='Wettkampf 1'!B52 -> Schütze 37 | C52: ='Wettkampf 1'!C52 -> Verein VII | F52: 0.0 | G52: 0 | H52: 0 | I52: 0 | J52: 0 | K52: 0 | L52: 0 | M52: 0 | N52: 0 | O52: 0 | P52: 0 | Q52: 0 | R52: 0 | S52: 0 | T52: 1 | U52: 0 | V52: 0 | W52: 0 | X52: 0 | Y52: 0 | Z52: 0 | AA52: 0 | AB52: 0 | AC52: 0 | AD52: 0 | AJ52: 0.0
A53: 38 | B53: ='Wettkampf 1'!B53 -> Schütze 38 | C53: ='Wettkampf 1'!C53 -> Verein VIII | F53: 0.0 | G53: 0 | H53: 0 | I53: 0 | J53: 0 | K53: 0 | L53: 0 | M53: 0 | N53: 0 | O53: 0 | P53: 0 | Q53: 0 | R53: 0 | S53: 0 | T53: 0 | U53: 0 | V53: 1 | W53: 0 | X53: 0 | Y53: 0 | Z53: 0 | AA53: 0 | AB53: 0 | AC53: 0 | AD53: 0 | AJ53: 0.0
A54: 39 | B54: ='Wettkampf 1'!B54 -> Schütze 39 | C54: ='Wettkampf 1'!C54 -> Verein VIII | F54: 0.0 | G54: 0 | H54: 0 | I54: 0 | J54: 0 | K54: 0 | L54: 0 | M54: 0 | N54: 0 | O54: 0 | P54: 0 | Q54: 0 | R54: 0 | S54: =IF($C54=$B$8,$F54,0) -> 0 | T54: =(IF(AND($E54="",$C54=$B$8),1,0)) -> 0 | U54: =IF($C54=$B$9,$F54,0) -> 0 | V54: =(IF(AND($E54="",$C54=$B$9),1,0)) -> 1 | W54: =IF($C54=$B$10,$F54,0) -> 0 | X54: =(IF(AND($E54="",$C54=$B$10),1,0)) -> 0 | Y54: =IF($C54=$B$11,$F54,0) -> 0 | Z54: =(IF(AND($E54="",$C54=$B$11),1,0)) -> 0 | AA54: =IF($C54=$B$12,$F54,0) -> 0 | AB54: =(IF(AND($E54="",$C54=$B$12),1,0)) -> 0 | AC54: =IF($C54=$B$13,$F54,0) -> 0 | AD54: =(IF(AND($E54="",$C54=$B$13),1,0)) -> 0 | AJ54: 0.0
A55: 40 | B55: ='Wettkampf 1'!B55 -> Schütze 40 | C55: ='Wettkampf 1'!C55 -> Verein VIII | F55: 0.0 | G55: 0 | H55: 0 | I55: 0 | J55: 0 | K55: 0 | L55: 0 | M55: 0 | N55: 0 | O55: 0 | P55: 0 | Q55: 0 | R55: 0 | S55: 0 | T55: 0 | U55: 0 | V55: 1 | W55: 0 | X55: 0 | Y55: 0 | Z55: 0 | AA55: 0 | AB55: 0 | AC55: 0 | AD55: 0 | AJ55: 0.0
A56: 41 | B56: ='Wettkampf 1'!B56 -> Schütze 41 | C56: ='Wettkampf 1'!C56 -> Verein IX | F56: 0.0 | G56: 0 | H56: 0 | I56: 0 | J56: 0 | K56: 0 | L56: 0 | M56: 0 | N56: 0 | O56: 0 | P56: 0 | Q56: 0 | R56: 0 | S56: 0 | T56: 0 | U56: 0 | V56: 0 | W56: 0 | X56: 1 | Y56: 0 | Z56: 0 | AA56: 0 | AB56: 0 | AC56: 0 | AD56: 0 | AJ56: 0.0
A57: 42 | B57: ='Wettkampf 1'!B57 -> Schütze 42 | C57: ='Wettkampf 1'!C57 -> Verein IX | F57: 0.0 | G57: 0 | H57: 0 | I57: 0 | J57: 0 | K57: 0 | L57: 0 | M57: 0 | N57: 0 | O57: 0 | P57: 0 | Q57: 0 | R57: 0 | S57: 0 | T57: 0 | U57: 0 | V57: 0 | W57: 0 | X57: 1 | Y57: 0 | Z57: 0 | AA57: 0 | AB57: 0 | AC57: 0 | AD57: 0 | AJ57: 0.0
A58: 43 | B58: ='Wettkampf 1'!B58 -> Schütze 43 | C58: ='Wettkampf 1'!C58 -> Verein IX | F58: 0.0 | G58: 0 | H58: 0 | I58: 0 | J58: 0 | K58: 0 | L58: 0 | M58: 0 | N58: 0 | O58: 0 | P58: 0 | Q58: 0 | R58: 0 | S58: 0 | T58: 0 | U58: 0 | V58: 0 | W58: 0 | X58: 1 | Y58: 0 | Z58: 0 | AA58: 0 | AB58: 0 | AC58: 0 | AD58: 0 | AJ58: 0.0
A59: 44 | B59: ='Wettkampf 1'!B59 -> Schütze 44 | C59: ='Wettkampf 1'!C59 -> Verein IX | F59: 0.0 | G59: 0 | H59: 0 | I59: 0 | J59: 0 | K59: 0 | L59: 0 | M59: 0 | N59: 0 | O59: 0 | P59: 0 | Q59: 0 | R59: 0 | S59: 0 | T59: 0 | U59: 0 | V59: 0 | W59: 0 | X59: 1 | Y59: 0 | Z59: 0 | AA59: 0 | AB59: 0 | AC59: 0 | AD59: 0 | AJ59: 0.0
A60: 45 | B60: ='Wettkampf 1'!B60 -> Schütze 45 | C60: ='Wettkampf 1'!C60 -> Verein IX | F60: 0.0 | G60: 0 | H60: 0 | I60: 0 | J60: 0 | K60: 0 | L60: 0 | M60: 0 | N60: 0 | O60: 0 | P60: 0 | Q60: 0 | R60: 0 | S60: 0 | T60: 0 | U60: 0 | V60: 0 | W60: 0 | X60: 1 | Y60: 0 | Z60: 0 | AA60: 0 | AB60: 0 | AC60: 0 | AD60: 0 | AJ60: 0.0
A61: 46 | B61: ='Wettkampf 1'!B61 -> Schütze 46 | C61: ='Wettkampf 1'!C61 -> Verein X | F61: 0.0 | G61: 0 | H61: 0 | I61: 0 | J61: 0 | K61: 0 | L61: 0 | M61: 0 | N61: 0 | O61: 0 | P61: 0 | Q61: 0 | R61: 0 | S61: 0 | T61: 0 | U61: 0 | V61: 0 | W61: 0 | X61: 0 | Y61: 0 | Z61: 1 | AA61: 0 | AB61: 0 | AC61: 0 | AD61: 0 | AJ61: 0.0
A62: 47 | B62: ='Wettkampf 1'!B62 -> Schütze 47 | C62: ='Wettkampf 1'!C62 -> Verein X | F62: 0.0 | G62: 0 | H62: 0 | I62: 0 | J62: 0 | K62: 0 | L62: 0 | M62: 0 | N62: 0 | O62: 0 | P62: 0 | Q62: 0 | R62: 0 | S62: 0 | T62: 0 | U62: 0 | V62: 0 | W62: 0 | X62: 0 | Y62: 0 | Z62: 1 | AA62: 0 | AB62: 0 | AC62: 0 | AD62: 0 | AJ62: 0.0
A63: 48 | B63: ='Wettkampf 1'!B63 -> Schütze 48 | C63: ='Wettkampf 1'!C63 -> Verein X | F63: 0.0 | G63: 0 | H63: 0 | I63: 0 | J63: 0 | K63: 0 | L63: 0 | M63: 0 | N63: 0 | O63: 0 | P63: 0 | Q63: 0 | R63: 0 | S63: 0 | T63: 0 | U63: 0 | V63: 0 | W63: 0 | X63: 0 | Y63: 0 | Z63: 1 | AA63: 0 | AB63: 0 | AC63: 0 | AD63: 0 | AJ63: 0.0
A64: 49 | B64: ='Wettkampf 1'!B64 -> Schütze 49 | C64: ='Wettkampf 1'!C64 -> Verein X | F64: 0.0 | G64: 0 | H64: 0 | I64: 0 | J64: 0 | K64: 0 | L64: 0 | M64: 0 | N64: 0 | O64: 0 | P64: 0 | Q64: 0 | R64: 0 | S64: 0 | T64: 0 | U64: 0 | V64: 0 | W64: 0 | X64: 0 | Y64: 0 | Z64: 1 | AA64: 0 | AB64: 0 | AC64: 0 | AD64: 0 | AJ64: 0.0
A65: 50 | B65: ='Wettkampf 1'!B65 -> Schütze 50 | C65: ='Wettkampf 1'!C65 -> Verein X | F65: 0.0 | G65: 0 | H65: 0 | I65: 0 | J65: 0 | K65: 0 | L65: 0 | M65: 0 | N65: 0 | O65: 0 | P65: 0 | Q65: 0 | R65: 0 | S65: 0 | T65: 0 | U65: 0 | V65: 0 | W65: 0 | X65: 0 | Y65: 0 | Z65: 1 | AA65: 0 | AB65: 0 | AC65: 0 | AD65: 0 | AJ65: 0.0
A66: 51 | B66: ='Wettkampf 1'!B66 -> Schütze 51 | C66: ='Wettkampf 1'!C66 -> Verein XI | F66: 0.0 | G66: 0 | H66: 0 | I66: 0 | J66: 0 | K66: 0 | L66: 0 | M66: 0 | N66: 0 | O66: 0 | P66: 0 | Q66: 0 | R66: 0 | S66: 0 | T66: 0 | U66: 0 | V66: 0 | W66: 0 | X66: 0 | Y66: 0 | Z66: 0 | AA66: 0 | AB66: 1 | AC66: 0 | AD66: 0 | AJ66: 0.0
A67: 52 | B67: ='Wettkampf 1'!B67 -> Schütze 52 | C67: ='Wettkampf 1'!C67 -> Verein XI | F67: 0.0 | G67: 0 | H67: 0 | I67: 0 | J67: 0 | K67: 0 | L67: 0 | M67: 0 | N67: 0 | O67: 0 | P67: 0 | Q67: 0 | R67: 0 | S67: 0 | T67: 0 | U67: 0 | V67: 0 | W67: 0 | X67: 0 | Y67: 0 | Z67: 0 | AA67: 0 | AB67: 1 | AC67: 0 | AD67: 0 | AJ67: 0.0
A68: 53 | B68: ='Wettkampf 1'!B68 -> Schütze 53 | C68: ='Wettkampf 1'!C68 -> Verein XI | F68: 0.0 | G68: 0 | H68: 0 | I68: 0 | J68: 0 | K68: 0 | L68: 0 | M68: 0 | N68: 0 | O68: 0 | P68: 0 | Q68: 0 | R68: 0 | S68: 0 | T68: 0 | U68: 0 | V68: 0 | W68: 0 | X68: 0 | Y68: 0 | Z68: 0 | AA68: 0 | AB68: 1 | AC68: 0 | AD68: 0 | AJ68: 0.0
A69: 54 | B69: ='Wettkampf 1'!B69 -> Schütze 54 | C69: ='Wettkampf 1'!C69 -> Verein XI | F69: 0.0 | G69: 0 | H69: 0 | I69: 0 | J69: 0 | K69: 0 | L69: 0 | M69: 0 | N69: 0 | O69: 0 | P69: 0 | Q69: 0 | R69: 0 | S69: 0 | T69: 0 | U69: 0 | V69: 0 | W69: 0 | X69: 0 | Y69: 0 | Z69: 0 | AA69: 0 | AB69: 1 | AC69: 0 | AD69: 0 | AJ69: 0.0
A70: 55 | B70: ='Wettkampf 1'!B70 -> Schütze 55 | C70: ='Wettkampf 1'!C70 -> Verein XI | F70: 0.0 | G70: 0 | H70: 0 | I70: 0 | J70: 0 | K70: 0 | L70: 0 | M70: 0 | N70: 0 | O70: 0 | P70: 0 | Q70: 0 | R70: 0 | S70: 0 | T70: 0 | U70: 0 | V70: 0 | W70: 0 | X70: 0 | Y70: 0 | Z70: 0 | AA70: 0 | AB70: 1 | AC70: 0 | AD70: 0 | AJ70: 0.0
A71: 56 | B71: ='Wettkampf 1'!B71 -> Schütze 56 | C71: ='Wettkampf 1'!C71 -> Verein XII | F71: 0.0 | G71: 0 | H71: 0 | I71: 0 | J71: 0 | K71: 0 | L71: 0 | M71: 0 | N71: 0 | O71: 0 | P71: 0 | Q71: 0 | R71: 0 | S71: 0 | T71: 0 | U71: 0 | V71: 0 | W71: 0 | X71: 0 | Y71: 0 | Z71: 0 | AA71: 0 | AB71: 0 | AC71: 0 | AD71: 1 | AJ71: 0.0
A72: 57 | B72: ='Wettkampf 1'!B72 -> Schütze 57 | C72: ='Wettkampf 1'!C72 -> Verein XII | F72: 0.0 | G72: 0 | H72: 0 | I72: 0 | J72: 0 | K72: 0 | L72: 0 | M72: 0 | N72: 0 | O72: 0 | P72: 0 | Q72: 0 | R72: 0 | S72: 0 | T72: 0 | U72: 0 | V72: 0 | W72: 0 | X72: 0 | Y72: 0 | Z72: 0 | AA72: 0 | AB72: 0 | AC72: 0 | AD72: 1 | AJ72: 0.0
A73: 58 | B73: ='Wettkampf 1'!B73 -> Schütze 58 | C73: ='Wettkampf 1'!C73 -> Verein XII | F73: 0.0 | G73: 0 | H73: 0 | I73: 0 | J73: 0 | K73: 0 | L73: 0 | M73: 0 | N73: 0 | O73: 0 | P73: 0 | Q73: 0 | R73: 0 | S73: 0 | T73: 0 | U73: 0 | V73: 0 | W73: 0 | X73: 0 | Y73: 0 | Z73: 0 | AA73: 0 | AB73: 0 | AC73: 0 | AD73: 1 | AJ73: 0.0
A74: 59 | B74: ='Wettkampf 1'!B74 -> Schütze 59 | C74: ='Wettkampf 1'!C74 -> Verein XII | F74: 0.0 | G74: 0 | H74: 0 | I74: 0 | J74: 0 | K74: 0 | L74: 0 | M74: 0 | N74: 0 | O74: 0 | P74: 0 | Q74: 0 | R74: 0 | S74: 0 | T74: 0 | U74: 0 | V74: 0 | W74: 0 | X74: 0 | Y74: 0 | Z74: 0 | AA74: 0 | AB74: 0 | AC74: 0 | AD74: 1 | AJ74: 0.0
A75: 60 | B75: ='Wettkampf 1'!B75 -> Schütze 60 | C75: ='Wettkampf 1'!C75 -> Verein XII | F75: 0.0 | G75: 0 | H75: 0 | I75: 0 | J75: 0 | K75: 0 | L75: 0 | M75: 0 | N75: 0 | O75: 0 | P75: 0 | Q75: 0 | R75: 0 | S75: 0 | T75: 0 | U75: 0 | V75: 0 | W75: 0 | X75: 0 | Y75: 0 | Z75: 0 | AA75: 0 | AB75: 0 | AC75: 0 | AD75: 1 | AJ75: 0.0
G76: =LARGE(G16:G75,1)+LARGE(G16:G75,2)+LARGE(G16:G75,3) -> 444.2 | H76: =SUM(H16:H75) -> 5 | I76: =LARGE(I16:I75,1)+LARGE(I16:I75,2)+LARGE(I16:I75,3) -> 0 | J76: =SUM(J16:J75) -> 4 | K76: =LARGE(K16:K75,1)+LARGE(K16:K75,2)+LARGE(K16:K75,3) -> 361.5 | L76: =SUM(L16:L75) -> 5 | M76: =LARGE(M16:M75,1)+LARGE(M16:M75,2)+LARGE(M16:M75,3) -> 522.9 | N76: =SUM(N16:N75) -> 5 | O76: =LARGE(O16:O75,1)+LARGE(O16:O75,2)+LARGE(O16:O75,3) -> 551.9 | P76: =SUM(P16:P75) -> 5 | Q76: =LARGE(Q16:Q75,1)+LARGE(Q16:Q75,2)+LARGE(Q16:Q75,3) -> 145.7 | R76: =SUM(R16:R75) -> 4 | S76: =LARGE(S16:S75,1)+LARGE(S16:S75,2)+LARGE(S16:S75,3) -> 0 | T76: =SUM(T16:T75) -> 5 | U76: =LARGE(U16:U75,1)+LARGE(U16:U75,2)+LARGE(U16:U75,3) -> 0 | V76: =SUM(V16:V75) -> 3 | W76: =LARGE(W16:W75,1)+LARGE(W16:W75,2)+LARGE(W16:W75,3) -> 0 | X76: =SUM(X16:X75) -> 5 | Y76: =LARGE(Y16:Y75,1)+LARGE(Y16:Y75,2)+LARGE(Y16:Y75,3) -> 0 | Z76: =SUM(Z16:Z75) -> 5 | AA76: =LARGE(AA16:AA75,1)+LARGE(AA16:AA75,2)+LARGE(AA16:AA75,3) -> 0 | AB76: =SUM(AB16:AB75) -> 5 | AC76: =LARGE(AC16:AC75,1)+LARGE(AC16:AC75,2)+LARGE(AC16:AC75,3) -> 0 | AD76: =SUM(AD16:AD75) -> 5
C77: per Email an: sk-huemmling@gmx.de

Sheet 9
B1: Verein / Gruppe | D1: Ergebnisse | AH1: Austragungsort: | AI1: =Übersicht!N4 -> Breddenberg
A2: 1 | B2: ='Wettkampf 1'!B2 -> Lorup | D2: =G76 -> 507.7 | E2: =IF(H76>4,"Es sind zu viele Schützen in Wertung!"," ") -> Es sind zu viele Schützen in Wertung! | AH2: Wettkampftag: | AI2: =Übersicht!N3 -> 17.02.
A3: 2 | B3: ='Wettkampf 1'!B3 -> Sögel | D3: =I76 -> 0.0 | E3: =IF(J76>4,"Es sind zu viele Schützen in Wertung!"," ") -> 
A4: 3 | B4: ='Wettkampf 1'!B4 -> Spahnharenstätte | D4: =K76 -> 372.1 | E4: =IF(L76>4,"Es sind zu viele Schützen in Wertung!"," ") -> Es sind zu viele Schützen in Wertung! | AJ4: Ansprechpartner für Rückfragen:
A5: 4 | B5: ='Wettkampf 1'!B5 -> Esterwegen | D5: =M76 -> 490.7 | E5: =IF(N76>4,"Es sind zu viele Schützen in Wertung!"," ") -> Es sind zu viele Schützen in Wertung! | AH5: Name: | AI5: Frank Kuper
A6: 5 | B6: ='Wettkampf 1'!B6 -> Lähden | D6: =O76 -> 560.7 | E6: =IF(P76>4,"Es sind zu viele Schützen in Wertung!"," ") -> Es sind zu viele Schützen in Wertung! | AH6: Tel: | AI6: 01525/6118900
A7: 6 | B7: ='Wettkampf 1'!B7 -> Börgermoor | D7: =Q76 -> 175.5 | E7: =IF(R76>4,"Es sind zu viele Schützen in Wertung!"," ") ->  | AH7: Standaufsicht: | AI7: G.Jansen/F.Kuper
A8: 7 | B8: ='Wettkampf 1'!B8 -> Verein VII | D8: =S76 -> 0.0 | E8: =IF(T76>4,"Es sind zu viele Schützen in Wertung!"," ") -> Es sind zu viele Schützen in Wertung!
A9: 8 | B9: ='Wettkampf 1'!B9 -> Verein VIII | D9: =U76 -> 0.0 | E9: =IF(V76>4,"Es sind zu viele Schützen in Wertung!"," ") -> 
A10: 9 | B10: ='Wettkampf 1'!B10 -> Verein IX | D10: =W76 -> 0.0 | E10: =IF(X76>4,"Es sind zu viele Schützen in Wertung!"," ") -> Es sind zu viele Schützen in Wertung!
A11: 10 | B11: ='Wettkampf 1'!B11 -> Verein X | D11: =Y76 -> 0.0 | E11: =IF(Z76>4,"Es sind zu viele Schützen in Wertung!"," ") -> Es sind zu viele Schützen in Wertung!
A12: 11 | B12: ='Wettkampf 1'!B12 -> Verein XI | D12: =AA76 -> 0.0 | E12: =IF(AB76>4,"Es sind zu viele Schützen in Wertung!"," ") -> Es sind zu viele Schützen in Wertung!
A13: 12 | B13: ='Wettkampf 1'!B13 -> Verein XII | D13: =AC76 -> 0.0 | E13: =IF(AD76>4,"Es sind zu viele Schützen in Wertung!"," ") -> Es sind zu viele Schützen in Wertung!
B15: Einzelergebnisse: | C15: Verein / Gruppe | D15: Ergebnisse (mindestens 0 eintragen) | E15: AW? Dann x eintippen | G15: Verein 1 | I15: Verein 2 | K15: Verein 3 | M15: Verein 4 | O15: Verein 5 | Q15: Verein 6 | S15: Verein 7 | U15: Verein 8 | W15: Verein 9 | Y15: Verein 10 | AA15: Verein 11 | AC15: Verein 12 | AG15: Proberechnung bei Streifen:
A16: 1 | B16: ='Wettkampf 1'!B16 -> Wotte Lia | C16: ='Wettkampf 1'!C16 -> Lorup | D16: 178.6 | F16: =IF(E16="x","0",D16) -> 178.6 | G16: =IF(C16=$B$2,F16,0) -> 178.6 | H16: =(IF(AND($E16="",$C16=$B$2),1,0)) -> 1 | I16: =IF($C16=$B$3,$F16,0) -> 0 | J16: =(IF(AND($E16="",$C16=$B$3),1,0)) -> 0 | K16: =IF($C16=$B$4,F16,0) -> 0 | L16: =(IF(AND($E16="",$C16=$B$4),1,0)) -> 0 | M16: =IF($C16=$B$5,F16,0) -> 0 | N16: =(IF(AND($E16="",$C16=$B$5),1,0)) -> 0 | O16: =IF($C16=$B$6,F16,0) -> 0 | P16: =(IF(AND($E16="",$C16=$B$6),1,0)) -> 0 | Q16: =IF($C16=$B$7,F16,0) -> 0 | R16: =(IF(AND($E16="",$C16=$B$7),1,0)) -> 0 | S16: =IF($C16=$B$8,$F16,0) -> 0 | T16: =(IF(AND($E16="",$C16=$B$8),1,0)) -> 0 | U16: =IF($C16=$B$9,$F16,0) -> 0 | V16: =(IF(AND($E16="",$C16=$B$9),1,0)) -> 0 | W16: =IF($C16=$B$10,$F16,0) -> 0 | X16: =(IF(AND($E16="",$C16=$B$10),1,0)) -> 0 | Y16: =IF($C16=$B$11,$F16,0) -> 0 | Z16: =(IF(AND($E16="",$C16=$B$11),1,0)) -> 0 | AA16: =IF($C16=$B$12,$F16,0) -> 0 | AB16: =(IF(AND($E16="",$C16=$B$12),1,0)) -> 0 | AC16: =IF($C16=$B$13,$F16,0) -> 0 | AD16: =(IF(AND($E16="",$C16=$B$13),1,0)) -> 0 | AJ16: =SUM(AG16:AI16) -> 0.0 | AK16: =IF(AJ16=D16,1,0) -> 0 | AL16: =IF(AJ16=0,0,1) -> 0 | AM16: =IF(AK16+AL16=2,"Korrekt","") -> 
A17: 2 | B17: ='Wettkampf 1'!B17 -> Wotte Hannes | C17: ='Wettkampf 1'!C17 -> Lorup | D17: 139.8 | F17: =IF(E17="x","0",D17) -> 139.8 | G17: =IF(C17=$B$2,F17,0) -> 139.8 | H17: =(IF(AND($E17="",$C17=$B$2),1,0)) -> 1 | I17: =IF($C17=$B$3,F17,0) -> 0 | J17: =(IF(AND($E17="",$C17=$B$3),1,0)) -> 0 | K17: =IF($C17=$B$4,F17,0) -> 0 | L17: =(IF(AND($E17="",$C17=$B$4),1,0)) -> 0 | M17: =IF($C17=$B$5,F17,0) -> 0 | N17: =(IF(AND($E17="",$C17=$B$5),1,0)) -> 0 | O17: =IF($C17=$B$6,F17,0) -> 0 | P17: =(IF(AND($E17="",$C17=$B$6),1,0)) -> 0 | Q17: =IF($C17=$B$7,F17,0) -> 0 | R17: =(IF(AND($E17="",$C17=$B$7),1,0)) -> 0 | S17: =IF($C17=$B$8,$F17,0) -> 0 | T17: =(IF(AND($E17="",$C17=$B$8),1,0)) -> 0 | U17: =IF($C17=$B$9,$F17,0) -> 0 | V17: =(IF(AND($E17="",$C17=$B$9),1,0)) -> 0 | W17: =IF($C17=$B$10,$F17,0) -> 0 | X17: =(IF(AND($E17="",$C17=$B$10),1,0)) -> 0 | Y17: =IF($C17=$B$11,$F17,0) -> 0 | Z17: =(IF(AND($E17="",$C17=$B$11),1,0)) -> 0 | AA17: =IF($C17=$B$12,$F17,0) -> 0 | AB17: =(IF(AND($E17="",$C17=$B$12),1,0)) -> 0 | AC17: =IF($C17=$B$13,$F17,0) -> 0 | AD17: =(IF(AND($E17="",$C17=$B$13),1,0)) -> 0 | AJ17: =SUM(AG17:AI17) -> 0.0 | AK17: =IF(AJ17=D17,1,0) -> 0 | AL17: =IF(AJ17=0,0,1) -> 0 | AM17: =IF(AK17+AL17=2,"Korrekt","") -> 
A18: 3 | B18: ='Wettkampf 1'!B18 -> Gretenabeln Elias | C18: ='Wettkampf 1'!C18 -> Lorup | D18: 148.2 | F18: 148.2 | G18: 148.2 | H18: 1 | I18: 0 | J18: 0 | K18: 0 | L18: 0 | M18: 0 | N18: 0 | O18: 0 | P18: 0 | Q18: 0 | R18: 0 | S18: 0 | T18: 0 | U18: 0 | V18: 0 | W18: 0 | X18: 0 | Y18: 0 | Z18: 0 | AA18: 0 | AB18: 0 | AC18: 0 | AD18: 0 | AJ18: 0.0 | AK18: 0 | AL18: 0
A19: 4 | B19: ='Wettkampf 1'!B19 -> Helmer Maike | C19: ='Wettkampf 1'!C19 -> Lorup | D19: 180.9 | F19: 180.9 | G19: 180.9 | H19: 1 | I19: 0 | J19: 0 | K19: 0 | L19: 0 | M19: 0 | N19: 0 | O19: 0 | P19: 0 | Q19: 0 | R19: 0 | S19: 0 | T19: 0 | U19: 0 | V19: 0 | W19: 0 | X19: 0 | Y19: 0 | Z19: 0 | AA19: 0 | AB19: 0 | AC19: 0 | AD19: 0 | AJ19: 0.0 | AK19: 0 | AL19: 0
A20: 5 | B20: ='Wettkampf 1'!B20 -> Többen Jannes | C20: ='Wettkampf 1'!C20 -> Lorup | D20: 115.3 | E20: x | F20: 0 | G20: 0 | H20: 0 | I20: 0 | J20: 0 | K20: 0 | L20: 0 | M20: 0 | N20: 0 | O20: 0 | P20: 0 | Q20: 0 | R20: 0 | S20: 0 | T20: 0 | U20: 0 | V20: 0 | W20: 0 | X20: 0 | Y20: 0 | Z20: 0 | AA20: 0 | AB20: 0 | AC20: 0 | AD20: 0 | AJ20: 0.0 | AK20: 0 | AL20: 0
A21: 6 | B21: ='Wettkampf 1'!B21 -> Lüken Arne | C21: ='Wettkampf 1'!C21 -> Lorup | F21: 0.0 | G21: 0 | H21: 1 | I21: 0 | J21: 0 | K21: 0 | L21: 0 | M21: 0 | N21: 0 | O21: 0 | P21: 0 | Q21: 0 | R21: 0 | S21: 0 | T21: 0 | U21: 0 | V21: 0 | W21: 0 | X21: 0 | Y21: 0 | Z21: 0 | AA21: 0 | AB21: 0 | AC21: 0 | AD21: 0 | AJ21: 0.0 | AK21: 1 | AL21: 0
A22: 7 | B22: ='Wettkampf 1'!B22 -> Schütze 7 | C22: ='Wettkampf 1'!C22 -> Sögel | F22: 0.0 | G22: 0 | H22: 0 | I22: 0 | J22: 1 | K22: 0 | L22: 0 | M22: 0 | N22: 0 | O22: 0 | P22: 0 | Q22: 0 | R22: 0 | S22: 0 | T22: 0 | U22: 0 | V22: 0 | W22: 0 | X22: 0 | Y22: 0 | Z22: 0 | AA22: 0 | AB22: 0 | AC22: 0 | AD22: 0 | AJ22: 0.0 | AK22: 1 | AL22: 0
A23: 8 | B23: ='Wettkampf 1'!B23 -> Schütze 8 | C23: ='Wettkampf 1'!C23 -> Sögel | F23: 0.0 | G23: 0 | H23: 0 | I23: 0 | J23: 1 | K23: 0 | L23: 0 | M23: 0 | N23: 0 | O23: 0 | P23: 0 | Q23: 0 | R23: 0 | S23: 0 | T23: 0 | U23: 0 | V23: 0 | W23: 0 | X23: 0 | Y23: 0 | Z23: 0 | AA23: 0 | AB23: 0 | AC23: 0 | AD23: 0 | AJ23: 0.0 | AK23: 1 | AL23: 0
A24: 9 | B24: ='Wettkampf 1'!B24 -> Schütze 9 | C24: ='Wettkampf 1'!C24 -> Sögel | F24: 0.0 | G24: 0 | H24: 0 | I24: 0 | J24: 1 | K24: 0 | L24: 0 | M24: 0 | N24: 0 | O24: 0 | P24: 0 | Q24: 0 | R24: 0 | S24: 0 | T24: 0 | U24: 0 | V24: 0 | W24: 0 | X24: 0 | Y24: 0 | Z24: 0 | AA24: 0 | AB24: 0 | AC24: 0 | AD24: 0 | AJ24: 0.0 | AK24: 1 | AL24: 0
A25: 10 | B25: ='Wettkampf 1'!B25 -> Schütze 10 | C25: ='Wettkampf 1'!C25 -> Sögel | F25: 0.0 | G25: 0 | H25: 0 | I25: 0 | J25: 1 | K25: 0 | L25: 0 | M25: 0 | N25: 0 | O25: 0 | P25: 0 | Q25: 0 | R25: 0 | S25: 0 | T25: 0 | U25: 0 | V25: 0 | W25: 0 | X25: 0 | Y25: 0 | Z25: 0 | AA25: 0 | AB25: 0 | AC25: 0 | AD25: 0 | AJ25: 0.0 | AK25: 1 | AL25: 0
A26: 11 | B26: ='Wettkampf 1'!B26 -> Engbers Hannes | C26: ='Wettkampf 1'!C26 -> Spahnharenstätte | D26: 109.8 | F26: 109.8 | G26: 0 | H26: 0 | I26: 0 | J26: 0 | K26: 109.8 | L26: 1 | M26: 0 | N26: 0 | O26: 0 | P26: 0 | Q26: 0 | R26: 0 | S26: 0 | T26: 0 | U26: 0 | V26: 0 | W26: 0 | X26: 0 | Y26: 0 | Z26: 0 | AA26: 0 | AB26: 0 | AC26: 0 | AD26: 0 | AJ26: 0.0 | AK26: 0 | AL26: 0
A27: 12 | B27: ='Wettkampf 1'!B27 -> Runde Marcel | C27: ='Wettkampf 1'!C27 -> Spahnharenstätte | D27: 137.0 | F27: 137.0 | G27: 0 | H27: 0 | I27: 0 | J27: 0 | K27: 137 | L27: 1 | M27: 0 | N27: 0 | O27: 0 | P27: 0 | Q27: 0 | R27: 0 | S27: 0 | T27: 0 | U27: 0 | V27: 0 | W27: 0 | X27: 0 | Y27: 0 | Z27: 0 | AA27: 0 | AB27: 0 | AC27: 0 | AD27: 0 | AJ27: 0.0 | AK27: 0 | AL27: 0
A28: 13 | B28: ='Wettkampf 1'!B28 -> Jansen Lars | C28: ='Wettkampf 1'!C28 -> Spahnharenstätte | D28: 125.3 | F28: 125.3 | G28: 0 | H28: 0 | I28: 0 | J28: 0 | K28: 125.3 | L28: 1 | M28: 0 | N28: 0 | O28: 0 | P28: 0 | Q28: 0 | R28: 0 | S28: 0 | T28: 0 | U28: 0 | V28: 0 | W28: 0 | X28: 0 | Y28: 0 | Z28: 0 | AA28: 0 | AB28: 0 | AC28: 0 | AD28: 0 | AJ28: 0.0 | AK28: 0 | AL28: 0
A29: 14 | B29: ='Wettkampf 1'!B29 -> Schütze 14 | C29: ='Wettkampf 1'!C29 -> Spahnharenstätte | F29: 0.0 | G29: 0 | H29: 0 | I29: 0 | J29: 0 | K29: 0 | L29: 1 | M29: 0 | N29: 0 | O29: 0 | P29: 0 | Q29: 0 | R29: 0 | S29: 0 | T29: 0 | U29: 0 | V29: 0 | W29: 0 | X29: 0 | Y29: 0 | Z29: 0 | AA29: 0 | AB29: 0 | AC29: 0 | AD29: 0 | AJ29: 0.0 | AK29: 1 | AL29: 0
A30: 15 | B30: ='Wettkampf 1'!B30 -> Schütze 15 | C30: ='Wettkampf 1'!C30 -> Spahnharenstätte | F30: 0.0 | G30: 0 | H30: 0 | I30: 0 | J30: 0 | K30: 0 | L30: 1 | M30: 0 | N30: 0 | O30: 0 | P30: 0 | Q30: 0 | R30: 0 | S30: 0 | T30: 0 | U30: 0 | V30: 0 | W30: 0 | X30: 0 | Y30: 0 | Z30: 0 | AA30: 0 | AB30: 0 | AC30: 0 | AD30: 0 | AJ30: 0.0 | AK30: 1 | AL30: 0
A31: 16 | B31: ='Wettkampf 1'!B31 -> Suhle Annalena | C31: ='Wettkampf 1'!C31 -> Esterwegen | D31: 186.4 | F31: 186.4 | G31: 0 | H31: 0 | I31: 0 | J31: 0 | K31: 0 | L31: 0 | M31: 186.4 | N31: 1 | O31: 0 | P31: 0 | Q31: 0 | R31: 0 | S31: 0 | T31: 0 | U31: 0 | V31: 0 | W31: 0 | X31: 0 | Y31: 0 | Z31: 0 | AA31: 0 | AB31: 0 | AC31: 0 | AD31: 0 | AJ31: 0.0 | AK31: 0 | AL31: 0
A32: 17 | B32: ='Wettkampf 1'!B32 -> Gäken Lena | C32: ='Wettkampf 1'!C32 -> Esterwegen | D32: 185.5 | F32: 185.5 | G32: 0 | H32: 0 | I32: 0 | J32: 0 | K32: 0 | L32: 0 | M32: 185.5 | N32: 1 | O32: 0 | P32: 0 | Q32: 0 | R32: 0 | S32: 0 | T32: 0 | U32: 0 | V32: 0 | W32: 0 | X32: 0 | Y32: 0 | Z32: 0 | AA32: 0 | AB32: 0 | AC32: 0 | AD32: 0 | AJ32: 0.0 | AK32: 0 | AL32: 0
A33: 18 | B33: ='Wettkampf 1'!B33 -> Jansen Daniel | C33: ='Wettkampf 1'!C33 -> Esterwegen | F33: 0.0 | G33: 0 | H33: 0 | I33: 0 | J33: 0 | K33: 0 | L33: 0 | M33: 0 | N33: 1 | O33: 0 | P33: 0 | Q33: 0 | R33: 0 | S33: 0 | T33: 0 | U33: 0 | V33: 0 | W33: 0 | X33: 0 | Y33: 0 | Z33: 0 | AA33: 0 | AB33: 0 | AC33: 0 | AD33: 0 | AJ33: 0.0 | AK33: 1 | AL33: 0
A34: 19 | B34: ='Wettkampf 1'!B34 -> Pieper Jonas | C34: ='Wettkampf 1'!C34 -> Esterwegen | D34: 118.8 | F34: 118.8 | G34: 0 | H34: 0 | I34: 0 | J34: 0 | K34: 0 | L34: 0 | M34: 118.8 | N34: 1 | O34: 0 | P34: 0 | Q34: 0 | R34: 0 | S34: 0 | T34: 0 | U34: 0 | V34: 0 | W34: 0 | X34: 0 | Y34: 0 | Z34: 0 | AA34: 0 | AB34: 0 | AC34: 0 | AD34: 0 | AJ34: 0.0 | AK34: 0 | AL34: 0
A35: 20 | B35: ='Wettkampf 1'!B35 -> Schütze 20 | C35: ='Wettkampf 1'!C35 -> Esterwegen | F35: 0.0 | G35: 0 | H35: 0 | I35: 0 | J35: 0 | K35: 0 | L35: 0 | M35: 0 | N35: 1 | O35: 0 | P35: 0 | Q35: 0 | R35: 0 | S35: 0 | T35: 0 | U35: 0 | V35: 0 | W35: 0 | X35: 0 | Y35: 0 | Z35: 0 | AA35: 0 | AB35: 0 | AC35: 0 | AD35: 0 | AJ35: 0.0 | AK35: 1 | AL35: 0
A36: 21 | B36: ='Wettkampf 1'!B36 -> Hellweg Thea | C36: ='Wettkampf 1'!C36 -> Lähden | D36: 175.1 | F36: 175.1 | G36: 0 | H36: 0 | I36: 0 | J36: 0 | K36: 0 | L36: 0 | M36: 0 | N36: 0 | O36: 175.1 | P36: 1 | Q36: 0 | R36: 0 | S36: 0 | T36: 0 | U36: 0 | V36: 0 | W36: 0 | X36: 0 | Y36: 0 | Z36: 0 | AA36: 0 | AB36: 0 | AC36: 0 | AD36: 0 | AJ36: 0.0 | AK36: 0 | AL36: 0
A37: 22 | B37: ='Wettkampf 1'!B37 -> Bruns Henrik | C37: ='Wettkampf 1'!C37 -> Lähden | D37: 184.7 | F37: 184.7 | G37: 0 | H37: 0 | I37: 0 | J37: 0 | K37: 0 | L37: 0 | M37: 0 | N37: 0 | O37: 184.7 | P37: 1 | Q37: 0 | R37: 0 | S37: 0 | T37: 0 | U37: 0 | V37: 0 | W37: 0 | X37: 0 | Y37: 0 | Z37: 0 | AA37: 0 | AB37: 0 | AC37: 0 | AD37: 0 | AJ37: 0.0 | AK37: 0 | AL37: 0
A38: 23 | B38: ='Wettkampf 1'!B38 -> Buschen Johann | C38: ='Wettkampf 1'!C38 -> Lähden | D38: 189.5 | F38: 189.5 | G38: 0 | H38: 0 | I38: 0 | J38: 0 | K38: 0 | L38: 0 | M38: 0 | N38: 0 | O38: 189.5 | P38: 1 | Q38: 0 | R38: 0 | S38: 0 | T38: 0 | U38: 0 | V38: 0 | W38: 0 | X38: 0 | Y38: 0 | Z38: 0 | AA38: 0 | AB38: 0 | AC38: 0 | AD38: 0 | AJ38: 0.0 | AK38: 0 | AL38: 0
A39: 24 | B39: ='Wettkampf 1'!B39 -> Preut Jannis | C39: ='Wettkampf 1'!C39 -> Lähden | D39: 150.1 | E39: x | F39: 0 | G39: 0 | H39: 0 | I39: 0 | J39: 0 | K39: 0 | L39: 0 | M39: 0 | N39: 0 | O39: 0 | P39: 0 | Q39: 0 | R39: 0 | S39: 0 | T39: 0 | U39: 0 | V39: 0 | W39: 0 | X39: 0 | Y39: 0 | Z39: 0 | AA39: 0 | AB39: 0 | AC39: 0 | AD39: 0 | AJ39: 0.0 | AK39: 0 | AL39: 0
A40: 25 | B40: ='Wettkampf 1'!B40 -> Fleschenberg Jana | C40: ='Wettkampf 1'!C40 -> Lähden | D40: 186.5 | F40: 186.5 | G40: 0 | H40: 0 | I40: 0 | J40: 0 | K40: 0 | L40: 0 | M40: 0 | N40: 0 | O40: 186.5 | P40: 1 | Q40: 0 | R40: 0 | S40: 0 | T40: 0 | U40: 0 | V40: 0 | W40: 0 | X40: 0 | Y40: 0 | Z40: 0 | AA40: 0 | AB40: 0 | AC40: 0 | AD40: 0 | AJ40: 0.0 | AK40: 0 | AL40: 0
A41: 26 | B41: ='Wettkampf 1'!B41 -> von Seggern Moritz | C41: ='Wettkampf 1'!C41 -> Lähden | D41: 166.8 | F41: 166.8 | G41: 0 | H41: 0 | I41: 0 | J41: 0 | K41: 0 | L41: 0 | M41: 0 | N41: 0 | O41: 166.8 | P41: 1 | Q41: 0 | R41: 0 | S41: 0 | T41: 0 | U41: 0 | V41: 0 | W41: 0 | X41: 0 | Y41: 0 | Z41: 0 | AA41: 0 | AB41: 0 | AC41: 0 | AD41: 0 | AJ41: 0.0 | AK41: 0 | AL41: 0
A42: 27 | B42: ='Wettkampf 1'!B42 -> Kohnen Saskia | C42: ='Wettkampf 1'!C42 -> Börgermoor | D42: 175.5 | F42: 175.5 | G42: 0 | H42: 0 | I42: 0 | J42: 0 | K42: 0 | L42: 0 | M42: 0 | N42: 0 | O42: 0 | P42: 0 | Q42: 175.5 | R42: 1 | S42: 0 | T42: 0 | U42: 0 | V42: 0 | W42: 0 | X42: 0 | Y42: 0 | Z42: 0 | AA42: 0 | AB42: 0 | AC42: 0 | AD42: 0 | AJ42: 0.0 | AK42: 0 | AL42: 0
A43: 28 | B43: ='Wettkampf 1'!B43 -> Niemann Paul | C43: ='Wettkampf 1'!C43 -> Börgermoor | F43: 0.0 | G43: 0 | H43: 0 | I43: 0 | J43: 0 | K43: 0 | L43: 0 | M43: 0 | N43: 0 | O43: 0 | P43: 0 | Q43: 0 | R43: 1 | S43: 0 | T43: 0 | U43: 0 | V43: 0 | W43: 0 | X43: 0 | Y43: 0 | Z43: 0 | AA43: 0 | AB43: 0 | AC43: 0 | AD43: 0 | AJ43: 0.0 | AK43: 1 | AL43: 0
A44: 29 | B44: ='Wettkampf 1'!B44 -> Schütze 29 | C44: ='Wettkampf 1'!C44 -> Börgermoor | F44: 0.0 | G44: 0 | H44: 0 | I44: 0 | J44: 0 | K44: 0 | L44: 0 | M44: 0 | N44: 0 | O44: 0 | P44: 0 | Q44: 0 | R44: 1 | S44: 0 | T44: 0 | U44: 0 | V44: 0 | W44: 0 | X44: 0 | Y44: 0 | Z44: 0 | AA44: 0 | AB44: 0 | AC44: 0 | AD44: 0 | AJ44: 0.0 | AK44: 1 | AL44: 0
A45: 30 | B45: ='Wettkampf 1'!B45 -> Schütze 30 | C45: ='Wettkampf 1'!C45 -> Börgermoor | F45: 0.0 | G45: 0 | H45: 0 | I45: 0 | J45: 0 | K45: 0 | L45: 0 | M45: 0 | N45: 0 | O45: 0 | P45: 0 | Q45: 0 | R45: 1 | S45: 0 | T45: 0 | U45: 0 | V45: 0 | W45: 0 | X45: 0 | Y45: 0 | Z45: 0 | AA45: 0 | AB45: 0 | AC45: 0 | AD45: 0 | AJ45: 0.0 | AK45: 1 | AL45: 0
A46: 31 | B46: ='Wettkampf 1'!B46 -> Stümpler Jan Luka | C46: ='Wettkampf 1'!C46 -> Lähden | F46: 0.0 | G46: 0 | H46: 0 | I46: 0 | J46: 0 | K46: 0 | L46: 0 | M46: 0 | N46: 0 | O46: 0 | P46: 1 | Q46: 0 | R46: 0 | S46: 0 | T46: 0 | U46: 0 | V46: 0 | W46: 0 | X46: 0 | Y46: 0 | Z46: 0 | AA46: 0 | AB46: 0 | AC46: 0 | AD46: 0 | AJ46: 0.0 | AK46: 1 | AL46: 0
A47: 32 | B47: ='Wettkampf 1'!B47 -> Helmer, Nils | C47: ='Wettkampf 1'!C47 -> Lorup | D47: 71.8 | E47: x | F47: 0 | G47: 0 | H47: 0 | I47: 0 | J47: 0 | K47: 0 | L47: 0 | M47: 0 | N47: 0 | O47: 0 | P47: 0 | Q47: 0 | R47: 0 | S47: 0 | T47: 0 | U47: 0 | V47: 0 | W47: 0 | X47: 0 | Y47: 0 | Z47: 0 | AA47: 0 | AB47: 0 | AC47: 0 | AD47: 0 | AJ47: 0.0 | AK47: 0 | AL47: 0
A48: 33 | B48: ='Wettkampf 1'!B48 -> Schütze 33 | C48: ='Wettkampf 1'!C48 -> Verein VII | F48: 0.0 | G48: 0 | H48: 0 | I48: 0 | J48: 0 | K48: 0 | L48: 0 | M48: 0 | N48: 0 | O48: 0 | P48: 0 | Q48: 0 | R48: 0 | S48: 0 | T48: 1 | U48: 0 | V48: 0 | W48: 0 | X48: 0 | Y48: 0 | Z48: 0 | AA48: 0 | AB48: 0 | AC48: 0 | AD48: 0 | AJ48: 0.0 | AK48: 1 | AL48: 0
A49: 34 | B49: ='Wettkampf 1'!B49 -> Schütze 34 | C49: ='Wettkampf 1'!C49 -> Verein VII | F49: 0.0 | G49: 0 | H49: 0 | I49: 0 | J49: 0 | K49: 0 | L49: 0 | M49: 0 | N49: 0 | O49: 0 | P49: 0 | Q49: 0 | R49: 0 | S49: 0 | T49: 1 | U49: 0 | V49: 0 | W49: 0 | X49: 0 | Y49: 0 | Z49: 0 | AA49: 0 | AB49: 0 | AC49: 0 | AD49: 0 | AJ49: 0.0 | AK49: 1 | AL49: 0
A50: 35 | B50: ='Wettkampf 1'!B50 -> Schütze 35 | C50: ='Wettkampf 1'!C50 -> Verein VII | F50: 0.0 | G50: 0 | H50: 0 | I50: 0 | J50: 0 | K50: 0 | L50: 0 | M50: 0 | N50: 0 | O50: 0 | P50: 0 | Q50: 0 | R50: 0 | S50: 0 | T50: 1 | U50: 0 | V50: 0 | W50: 0 | X50: 0 | Y50: 0 | Z50: 0 | AA50: 0 | AB50: 0 | AC50: 0 | AD50: 0 | AJ50: 0.0 | AK50: 1 | AL50: 0
A51: 36 | B51: ='Wettkampf 1'!B51 -> Schütze 36 | C51: ='Wettkampf 1'!C51 -> Verein VII | F51: 0.0 | G51: 0 | H51: 0 | I51: 0 | J51: 0 | K51: 0 | L51: 0 | M51: 0 | N51: 0 | O51: 0 | P51: 0 | Q51: 0 | R51: 0 | S51: 0 | T51: 1 | U51: 0 | V51: 0 | W51: 0 | X51: 0 | Y51: 0 | Z51: 0 | AA51: 0 | AB51: 0 | AC51: 0 | AD51: 0 | AJ51: 0.0 | AK51: 1 | AL51: 0
A52: 37 | B52: ='Wettkampf 1'!B52 -> Schütze 37 | C52: ='Wettkampf 1'!C52 -> Verein VII | F52: 0.0 | G52: 0 | H52: 0 | I52: 0 | J52: 0 | K52: 0 | L52: 0 | M52: 0 | N52: 0 | O52: 0 | P52: 0 | Q52: 0 | R52: 0 | S52: 0 | T52: 1 | U52: 0 | V52: 0 | W52: 0 | X52: 0 | Y52: 0 | Z52: 0 | AA52: 0 | AB52: 0 | AC52: 0 | AD52: 0 | AJ52: 0.0
A53: 38 | B53: ='Wettkampf 1'!B53 -> Schütze 38 | C53: ='Wettkampf 1'!C53 -> Verein VIII | F53: 0.0 | G53: 0 | H53: 0 | I53: 0 | J53: 0 | K53: 0 | L53: 0 | M53: 0 | N53: 0 | O53: 0 | P53: 0 | Q53: 0 | R53: 0 | S53: 0 | T53: 0 | U53: 0 | V53: 1 | W53: 0 | X53: 0 | Y53: 0 | Z53: 0 | AA53: 0 | AB53: 0 | AC53: 0 | AD53: 0 | AJ53: 0.0
A54: 39 | B54: ='Wettkampf 1'!B54 -> Schütze 39 | C54: ='Wettkampf 1'!C54 -> Verein VIII | F54: 0.0 | G54: 0 | H54: 0 | I54: 0 | J54: 0 | K54: 0 | L54: 0 | M54: 0 | N54: 0 | O54: 0 | P54: 0 | Q54: 0 | R54: 0 | S54: =IF($C54=$B$8,$F54,0) -> 0 | T54: =(IF(AND($E54="",$C54=$B$8),1,0)) -> 0 | U54: =IF($C54=$B$9,$F54,0) -> 0 | V54: =(IF(AND($E54="",$C54=$B$9),1,0)) -> 1 | W54: =IF($C54=$B$10,$F54,0) -> 0 | X54: =(IF(AND($E54="",$C54=$B$10),1,0)) -> 0 | Y54: =IF($C54=$B$11,$F54,0) -> 0 | Z54: =(IF(AND($E54="",$C54=$B$11),1,0)) -> 0 | AA54: =IF($C54=$B$12,$F54,0) -> 0 | AB54: =(IF(AND($E54="",$C54=$B$12),1,0)) -> 0 | AC54: =IF($C54=$B$13,$F54,0) -> 0 | AD54: =(IF(AND($E54="",$C54=$B$13),1,0)) -> 0 | AJ54: 0.0
A55: 40 | B55: ='Wettkampf 1'!B55 -> Schütze 40 | C55: ='Wettkampf 1'!C55 -> Verein VIII | F55: 0.0 | G55: 0 | H55: 0 | I55: 0 | J55: 0 | K55: 0 | L55: 0 | M55: 0 | N55: 0 | O55: 0 | P55: 0 | Q55: 0 | R55: 0 | S55: 0 | T55: 0 | U55: 0 | V55: 1 | W55: 0 | X55: 0 | Y55: 0 | Z55: 0 | AA55: 0 | AB55: 0 | AC55: 0 | AD55: 0 | AJ55: 0.0
A56: 41 | B56: ='Wettkampf 1'!B56 -> Schütze 41 | C56: ='Wettkampf 1'!C56 -> Verein IX | F56: 0.0 | G56: 0 | H56: 0 | I56: 0 | J56: 0 | K56: 0 | L56: 0 | M56: 0 | N56: 0 | O56: 0 | P56: 0 | Q56: 0 | R56: 0 | S56: 0 | T56: 0 | U56: 0 | V56: 0 | W56: 0 | X56: 1 | Y56: 0 | Z56: 0 | AA56: 0 | AB56: 0 | AC56: 0 | AD56: 0 | AJ56: 0.0
A57: 42 | B57: ='Wettkampf 1'!B57 -> Schütze 42 | C57: ='Wettkampf 1'!C57 -> Verein IX | F57: 0.0 | G57: 0 | H57: 0 | I57: 0 | J57: 0 | K57: 0 | L57: 0 | M57: 0 | N57: 0 | O57: 0 | P57: 0 | Q57: 0 | R57: 0 | S57: 0 | T57: 0 | U57: 0 | V57: 0 | W57: 0 | X57: 1 | Y57: 0 | Z57: 0 | AA57: 0 | AB57: 0 | AC57: 0 | AD57: 0 | AJ57: 0.0
A58: 43 | B58: ='Wettkampf 1'!B58 -> Schütze 43 | C58: ='Wettkampf 1'!C58 -> Verein IX | F58: 0.0 | G58: 0 | H58: 0 | I58: 0 | J58: 0 | K58: 0 | L58: 0 | M58: 0 | N58: 0 | O58: 0 | P58: 0 | Q58: 0 | R58: 0 | S58: 0 | T58: 0 | U58: 0 | V58: 0 | W58: 0 | X58: 1 | Y58: 0 | Z58: 0 | AA58: 0 | AB58: 0 | AC58: 0 | AD58: 0 | AJ58: 0.0
A59: 44 | B59: ='Wettkampf 1'!B59 -> Schütze 44 | C59: ='Wettkampf 1'!C59 -> Verein IX | F59: 0.0 | G59: 0 | H59: 0 | I59: 0 | J59: 0 | K59: 0 | L59: 0 | M59: 0 | N59: 0 | O59: 0 | P59: 0 | Q59: 0 | R59: 0 | S59: 0 | T59: 0 | U59: 0 | V59: 0 | W59: 0 | X59: 1 | Y59: 0 | Z59: 0 | AA59: 0 | AB59: 0 | AC59: 0 | AD59: 0 | AJ59: 0.0
A60: 45 | B60: ='Wettkampf 1'!B60 -> Schütze 45 | C60: ='Wettkampf 1'!C60 -> Verein IX | F60: 0.0 | G60: 0 | H60: 0 | I60: 0 | J60: 0 | K60: 0 | L60: 0 | M60: 0 | N60: 0 | O60: 0 | P60: 0 | Q60: 0 | R60: 0 | S60: 0 | T60: 0 | U60: 0 | V60: 0 | W60: 0 | X60: 1 | Y60: 0 | Z60: 0 | AA60: 0 | AB60: 0 | AC60: 0 | AD60: 0 | AJ60: 0.0
A61: 46 | B61: ='Wettkampf 1'!B61 -> Schütze 46 | C61: ='Wettkampf 1'!C61 -> Verein X | F61: 0.0 | G61: 0 | H61: 0 | I61: 0 | J61: 0 | K61: 0 | L61: 0 | M61: 0 | N61: 0 | O61: 0 | P61: 0 | Q61: 0 | R61: 0 | S61: 0 | T61: 0 | U61: 0 | V61: 0 | W61: 0 | X61: 0 | Y61: 0 | Z61: 1 | AA61: 0 | AB61: 0 | AC61: 0 | AD61: 0 | AJ61: 0.0
A62: 47 | B62: ='Wettkampf 1'!B62 -> Schütze 47 | C62: ='Wettkampf 1'!C62 -> Verein X | F62: 0.0 | G62: 0 | H62: 0 | I62: 0 | J62: 0 | K62: 0 | L62: 0 | M62: 0 | N62: 0 | O62: 0 | P62: 0 | Q62: 0 | R62: 0 | S62: 0 | T62: 0 | U62: 0 | V62: 0 | W62: 0 | X62: 0 | Y62: 0 | Z62: 1 | AA62: 0 | AB62: 0 | AC62: 0 | AD62: 0 | AJ62: 0.0
A63: 48 | B63: ='Wettkampf 1'!B63 -> Schütze 48 | C63: ='Wettkampf 1'!C63 -> Verein X | F63: 0.0 | G63: 0 | H63: 0 | I63: 0 | J63: 0 | K63: 0 | L63: 0 | M63: 0 | N63: 0 | O63: 0 | P63: 0 | Q63: 0 | R63: 0 | S63: 0 | T63: 0 | U63: 0 | V63: 0 | W63: 0 | X63: 0 | Y63: 0 | Z63: 1 | AA63: 0 | AB63: 0 | AC63: 0 | AD63: 0 | AJ63: 0.0
A64: 49 | B64: ='Wettkampf 1'!B64 -> Schütze 49 | C64: ='Wettkampf 1'!C64 -> Verein X | F64: 0.0 | G64: 0 | H64: 0 | I64: 0 | J64: 0 | K64: 0 | L64: 0 | M64: 0 | N64: 0 | O64: 0 | P64: 0 | Q64: 0 | R64: 0 | S64: 0 | T64: 0 | U64: 0 | V64: 0 | W64: 0 | X64: 0 | Y64: 0 | Z64: 1 | AA64: 0 | AB64: 0 | AC64: 0 | AD64: 0 | AJ64: 0.0
A65: 50 | B65: ='Wettkampf 1'!B65 -> Schütze 50 | C65: ='Wettkampf 1'!C65 -> Verein X | F65: 0.0 | G65: 0 | H65: 0 | I65: 0 | J65: 0 | K65: 0 | L65: 0 | M65: 0 | N65: 0 | O65: 0 | P65: 0 | Q65: 0 | R65: 0 | S65: 0 | T65: 0 | U65: 0 | V65: 0 | W65: 0 | X65: 0 | Y65: 0 | Z65: 1 | AA65: 0 | AB65: 0 | AC65: 0 | AD65: 0 | AJ65: 0.0
A66: 51 | B66: ='Wettkampf 1'!B66 -> Schütze 51 | C66: ='Wettkampf 1'!C66 -> Verein XI | F66: 0.0 | G66: 0 | H66: 0 | I66: 0 | J66: 0 | K66: 0 | L66: 0 | M66: 0 | N66: 0 | O66: 0 | P66: 0 | Q66: 0 | R66: 0 | S66: 0 | T66: 0 | U66: 0 | V66: 0 | W66: 0 | X66: 0 | Y66: 0 | Z66: 0 | AA66: 0 | AB66: 1 | AC66: 0 | AD66: 0 | AJ66: 0.0
A67: 52 | B67: ='Wettkampf 1'!B67 -> Schütze 52 | C67: ='Wettkampf 1'!C67 -> Verein XI | F67: 0.0 | G67: 0 | H67: 0 | I67: 0 | J67: 0 | K67: 0 | L67: 0 | M67: 0 | N67: 0 | O67: 0 | P67: 0 | Q67: 0 | R67: 0 | S67: 0 | T67: 0 | U67: 0 | V67: 0 | W67: 0 | X67: 0 | Y67: 0 | Z67: 0 | AA67: 0 | AB67: 1 | AC67: 0 | AD67: 0 | AJ67: 0.0
A68: 53 | B68: ='Wettkampf 1'!B68 -> Schütze 53 | C68: ='Wettkampf 1'!C68 -> Verein XI | F68: 0.0 | G68: 0 | H68: 0 | I68: 0 | J68: 0 | K68: 0 | L68: 0 | M68: 0 | N68: 0 | O68: 0 | P68: 0 | Q68: 0 | R68: 0 | S68: 0 | T68: 0 | U68: 0 | V68: 0 | W68: 0 | X68: 0 | Y68: 0 | Z68: 0 | AA68: 0 | AB68: 1 | AC68: 0 | AD68: 0 | AJ68: 0.0
A69: 54 | B69: ='Wettkampf 1'!B69 -> Schütze 54 | C69: ='Wettkampf 1'!C69 -> Verein XI | F69: 0.0 | G69: 0 | H69: 0 | I69: 0 | J69: 0 | K69: 0 | L69: 0 | M69: 0 | N69: 0 | O69: 0 | P69: 0 | Q69: 0 | R69: 0 | S69: 0 | T69: 0 | U69: 0 | V69: 0 | W69: 0 | X69: 0 | Y69: 0 | Z69: 0 | AA69: 0 | AB69: 1 | AC69: 0 | AD69: 0 | AJ69: 0.0
A70: 55 | B70: ='Wettkampf 1'!B70 -> Schütze 55 | C70: ='Wettkampf 1'!C70 -> Verein XI | F70: 0.0 | G70: 0 | H70: 0 | I70: 0 | J70: 0 | K70: 0 | L70: 0 | M70: 0 | N70: 0 | O70: 0 | P70: 0 | Q70: 0 | R70: 0 | S70: 0 | T70: 0 | U70: 0 | V70: 0 | W70: 0 | X70: 0 | Y70: 0 | Z70: 0 | AA70: 0 | AB70: 1 | AC70: 0 | AD70: 0 | AJ70: 0.0
A71: 56 | B71: ='Wettkampf 1'!B71 -> Schütze 56 | C71: ='Wettkampf 1'!C71 -> Verein XII | F71: 0.0 | G71: 0 | H71: 0 | I71: 0 | J71: 0 | K71: 0 | L71: 0 | M71: 0 | N71: 0 | O71: 0 | P71: 0 | Q71: 0 | R71: 0 | S71: 0 | T71: 0 | U71: 0 | V71: 0 | W71: 0 | X71: 0 | Y71: 0 | Z71: 0 | AA71: 0 | AB71: 0 | AC71: 0 | AD71: 1 | AJ71: 0.0
A72: 57 | B72: ='Wettkampf 1'!B72 -> Schütze 57 | C72: ='Wettkampf 1'!C72 -> Verein XII | F72: 0.0 | G72: 0 | H72: 0 | I72: 0 | J72: 0 | K72: 0 | L72: 0 | M72: 0 | N72: 0 | O72: 0 | P72: 0 | Q72: 0 | R72: 0 | S72: 0 | T72: 0 | U72: 0 | V72: 0 | W72: 0 | X72: 0 | Y72: 0 | Z72: 0 | AA72: 0 | AB72: 0 | AC72: 0 | AD72: 1 | AJ72: 0.0
A73: 58 | B73: ='Wettkampf 1'!B73 -> Schütze 58 | C73: ='Wettkampf 1'!C73 -> Verein XII | F73: 0.0 | G73: 0 | H73: 0 | I73: 0 | J73: 0 | K73: 0 | L73: 0 | M73: 0 | N73: 0 | O73: 0 | P73: 0 | Q73: 0 | R73: 0 | S73: 0 | T73: 0 | U73: 0 | V73: 0 | W73: 0 | X73: 0 | Y73: 0 | Z73: 0 | AA73: 0 | AB73: 0 | AC73: 0 | AD73: 1 | AJ73: 0.0
A74: 59 | B74: ='Wettkampf 1'!B74 -> Schütze 59 | C74: ='Wettkampf 1'!C74 -> Verein XII | F74: 0.0 | G74: 0 | H74: 0 | I74: 0 | J74: 0 | K74: 0 | L74: 0 | M74: 0 | N74: 0 | O74: 0 | P74: 0 | Q74: 0 | R74: 0 | S74: 0 | T74: 0 | U74: 0 | V74: 0 | W74: 0 | X74: 0 | Y74: 0 | Z74: 0 | AA74: 0 | AB74: 0 | AC74: 0 | AD74: 1 | AJ74: 0.0
A75: 60 | B75: ='Wettkampf 1'!B75 -> Schütze 60 | C75: ='Wettkampf 1'!C75 -> Verein XII | F75: 0.0 | G75: 0 | H75: 0 | I75: 0 | J75: 0 | K75: 0 | L75: 0 | M75: 0 | N75: 0 | O75: 0 | P75: 0 | Q75: 0 | R75: 0 | S75: 0 | T75: 0 | U75: 0 | V75: 0 | W75: 0 | X75: 0 | Y75: 0 | Z75: 0 | AA75: 0 | AB75: 0 | AC75: 0 | AD75: 1 | AJ75: 0.0
G76: =LARGE(G16:G75,1)+LARGE(G16:G75,2)+LARGE(G16:G75,3) -> 507.7 | H76: =SUM(H16:H75) -> 5 | I76: =LARGE(I16:I75,1)+LARGE(I16:I75,2)+LARGE(I16:I75,3) -> 0 | J76: =SUM(J16:J75) -> 4 | K76: =LARGE(K16:K75,1)+LARGE(K16:K75,2)+LARGE(K16:K75,3) -> 372.1 | L76: =SUM(L16:L75) -> 5 | M76: =LARGE(M16:M75,1)+LARGE(M16:M75,2)+LARGE(M16:M75,3) -> 490.7 | N76: =SUM(N16:N75) -> 5 | O76: =LARGE(O16:O75,1)+LARGE(O16:O75,2)+LARGE(O16:O75,3) -> 560.7 | P76: =SUM(P16:P75) -> 6 | Q76: =LARGE(Q16:Q75,1)+LARGE(Q16:Q75,2)+LARGE(Q16:Q75,3) -> 175.5 | R76: =SUM(R16:R75) -> 4 | S76: =LARGE(S16:S75,1)+LARGE(S16:S75,2)+LARGE(S16:S75,3) -> 0 | T76: =SUM(T16:T75) -> 5 | U76: =LARGE(U16:U75,1)+LARGE(U16:U75,2)+LARGE(U16:U75,3) -> 0 | V76: =SUM(V16:V75) -> 3 | W76: =LARGE(W16:W75,1)+LARGE(W16:W75,2)+LARGE(W16:W75,3) -> 0 | X76: =SUM(X16:X75) -> 5 | Y76: =LARGE(Y16:Y75,1)+LARGE(Y16:Y75,2)+LARGE(Y16:Y75,3) -> 0 | Z76: =SUM(Z16:Z75) -> 5 | AA76: =LARGE(AA16:AA75,1)+LARGE(AA16:AA75,2)+LARGE(AA16:AA75,3) -> 0 | AB76: =SUM(AB16:AB75) -> 5 | AC76: =LARGE(AC16:AC75,1)+LARGE(AC16:AC75,2)+LARGE(AC16:AC75,3) -> 0 | AD76: =SUM(AD16:AD75) -> 5
C77: per Email an: sk-huemmling@gmx.de

Sheet 10
B1: Verein / Gruppe | D1: Ergebnisse | AH1: Austragungsort: | AI1: =Übersicht!O4 -> Neubörger
A2: 1 | B2: ='Wettkampf 1'!B2 -> Lorup | D2: =G76 -> 458.0 | E2: =IF(H76>4,"Es sind zu viele Schützen in Wertung!"," ") -> Es sind zu viele Schützen in Wertung! | AH2: Wettkampftag: | AI2: =Übersicht!O3 -> 09.03.
A3: 2 | B3: ='Wettkampf 1'!B3 -> Sögel | D3: =I76 -> 0.0 | E3: =IF(J76>4,"Es sind zu viele Schützen in Wertung!"," ") -> 
A4: 3 | B4: ='Wettkampf 1'!B4 -> Spahnharenstätte | D4: =K76 -> 248.5 | E4: =IF(L76>4,"Es sind zu viele Schützen in Wertung!"," ") -> Es sind zu viele Schützen in Wertung! | AJ4: Ansprechpartner für Rückfragen:
A5: 4 | B5: ='Wettkampf 1'!B5 -> Esterwegen | D5: =M76 -> 508.3 | E5: =IF(N76>4,"Es sind zu viele Schützen in Wertung!"," ") -> Es sind zu viele Schützen in Wertung! | AH5: Name: | AI5: Anna Rosenboom
A6: 5 | B6: ='Wettkampf 1'!B6 -> Lähden | D6: =O76 -> 562.0 | E6: =IF(P76>4,"Es sind zu viele Schützen in Wertung!"," ") -> Es sind zu viele Schützen in Wertung! | AH6: Tel:
A7: 6 | B7: ='Wettkampf 1'!B7 -> Börgermoor | D7: =Q76 -> 137.2 | E7: =IF(R76>4,"Es sind zu viele Schützen in Wertung!"," ") ->  | AH7: Standaufsicht: | AI7: Anna Rosenboom
A8: 7 | B8: ='Wettkampf 1'!B8 -> Verein VII | D8: =S76 -> 0.0 | E8: =IF(T76>4,"Es sind zu viele Schützen in Wertung!"," ") -> Es sind zu viele Schützen in Wertung!
A9: 8 | B9: ='Wettkampf 1'!B9 -> Verein VIII | D9: =U76 -> 0.0 | E9: =IF(V76>4,"Es sind zu viele Schützen in Wertung!"," ") -> 
A10: 9 | B10: ='Wettkampf 1'!B10 -> Verein IX | D10: =W76 -> 0.0 | E10: =IF(X76>4,"Es sind zu viele Schützen in Wertung!"," ") -> Es sind zu viele Schützen in Wertung!
A11: 10 | B11: ='Wettkampf 1'!B11 -> Verein X | D11: =Y76 -> 0.0 | E11: =IF(Z76>4,"Es sind zu viele Schützen in Wertung!"," ") -> Es sind zu viele Schützen in Wertung!
A12: 11 | B12: ='Wettkampf 1'!B12 -> Verein XI | D12: =AA76 -> 0.0 | E12: =IF(AB76>4,"Es sind zu viele Schützen in Wertung!"," ") -> Es sind zu viele Schützen in Wertung!
A13: 12 | B13: ='Wettkampf 1'!B13 -> Verein XII | D13: =AC76 -> 0.0 | E13: =IF(AD76>4,"Es sind zu viele Schützen in Wertung!"," ") -> Es sind zu viele Schützen in Wertung!
B15: Einzelergebnisse: | C15: Verein / Gruppe | D15: Ergebnisse (mindestens 0 eintragen) | E15: AW? Dann x eintippen | G15: Verein 1 | I15: Verein 2 | K15: Verein 3 | M15: Verein 4 | O15: Verein 5 | Q15: Verein 6 | S15: Verein 7 | U15: Verein 8 | W15: Verein 9 | Y15: Verein 10 | AA15: Verein 11 | AC15: Verein 12 | AG15: Proberechnung bei Streifen:
A16: 1 | B16: ='Wettkampf 1'!B16 -> Wotte Lia | C16: ='Wettkampf 1'!C16 -> Lorup | D16: 166.4 | F16: =IF(E16="x","0",D16) -> 166.4 | G16: =IF(C16=$B$2,F16,0) -> 166.4 | H16: =(IF(AND($E16="",$C16=$B$2),1,0)) -> 1 | I16: =IF($C16=$B$3,$F16,0) -> 0 | J16: =(IF(AND($E16="",$C16=$B$3),1,0)) -> 0 | K16: =IF($C16=$B$4,F16,0) -> 0 | L16: =(IF(AND($E16="",$C16=$B$4),1,0)) -> 0 | M16: =IF($C16=$B$5,F16,0) -> 0 | N16: =(IF(AND($E16="",$C16=$B$5),1,0)) -> 0 | O16: =IF($C16=$B$6,F16,0) -> 0 | P16: =(IF(AND($E16="",$C16=$B$6),1,0)) -> 0 | Q16: =IF($C16=$B$7,F16,0) -> 0 | R16: =(IF(AND($E16="",$C16=$B$7),1,0)) -> 0 | S16: =IF($C16=$B$8,$F16,0) -> 0 | T16: =(IF(AND($E16="",$C16=$B$8),1,0)) -> 0 | U16: =IF($C16=$B$9,$F16,0) -> 0 | V16: =(IF(AND($E16="",$C16=$B$9),1,0)) -> 0 | W16: =IF($C16=$B$10,$F16,0) -> 0 | X16: =(IF(AND($E16="",$C16=$B$10),1,0)) -> 0 | Y16: =IF($C16=$B$11,$F16,0) -> 0 | Z16: =(IF(AND($E16="",$C16=$B$11),1,0)) -> 0 | AA16: =IF($C16=$B$12,$F16,0) -> 0 | AB16: =(IF(AND($E16="",$C16=$B$12),1,0)) -> 0 | AC16: =IF($C16=$B$13,$F16,0) -> 0 | AD16: =(IF(AND($E16="",$C16=$B$13),1,0)) -> 0 | AJ16: =SUM(AG16:AI16) -> 0.0 | AK16: =IF(AJ16=D16,1,0) -> 0 | AL16: =IF(AJ16=0,0,1) -> 0 | AM16: =IF(AK16+AL16=2,"Korrekt","") -> 
A17: 2 | B17: ='Wettkampf 1'!B17 -> Wotte Hannes | C17: ='Wettkampf 1'!C17 -> Lorup | D17: 149.6 | F17: =IF(E17="x","0",D17) -> 149.6 | G17: =IF(C17=$B$2,F17,0) -> 149.6 | H17: =(IF(AND($E17="",$C17=$B$2),1,0)) -> 1 | I17: =IF($C17=$B$3,F17,0) -> 0 | J17: =(IF(AND($E17="",$C17=$B$3),1,0)) -> 0 | K17: =IF($C17=$B$4,F17,0) -> 0 | L17: =(IF(AND($E17="",$C17=$B$4),1,0)) -> 0 | M17: =IF($C17=$B$5,F17,0) -> 0 | N17: =(IF(AND($E17="",$C17=$B$5),1,0)) -> 0 | O17: =IF($C17=$B$6,F17,0) -> 0 | P17: =(IF(AND($E17="",$C17=$B$6),1,0)) -> 0 | Q17: =IF($C17=$B$7,F17,0) -> 0 | R17: =(IF(AND($E17="",$C17=$B$7),1,0)) -> 0 | S17: =IF($C17=$B$8,$F17,0) -> 0 | T17: =(IF(AND($E17="",$C17=$B$8),1,0)) -> 0 | U17: =IF($C17=$B$9,$F17,0) -> 0 | V17: =(IF(AND($E17="",$C17=$B$9),1,0)) -> 0 | W17: =IF($C17=$B$10,$F17,0) -> 0 | X17: =(IF(AND($E17="",$C17=$B$10),1,0)) -> 0 | Y17: =IF($C17=$B$11,$F17,0) -> 0 | Z17: =(IF(AND($E17="",$C17=$B$11),1,0)) -> 0 | AA17: =IF($C17=$B$12,$F17,0) -> 0 | AB17: =(IF(AND($E17="",$C17=$B$12),1,0)) -> 0 | AC17: =IF($C17=$B$13,$F17,0) -> 0 | AD17: =(IF(AND($E17="",$C17=$B$13),1,0)) -> 0 | AJ17: =SUM(AG17:AI17) -> 0.0 | AK17: =IF(AJ17=D17,1,0) -> 0 | AL17: =IF(AJ17=0,0,1) -> 0 | AM17: =IF(AK17+AL17=2,"Korrekt","") -> 
A18: 3 | B18: ='Wettkampf 1'!B18 -> Gretenabeln Elias | C18: ='Wettkampf 1'!C18 -> Lorup | D18: 142.0 | F18: 142.0 | G18: 142 | H18: 1 | I18: 0 | J18: 0 | K18: 0 | L18: 0 | M18: 0 | N18: 0 | O18: 0 | P18: 0 | Q18: 0 | R18: 0 | S18: 0 | T18: 0 | U18: 0 | V18: 0 | W18: 0 | X18: 0 | Y18: 0 | Z18: 0 | AA18: 0 | AB18: 0 | AC18: 0 | AD18: 0 | AJ18: 0.0 | AK18: 0 | AL18: 0
A19: 4 | B19: ='Wettkampf 1'!B19 -> Helmer Maike | C19: ='Wettkampf 1'!C19 -> Lorup | D19: 155.1 | E19: x | F19: 0 | G19: 0 | H19: 0 | I19: 0 | J19: 0 | K19: 0 | L19: 0 | M19: 0 | N19: 0 | O19: 0 | P19: 0 | Q19: 0 | R19: 0 | S19: 0 | T19: 0 | U19: 0 | V19: 0 | W19: 0 | X19: 0 | Y19: 0 | Z19: 0 | AA19: 0 | AB19: 0 | AC19: 0 | AD19: 0 | AJ19: 0.0 | AK19: 0 | AL19: 0
